Workbook

Sheet ACCUEIL
H7: 2019-11-30
A22: Lexique

Sheet Accueilagence
A1: Accueil
E7: =ACCUEIL!H7 -> 2019-11-30

Sheet Accueilsecteur
A1: Accueil
E7: =ACCUEIL!H7 -> 2019-11-30

Sheet AccueilDircom
A1: Accueil
E7: =ACCUEIL!H7 -> 2019-11-30

Sheet DC_FICHE
A1: Accueil
A2: BAROMETRE BDD
A4: UNITE: | B4: DIRECTION REGIONALE | K4: ETP perf : | L4: =VLOOKUP(A5,'RECAP DIRCOM'!$G$6:$I$12,3,FALSE) -> 296.67
A5: =VLOOKUP(B5,LISTES!$M$6:$N$12,2,FALSE) -> 262 | B5: BAS-RHIN
C6: Coefficient du critére | E6: Résultats | I6: Ecart au 1ier | M6: Evolution | O6: Rang
E7: du 1ier | G7: DIRECTION | I7: Du mois | K7: Au 31/12/2018
A9: RANG au CLASSEMENT GENERAL | I9: =VLOOKUP($A$5,'RECAP DIRCOM'!$G$6:$FE$312,154,FALSE) -> 6 | K9: =VLOOKUP($A$5,'RECAP DIRCOM AN'!$G$6:$FE$312,154,FALSE) -> 5 | M9: =+K9-I9 -> -1
A11: CRITERE CONQUETE | C11: 15% | O11: =VLOOKUP($A$5,'RECAP DIRCOM'!$G$6:$FE$312,19,FALSE) -> 6
B12: Evolution nette Clients Bancarisés Principaux (BP +JBP) par ETP | C12: 4% | E12: ='RECAP DIRCOM'!K4 -> 2.3 | G12: =VLOOKUP($A$5,'RECAP DIRCOM'!$G$6:$FE$312,5,FALSE) -> -2.7 | I12: =VLOOKUP($A$5,'RECAP DIRCOM'!$G$6:$FE$312,6,FALSE) -> 131% | K12: =VLOOKUP($A$5,'RECAP DIRCOM AN'!$G$6:$FE$312,6,FALSE) -> 126% | M12: =+K12-I12 -> -5% | O12: =VLOOKUP($A$5,'RECAP DIRCOM'!$G$6:$FE$312,7,FALSE) -> 6
B13: Evolution nette relations Premium par ETP | C13: 4% | E13: ='RECAP DIRCOM'!N4 -> 2.4 | G13: =VLOOKUP($A$5,'RECAP DIRCOM'!$G$6:$FE$312,8,FALSE) -> 2.2 | I13: =VLOOKUP($A$5,'RECAP DIRCOM'!$G$6:$FE$312,9,FALSE) -> 7% | K13: =VLOOKUP($A$5,'RECAP DIRCOM AN'!$G$6:$FE$312,9,FALSE) -> 0% | M13: =+K13-I13 -> -7% | O13: =VLOOKUP($A$5,'RECAP DIRCOM'!$G$6:$FE$312,10,FALSE) -> 3
B14: Evolution nette Clients Bancarisés Principaux équipés par ETP | C14: 3% | E14: ='RECAP DIRCOM'!Q4 -> 4.2 | G14: =VLOOKUP($A$5,'RECAP DIRCOM'!$G$6:$FE$312,11,FALSE) -> -1.0 | I14: =VLOOKUP($A$5,'RECAP DIRCOM'!$G$6:$FE$312,12,FALSE) -> 123% | K14: =VLOOKUP($A$5,'RECAP DIRCOM AN'!$G$6:$FE$312,12,FALSE) -> 115% | M14: =+K14-I14 -> -8% | O14: =VLOOKUP($A$5,'RECAP DIRCOM'!$G$6:$FE$312,13,FALSE) -> 6
B15: Evolution nette Clients Pro actif équipés par rapport à l’objectif fixé | C15: 4% | E15: ='RECAP DIRCOM'!T4 -> 75% | G15: =VLOOKUP($A$5,'RECAP DIRCOM'!$G$6:$FE$312,14,FALSE) -> 52% | I15: =VLOOKUP($A$5,'RECAP DIRCOM'!$G$6:$FE$312,15,FALSE) -> 31% | K15: =VLOOKUP($A$5,'RECAP DIRCOM AN'!$G$6:$FE$312,15,FALSE) -> 134% | M15: =+K15-I15 -> 103% | O15: =VLOOKUP($A$5,'RECAP DIRCOM'!$G$6:$FE$312,16,FALSE) -> 4
A17: CRITERE EQUIPEMENT BANCARISATION | C17: 15% | O17: =VLOOKUP($A$5,'RECAP DIRCOM'!$G$6:$FE$312,43,FALSE) -> 4
B18: Ventes nettes forfaits (+ 2 options) par ETP | C18: 3% | E18: ='RECAP DIRCOM'!AF4 -> -13.7 | G18: =VLOOKUP($A$5,'RECAP DIRCOM'!$G$6:$FE$312,26,FALSE) -> -13.7 | I18: =VLOOKUP($A$5,'RECAP DIRCOM'!$G$6:$FE$312,27,FALSE) -> 0% | K18: =VLOOKUP($A$5,'RECAP DIRCOM AN'!$G$6:$FE$312,27,FALSE) -> 0% | M18: =+K18-I18 -> 0% | O18: =VLOOKUP($A$5,'RECAP DIRCOM'!$G$6:$FE$312,28,FALSE) -> 1
B19: Ventes nettes IZICARTES par ETP | C19: 3% | E19: ='RECAP DIRCOM'!AI4 -> 8.7 | G19: =VLOOKUP($A$5,'RECAP DIRCOM'!$G$6:$FE$312,29,FALSE) -> 3.7 | I19: =VLOOKUP($A$5,'RECAP DIRCOM'!$G$6:$FE$312,30,FALSE) -> 57% | K19: =VLOOKUP($A$5,'RECAP DIRCOM AN'!$G$6:$FE$312,30,FALSE) -> 18% | M19: =+K19-I19 -> -39% | O19: =VLOOKUP($A$5,'RECAP DIRCOM'!$G$6:$FE$312,31,FALSE) -> 6
B20: Ventes nettes cartes HDG par ETP | C20: 3% | E20: ='RECAP DIRCOM'!AL4 -> 17.6 | G20: =VLOOKUP($A$5,'RECAP DIRCOM'!$G$6:$FE$312,32,FALSE) -> 13.5 | I20: =VLOOKUP($A$5,'RECAP DIRCOM'!$G$6:$FE$312,33,FALSE) -> 23% | K20: =VLOOKUP($A$5,'RECAP DIRCOM AN'!$G$6:$FE$312,33,FALSE) -> 33% | M20: =+K20-I20 -> 9% | O20: =VLOOKUP($A$5,'RECAP DIRCOM'!$G$6:$FE$312,34,FALSE) -> 3
B21: Vente nette CB débit différé par ETP | C21: 3% | E21: ='RECAP DIRCOM'!AO4 -> 7.8 | G21: =VLOOKUP($A$5,'RECAP DIRCOM'!$G$6:$FE$312,35,FALSE) -> 7.8 | I21: =VLOOKUP($A$5,'RECAP DIRCOM'!$G$6:$FE$312,36,FALSE) -> 0% | K21: =VLOOKUP($A$5,'RECAP DIRCOM AN'!$G$6:$FE$312,36,FALSE) -> 80% | M21: =+K21-I21 -> 80% | O21: =VLOOKUP($A$5,'RECAP DIRCOM'!$G$6:$FE$312,37,FALSE) -> 1
B22: Ventes nettes banca Pro Forfaits Pro, Carte pro par rapport à l’objectif | C22: 3% | E22: ='RECAP DIRCOM'!AR4 -> 115% | G22: =VLOOKUP($A$5,'RECAP DIRCOM'!$G$6:$FE$312,38,FALSE) -> 39% | I22: =VLOOKUP($A$5,'RECAP DIRCOM'!$G$6:$FE$312,39,FALSE) -> 66% | K22: =VLOOKUP($A$5,'RECAP DIRCOM AN'!$G$6:$FE$312,39,FALSE) -> 98% | M22: =+K22-I22 -> 31% | O22: =VLOOKUP($A$5,'RECAP DIRCOM'!$G$6:$FE$312,40,FALSE) -> 6
A24: CRITERE EPARGNE | C24: 15% | O24: =VLOOKUP($A$5,'RECAP DIRCOM'!$G$6:$FE$312,67,FALSE) -> 3
B25: Excédents de collecte (y.c DAV) par ETP | C25: 2% | E25: ='RECAP DIRCOM'!BD4 -> 137.2 | G25: =VLOOKUP($A$5,'RECAP DIRCOM'!$G$6:$FE$312,50,FALSE) -> 76.7 | I25: =VLOOKUP($A$5,'RECAP DIRCOM'!$G$6:$FE$312,51,FALSE) -> 44% | K25: =VLOOKUP($A$5,'RECAP DIRCOM AN'!$G$6:$FE$312,51,FALSE) -> 21% | M25: =+K25-I25 -> -23% | O25: =VLOOKUP($A$5,'RECAP DIRCOM'!$G$6:$FE$312,52,FALSE) -> 5
B26: CA assurance vie par ETP | C26: 2% | E26: ='RECAP DIRCOM'!BG4 -> 557.9 | G26: =VLOOKUP($A$5,'RECAP DIRCOM'!$G$6:$FE$312,53,FALSE) -> 409.0 | I26: =VLOOKUP($A$5,'RECAP DIRCOM'!$G$6:$FE$312,54,FALSE) -> 27% | K26: =VLOOKUP($A$5,'RECAP DIRCOM AN'!$G$6:$FE$312,54,FALSE) -> 24% | M26: =+K26-I26 -> -3% | O26: =VLOOKUP($A$5,'RECAP DIRCOM'!$G$6:$FE$312,55,FALSE) -> 6
B27: Activité UC (CA+arbitrage) par ETP | C27: 2% | E27: ='RECAP DIRCOM'!BJ4 -> 175.1 | G27: =VLOOKUP($A$5,'RECAP DIRCOM'!$G$6:$FE$312,56,FALSE) -> 158.8 | I27: =VLOOKUP($A$5,'RECAP DIRCOM'!$G$6:$FE$312,57,FALSE) -> 9% | K27: =VLOOKUP($A$5,'RECAP DIRCOM AN'!$G$6:$FE$312,57,FALSE) -> 20% | M27: =+K27-I27 -> 10% | O27: =VLOOKUP($A$5,'RECAP DIRCOM'!$G$6:$FE$312,58,FALSE) -> 3
B28: Excédents Assurance-vie par ETP | C28: 2% | E28: ='RECAP DIRCOM'!BM4 -> 172.8 | G28: =VLOOKUP($A$5,'RECAP DIRCOM'!$G$6:$FE$312,59,FALSE) -> 66.9 | I28: =VLOOKUP($A$5,'RECAP DIRCOM'!$G$6:$FE$312,60,FALSE) -> 61% | K28: =VLOOKUP($A$5,'RECAP DIRCOM AN'!$G$6:$FE$312,60,FALSE) -> 94% | M28: =+K28-I28 -> 32% | O28: =VLOOKUP($A$5,'RECAP DIRCOM'!$G$6:$FE$312,61,FALSE) -> 6
B29: Excédents Epargne Bilan (Hors Emprunts CTO) par ETP | C29: 7% | E29: ='RECAP DIRCOM'!BP4 -> 35.6 | G29: =VLOOKUP($A$5,'RECAP DIRCOM'!$G$6:$FE$312,62,FALSE) -> 17.4 | I29: =VLOOKUP($A$5,'RECAP DIRCOM'!$G$6:$FE$312,63,FALSE) -> 51% | K29: =VLOOKUP($A$5,'RECAP DIRCOM AN'!$G$6:$FE$312,63,FALSE) -> 0% | M29: =+K29-I29 -> -51% | O29: =VLOOKUP($A$5,'RECAP DIRCOM'!$G$6:$FE$312,64,FALSE) -> 3
A31: CRITERE CREDITS | C31: 15% | O31: =VLOOKUP($A$5,'RECAP DIRCOM'!$G$6:$FE$312,94,FALSE) -> 5
B32: Engagement Conso par ETP (hors clients 9) | C32: 3% | E32: ='RECAP DIRCOM'!CB4 -> 453.4 | G32: =VLOOKUP($A$5,'RECAP DIRCOM'!$G$6:$FE$312,74,FALSE) -> 350.0 | I32: =VLOOKUP($A$5,'RECAP DIRCOM'!$G$6:$FE$312,75,FALSE) -> 23% | K32: =VLOOKUP($A$5,'RECAP DIRCOM AN'!$G$6:$FE$312,75,FALSE) -> 21% | M32: =+K32-I32 -> -2% | O32: =VLOOKUP($A$5,'RECAP DIRCOM'!$G$6:$FE$312,76,FALSE) -> 7
B33: % CNP sur Conso en valeur absolue | C33: 2% | E33: ='RECAP DIRCOM'!CE4 -> 96% | G33: =VLOOKUP($A$5,'RECAP DIRCOM'!$G$6:$FE$312,77,FALSE) -> 94% | I33: =VLOOKUP($A$5,'RECAP DIRCOM'!$G$6:$FE$312,78,FALSE) -> 2% | K33: =VLOOKUP($A$5,'RECAP DIRCOM AN'!$G$6:$FE$312,78,FALSE) -> 0% | M33: -2% | O33: =VLOOKUP($A$5,'RECAP DIRCOM'!$G$6:$FE$312,79,FALSE) -> 3
B34: Engagements Immo par rapport à l’objectif | C34: 3% | E34: ='RECAP DIRCOM'!CH4 -> 128% | G34: =VLOOKUP($A$5,'RECAP DIRCOM'!$G$6:$FE$312,80,FALSE) -> 102% | I34: =VLOOKUP($A$5,'RECAP DIRCOM'!$G$6:$FE$312,81,FALSE) -> 21% | K34: =VLOOKUP($A$5,'RECAP DIRCOM AN'!$G$6:$FE$312,81,FALSE) -> 29% | M34: 8% | O34: =VLOOKUP($A$5,'RECAP DIRCOM'!$G$6:$FE$312,82,FALSE) -> 5
B35: % CNP sur crédits immo en valeur absolue | C35: 2% | E35: ='RECAP DIRCOM'!CK4 -> 80% | G35: =VLOOKUP($A$5,'RECAP DIRCOM'!$G$6:$FE$312,83,FALSE) -> 55% | I35: =VLOOKUP($A$5,'RECAP DIRCOM'!$G$6:$FE$312,84,FALSE) -> 30% | K35: =VLOOKUP($A$5,'RECAP DIRCOM AN'!$G$6:$FE$312,84,FALSE) -> 8% | M35: -22% | O35: =VLOOKUP($A$5,'RECAP DIRCOM'!$G$6:$FE$312,85,FALSE) -> 7
B36: Taux de couverture SACCEF | C36: 2% | E36: ='RECAP DIRCOM'!CN4 -> 93% | G36: =VLOOKUP($A$5,'RECAP DIRCOM'!$G$6:$FE$312,86,FALSE) -> 85% | I36: =VLOOKUP($A$5,'RECAP DIRCOM'!$G$6:$FE$312,87,FALSE) -> 9% | K36: =VLOOKUP($A$5,'RECAP DIRCOM AN'!$G$6:$FE$312,87,FALSE) -> 0% | M36: -9% | O36: =VLOOKUP($A$5,'RECAP DIRCOM'!$G$6:$FE$312,88,FALSE) -> 5
B37: Engagements CMLT + CB par rapport à l’objectif | C37: 3% | E37: ='RECAP DIRCOM'!CQ4 -> 107% | G37: =VLOOKUP($A$5,'RECAP DIRCOM'!$G$6:$FE$312,89,FALSE) -> 107% | I37: =VLOOKUP($A$5,'RECAP DIRCOM'!$G$6:$FE$312,90,FALSE) -> 0% | K37: =VLOOKUP($A$5,'RECAP DIRCOM AN'!$G$6:$FE$312,90,FALSE) -> 13% | M37: 13% | O37: =VLOOKUP($A$5,'RECAP DIRCOM'!$G$6:$FE$312,91,FALSE) -> 1
A39: CRITERE IARD PREVOYANCE | C39: 20% | O39: =VLOOKUP($A$5,'RECAP DIRCOM'!$G$6:$FE$312,112,FALSE) -> 6
B40: Ventes nettes IARD (Auto+MRH+ Pro) par ETP | C40: 7% | E40: ='RECAP DIRCOM'!DC4 -> 10.6 | G40: =VLOOKUP($A$5,'RECAP DIRCOM'!$G$6:$FE$312,101,FALSE) -> 5.2 | I40: =VLOOKUP($A$5,'RECAP DIRCOM'!$G$6:$FE$312,102,FALSE) -> 51% | K40: =VLOOKUP($A$5,'RECAP DIRCOM AN'!$G$6:$FE$312,102,FALSE) -> 23% | M40: =+K40-I40 -> -28% | O40: =VLOOKUP($A$5,'RECAP DIRCOM'!$G$6:$FE$312,103,FALSE) -> 6
B41: Ventes nettes Prévoyance (GAV, secur.f,prevoy loc,santé,assist.vie, obséques, Pro) par ETP | C41: 7% | E41: ='RECAP DIRCOM'!DF4 -> 13.9 | G41: =VLOOKUP($A$5,'RECAP DIRCOM'!$G$6:$FE$312,104,FALSE) -> 8.1 | I41: =VLOOKUP($A$5,'RECAP DIRCOM'!$G$6:$FE$312,105,FALSE) -> 42% | K41: =VLOOKUP($A$5,'RECAP DIRCOM AN'!$G$6:$FE$312,105,FALSE) -> 7% | M41: =+K41-I41 -> -35% | O41: =VLOOKUP($A$5,'RECAP DIRCOM'!$G$6:$FE$312,106,FALSE) -> 6
B42: Chiffre d’affaires IARD (Yc Pro) par ETP | C42: 6% | E42: ='RECAP DIRCOM'!DI4 -> 11.7 | G42: =VLOOKUP($A$5,'RECAP DIRCOM'!$G$6:$FE$312,107,FALSE) -> 9.6 | I42: =VLOOKUP($A$5,'RECAP DIRCOM'!$G$6:$FE$312,108,FALSE) -> 18% | K42: =VLOOKUP($A$5,'RECAP DIRCOM AN'!$G$6:$FE$312,108,FALSE) -> 11% | M42: =+K42-I42 -> -7% | O42: =VLOOKUP($A$5,'RECAP DIRCOM'!$G$6:$FE$312,109,FALSE) -> 6
A44: CRITERE RISQUES | C44: 10% | O44: =VLOOKUP($A$5,'RECAP DIRCOM'!$G$6:$FE$312,130,FALSE) -> 7
B45: Complétude, conformité et fiabilisation des nouvelles EER sur flux BDD | C45: 3% | E45: ='RECAP DIRCOM'!DU4 -> 99% | G45: =VLOOKUP($A$5,'RECAP DIRCOM'!$G$6:$FE$312,119,FALSE) -> 96% | I45: =VLOOKUP($A$5,'RECAP DIRCOM'!$G$6:$FE$312,120,FALSE) -> 2% | K45: =VLOOKUP($A$5,'RECAP DIRCOM AN'!$G$6:$FE$312,120,FALSE) -> 3% | M45: =+K45-I45 -> 1% | O45: =VLOOKUP($A$5,'RECAP DIRCOM'!$G$6:$FE$312,121,FALSE) -> 7
B46: Complétude, conformité et fiabilisation des EER sur flux cumulé et stock | C46: 3% | E46: ='RECAP DIRCOM'!DX4 -> 78% | G46: =VLOOKUP($A$5,'RECAP DIRCOM'!$G$6:$FE$312,122,FALSE) -> 71% | I46: =VLOOKUP($A$5,'RECAP DIRCOM'!$G$6:$FE$312,123,FALSE) -> 9% | K46: =VLOOKUP($A$5,'RECAP DIRCOM AN'!$G$6:$FE$312,123,FALSE) -> 8% | M46: =+K46-I46 -> -1% | O46: =VLOOKUP($A$5,'RECAP DIRCOM'!$G$6:$FE$312,124,FALSE) -> 7
B47: Traitement et qualité du traitement des alertes Vigiclient | C47: 4% | E47: ='RECAP DIRCOM'!EA4 -> 100% | G47: =VLOOKUP($A$5,'RECAP DIRCOM'!$G$6:$FE$312,125,FALSE) -> 93% | I47: =VLOOKUP($A$5,'RECAP DIRCOM'!$G$6:$FE$312,126,FALSE) -> 7% | K47: =VLOOKUP($A$5,'RECAP DIRCOM AN'!$G$6:$FE$312,126,FALSE) -> 25% | M47: =+K47-I47 -> 18% | O47: =VLOOKUP($A$5,'RECAP DIRCOM'!$G$6:$FE$312,127,FALSE) -> 6
A49: CRITERE Satisfaction Clients | C49: 10% | O49: =VLOOKUP($A$5,'RECAP DIRCOM'!$G$6:$FE$312,145,FALSE) -> 7
B50: Objectifs NPS* | C50: 5% | E50: ='RECAP DIRCOM'!EM4 -> -7 | G50: =VLOOKUP($A$5,'RECAP DIRCOM'!$G$6:$FE$312,137,FALSE) -> -23 | I50: =VLOOKUP($A$5,'RECAP DIRCOM'!$G$6:$FE$312,138,FALSE) -> 150% | K50: =VLOOKUP($A$5,'RECAP DIRCOM AN'!$G$6:$FE$312,138,FALSE) -> 144% | M50: =+K50-I50 -> -6% | O50: =VLOOKUP($A$5,'RECAP DIRCOM'!$G$6:$FE$312,139,FALSE) -> 7
B51: Enquête Qualité Haute Définition | C51: 5% | E51: ='RECAP DIRCOM'!EP4 -> 77% | G51: =VLOOKUP($A$5,'RECAP DIRCOM'!$G$6:$FE$312,140,FALSE) -> 72% | I51: =VLOOKUP($A$5,'RECAP DIRCOM'!$G$6:$FE$312,141,FALSE) -> 7% | K51: =VLOOKUP($A$5,'RECAP DIRCOM AN'!$G$6:$FE$312,141,FALSE) -> 2% | M51: =+K51-I51 -> -4% | O51: =VLOOKUP($A$5,'RECAP DIRCOM'!$G$6:$FE$312,142,FALSE) -> 7

Sheet DC_OBJECTIF
A1: Accueil | D1: BAROMETRE BDD - DIRECTIONS REGIONALES
D2: PV PART SUR OBJECTIFS
D3: =ACCUEIL!H7 -> 2019-11-30
D7: Excédent de collecte par ETP yc DAV | G7: Engagements crédit conso par ETP (hors clients note octroi à 9 et DRC complet) | J7: Ventes brutes IARD prevoyance Part et Pro (si DRC complet) par ETP | M7: Evolution des Bpe+JBPe par ETP | P7: PNB sur activité nouvelle (yc bonus digital) par ETP
E8: Taux d'atteinte saisonalisé | F8: =VLOOKUP(ACCUEIL!$H$7,Tableau1[],2,FALSE) -> 100% | H8: Taux d'atteinte saisonalisé | I8: =VLOOKUP(ACCUEIL!$H$7,Tableau1[],3,FALSE) -> 100% | K8: Taux d'atteinte saisonalisé | L8: =VLOOKUP(ACCUEIL!$H$7,Tableau1[],4,FALSE) -> 100% | N8: Taux d'atteinte saisonalisé | O8: =VLOOKUP(ACCUEIL!$H$7,Tableau1[],5,FALSE) -> 100% | Q8: Taux d'atteinte saisonalisé | R8: =VLOOKUP(ACCUEIL!$H$7,Tableau1[],6,FALSE) -> 100%
A9: eds | B9: Direction | C9: ETP perf | D9: Réal | E9: Obj | F9: % | G9: Réal | H9: Obj | I9: % | J9: Réal | K9: Obj | L9: % | M9: Réal | N9: Obj | O9: % | P9: Réal | Q9: Obj | R9: % | T9: <80% | U9: 100% | V9: 110% | W9: 120%
A10: 50 | B10: Aube Haute Marne | C10: =VLOOKUP($A10,'RECAP DIRCOM'!$G$6:$EV$12,3,FALSE) -> 145 | D10: =VLOOKUP($A10,'RECAP DIRCOM'!$G$6:$FZ$12,158,FALSE) -> 81 | E10: =VLOOKUP($A10,'RECAP DIRCOM'!$G$6:$FZ$12,159,FALSE) -> 116 | F10: =VLOOKUP($A10,'RECAP DIRCOM'!$G$6:$FZ$12,160,FALSE) -> 69% | G10: =VLOOKUP($A10,'RECAP DIRCOM'!$G$6:$FZ$12,161,FALSE) -> 453 | H10: =VLOOKUP($A10,'RECAP DIRCOM'!$G$6:$FZ$12,162,FALSE) -> 467 | I10: =VLOOKUP($A10,'RECAP DIRCOM'!$G$6:$FZ$12,163,FALSE) -> 97% | J10: =VLOOKUP($A10,'RECAP DIRCOM'!$G$6:$FZ$12,164,FALSE) -> 40 | K10: =VLOOKUP($A10,'RECAP DIRCOM'!$G$6:$FZ$12,165,FALSE) -> 59 | L10: =VLOOKUP($A10,'RECAP DIRCOM'!$G$6:$FZ$12,166,FALSE) -> 68% | M10: =VLOOKUP($A10,'RECAP DIRCOM'!$G$6:$FZ$12,167,FALSE) -> 4 | N10: =VLOOKUP($A10,'RECAP DIRCOM'!$G$6:$FZ$12,168,FALSE) -> 4 | O10: =VLOOKUP($A10,'RECAP DIRCOM'!$G$6:$FZ$12,169,FALSE) -> 101% | P10: =VLOOKUP($A10,'RECAP DIRCOM'!$G$6:$FZ$12,170,FALSE) -> 133 | Q10: =VLOOKUP($A10,'RECAP DIRCOM'!$G$6:$FZ$12,171,FALSE) -> 132 | R10: =VLOOKUP($A10,'RECAP DIRCOM'!$G$6:$FZ$12,172,FALSE) -> 100% | T10: =$F$8*0.8 -> 80% | U10: =$F$8 -> 100% | V10: =$F$8*1.1 -> 110% | W10: =$F$8*1.2 -> 120%
A11: 262 | B11: Bas-Rhin | C11: =VLOOKUP($A11,'RECAP DIRCOM'!$G$6:$EV$12,3,FALSE) -> 297 | D11: =VLOOKUP($A11,'RECAP DIRCOM'!$G$6:$FZ$12,158,FALSE) -> 77 | E11: =VLOOKUP($A11,'RECAP DIRCOM'!$G$6:$FZ$12,159,FALSE) -> 128 | F11: =VLOOKUP($A11,'RECAP DIRCOM'!$G$6:$FZ$12,160,FALSE) -> 60% | G11: =VLOOKUP($A11,'RECAP DIRCOM'!$G$6:$FZ$12,161,FALSE) -> 350 | H11: =VLOOKUP($A11,'RECAP DIRCOM'!$G$6:$FZ$12,162,FALSE) -> 467 | I11: =VLOOKUP($A11,'RECAP DIRCOM'!$G$6:$FZ$12,163,FALSE) -> 74% | J11: =VLOOKUP($A11,'RECAP DIRCOM'!$G$6:$FZ$12,164,FALSE) -> 41 | K11: =VLOOKUP($A11,'RECAP DIRCOM'!$G$6:$FZ$12,165,FALSE) -> 59 | L11: =VLOOKUP($A11,'RECAP DIRCOM'!$G$6:$FZ$12,166,FALSE) -> 69% | M11: =VLOOKUP($A11,'RECAP DIRCOM'!$G$6:$FZ$12,167,FALSE) -> -1 | N11: =VLOOKUP($A11,'RECAP DIRCOM'!$G$6:$FZ$12,168,FALSE) -> 4 | O11: =VLOOKUP($A11,'RECAP DIRCOM'!$G$6:$FZ$12,169,FALSE) -> -25% | P11: =VLOOKUP($A11,'RECAP DIRCOM'!$G$6:$FZ$12,170,FALSE) -> 123 | Q11: =VLOOKUP($A11,'RECAP DIRCOM'!$G$6:$FZ$12,171,FALSE) -> 136 | R11: =VLOOKUP($A11,'RECAP DIRCOM'!$G$6:$FZ$12,172,FALSE) -> 90% | T11: =$F$8*0.8 -> 80% | U11: =$F$8 -> 100% | V11: =$F$8*1.1 -> 110% | W11: =$F$8*1.2 -> 120%
A12: 264 | B12: Haut-Rhin | C12: =VLOOKUP($A12,'RECAP DIRCOM'!$G$6:$EV$12,3,FALSE) -> 174 | D12: =VLOOKUP($A12,'RECAP DIRCOM'!$G$6:$FZ$12,158,FALSE) -> 26 | E12: =VLOOKUP($A12,'RECAP DIRCOM'!$G$6:$FZ$12,159,FALSE) -> 132 | F12: =VLOOKUP($A12,'RECAP DIRCOM'!$G$6:$FZ$12,160,FALSE) -> 19% | G12: =VLOOKUP($A12,'RECAP DIRCOM'!$G$6:$FZ$12,161,FALSE) -> 361 | H12: =VLOOKUP($A12,'RECAP DIRCOM'!$G$6:$FZ$12,162,FALSE) -> 467 | I12: =VLOOKUP($A12,'RECAP DIRCOM'!$G$6:$FZ$12,163,FALSE) -> 77% | J12: =VLOOKUP($A12,'RECAP DIRCOM'!$G$6:$FZ$12,164,FALSE) -> 37 | K12: =VLOOKUP($A12,'RECAP DIRCOM'!$G$6:$FZ$12,165,FALSE) -> 59 | L12: =VLOOKUP($A12,'RECAP DIRCOM'!$G$6:$FZ$12,166,FALSE) -> 62% | M12: =VLOOKUP($A12,'RECAP DIRCOM'!$G$6:$FZ$12,167,FALSE) -> -2 | N12: =VLOOKUP($A12,'RECAP DIRCOM'!$G$6:$FZ$12,168,FALSE) -> 4 | O12: =VLOOKUP($A12,'RECAP DIRCOM'!$G$6:$FZ$12,169,FALSE) -> -43% | P12: =VLOOKUP($A12,'RECAP DIRCOM'!$G$6:$FZ$12,170,FALSE) -> 130 | Q12: =VLOOKUP($A12,'RECAP DIRCOM'!$G$6:$FZ$12,171,FALSE) -> 140 | R12: =VLOOKUP($A12,'RECAP DIRCOM'!$G$6:$FZ$12,172,FALSE) -> 92% | T12: 80% | U12: 100% | V12: 110% | W12: 120%
A13: 30 | B13: Marne-Ardennes | C13: =VLOOKUP($A13,'RECAP DIRCOM'!$G$6:$EV$12,3,FALSE) -> 237 | D13: =VLOOKUP($A13,'RECAP DIRCOM'!$G$6:$FZ$12,158,FALSE) -> 46 | E13: =VLOOKUP($A13,'RECAP DIRCOM'!$G$6:$FZ$12,159,FALSE) -> 133 | F13: =VLOOKUP($A13,'RECAP DIRCOM'!$G$6:$FZ$12,160,FALSE) -> 34% | G13: =VLOOKUP($A13,'RECAP DIRCOM'!$G$6:$FZ$12,161,FALSE) -> 439 | H13: =VLOOKUP($A13,'RECAP DIRCOM'!$G$6:$FZ$12,162,FALSE) -> 467 | I13: =VLOOKUP($A13,'RECAP DIRCOM'!$G$6:$FZ$12,163,FALSE) -> 94% | J13: =VLOOKUP($A13,'RECAP DIRCOM'!$G$6:$FZ$12,164,FALSE) -> 46 | K13: =VLOOKUP($A13,'RECAP DIRCOM'!$G$6:$FZ$12,165,FALSE) -> 59 | L13: =VLOOKUP($A13,'RECAP DIRCOM'!$G$6:$FZ$12,166,FALSE) -> 78% | M13: =VLOOKUP($A13,'RECAP DIRCOM'!$G$6:$FZ$12,167,FALSE) -> 4 | N13: =VLOOKUP($A13,'RECAP DIRCOM'!$G$6:$FZ$12,168,FALSE) -> 4 | O13: =VLOOKUP($A13,'RECAP DIRCOM'!$G$6:$FZ$12,169,FALSE) -> 99% | P13: =VLOOKUP($A13,'RECAP DIRCOM'!$G$6:$FZ$12,170,FALSE) -> 165 | Q13: =VLOOKUP($A13,'RECAP DIRCOM'!$G$6:$FZ$12,171,FALSE) -> 140 | R13: =VLOOKUP($A13,'RECAP DIRCOM'!$G$6:$FZ$12,172,FALSE) -> 117% | T13: 80% | U13: 100% | V13: 110% | W13: 120%
A14: 110 | B14: Meurthe et Moselle Meuse | C14: =VLOOKUP($A14,'RECAP DIRCOM'!$G$6:$EV$12,3,FALSE) -> 261 | D14: =VLOOKUP($A14,'RECAP DIRCOM'!$G$6:$FZ$12,158,FALSE) -> 85 | E14: =VLOOKUP($A14,'RECAP DIRCOM'!$G$6:$FZ$12,159,FALSE) -> 118 | F14: =VLOOKUP($A14,'RECAP DIRCOM'!$G$6:$FZ$12,160,FALSE) -> 72% | G14: =VLOOKUP($A14,'RECAP DIRCOM'!$G$6:$FZ$12,161,FALSE) -> 423 | H14: =VLOOKUP($A14,'RECAP DIRCOM'!$G$6:$FZ$12,162,FALSE) -> 467 | I14: =VLOOKUP($A14,'RECAP DIRCOM'!$G$6:$FZ$12,163,FALSE) -> 90% | J14: =VLOOKUP($A14,'RECAP DIRCOM'!$G$6:$FZ$12,164,FALSE) -> 45 | K14: =VLOOKUP($A14,'RECAP DIRCOM'!$G$6:$FZ$12,165,FALSE) -> 59 | L14: =VLOOKUP($A14,'RECAP DIRCOM'!$G$6:$FZ$12,166,FALSE) -> 77% | M14: =VLOOKUP($A14,'RECAP DIRCOM'!$G$6:$FZ$12,167,FALSE) -> 2 | N14: =VLOOKUP($A14,'RECAP DIRCOM'!$G$6:$FZ$12,168,FALSE) -> 4 | O14: =VLOOKUP($A14,'RECAP DIRCOM'!$G$6:$FZ$12,169,FALSE) -> 56% | P14: =VLOOKUP($A14,'RECAP DIRCOM'!$G$6:$FZ$12,170,FALSE) -> 145 | Q14: =VLOOKUP($A14,'RECAP DIRCOM'!$G$6:$FZ$12,171,FALSE) -> 131 | R14: =VLOOKUP($A14,'RECAP DIRCOM'!$G$6:$FZ$12,172,FALSE) -> 110% | T14: 80% | U14: 100% | V14: 110% | W14: 120%
A15: 160 | B15: Moselle | C15: =VLOOKUP($A15,'RECAP DIRCOM'!$G$6:$EV$12,3,FALSE) -> 298 | D15: =VLOOKUP($A15,'RECAP DIRCOM'!$G$6:$FZ$12,158,FALSE) -> 137 | E15: =VLOOKUP($A15,'RECAP DIRCOM'!$G$6:$FZ$12,159,FALSE) -> 117 | F15: =VLOOKUP($A15,'RECAP DIRCOM'!$G$6:$FZ$12,160,FALSE) -> 117% | G15: =VLOOKUP($A15,'RECAP DIRCOM'!$G$6:$FZ$12,161,FALSE) -> 438 | H15: =VLOOKUP($A15,'RECAP DIRCOM'!$G$6:$FZ$12,162,FALSE) -> 467 | I15: =VLOOKUP($A15,'RECAP DIRCOM'!$G$6:$FZ$12,163,FALSE) -> 93% | J15: =VLOOKUP($A15,'RECAP DIRCOM'!$G$6:$FZ$12,164,FALSE) -> 42 | K15: =VLOOKUP($A15,'RECAP DIRCOM'!$G$6:$FZ$12,165,FALSE) -> 59 | L15: =VLOOKUP($A15,'RECAP DIRCOM'!$G$6:$FZ$12,166,FALSE) -> 71% | M15: =VLOOKUP($A15,'RECAP DIRCOM'!$G$6:$FZ$12,167,FALSE) -> 4 | N15: =VLOOKUP($A15,'RECAP DIRCOM'!$G$6:$FZ$12,168,FALSE) -> 4 | O15: =VLOOKUP($A15,'RECAP DIRCOM'!$G$6:$FZ$12,169,FALSE) -> 104% | P15: =VLOOKUP($A15,'RECAP DIRCOM'!$G$6:$FZ$12,170,FALSE) -> 148 | Q15: =VLOOKUP($A15,'RECAP DIRCOM'!$G$6:$FZ$12,171,FALSE) -> 134 | R15: =VLOOKUP($A15,'RECAP DIRCOM'!$G$6:$FZ$12,172,FALSE) -> 110% | T15: 80% | U15: 100% | V15: 110% | W15: 120%
A16: 80 | B16: Vosges | C16: =VLOOKUP($A16,'RECAP DIRCOM'!$G$6:$EV$12,3,FALSE) -> 145 | D16: =VLOOKUP($A16,'RECAP DIRCOM'!$G$6:$FZ$12,158,FALSE) -> 103 | E16: =VLOOKUP($A16,'RECAP DIRCOM'!$G$6:$FZ$12,159,FALSE) -> 110 | F16: =VLOOKUP($A16,'RECAP DIRCOM'!$G$6:$FZ$12,160,FALSE) -> 93% | G16: =VLOOKUP($A16,'RECAP DIRCOM'!$G$6:$FZ$12,161,FALSE) -> 385 | H16: =VLOOKUP($A16,'RECAP DIRCOM'!$G$6:$FZ$12,162,FALSE) -> 467 | I16: =VLOOKUP($A16,'RECAP DIRCOM'!$G$6:$FZ$12,163,FALSE) -> 82% | J16: =VLOOKUP($A16,'RECAP DIRCOM'!$G$6:$FZ$12,164,FALSE) -> 42 | K16: =VLOOKUP($A16,'RECAP DIRCOM'!$G$6:$FZ$12,165,FALSE) -> 59 | L16: =VLOOKUP($A16,'RECAP DIRCOM'!$G$6:$FZ$12,166,FALSE) -> 71% | M16: =VLOOKUP($A16,'RECAP DIRCOM'!$G$6:$FZ$12,167,FALSE) -> 1 | N16: =VLOOKUP($A16,'RECAP DIRCOM'!$G$6:$FZ$12,168,FALSE) -> 4 | O16: =VLOOKUP($A16,'RECAP DIRCOM'!$G$6:$FZ$12,169,FALSE) -> 36% | P16: =VLOOKUP($A16,'RECAP DIRCOM'!$G$6:$FZ$12,170,FALSE) -> 124 | Q16: =VLOOKUP($A16,'RECAP DIRCOM'!$G$6:$FZ$12,171,FALSE) -> 127 | R16: =VLOOKUP($A16,'RECAP DIRCOM'!$G$6:$FZ$12,172,FALSE) -> 97% | T16: 80% | U16: 100% | V16: 110% | W16: 120%
E17: ='RECAP DIRCOM'!GG13 -> 5 | F17: ='RECAP DIRCOM'!GH13 -> 1 | H17: ='RECAP DIRCOM'!GL13 -> 2 | I17: ='RECAP DIRCOM'!GM13 -> 5 | K17: ='RECAP DIRCOM'!GQ13 -> 7 | L17: ='RECAP DIRCOM'!GR13 -> 0 | N17: ='RECAP DIRCOM'!GV13 -> 4 | O17: ='RECAP DIRCOM'!GW13 -> 1 | Q17: ='RECAP DIRCOM'!HA13 -> 0 | R17: ='RECAP DIRCOM'!HB13 -> 3
A18: Total CEGEE Directions Régionales | C18: =SUM(C10:C16) -> 1557 | E18: ='RECAP DIRCOM'!GI13 -> 0 | F18: ='RECAP DIRCOM'!GJ13 -> 1 | H18: ='RECAP DIRCOM'!GN13 -> 0 | I18: ='RECAP DIRCOM'!GO13 -> 0 | K18: ='RECAP DIRCOM'!GS13 -> 0 | L18: ='RECAP DIRCOM'!GT13 -> 0 | N18: ='RECAP DIRCOM'!GX13 -> 2 | O18: ='RECAP DIRCOM'!GY13 -> 0 | Q18: ='RECAP DIRCOM'!HC13 -> 4 | R18: ='RECAP DIRCOM'!HD13 -> 0
B21: Taux d'atteinte objectif annuel > 110 % ou 120 % en saisonnalisé en fonction des critères (collecte 110 %, autres 120 %)
B23: Taux d'atteinte objectif annuel entre 100 % et 110 % ou 120 % en saisonnalisé en fonction des critères (collecte 110 %, autres 120 %)
B25: Taux d'atteinte objectif annuel entre 80 % et 100 % en saisonnalisé
B27: Taux d'atteinte objectif annuel < 80 % en saisonnalisé

Sheet DC_TOTAL
A1: Accueil | D1: BAROMETRE BDD - DIRECTIONS REGIONALES
D2: TOTAL GENERAL
D3: =ACCUEIL!H7 -> 2019-11-30
D7: TOTAL GENERAL | G7: Total Conquête | J7: Total Equipement Bancarisation | M7: Total Epargne | P7: Total Crédits | S7: Total IARD Prévoyance | V7: Total Risques | Y7: Total Satisfaction Clients
E8: coef | F8: 100% | H8: coef | I8: ='RECAP DIRCOM'!$Y$4 -> 15% | K8: coef | L8: ='RECAP DIRCOM'!$AW$4 -> 15% | N8: coef | O8: ='RECAP DIRCOM'!$BU$4 -> 15% | Q8: coef | R8: ='RECAP DIRCOM'!$CV$4 -> 15% | T8: coef | U8: ='RECAP DIRCOM'!$DN$4 -> 20% | W8: coef | X8: ='RECAP DIRCOM'!$EF$4 -> 10% | Z8: coef | AA8: ='RECAP DIRCOM'!$EU$4 -> 10%
A9: eds | B9: Direction | C9: ETP perf | D9: Moyenne ecart au 1er | E9: % Ecart au 1er | F9: Rang CEGEE | G9: Moyenne ecart au 1er | H9: % Ecart au 1er | I9: Rang CEGEE | J9: Moyenne ecart au 1er | K9: % Ecart au 1er | L9: Rang CEGEE | M9: Moyenne ecart au 1er | N9: % Ecart au 1er | O9: Rang CEGEE | P9: Moyenne ecart au 1er | Q9: % Ecart au 1er | R9: Rang CEGEE | S9: Moyenne ecart au 1er | T9: % Ecart au 1er | U9: Rang CEGEE | V9: Moyenne ecart au 1er | W9: % Ecart au 1er | X9: Rang CEGEE | Y9: Moyenne ecart au 1er | Z9: % Ecart au 1er | AA9: Rang CEGEE
A10: 30 | B10: Marne-Ardennes | C10: 237 | D10: 2% | E10: 0% | F10: 1 | G10: 18% | H10: 0% | I10: 1 | J10: 14% | K10: 0% | L10: 1 | M10: 43% | N10: 13% | O10: 4 | P10: 3% | Q10: 0% | R10: 1 | S10: 8% | T10: 0% | U10: 1 | V10: 2% | W10: 1% | X10: 4 | Y10: 0% | Z10: 0% | AA10: 1
A11: 160 | B11: Moselle | C11: 298 | D11: 12% | E11: 10% | F11: 2 | G11: 31% | H11: 13% | I11: 2 | J11: 32% | K11: 18% | L11: 5 | M11: 33% | N11: 3% | O11: 2 | P11: 14% | Q11: 11% | R11: 6 | S11: 24% | T11: 16% | U11: 3 | V11: 1% | W11: 0% | X11: 1 | Y11: 24% | Z11: 24% | AA11: 3
A12: 110 | B12: Meurthe et Moselle Meuse | C12: 261 | D12: 14% | E12: 12% | F12: 3 | G12: 31% | H12: 14% | I12: 3 | J12: 37% | K12: 23% | L12: 6 | M12: 64% | N12: 33% | O12: 5 | P12: 10% | Q12: 7% | R12: 3 | S12: 9% | T12: 0% | U12: 2 | V12: 5% | W12: 4% | X12: 6 | Y12: 25% | Z12: 25% | AA12: 4
A13: 50 | B13: Aube Haute Marne | C13: 145 | D13: 16% | E13: 14% | F13: 4 | G13: 46% | H13: 28% | I13: 4 | J13: 27% | K13: 14% | L13: 3 | M13: 67% | N13: 37% | O13: 6 | P13: 11% | Q13: 8% | R13: 4 | S13: 24% | T13: 16% | U13: 4 | V13: 1% | W13: 0% | X13: 2 | Y13: 1% | Z13: 1% | AA13: 2
A14: 80 | B14: Vosges | C14: 145 | D14: 20% | E14: 18% | F14: 5 | G14: 50% | H14: 33% | I14: 5 | J14: 27% | K14: 13% | L14: 2 | M14: 71% | N14: 41% | O14: 7 | P14: 10% | Q14: 7% | R14: 2 | S14: 25% | T14: 17% | U14: 5 | V14: 2% | W14: 1% | X14: 3 | Y14: 29% | Z14: 29% | AA14: 5
A15: 262 | B15: Bas-Rhin | C15: 297 | D15: 28% | E15: 26% | F15: 6 | G15: 70% | H15: 52% | I15: 6 | J15: 29% | K15: 16% | L15: 4 | M15: 43% | N15: 12% | O15: 3 | P15: 14% | Q15: 11% | R15: 5 | S15: 38% | T15: 30% | U15: 6 | V15: 6% | W15: 5% | X15: 7 | Y15: 78% | Z15: 78% | AA15: 7
A16: 264 | B16: Haut-Rhin | C16: 174 | D16: 32% | E16: 30% | F16: 7 | G16: 89% | H16: 72% | I16: 7 | J16: 46% | K16: 32% | L16: 7 | M16: 30% | N16: 0% | O16: 1 | P16: 16% | Q16: 13% | R16: 7 | S16: 43% | T16: 35% | U16: 7 | V16: 3% | W16: 2% | X16: 5 | Y16: 73% | Z16: 73% | AA16: 6
A17: Total CEGEE Directions Régionales | C17: =SUM(C10:C16) -> 1557

Sheet DC_BANCA
A1: Accueil | D1: BAROMETRE BDD - DIRECTIONS REGIONALES
D2: EQUIPEMENT BANCARISATION
D3: =ACCUEIL!H7 -> 2019-11-30
D7: Ventes nettes FORFAITS avec 2 options | G7: Ventes nettes IZICARTES | J7: Ventes nettes Cartes HDG | M7: Ventes nettes CB débit différé | P7: Ventes nettes banca Pro | S7: Total Equipement Bancarisation
E8: coef | F8: ='RECAP DIRCOM'!AH4 -> 3% | H8: coef | I8: ='RECAP DIRCOM'!AK4 -> 3% | K8: coef | L8: ='RECAP DIRCOM'!AN4 -> 3% | N8: coef | O8: ='RECAP DIRCOM'!AQ4 -> 3% | Q8: coef | R8: ='RECAP DIRCOM'!AT4 -> 3% | T8: coef | U8: ='RECAP DIRCOM'!AW4 -> 15%
A9: eds | B9: Direction | C9: ETP perf | D9: Nb / ETP | E9: % Ecart au 1er | F9: Rang | G9: Nb / ETP | H9: % Ecart au 1er | I9: Rang | J9: Nb / ETP | K9: % Ecart au 1er | L9: Rang | M9: Nb / ETP | N9: % Ecart au 1er | O9: Rang | P9: Taux réal objectif | Q9: % Ecart au 1er | R9: Rang | S9: Moyenne ecart au 1er | T9: % Ecart au 1er | U9: Rang CEGEE
A10: 50 | B10: Aube Haute Marne | C10: =VLOOKUP($A10,'RECAP DIRCOM'!$G$6:$EV$12,3,FALSE) -> 145 | D10: =VLOOKUP($A10,'RECAP DIRCOM'!$G$6:$EV$12,26,FALSE) -> -19.10 | E10: =VLOOKUP($A10,'RECAP DIRCOM'!$G$6:$EV$12,27,FALSE) -> 40% | F10: =VLOOKUP($A10,'RECAP DIRCOM'!$G$6:$EV$12,28,FALSE) -> 5 | G10: =VLOOKUP($A10,'RECAP DIRCOM'!$G$6:$EV$12,29,FALSE) -> 4.73 | H10: =VLOOKUP($A10,'RECAP DIRCOM'!$G$6:$EV$12,30,FALSE) -> 46% | I10: =VLOOKUP($A10,'RECAP DIRCOM'!$G$6:$EV$12,31,FALSE) -> 5 | J10: =VLOOKUP($A10,'RECAP DIRCOM'!$G$6:$EV$12,32,FALSE) -> 12.77 | K10: =VLOOKUP($A10,'RECAP DIRCOM'!$G$6:$EV$12,33,FALSE) -> 27% | L10: =VLOOKUP($A10,'RECAP DIRCOM'!$G$6:$EV$12,34,FALSE) -> 5 | M10: =VLOOKUP($A10,'RECAP DIRCOM'!$G$6:$EV$12,35,FALSE) -> 7.70 | N10: =VLOOKUP($A10,'RECAP DIRCOM'!$G$6:$EV$12,36,FALSE) -> 1% | O10: =VLOOKUP($A10,'RECAP DIRCOM'!$G$6:$EV$12,37,FALSE) -> 2 | P10: =VLOOKUP($A10,'RECAP DIRCOM'!$G$6:$EV$12,38,FALSE) -> 89% | Q10: =VLOOKUP($A10,'RECAP DIRCOM'!$G$6:$EV$12,39,FALSE) -> 22% | R10: =VLOOKUP($A10,'RECAP DIRCOM'!$G$6:$EV$12,40,FALSE) -> 3 | S10: =VLOOKUP($A10,'RECAP DIRCOM'!$G$6:$EV$12,41,FALSE) -> 27% | T10: =VLOOKUP($A10,'RECAP DIRCOM'!$G$6:$EV$12,42,FALSE) -> 14% | U10: =VLOOKUP($A10,'RECAP DIRCOM'!$G$6:$EV$12,43,FALSE) -> 3
A11: 262 | B11: Bas-Rhin | C11: =VLOOKUP($A11,'RECAP DIRCOM'!$G$6:$EV$12,3,FALSE) -> 297 | D11: =VLOOKUP($A11,'RECAP DIRCOM'!$G$6:$EV$12,26,FALSE) -> -13.67 | E11: =VLOOKUP($A11,'RECAP DIRCOM'!$G$6:$EV$12,27,FALSE) -> 0% | F11: =VLOOKUP($A11,'RECAP DIRCOM'!$G$6:$EV$12,28,FALSE) -> 1 | G11: =VLOOKUP($A11,'RECAP DIRCOM'!$G$6:$EV$12,29,FALSE) -> 3.75 | H11: =VLOOKUP($A11,'RECAP DIRCOM'!$G$6:$EV$12,30,FALSE) -> 57% | I11: =VLOOKUP($A11,'RECAP DIRCOM'!$G$6:$EV$12,31,FALSE) -> 6 | J11: =VLOOKUP($A11,'RECAP DIRCOM'!$G$6:$EV$12,32,FALSE) -> 13.48 | K11: =VLOOKUP($A11,'RECAP DIRCOM'!$G$6:$EV$12,33,FALSE) -> 23% | L11: =VLOOKUP($A11,'RECAP DIRCOM'!$G$6:$EV$12,34,FALSE) -> 3 | M11: =VLOOKUP($A11,'RECAP DIRCOM'!$G$6:$EV$12,35,FALSE) -> 7.80 | N11: =VLOOKUP($A11,'RECAP DIRCOM'!$G$6:$EV$12,36,FALSE) -> 0% | O11: =VLOOKUP($A11,'RECAP DIRCOM'!$G$6:$EV$12,37,FALSE) -> 1 | P11: =VLOOKUP($A11,'RECAP DIRCOM'!$G$6:$EV$12,38,FALSE) -> 39% | Q11: =VLOOKUP($A11,'RECAP DIRCOM'!$G$6:$EV$12,39,FALSE) -> 66% | R11: =VLOOKUP($A11,'RECAP DIRCOM'!$G$6:$EV$12,40,FALSE) -> 6 | S11: =VLOOKUP($A11,'RECAP DIRCOM'!$G$6:$EV$12,41,FALSE) -> 29% | T11: =VLOOKUP($A11,'RECAP DIRCOM'!$G$6:$EV$12,42,FALSE) -> 16% | U11: =VLOOKUP($A11,'RECAP DIRCOM'!$G$6:$EV$12,43,FALSE) -> 4
A12: 264 | B12: Haut-Rhin | C12: =VLOOKUP($A12,'RECAP DIRCOM'!$G$6:$EV$12,3,FALSE) -> 174 | D12: =VLOOKUP($A12,'RECAP DIRCOM'!$G$6:$EV$12,26,FALSE) -> -15.35 | E12: =VLOOKUP($A12,'RECAP DIRCOM'!$G$6:$EV$12,27,FALSE) -> 12% | F12: =VLOOKUP($A12,'RECAP DIRCOM'!$G$6:$EV$12,28,FALSE) -> 2 | G12: =VLOOKUP($A12,'RECAP DIRCOM'!$G$6:$EV$12,29,FALSE) -> 3.46 | H12: =VLOOKUP($A12,'RECAP DIRCOM'!$G$6:$EV$12,30,FALSE) -> 60% | I12: =VLOOKUP($A12,'RECAP DIRCOM'!$G$6:$EV$12,31,FALSE) -> 7 | J12: =VLOOKUP($A12,'RECAP DIRCOM'!$G$6:$EV$12,32,FALSE) -> 11.30 | K12: =VLOOKUP($A12,'RECAP DIRCOM'!$G$6:$EV$12,33,FALSE) -> 36% | L12: =VLOOKUP($A12,'RECAP DIRCOM'!$G$6:$EV$12,34,FALSE) -> 7 | M12: =VLOOKUP($A12,'RECAP DIRCOM'!$G$6:$EV$12,35,FALSE) -> 4.11 | N12: =VLOOKUP($A12,'RECAP DIRCOM'!$G$6:$EV$12,36,FALSE) -> 47% | O12: =VLOOKUP($A12,'RECAP DIRCOM'!$G$6:$EV$12,37,FALSE) -> 7 | P12: =VLOOKUP($A12,'RECAP DIRCOM'!$G$6:$EV$12,38,FALSE) -> 29% | Q12: =VLOOKUP($A12,'RECAP DIRCOM'!$G$6:$EV$12,39,FALSE) -> 75% | R12: =VLOOKUP($A12,'RECAP DIRCOM'!$G$6:$EV$12,40,FALSE) -> 7 | S12: =VLOOKUP($A12,'RECAP DIRCOM'!$G$6:$EV$12,41,FALSE) -> 46% | T12: =VLOOKUP($A12,'RECAP DIRCOM'!$G$6:$EV$12,42,FALSE) -> 32% | U12: =VLOOKUP($A12,'RECAP DIRCOM'!$G$6:$EV$12,43,FALSE) -> 7
A13: 30 | B13: Marne-Ardennes | C13: =VLOOKUP($A13,'RECAP DIRCOM'!$G$6:$EV$12,3,FALSE) -> 237 | D13: =VLOOKUP($A13,'RECAP DIRCOM'!$G$6:$EV$12,26,FALSE) -> -18.76 | E13: =VLOOKUP($A13,'RECAP DIRCOM'!$G$6:$EV$12,27,FALSE) -> 37% | F13: =VLOOKUP($A13,'RECAP DIRCOM'!$G$6:$EV$12,28,FALSE) -> 4 | G13: =VLOOKUP($A13,'RECAP DIRCOM'!$G$6:$EV$12,29,FALSE) -> 8.69 | H13: =VLOOKUP($A13,'RECAP DIRCOM'!$G$6:$EV$12,30,FALSE) -> 0% | I13: =VLOOKUP($A13,'RECAP DIRCOM'!$G$6:$EV$12,31,FALSE) -> 1 | J13: =VLOOKUP($A13,'RECAP DIRCOM'!$G$6:$EV$12,32,FALSE) -> 16.97 | K13: =VLOOKUP($A13,'RECAP DIRCOM'!$G$6:$EV$12,33,FALSE) -> 4% | L13: =VLOOKUP($A13,'RECAP DIRCOM'!$G$6:$EV$12,34,FALSE) -> 2 | M13: =VLOOKUP($A13,'RECAP DIRCOM'!$G$6:$EV$12,35,FALSE) -> 7.07 | N13: =VLOOKUP($A13,'RECAP DIRCOM'!$G$6:$EV$12,36,FALSE) -> 9% | O13: =VLOOKUP($A13,'RECAP DIRCOM'!$G$6:$EV$12,37,FALSE) -> 3 | P13: =VLOOKUP($A13,'RECAP DIRCOM'!$G$6:$EV$12,38,FALSE) -> 93% | Q13: =VLOOKUP($A13,'RECAP DIRCOM'!$G$6:$EV$12,39,FALSE) -> 18% | R13: =VLOOKUP($A13,'RECAP DIRCOM'!$G$6:$EV$12,40,FALSE) -> 2 | S13: =VLOOKUP($A13,'RECAP DIRCOM'!$G$6:$EV$12,41,FALSE) -> 14% | T13: =VLOOKUP($A13,'RECAP DIRCOM'!$G$6:$EV$12,42,FALSE) -> 0% | U13: =VLOOKUP($A13,'RECAP DIRCOM'!$G$6:$EV$12,43,FALSE) -> 1
A14: 110 | B14: Meurthe et Moselle Meuse | C14: =VLOOKUP($A14,'RECAP DIRCOM'!$G$6:$EV$12,3,FALSE) -> 261 | D14: =VLOOKUP($A14,'RECAP DIRCOM'!$G$6:$EV$12,26,FALSE) -> -21.84 | E14: =VLOOKUP($A14,'RECAP DIRCOM'!$G$6:$EV$12,27,FALSE) -> 60% | F14: =VLOOKUP($A14,'RECAP DIRCOM'!$G$6:$EV$12,28,FALSE) -> 7 | G14: =VLOOKUP($A14,'RECAP DIRCOM'!$G$6:$EV$12,29,FALSE) -> 7.28 | H14: =VLOOKUP($A14,'RECAP DIRCOM'!$G$6:$EV$12,30,FALSE) -> 16% | I14: =VLOOKUP($A14,'RECAP DIRCOM'!$G$6:$EV$12,31,FALSE) -> 2 | J14: =VLOOKUP($A14,'RECAP DIRCOM'!$G$6:$EV$12,32,FALSE) -> 13.07 | K14: =VLOOKUP($A14,'RECAP DIRCOM'!$G$6:$EV$12,33,FALSE) -> 26% | L14: =VLOOKUP($A14,'RECAP DIRCOM'!$G$6:$EV$12,34,FALSE) -> 4 | M14: =VLOOKUP($A14,'RECAP DIRCOM'!$G$6:$EV$12,35,FALSE) -> 4.71 | N14: =VLOOKUP($A14,'RECAP DIRCOM'!$G$6:$EV$12,36,FALSE) -> 40% | O14: =VLOOKUP($A14,'RECAP DIRCOM'!$G$6:$EV$12,37,FALSE) -> 6 | P14: =VLOOKUP($A14,'RECAP DIRCOM'!$G$6:$EV$12,38,FALSE) -> 67% | Q14: =VLOOKUP($A14,'RECAP DIRCOM'!$G$6:$EV$12,39,FALSE) -> 42% | R14: =VLOOKUP($A14,'RECAP DIRCOM'!$G$6:$EV$12,40,FALSE) -> 5 | S14: =VLOOKUP($A14,'RECAP DIRCOM'!$G$6:$EV$12,41,FALSE) -> 37% | T14: =VLOOKUP($A14,'RECAP DIRCOM'!$G$6:$EV$12,42,FALSE) -> 23% | U14: =VLOOKUP($A14,'RECAP DIRCOM'!$G$6:$EV$12,43,FALSE) -> 6
A15: 160 | B15: Moselle | C15: =VLOOKUP($A15,'RECAP DIRCOM'!$G$6:$EV$12,3,FALSE) -> 298 | D15: =VLOOKUP($A15,'RECAP DIRCOM'!$G$6:$EV$12,26,FALSE) -> -21.15 | E15: =VLOOKUP($A15,'RECAP DIRCOM'!$G$6:$EV$12,27,FALSE) -> 55% | F15: =VLOOKUP($A15,'RECAP DIRCOM'!$G$6:$EV$12,28,FALSE) -> 6 | G15: =VLOOKUP($A15,'RECAP DIRCOM'!$G$6:$EV$12,29,FALSE) -> 6.05 | H15: =VLOOKUP($A15,'RECAP DIRCOM'!$G$6:$EV$12,30,FALSE) -> 30% | I15: =VLOOKUP($A15,'RECAP DIRCOM'!$G$6:$EV$12,31,FALSE) -> 3 | J15: =VLOOKUP($A15,'RECAP DIRCOM'!$G$6:$EV$12,32,FALSE) -> 17.61 | K15: =VLOOKUP($A15,'RECAP DIRCOM'!$G$6:$EV$12,33,FALSE) -> 0% | L15: =VLOOKUP($A15,'RECAP DIRCOM'!$G$6:$EV$12,34,FALSE) -> 1 | M15: =VLOOKUP($A15,'RECAP DIRCOM'!$G$6:$EV$12,35,FALSE) -> 5.27 | N15: =VLOOKUP($A15,'RECAP DIRCOM'!$G$6:$EV$12,36,FALSE) -> 32% | O15: =VLOOKUP($A15,'RECAP DIRCOM'!$G$6:$EV$12,37,FALSE) -> 5 | P15: =VLOOKUP($A15,'RECAP DIRCOM'!$G$6:$EV$12,38,FALSE) -> 68% | Q15: =VLOOKUP($A15,'RECAP DIRCOM'!$G$6:$EV$12,39,FALSE) -> 40% | R15: =VLOOKUP($A15,'RECAP DIRCOM'!$G$6:$EV$12,40,FALSE) -> 4 | S15: =VLOOKUP($A15,'RECAP DIRCOM'!$G$6:$EV$12,41,FALSE) -> 32% | T15: =VLOOKUP($A15,'RECAP DIRCOM'!$G$6:$EV$12,42,FALSE) -> 18% | U15: =VLOOKUP($A15,'RECAP DIRCOM'!$G$6:$EV$12,43,FALSE) -> 5
A16: 80 | B16: Vosges | C16: =VLOOKUP($A16,'RECAP DIRCOM'!$G$6:$EV$12,3,FALSE) -> 145 | D16: =VLOOKUP($A16,'RECAP DIRCOM'!$G$6:$EV$12,26,FALSE) -> -18.34 | E16: =VLOOKUP($A16,'RECAP DIRCOM'!$G$6:$EV$12,27,FALSE) -> 34% | F16: =VLOOKUP($A16,'RECAP DIRCOM'!$G$6:$EV$12,28,FALSE) -> 3 | G16: =VLOOKUP($A16,'RECAP DIRCOM'!$G$6:$EV$12,29,FALSE) -> 5.30 | H16: =VLOOKUP($A16,'RECAP DIRCOM'!$G$6:$EV$12,30,FALSE) -> 39% | I16: =VLOOKUP($A16,'RECAP DIRCOM'!$G$6:$EV$12,31,FALSE) -> 4 | J16: =VLOOKUP($A16,'RECAP DIRCOM'!$G$6:$EV$12,32,FALSE) -> 11.34 | K16: =VLOOKUP($A16,'RECAP DIRCOM'!$G$6:$EV$12,33,FALSE) -> 36% | L16: =VLOOKUP($A16,'RECAP DIRCOM'!$G$6:$EV$12,34,FALSE) -> 6 | M16: =VLOOKUP($A16,'RECAP DIRCOM'!$G$6:$EV$12,35,FALSE) -> 5.91 | N16: =VLOOKUP($A16,'RECAP DIRCOM'!$G$6:$EV$12,36,FALSE) -> 24% | O16: =VLOOKUP($A16,'RECAP DIRCOM'!$G$6:$EV$12,37,FALSE) -> 4 | P16: =VLOOKUP($A16,'RECAP DIRCOM'!$G$6:$EV$12,38,FALSE) -> 115% | Q16: =VLOOKUP($A16,'RECAP DIRCOM'!$G$6:$EV$12,39,FALSE) -> 0% | R16: =VLOOKUP($A16,'RECAP DIRCOM'!$G$6:$EV$12,40,FALSE) -> 1 | S16: =VLOOKUP($A16,'RECAP DIRCOM'!$G$6:$EV$12,41,FALSE) -> 27% | T16: =VLOOKUP($A16,'RECAP DIRCOM'!$G$6:$EV$12,42,FALSE) -> 13% | U16: =VLOOKUP($A16,'RECAP DIRCOM'!$G$6:$EV$12,43,FALSE) -> 2
A17: Total CEGEE Directions Régionales | C17: =SUM(C10:C16) -> 1557

Sheet DC_EPARGNE
A1: Accueil | D1: BAROMETRE BDD - DIRECTIONS REGIONALES
D2: EPARGNE
D3: =ACCUEIL!H7 -> 2019-11-30
D7: Excédent de collecte yc DAV | G7: CA assurance vie | J7: Activité UC (CA+Arbitrage) | M7: Excédent assurance vie | P7: Excédent Epargne Bilan (hors emprunt CTO) | S7: Total Epargne
E8: coef | F8: ='RECAP DIRCOM'!BF4 -> 2% | H8: coef | I8: ='RECAP DIRCOM'!BI4 -> 2% | K8: coef | L8: ='RECAP DIRCOM'!BL4 -> 2% | N8: coef | O8: ='RECAP DIRCOM'!BO4 -> 2% | Q8: coef | R8: ='RECAP DIRCOM'!BR4 -> 7% | T8: coef | U8: ='RECAP DIRCOM'!BU4 -> 15%
A9: eds | B9: Direction | C9: ETP perf | D9: Réal / ETP | E9: % Ecart au 1er | F9: Rang | G9: Réal / ETP | H9: % Ecart au 1er | I9: Rang | J9: Réal / ETP | K9: % Ecart au 1er | L9: Rang | M9: Réal / ETP | N9: % Ecart au 1er | O9: Rang | P9: Réal / ETP | Q9: % Ecart au 1er | R9: Rang | S9: Moyenne ecart au 1er | T9: % Ecart au 1er | U9: Rang CEGEE
A10: 50 | B10: Aube Haute Marne | C10: =VLOOKUP($A10,'RECAP DIRCOM'!$G$6:$EV$12,3,FALSE) -> 145 | D10: =VLOOKUP($A10,'RECAP DIRCOM'!$G$6:$EV$12,50,FALSE) -> 81.35 | E10: =VLOOKUP($A10,'RECAP DIRCOM'!$G$6:$EV$12,51,FALSE) -> 41% | F10: =VLOOKUP($A10,'RECAP DIRCOM'!$G$6:$EV$12,52,FALSE) -> 4 | G10: =VLOOKUP($A10,'RECAP DIRCOM'!$G$6:$EV$12,53,FALSE) -> 502.73 | H10: =VLOOKUP($A10,'RECAP DIRCOM'!$G$6:$EV$12,54,FALSE) -> 10% | I10: =VLOOKUP($A10,'RECAP DIRCOM'!$G$6:$EV$12,55,FALSE) -> 4 | J10: =VLOOKUP($A10,'RECAP DIRCOM'!$G$6:$EV$12,56,FALSE) -> 173 | K10: =VLOOKUP($A10,'RECAP DIRCOM'!$G$6:$EV$12,57,FALSE) -> 1% | L10: =VLOOKUP($A10,'RECAP DIRCOM'!$G$6:$EV$12,58,FALSE) -> 2 | M10: =VLOOKUP($A10,'RECAP DIRCOM'!$G$6:$EV$12,59,FALSE) -> 93.35 | N10: =VLOOKUP($A10,'RECAP DIRCOM'!$G$6:$EV$12,60,FALSE) -> 46% | O10: =VLOOKUP($A10,'RECAP DIRCOM'!$G$6:$EV$12,61,FALSE) -> 4 | P10: =VLOOKUP($A10,'RECAP DIRCOM'!$G$6:$EV$12,62,FALSE) -> -5.45 | Q10: =VLOOKUP($A10,'RECAP DIRCOM'!$G$6:$EV$12,63,FALSE) -> 115% | R10: =VLOOKUP($A10,'RECAP DIRCOM'!$G$6:$EV$12,64,FALSE) -> 6 | S10: =VLOOKUP($A10,'RECAP DIRCOM'!$G$6:$EV$12,65,FALSE) -> 67% | T10: =VLOOKUP($A10,'RECAP DIRCOM'!$G$6:$EV$12,66,FALSE) -> 37% | U10: =VLOOKUP($A10,'RECAP DIRCOM'!$G$6:$EV$12,67,FALSE) -> 6
A11: 262 | B11: Bas-Rhin | C11: =VLOOKUP($A11,'RECAP DIRCOM'!$G$6:$EV$12,3,FALSE) -> 297 | D11: =VLOOKUP($A11,'RECAP DIRCOM'!$G$6:$EV$12,50,FALSE) -> 76.67 | E11: =VLOOKUP($A11,'RECAP DIRCOM'!$G$6:$EV$12,51,FALSE) -> 44% | F11: =VLOOKUP($A11,'RECAP DIRCOM'!$G$6:$EV$12,52,FALSE) -> 5 | G11: =VLOOKUP($A11,'RECAP DIRCOM'!$G$6:$EV$12,53,FALSE) -> 409.00 | H11: =VLOOKUP($A11,'RECAP DIRCOM'!$G$6:$EV$12,54,FALSE) -> 27% | I11: =VLOOKUP($A11,'RECAP DIRCOM'!$G$6:$EV$12,55,FALSE) -> 6 | J11: =VLOOKUP($A11,'RECAP DIRCOM'!$G$6:$EV$12,56,FALSE) -> 159 | K11: =VLOOKUP($A11,'RECAP DIRCOM'!$G$6:$EV$12,57,FALSE) -> 9% | L11: =VLOOKUP($A11,'RECAP DIRCOM'!$G$6:$EV$12,58,FALSE) -> 3 | M11: =VLOOKUP($A11,'RECAP DIRCOM'!$G$6:$EV$12,59,FALSE) -> 66.89 | N11: =VLOOKUP($A11,'RECAP DIRCOM'!$G$6:$EV$12,60,FALSE) -> 61% | O11: =VLOOKUP($A11,'RECAP DIRCOM'!$G$6:$EV$12,61,FALSE) -> 6 | P11: =VLOOKUP($A11,'RECAP DIRCOM'!$G$6:$EV$12,62,FALSE) -> 17.43 | Q11: =VLOOKUP($A11,'RECAP DIRCOM'!$G$6:$EV$12,63,FALSE) -> 51% | R11: =VLOOKUP($A11,'RECAP DIRCOM'!$G$6:$EV$12,64,FALSE) -> 3 | S11: =VLOOKUP($A11,'RECAP DIRCOM'!$G$6:$EV$12,65,FALSE) -> 43% | T11: =VLOOKUP($A11,'RECAP DIRCOM'!$G$6:$EV$12,66,FALSE) -> 12% | U11: =VLOOKUP($A11,'RECAP DIRCOM'!$G$6:$EV$12,67,FALSE) -> 3
A12: 264 | B12: Haut-Rhin | C12: =VLOOKUP($A12,'RECAP DIRCOM'!$G$6:$EV$12,3,FALSE) -> 174 | D12: =VLOOKUP($A12,'RECAP DIRCOM'!$G$6:$EV$12,50,FALSE) -> 26.32 | E12: =VLOOKUP($A12,'RECAP DIRCOM'!$G$6:$EV$12,51,FALSE) -> 81% | F12: =VLOOKUP($A12,'RECAP DIRCOM'!$G$6:$EV$12,52,FALSE) -> 7 | G12: =VLOOKUP($A12,'RECAP DIRCOM'!$G$6:$EV$12,53,FALSE) -> 365.78 | H12: =VLOOKUP($A12,'RECAP DIRCOM'!$G$6:$EV$12,54,FALSE) -> 34% | I12: =VLOOKUP($A12,'RECAP DIRCOM'!$G$6:$EV$12,55,FALSE) -> 7 | J12: =VLOOKUP($A12,'RECAP DIRCOM'!$G$6:$EV$12,56,FALSE) -> 128 | K12: =VLOOKUP($A12,'RECAP DIRCOM'!$G$6:$EV$12,57,FALSE) -> 27% | L12: =VLOOKUP($A12,'RECAP DIRCOM'!$G$6:$EV$12,58,FALSE) -> 7 | M12: =VLOOKUP($A12,'RECAP DIRCOM'!$G$6:$EV$12,59,FALSE) -> 27.25 | N12: =VLOOKUP($A12,'RECAP DIRCOM'!$G$6:$EV$12,60,FALSE) -> 84% | O12: =VLOOKUP($A12,'RECAP DIRCOM'!$G$6:$EV$12,61,FALSE) -> 7 | P12: =VLOOKUP($A12,'RECAP DIRCOM'!$G$6:$EV$12,62,FALSE) -> 35.62 | Q12: =VLOOKUP($A12,'RECAP DIRCOM'!$G$6:$EV$12,63,FALSE) -> 0% | R12: =VLOOKUP($A12,'RECAP DIRCOM'!$G$6:$EV$12,64,FALSE) -> 1 | S12: =VLOOKUP($A12,'RECAP DIRCOM'!$G$6:$EV$12,65,FALSE) -> 30% | T12: =VLOOKUP($A12,'RECAP DIRCOM'!$G$6:$EV$12,66,FALSE) -> 0% | U12: =VLOOKUP($A12,'RECAP DIRCOM'!$G$6:$EV$12,67,FALSE) -> 1
A13: 30 | B13: Marne-Ardennes | C13: =VLOOKUP($A13,'RECAP DIRCOM'!$G$6:$EV$12,3,FALSE) -> 237 | D13: =VLOOKUP($A13,'RECAP DIRCOM'!$G$6:$EV$12,50,FALSE) -> 45.55 | E13: =VLOOKUP($A13,'RECAP DIRCOM'!$G$6:$EV$12,51,FALSE) -> 67% | F13: =VLOOKUP($A13,'RECAP DIRCOM'!$G$6:$EV$12,52,FALSE) -> 6 | G13: =VLOOKUP($A13,'RECAP DIRCOM'!$G$6:$EV$12,53,FALSE) -> 484.45 | H13: =VLOOKUP($A13,'RECAP DIRCOM'!$G$6:$EV$12,54,FALSE) -> 13% | I13: =VLOOKUP($A13,'RECAP DIRCOM'!$G$6:$EV$12,55,FALSE) -> 5 | J13: =VLOOKUP($A13,'RECAP DIRCOM'!$G$6:$EV$12,56,FALSE) -> 142 | K13: =VLOOKUP($A13,'RECAP DIRCOM'!$G$6:$EV$12,57,FALSE) -> 19% | L13: =VLOOKUP($A13,'RECAP DIRCOM'!$G$6:$EV$12,58,FALSE) -> 6 | M13: =VLOOKUP($A13,'RECAP DIRCOM'!$G$6:$EV$12,59,FALSE) -> 81.00 | N13: =VLOOKUP($A13,'RECAP DIRCOM'!$G$6:$EV$12,60,FALSE) -> 53% | O13: =VLOOKUP($A13,'RECAP DIRCOM'!$G$6:$EV$12,61,FALSE) -> 5 | P13: =VLOOKUP($A13,'RECAP DIRCOM'!$G$6:$EV$12,62,FALSE) -> 18.36 | Q13: =VLOOKUP($A13,'RECAP DIRCOM'!$G$6:$EV$12,63,FALSE) -> 48% | R13: =VLOOKUP($A13,'RECAP DIRCOM'!$G$6:$EV$12,64,FALSE) -> 2 | S13: =VLOOKUP($A13,'RECAP DIRCOM'!$G$6:$EV$12,65,FALSE) -> 43% | T13: =VLOOKUP($A13,'RECAP DIRCOM'!$G$6:$EV$12,66,FALSE) -> 13% | U13: =VLOOKUP($A13,'RECAP DIRCOM'!$G$6:$EV$12,67,FALSE) -> 4
A14: 110 | B14: Meurthe et Moselle Meuse | C14: =VLOOKUP($A14,'RECAP DIRCOM'!$G$6:$EV$12,3,FALSE) -> 261 | D14: =VLOOKUP($A14,'RECAP DIRCOM'!$G$6:$EV$12,50,FALSE) -> 85.24 | E14: =VLOOKUP($A14,'RECAP DIRCOM'!$G$6:$EV$12,51,FALSE) -> 38% | F14: =VLOOKUP($A14,'RECAP DIRCOM'!$G$6:$EV$12,52,FALSE) -> 3 | G14: =VLOOKUP($A14,'RECAP DIRCOM'!$G$6:$EV$12,53,FALSE) -> 517.34 | H14: =VLOOKUP($A14,'RECAP DIRCOM'!$G$6:$EV$12,54,FALSE) -> 7% | I14: =VLOOKUP($A14,'RECAP DIRCOM'!$G$6:$EV$12,55,FALSE) -> 2 | J14: =VLOOKUP($A14,'RECAP DIRCOM'!$G$6:$EV$12,56,FALSE) -> 152 | K14: =VLOOKUP($A14,'RECAP DIRCOM'!$G$6:$EV$12,57,FALSE) -> 13% | L14: =VLOOKUP($A14,'RECAP DIRCOM'!$G$6:$EV$12,58,FALSE) -> 5 | M14: =VLOOKUP($A14,'RECAP DIRCOM'!$G$6:$EV$12,59,FALSE) -> 141.84 | N14: =VLOOKUP($A14,'RECAP DIRCOM'!$G$6:$EV$12,60,FALSE) -> 18% | O14: =VLOOKUP($A14,'RECAP DIRCOM'!$G$6:$EV$12,61,FALSE) -> 2 | P14: =VLOOKUP($A14,'RECAP DIRCOM'!$G$6:$EV$12,62,FALSE) -> -5.10 | Q14: =VLOOKUP($A14,'RECAP DIRCOM'!$G$6:$EV$12,63,FALSE) -> 114% | R14: =VLOOKUP($A14,'RECAP DIRCOM'!$G$6:$EV$12,64,FALSE) -> 5 | S14: =VLOOKUP($A14,'RECAP DIRCOM'!$G$6:$EV$12,65,FALSE) -> 64% | T14: =VLOOKUP($A14,'RECAP DIRCOM'!$G$6:$EV$12,66,FALSE) -> 33% | U14: =VLOOKUP($A14,'RECAP DIRCOM'!$G$6:$EV$12,67,FALSE) -> 5
A15: 160 | B15: Moselle | C15: =VLOOKUP($A15,'RECAP DIRCOM'!$G$6:$EV$12,3,FALSE) -> 298 | D15: =VLOOKUP($A15,'RECAP DIRCOM'!$G$6:$EV$12,50,FALSE) -> 137.18 | E15: =VLOOKUP($A15,'RECAP DIRCOM'!$G$6:$EV$12,51,FALSE) -> 0% | F15: =VLOOKUP($A15,'RECAP DIRCOM'!$G$6:$EV$12,52,FALSE) -> 1 | G15: =VLOOKUP($A15,'RECAP DIRCOM'!$G$6:$EV$12,53,FALSE) -> 557.89 | H15: =VLOOKUP($A15,'RECAP DIRCOM'!$G$6:$EV$12,54,FALSE) -> 0% | I15: =VLOOKUP($A15,'RECAP DIRCOM'!$G$6:$EV$12,55,FALSE) -> 1 | J15: =VLOOKUP($A15,'RECAP DIRCOM'!$G$6:$EV$12,56,FALSE) -> 175 | K15: =VLOOKUP($A15,'RECAP DIRCOM'!$G$6:$EV$12,57,FALSE) -> 0% | L15: =VLOOKUP($A15,'RECAP DIRCOM'!$G$6:$EV$12,58,FALSE) -> 1 | M15: =VLOOKUP($A15,'RECAP DIRCOM'!$G$6:$EV$12,59,FALSE) -> 172.81 | N15: =VLOOKUP($A15,'RECAP DIRCOM'!$G$6:$EV$12,60,FALSE) -> 0% | O15: =VLOOKUP($A15,'RECAP DIRCOM'!$G$6:$EV$12,61,FALSE) -> 1 | P15: =VLOOKUP($A15,'RECAP DIRCOM'!$G$6:$EV$12,62,FALSE) -> 10.46 | Q15: =VLOOKUP($A15,'RECAP DIRCOM'!$G$6:$EV$12,63,FALSE) -> 71% | R15: =VLOOKUP($A15,'RECAP DIRCOM'!$G$6:$EV$12,64,FALSE) -> 4 | S15: =VLOOKUP($A15,'RECAP DIRCOM'!$G$6:$EV$12,65,FALSE) -> 33% | T15: =VLOOKUP($A15,'RECAP DIRCOM'!$G$6:$EV$12,66,FALSE) -> 3% | U15: =VLOOKUP($A15,'RECAP DIRCOM'!$G$6:$EV$12,67,FALSE) -> 2
A16: 80 | B16: Vosges | C16: =VLOOKUP($A16,'RECAP DIRCOM'!$G$6:$EV$12,3,FALSE) -> 145 | D16: =VLOOKUP($A16,'RECAP DIRCOM'!$G$6:$EV$12,50,FALSE) -> 102.88 | E16: =VLOOKUP($A16,'RECAP DIRCOM'!$G$6:$EV$12,51,FALSE) -> 25% | F16: =VLOOKUP($A16,'RECAP DIRCOM'!$G$6:$EV$12,52,FALSE) -> 2 | G16: =VLOOKUP($A16,'RECAP DIRCOM'!$G$6:$EV$12,53,FALSE) -> 511.18 | H16: =VLOOKUP($A16,'RECAP DIRCOM'!$G$6:$EV$12,54,FALSE) -> 8% | I16: =VLOOKUP($A16,'RECAP DIRCOM'!$G$6:$EV$12,55,FALSE) -> 3 | J16: =VLOOKUP($A16,'RECAP DIRCOM'!$G$6:$EV$12,56,FALSE) -> 157 | K16: =VLOOKUP($A16,'RECAP DIRCOM'!$G$6:$EV$12,57,FALSE) -> 11% | L16: =VLOOKUP($A16,'RECAP DIRCOM'!$G$6:$EV$12,58,FALSE) -> 4 | M16: =VLOOKUP($A16,'RECAP DIRCOM'!$G$6:$EV$12,59,FALSE) -> 115.38 | N16: =VLOOKUP($A16,'RECAP DIRCOM'!$G$6:$EV$12,60,FALSE) -> 33% | O16: =VLOOKUP($A16,'RECAP DIRCOM'!$G$6:$EV$12,61,FALSE) -> 3 | P16: =VLOOKUP($A16,'RECAP DIRCOM'!$G$6:$EV$12,62,FALSE) -> -10.52 | Q16: =VLOOKUP($A16,'RECAP DIRCOM'!$G$6:$EV$12,63,FALSE) -> 130% | R16: =VLOOKUP($A16,'RECAP DIRCOM'!$G$6:$EV$12,64,FALSE) -> 7 | S16: =VLOOKUP($A16,'RECAP DIRCOM'!$G$6:$EV$12,65,FALSE) -> 71% | T16: =VLOOKUP($A16,'RECAP DIRCOM'!$G$6:$EV$12,66,FALSE) -> 41% | U16: =VLOOKUP($A16,'RECAP DIRCOM'!$G$6:$EV$12,67,FALSE) -> 7
A17: Total CEGEE Directions Régionales | C17: =SUM(C10:C16) -> 1557

Sheet DC_CREDIT
A1: Accueil | D1: BAROMETRE BDD - DIRECTIONS REGIONALES
D2: CREDITS
D3: =ACCUEIL!H7 -> 2019-11-30
D7: Engagements crédit conso (hors clients note octroi à 9) | G7: % CNP crédit conso | J7: Engagements crédi immo | M7: % CNP crédit immo | P7: Taux couverture SACCEF | S7: Engagement Crédit MLT + Crédit Bail | V7: Total Crédits
E8: coef | F8: ='RECAP DIRCOM'!CD4 -> 3% | H8: coef | I8: ='RECAP DIRCOM'!CG4 -> 2% | K8: coef | L8: ='RECAP DIRCOM'!CJ4 -> 3% | N8: coef | O8: ='RECAP DIRCOM'!CM4 -> 2% | Q8: coef | R8: ='RECAP DIRCOM'!CP4 -> 2% | T8: coef | U8: ='RECAP DIRCOM'!CS4 -> 3% | W8: coef | X8: ='RECAP DIRCOM'!CV4 -> 15%
A9: eds | B9: Direction | C9: ETP perf | D9: Réal / ETP | E9: % Ecart au 1er | F9: Rang | H9: % Ecart au 1er | I9: Rang | J9: Taux réal objectif | K9: % Ecart au 1er | L9: Rang | N9: % Ecart au 1er | O9: Rang | Q9: % Ecart au 1er | R9: Rang | S9: Taux réal objectif | T9: % Ecart au 1er | U9: Rang | V9: Moyenne ecart au 1er | W9: % Ecart au 1er | X9: Rang CEGEE
A10: 50 | B10: Aube Haute Marne | C10: =VLOOKUP($A10,'RECAP DIRCOM'!$G$6:$EV$12,3,FALSE) -> 145 | D10: =VLOOKUP($A10,'RECAP DIRCOM'!$G$6:$EV$12,74,FALSE) -> 453.41 | E10: =VLOOKUP($A10,'RECAP DIRCOM'!$G$6:$EV$12,75,FALSE) -> 0% | F10: =VLOOKUP($A10,'RECAP DIRCOM'!$G$6:$EV$12,76,FALSE) -> 1 | G10: =VLOOKUP($A10,'RECAP DIRCOM'!$G$6:$EV$12,77,FALSE) -> 92% | H10: =VLOOKUP($A10,'RECAP DIRCOM'!$G$6:$EV$12,78,FALSE) -> 4% | I10: =VLOOKUP($A10,'RECAP DIRCOM'!$G$6:$EV$12,79,FALSE) -> 5 | J10: =VLOOKUP($A10,'RECAP DIRCOM'!$G$6:$EV$12,80,FALSE) -> 89% | K10: =VLOOKUP($A10,'RECAP DIRCOM'!$G$6:$EV$12,81,FALSE) -> 31% | L10: =VLOOKUP($A10,'RECAP DIRCOM'!$G$6:$EV$12,82,FALSE) -> 7 | M10: =VLOOKUP($A10,'RECAP DIRCOM'!$G$6:$EV$12,83,FALSE) -> 62% | N10: =VLOOKUP($A10,'RECAP DIRCOM'!$G$6:$EV$12,84,FALSE) -> 22% | O10: =VLOOKUP($A10,'RECAP DIRCOM'!$G$6:$EV$12,85,FALSE) -> 5 | P10: =VLOOKUP($A10,'RECAP DIRCOM'!$G$6:$EV$12,86,FALSE) -> 85% | Q10: =VLOOKUP($A10,'RECAP DIRCOM'!$G$6:$EV$12,87,FALSE) -> 9% | R10: =VLOOKUP($A10,'RECAP DIRCOM'!$G$6:$EV$12,88,FALSE) -> 6 | S10: =VLOOKUP($A10,'RECAP DIRCOM'!$G$6:$EV$12,89,FALSE) -> 105% | T10: =VLOOKUP($A10,'RECAP DIRCOM'!$G$6:$EV$12,90,FALSE) -> 2% | U10: =VLOOKUP($A10,'RECAP DIRCOM'!$G$6:$EV$12,91,FALSE) -> 3 | V10: =VLOOKUP($A10,'RECAP DIRCOM'!$G$6:$EV$12,92,FALSE) -> 11% | W10: =VLOOKUP($A10,'RECAP DIRCOM'!$G$6:$EV$12,93,FALSE) -> 8% | X10: =VLOOKUP($A10,'RECAP DIRCOM'!$G$6:$EV$12,94,FALSE) -> 4
A11: 262 | B11: Bas-Rhin | C11: =VLOOKUP($A11,'RECAP DIRCOM'!$G$6:$EV$12,3,FALSE) -> 297 | D11: =VLOOKUP($A11,'RECAP DIRCOM'!$G$6:$EV$12,74,FALSE) -> 350.03 | E11: =VLOOKUP($A11,'RECAP DIRCOM'!$G$6:$EV$12,75,FALSE) -> 23% | F11: =VLOOKUP($A11,'RECAP DIRCOM'!$G$6:$EV$12,76,FALSE) -> 7 | G11: =VLOOKUP($A11,'RECAP DIRCOM'!$G$6:$EV$12,77,FALSE) -> 94% | H11: =VLOOKUP($A11,'RECAP DIRCOM'!$G$6:$EV$12,78,FALSE) -> 2% | I11: =VLOOKUP($A11,'RECAP DIRCOM'!$G$6:$EV$12,79,FALSE) -> 3 | J11: =VLOOKUP($A11,'RECAP DIRCOM'!$G$6:$EV$12,80,FALSE) -> 102% | K11: =VLOOKUP($A11,'RECAP DIRCOM'!$G$6:$EV$12,81,FALSE) -> 21% | L11: =VLOOKUP($A11,'RECAP DIRCOM'!$G$6:$EV$12,82,FALSE) -> 5 | M11: =VLOOKUP($A11,'RECAP DIRCOM'!$G$6:$EV$12,83,FALSE) -> 55% | N11: =VLOOKUP($A11,'RECAP DIRCOM'!$G$6:$EV$12,84,FALSE) -> 30% | O11: =VLOOKUP($A11,'RECAP DIRCOM'!$G$6:$EV$12,85,FALSE) -> 7 | P11: =VLOOKUP($A11,'RECAP DIRCOM'!$G$6:$EV$12,86,FALSE) -> 85% | Q11: =VLOOKUP($A11,'RECAP DIRCOM'!$G$6:$EV$12,87,FALSE) -> 9% | R11: =VLOOKUP($A11,'RECAP DIRCOM'!$G$6:$EV$12,88,FALSE) -> 5 | S11: =VLOOKUP($A11,'RECAP DIRCOM'!$G$6:$EV$12,89,FALSE) -> 107% | T11: =VLOOKUP($A11,'RECAP DIRCOM'!$G$6:$EV$12,90,FALSE) -> 0% | U11: =VLOOKUP($A11,'RECAP DIRCOM'!$G$6:$EV$12,91,FALSE) -> 1 | V11: =VLOOKUP($A11,'RECAP DIRCOM'!$G$6:$EV$12,92,FALSE) -> 14% | W11: =VLOOKUP($A11,'RECAP DIRCOM'!$G$6:$EV$12,93,FALSE) -> 11% | X11: =VLOOKUP($A11,'RECAP DIRCOM'!$G$6:$EV$12,94,FALSE) -> 5
A12: 264 | B12: Haut-Rhin | C12: =VLOOKUP($A12,'RECAP DIRCOM'!$G$6:$EV$12,3,FALSE) -> 174 | D12: =VLOOKUP($A12,'RECAP DIRCOM'!$G$6:$EV$12,74,FALSE) -> 361.16 | E12: =VLOOKUP($A12,'RECAP DIRCOM'!$G$6:$EV$12,75,FALSE) -> 20% | F12: =VLOOKUP($A12,'RECAP DIRCOM'!$G$6:$EV$12,76,FALSE) -> 6 | G12: =VLOOKUP($A12,'RECAP DIRCOM'!$G$6:$EV$12,77,FALSE) -> 93% | H12: =VLOOKUP($A12,'RECAP DIRCOM'!$G$6:$EV$12,78,FALSE) -> 3% | I12: =VLOOKUP($A12,'RECAP DIRCOM'!$G$6:$EV$12,79,FALSE) -> 4 | J12: =VLOOKUP($A12,'RECAP DIRCOM'!$G$6:$EV$12,80,FALSE) -> 103% | K12: =VLOOKUP($A12,'RECAP DIRCOM'!$G$6:$EV$12,81,FALSE) -> 20% | L12: =VLOOKUP($A12,'RECAP DIRCOM'!$G$6:$EV$12,82,FALSE) -> 4 | M12: =VLOOKUP($A12,'RECAP DIRCOM'!$G$6:$EV$12,83,FALSE) -> 68% | N12: =VLOOKUP($A12,'RECAP DIRCOM'!$G$6:$EV$12,84,FALSE) -> 15% | O12: =VLOOKUP($A12,'RECAP DIRCOM'!$G$6:$EV$12,85,FALSE) -> 4 | P12: =VLOOKUP($A12,'RECAP DIRCOM'!$G$6:$EV$12,86,FALSE) -> 74% | Q12: =VLOOKUP($A12,'RECAP DIRCOM'!$G$6:$EV$12,87,FALSE) -> 20% | R12: =VLOOKUP($A12,'RECAP DIRCOM'!$G$6:$EV$12,88,FALSE) -> 7 | S12: =VLOOKUP($A12,'RECAP DIRCOM'!$G$6:$EV$12,89,FALSE) -> 91% | T12: =VLOOKUP($A12,'RECAP DIRCOM'!$G$6:$EV$12,90,FALSE) -> 15% | U12: =VLOOKUP($A12,'RECAP DIRCOM'!$G$6:$EV$12,91,FALSE) -> 5 | V12: =VLOOKUP($A12,'RECAP DIRCOM'!$G$6:$EV$12,92,FALSE) -> 16% | W12: =VLOOKUP($A12,'RECAP DIRCOM'!$G$6:$EV$12,93,FALSE) -> 13% | X12: =VLOOKUP($A12,'RECAP DIRCOM'!$G$6:$EV$12,94,FALSE) -> 7
A13: 30 | B13: Marne-Ardennes | C13: =VLOOKUP($A13,'RECAP DIRCOM'!$G$6:$EV$12,3,FALSE) -> 237 | D13: =VLOOKUP($A13,'RECAP DIRCOM'!$G$6:$EV$12,74,FALSE) -> 439.44 | E13: =VLOOKUP($A13,'RECAP DIRCOM'!$G$6:$EV$12,75,FALSE) -> 3% | F13: =VLOOKUP($A13,'RECAP DIRCOM'!$G$6:$EV$12,76,FALSE) -> 2 | G13: =VLOOKUP($A13,'RECAP DIRCOM'!$G$6:$EV$12,77,FALSE) -> 90% | H13: =VLOOKUP($A13,'RECAP DIRCOM'!$G$6:$EV$12,78,FALSE) -> 6% | I13: =VLOOKUP($A13,'RECAP DIRCOM'!$G$6:$EV$12,79,FALSE) -> 7 | J13: =VLOOKUP($A13,'RECAP DIRCOM'!$G$6:$EV$12,80,FALSE) -> 128% | K13: =VLOOKUP($A13,'RECAP DIRCOM'!$G$6:$EV$12,81,FALSE) -> 0% | L13: =VLOOKUP($A13,'RECAP DIRCOM'!$G$6:$EV$12,82,FALSE) -> 1 | M13: =VLOOKUP($A13,'RECAP DIRCOM'!$G$6:$EV$12,83,FALSE) -> 80% | N13: =VLOOKUP($A13,'RECAP DIRCOM'!$G$6:$EV$12,84,FALSE) -> 0% | O13: =VLOOKUP($A13,'RECAP DIRCOM'!$G$6:$EV$12,85,FALSE) -> 1 | P13: =VLOOKUP($A13,'RECAP DIRCOM'!$G$6:$EV$12,86,FALSE) -> 89% | Q13: =VLOOKUP($A13,'RECAP DIRCOM'!$G$6:$EV$12,87,FALSE) -> 5% | R13: =VLOOKUP($A13,'RECAP DIRCOM'!$G$6:$EV$12,88,FALSE) -> 3 | S13: =VLOOKUP($A13,'RECAP DIRCOM'!$G$6:$EV$12,89,FALSE) -> 100% | T13: =VLOOKUP($A13,'RECAP DIRCOM'!$G$6:$EV$12,90,FALSE) -> 6% | U13: =VLOOKUP($A13,'RECAP DIRCOM'!$G$6:$EV$12,91,FALSE) -> 4 | V13: =VLOOKUP($A13,'RECAP DIRCOM'!$G$6:$EV$12,92,FALSE) -> 3% | W13: =VLOOKUP($A13,'RECAP DIRCOM'!$G$6:$EV$12,93,FALSE) -> 0% | X13: =VLOOKUP($A13,'RECAP DIRCOM'!$G$6:$EV$12,94,FALSE) -> 1
A14: 110 | B14: Meurthe et Moselle Meuse | C14: =VLOOKUP($A14,'RECAP DIRCOM'!$G$6:$EV$12,3,FALSE) -> 261 | D14: =VLOOKUP($A14,'RECAP DIRCOM'!$G$6:$EV$12,74,FALSE) -> 423.36 | E14: =VLOOKUP($A14,'RECAP DIRCOM'!$G$6:$EV$12,75,FALSE) -> 7% | F14: =VLOOKUP($A14,'RECAP DIRCOM'!$G$6:$EV$12,76,FALSE) -> 4 | G14: =VLOOKUP($A14,'RECAP DIRCOM'!$G$6:$EV$12,77,FALSE) -> 91% | H14: =VLOOKUP($A14,'RECAP DIRCOM'!$G$6:$EV$12,78,FALSE) -> 5% | I14: =VLOOKUP($A14,'RECAP DIRCOM'!$G$6:$EV$12,79,FALSE) -> 6 | J14: =VLOOKUP($A14,'RECAP DIRCOM'!$G$6:$EV$12,80,FALSE) -> 119% | K14: =VLOOKUP($A14,'RECAP DIRCOM'!$G$6:$EV$12,81,FALSE) -> 8% | L14: =VLOOKUP($A14,'RECAP DIRCOM'!$G$6:$EV$12,82,FALSE) -> 2 | M14: =VLOOKUP($A14,'RECAP DIRCOM'!$G$6:$EV$12,83,FALSE) -> 71% | N14: =VLOOKUP($A14,'RECAP DIRCOM'!$G$6:$EV$12,84,FALSE) -> 11% | O14: =VLOOKUP($A14,'RECAP DIRCOM'!$G$6:$EV$12,85,FALSE) -> 3 | P14: =VLOOKUP($A14,'RECAP DIRCOM'!$G$6:$EV$12,86,FALSE) -> 93% | Q14: =VLOOKUP($A14,'RECAP DIRCOM'!$G$6:$EV$12,87,FALSE) -> 0% | R14: =VLOOKUP($A14,'RECAP DIRCOM'!$G$6:$EV$12,88,FALSE) -> 1 | S14: =VLOOKUP($A14,'RECAP DIRCOM'!$G$6:$EV$12,89,FALSE) -> 77% | T14: =VLOOKUP($A14,'RECAP DIRCOM'!$G$6:$EV$12,90,FALSE) -> 28% | U14: =VLOOKUP($A14,'RECAP DIRCOM'!$G$6:$EV$12,91,FALSE) -> 6 | V14: =VLOOKUP($A14,'RECAP DIRCOM'!$G$6:$EV$12,92,FALSE) -> 10% | W14: =VLOOKUP($A14,'RECAP DIRCOM'!$G$6:$EV$12,93,FALSE) -> 7% | X14: =VLOOKUP($A14,'RECAP DIRCOM'!$G$6:$EV$12,94,FALSE) -> 3
A15: 160 | B15: Moselle | C15: =VLOOKUP($A15,'RECAP DIRCOM'!$G$6:$EV$12,3,FALSE) -> 298 | D15: =VLOOKUP($A15,'RECAP DIRCOM'!$G$6:$EV$12,74,FALSE) -> 438.29 | E15: =VLOOKUP($A15,'RECAP DIRCOM'!$G$6:$EV$12,75,FALSE) -> 3% | F15: =VLOOKUP($A15,'RECAP DIRCOM'!$G$6:$EV$12,76,FALSE) -> 3 | G15: =VLOOKUP($A15,'RECAP DIRCOM'!$G$6:$EV$12,77,FALSE) -> 96% | H15: =VLOOKUP($A15,'RECAP DIRCOM'!$G$6:$EV$12,78,FALSE) -> 0% | I15: =VLOOKUP($A15,'RECAP DIRCOM'!$G$6:$EV$12,79,FALSE) -> 2 | J15: =VLOOKUP($A15,'RECAP DIRCOM'!$G$6:$EV$12,80,FALSE) -> 117% | K15: =VLOOKUP($A15,'RECAP DIRCOM'!$G$6:$EV$12,81,FALSE) -> 9% | L15: =VLOOKUP($A15,'RECAP DIRCOM'!$G$6:$EV$12,82,FALSE) -> 3 | M15: =VLOOKUP($A15,'RECAP DIRCOM'!$G$6:$EV$12,83,FALSE) -> 56% | N15: =VLOOKUP($A15,'RECAP DIRCOM'!$G$6:$EV$12,84,FALSE) -> 29% | O15: =VLOOKUP($A15,'RECAP DIRCOM'!$G$6:$EV$12,85,FALSE) -> 6 | P15: =VLOOKUP($A15,'RECAP DIRCOM'!$G$6:$EV$12,86,FALSE) -> 90% | Q15: =VLOOKUP($A15,'RECAP DIRCOM'!$G$6:$EV$12,87,FALSE) -> 4% | R15: =VLOOKUP($A15,'RECAP DIRCOM'!$G$6:$EV$12,88,FALSE) -> 2 | S15: =VLOOKUP($A15,'RECAP DIRCOM'!$G$6:$EV$12,89,FALSE) -> 67% | T15: =VLOOKUP($A15,'RECAP DIRCOM'!$G$6:$EV$12,90,FALSE) -> 37% | U15: =VLOOKUP($A15,'RECAP DIRCOM'!$G$6:$EV$12,91,FALSE) -> 7 | V15: =VLOOKUP($A15,'RECAP DIRCOM'!$G$6:$EV$12,92,FALSE) -> 14% | W15: =VLOOKUP($A15,'RECAP DIRCOM'!$G$6:$EV$12,93,FALSE) -> 11% | X15: =VLOOKUP($A15,'RECAP DIRCOM'!$G$6:$EV$12,94,FALSE) -> 6
A16: 80 | B16: Vosges | C16: =VLOOKUP($A16,'RECAP DIRCOM'!$G$6:$EV$12,3,FALSE) -> 145 | D16: =VLOOKUP($A16,'RECAP DIRCOM'!$G$6:$EV$12,74,FALSE) -> 384.74 | E16: =VLOOKUP($A16,'RECAP DIRCOM'!$G$6:$EV$12,75,FALSE) -> 15% | F16: =VLOOKUP($A16,'RECAP DIRCOM'!$G$6:$EV$12,76,FALSE) -> 5 | G16: =VLOOKUP($A16,'RECAP DIRCOM'!$G$6:$EV$12,77,FALSE) -> 96% | H16: =VLOOKUP($A16,'RECAP DIRCOM'!$G$6:$EV$12,78,FALSE) -> 0% | I16: =VLOOKUP($A16,'RECAP DIRCOM'!$G$6:$EV$12,79,FALSE) -> 1 | J16: =VLOOKUP($A16,'RECAP DIRCOM'!$G$6:$EV$12,80,FALSE) -> 96% | K16: =VLOOKUP($A16,'RECAP DIRCOM'!$G$6:$EV$12,81,FALSE) -> 25% | L16: =VLOOKUP($A16,'RECAP DIRCOM'!$G$6:$EV$12,82,FALSE) -> 6 | M16: =VLOOKUP($A16,'RECAP DIRCOM'!$G$6:$EV$12,83,FALSE) -> 75% | N16: =VLOOKUP($A16,'RECAP DIRCOM'!$G$6:$EV$12,84,FALSE) -> 6% | O16: =VLOOKUP($A16,'RECAP DIRCOM'!$G$6:$EV$12,85,FALSE) -> 2 | P16: =VLOOKUP($A16,'RECAP DIRCOM'!$G$6:$EV$12,86,FALSE) -> 87% | Q16: =VLOOKUP($A16,'RECAP DIRCOM'!$G$6:$EV$12,87,FALSE) -> 7% | R16: =VLOOKUP($A16,'RECAP DIRCOM'!$G$6:$EV$12,88,FALSE) -> 4 | S16: =VLOOKUP($A16,'RECAP DIRCOM'!$G$6:$EV$12,89,FALSE) -> 107% | T16: =VLOOKUP($A16,'RECAP DIRCOM'!$G$6:$EV$12,90,FALSE) -> 0% | U16: =VLOOKUP($A16,'RECAP DIRCOM'!$G$6:$EV$12,91,FALSE) -> 2 | V16: =VLOOKUP($A16,'RECAP DIRCOM'!$G$6:$EV$12,92,FALSE) -> 10% | W16: =VLOOKUP($A16,'RECAP DIRCOM'!$G$6:$EV$12,93,FALSE) -> 7% | X16: =VLOOKUP($A16,'RECAP DIRCOM'!$G$6:$EV$12,94,FALSE) -> 2
A17: Total CEGEE Directions Régionales | C17: =SUM(C10:C16) -> 1557

Sheet DC_IARD
A1: Accueil | D1: BAROMETRE BDD - DIRECTIONS REGIONALES
D2: IARD PREVOYANCE
D3: =ACCUEIL!H7 -> 2019-11-30
D7: Ventes nettes IARD (AUTO+MRH+Pro) | G7: Ventes nettes Prévoyance | J7: Chiffre d'affaires IARD | M7: Total IARD Prévoyance
E8: coef | F8: ='RECAP DIRCOM'!DE4 -> 7% | H8: coef | I8: ='RECAP DIRCOM'!DH4 -> 7% | K8: coef | L8: ='RECAP DIRCOM'!DK4 -> 6% | N8: coef | O8: ='RECAP DIRCOM'!DN4 -> 20%
A9: eds | B9: Direction | C9: ETP perf | D9: Nb / ETP | E9: % Ecart au 1er | F9: Rang | G9: Nb / ETP | H9: % Ecart au 1er | I9: Rang | J9: Nb / ETP | K9: % Ecart au 1er | L9: Rang | M9: Moyenne ecart au 1er | N9: % Ecart au 1er | O9: Rang CEGEE
A10: 50 | B10: Aube Haute Marne | C10: =VLOOKUP($A10,'RECAP DIRCOM'!$G$6:$EV$12,3,FALSE) -> 145 | D10: =VLOOKUP($A10,'RECAP DIRCOM'!$G$6:$EV$12,101,FALSE) -> 7.42 | E10: =VLOOKUP($A10,'RECAP DIRCOM'!$G$6:$EV$12,102,FALSE) -> 30% | F10: =VLOOKUP($A10,'RECAP DIRCOM'!$G$6:$EV$12,103,FALSE) -> 3 | G10: =VLOOKUP($A10,'RECAP DIRCOM'!$G$6:$EV$12,104,FALSE) -> 11.12 | H10: =VLOOKUP($A10,'RECAP DIRCOM'!$G$6:$EV$12,105,FALSE) -> 20% | I10: =VLOOKUP($A10,'RECAP DIRCOM'!$G$6:$EV$12,106,FALSE) -> 2 | J10: =VLOOKUP($A10,'RECAP DIRCOM'!$G$6:$EV$12,107,FALSE) -> 9.07 | K10: =VLOOKUP($A10,'RECAP DIRCOM'!$G$6:$EV$12,108,FALSE) -> 23% | L10: =VLOOKUP($A10,'RECAP DIRCOM'!$G$6:$EV$12,109,FALSE) -> 7 | M10: =VLOOKUP($A10,'RECAP DIRCOM'!$G$6:$EV$12,110,FALSE) -> 24% | N10: =VLOOKUP($A10,'RECAP DIRCOM'!$G$6:$EV$12,111,FALSE) -> 16% | O10: =VLOOKUP($A10,'RECAP DIRCOM'!$G$6:$EV$12,112,FALSE) -> 4
A11: 262 | B11: Bas-Rhin | C11: =VLOOKUP($A11,'RECAP DIRCOM'!$G$6:$EV$12,3,FALSE) -> 297 | D11: =VLOOKUP($A11,'RECAP DIRCOM'!$G$6:$EV$12,101,FALSE) -> 5.15 | E11: =VLOOKUP($A11,'RECAP DIRCOM'!$G$6:$EV$12,102,FALSE) -> 51% | F11: =VLOOKUP($A11,'RECAP DIRCOM'!$G$6:$EV$12,103,FALSE) -> 6 | G11: =VLOOKUP($A11,'RECAP DIRCOM'!$G$6:$EV$12,104,FALSE) -> 8.09 | H11: =VLOOKUP($A11,'RECAP DIRCOM'!$G$6:$EV$12,105,FALSE) -> 42% | I11: =VLOOKUP($A11,'RECAP DIRCOM'!$G$6:$EV$12,106,FALSE) -> 6 | J11: =VLOOKUP($A11,'RECAP DIRCOM'!$G$6:$EV$12,107,FALSE) -> 9.58 | K11: =VLOOKUP($A11,'RECAP DIRCOM'!$G$6:$EV$12,108,FALSE) -> 18% | L11: =VLOOKUP($A11,'RECAP DIRCOM'!$G$6:$EV$12,109,FALSE) -> 6 | M11: =VLOOKUP($A11,'RECAP DIRCOM'!$G$6:$EV$12,110,FALSE) -> 38% | N11: =VLOOKUP($A11,'RECAP DIRCOM'!$G$6:$EV$12,111,FALSE) -> 30% | O11: =VLOOKUP($A11,'RECAP DIRCOM'!$G$6:$EV$12,112,FALSE) -> 6
A12: 264 | B12: Haut-Rhin | C12: =VLOOKUP($A12,'RECAP DIRCOM'!$G$6:$EV$12,3,FALSE) -> 174 | D12: =VLOOKUP($A12,'RECAP DIRCOM'!$G$6:$EV$12,101,FALSE) -> 5.11 | E12: =VLOOKUP($A12,'RECAP DIRCOM'!$G$6:$EV$12,102,FALSE) -> 52% | F12: =VLOOKUP($A12,'RECAP DIRCOM'!$G$6:$EV$12,103,FALSE) -> 7 | G12: =VLOOKUP($A12,'RECAP DIRCOM'!$G$6:$EV$12,104,FALSE) -> 5.58 | H12: =VLOOKUP($A12,'RECAP DIRCOM'!$G$6:$EV$12,105,FALSE) -> 60% | I12: =VLOOKUP($A12,'RECAP DIRCOM'!$G$6:$EV$12,106,FALSE) -> 7 | J12: =VLOOKUP($A12,'RECAP DIRCOM'!$G$6:$EV$12,107,FALSE) -> 10.04 | K12: =VLOOKUP($A12,'RECAP DIRCOM'!$G$6:$EV$12,108,FALSE) -> 14% | L12: =VLOOKUP($A12,'RECAP DIRCOM'!$G$6:$EV$12,109,FALSE) -> 5 | M12: =VLOOKUP($A12,'RECAP DIRCOM'!$G$6:$EV$12,110,FALSE) -> 43% | N12: =VLOOKUP($A12,'RECAP DIRCOM'!$G$6:$EV$12,111,FALSE) -> 35% | O12: =VLOOKUP($A12,'RECAP DIRCOM'!$G$6:$EV$12,112,FALSE) -> 7
A13: 30 | B13: Marne-Ardennes | C13: =VLOOKUP($A13,'RECAP DIRCOM'!$G$6:$EV$12,3,FALSE) -> 237 | D13: =VLOOKUP($A13,'RECAP DIRCOM'!$G$6:$EV$12,101,FALSE) -> 8.97 | E13: =VLOOKUP($A13,'RECAP DIRCOM'!$G$6:$EV$12,102,FALSE) -> 15% | F13: =VLOOKUP($A13,'RECAP DIRCOM'!$G$6:$EV$12,103,FALSE) -> 2 | G13: =VLOOKUP($A13,'RECAP DIRCOM'!$G$6:$EV$12,104,FALSE) -> 13.94 | H13: =VLOOKUP($A13,'RECAP DIRCOM'!$G$6:$EV$12,105,FALSE) -> 0% | I13: =VLOOKUP($A13,'RECAP DIRCOM'!$G$6:$EV$12,106,FALSE) -> 1 | J13: =VLOOKUP($A13,'RECAP DIRCOM'!$G$6:$EV$12,107,FALSE) -> 10.61 | K13: =VLOOKUP($A13,'RECAP DIRCOM'!$G$6:$EV$12,108,FALSE) -> 10% | L13: =VLOOKUP($A13,'RECAP DIRCOM'!$G$6:$EV$12,109,FALSE) -> 3 | M13: =VLOOKUP($A13,'RECAP DIRCOM'!$G$6:$EV$12,110,FALSE) -> 8% | N13: =VLOOKUP($A13,'RECAP DIRCOM'!$G$6:$EV$12,111,FALSE) -> 0% | O13: =VLOOKUP($A13,'RECAP DIRCOM'!$G$6:$EV$12,112,FALSE) -> 1
A14: 110 | B14: Meurthe et Moselle Meuse | C14: =VLOOKUP($A14,'RECAP DIRCOM'!$G$6:$EV$12,3,FALSE) -> 261 | D14: =VLOOKUP($A14,'RECAP DIRCOM'!$G$6:$EV$12,101,FALSE) -> 10.62 | E14: =VLOOKUP($A14,'RECAP DIRCOM'!$G$6:$EV$12,102,FALSE) -> 0% | F14: =VLOOKUP($A14,'RECAP DIRCOM'!$G$6:$EV$12,103,FALSE) -> 1 | G14: =VLOOKUP($A14,'RECAP DIRCOM'!$G$6:$EV$12,104,FALSE) -> 10.49 | H14: =VLOOKUP($A14,'RECAP DIRCOM'!$G$6:$EV$12,105,FALSE) -> 25% | I14: =VLOOKUP($A14,'RECAP DIRCOM'!$G$6:$EV$12,106,FALSE) -> 3 | J14: =VLOOKUP($A14,'RECAP DIRCOM'!$G$6:$EV$12,107,FALSE) -> 11.74 | K14: =VLOOKUP($A14,'RECAP DIRCOM'!$G$6:$EV$12,108,FALSE) -> 0% | L14: =VLOOKUP($A14,'RECAP DIRCOM'!$G$6:$EV$12,109,FALSE) -> 1 | M14: =VLOOKUP($A14,'RECAP DIRCOM'!$G$6:$EV$12,110,FALSE) -> 9% | N14: =VLOOKUP($A14,'RECAP DIRCOM'!$G$6:$EV$12,111,FALSE) -> 0% | O14: =VLOOKUP($A14,'RECAP DIRCOM'!$G$6:$EV$12,112,FALSE) -> 2
A15: 160 | B15: Moselle | C15: =VLOOKUP($A15,'RECAP DIRCOM'!$G$6:$EV$12,3,FALSE) -> 298 | D15: =VLOOKUP($A15,'RECAP DIRCOM'!$G$6:$EV$12,101,FALSE) -> 7.27 | E15: =VLOOKUP($A15,'RECAP DIRCOM'!$G$6:$EV$12,102,FALSE) -> 32% | F15: =VLOOKUP($A15,'RECAP DIRCOM'!$G$6:$EV$12,103,FALSE) -> 4 | G15: =VLOOKUP($A15,'RECAP DIRCOM'!$G$6:$EV$12,104,FALSE) -> 10.26 | H15: =VLOOKUP($A15,'RECAP DIRCOM'!$G$6:$EV$12,105,FALSE) -> 26% | I15: =VLOOKUP($A15,'RECAP DIRCOM'!$G$6:$EV$12,106,FALSE) -> 4 | J15: =VLOOKUP($A15,'RECAP DIRCOM'!$G$6:$EV$12,107,FALSE) -> 10.30 | K15: =VLOOKUP($A15,'RECAP DIRCOM'!$G$6:$EV$12,108,FALSE) -> 12% | L15: =VLOOKUP($A15,'RECAP DIRCOM'!$G$6:$EV$12,109,FALSE) -> 4 | M15: =VLOOKUP($A15,'RECAP DIRCOM'!$G$6:$EV$12,110,FALSE) -> 24% | N15: =VLOOKUP($A15,'RECAP DIRCOM'!$G$6:$EV$12,111,FALSE) -> 16% | O15: =VLOOKUP($A15,'RECAP DIRCOM'!$G$6:$EV$12,112,FALSE) -> 3
A16: 80 | B16: Vosges | C16: =VLOOKUP($A16,'RECAP DIRCOM'!$G$6:$EV$12,3,FALSE) -> 145 | D16: =VLOOKUP($A16,'RECAP DIRCOM'!$G$6:$EV$12,101,FALSE) -> 6.94 | E16: =VLOOKUP($A16,'RECAP DIRCOM'!$G$6:$EV$12,102,FALSE) -> 35% | F16: =VLOOKUP($A16,'RECAP DIRCOM'!$G$6:$EV$12,103,FALSE) -> 5 | G16: =VLOOKUP($A16,'RECAP DIRCOM'!$G$6:$EV$12,104,FALSE) -> 9.67 | H16: =VLOOKUP($A16,'RECAP DIRCOM'!$G$6:$EV$12,105,FALSE) -> 31% | I16: =VLOOKUP($A16,'RECAP DIRCOM'!$G$6:$EV$12,106,FALSE) -> 5 | J16: =VLOOKUP($A16,'RECAP DIRCOM'!$G$6:$EV$12,107,FALSE) -> 10.92 | K16: =VLOOKUP($A16,'RECAP DIRCOM'!$G$6:$EV$12,108,FALSE) -> 7% | L16: =VLOOKUP($A16,'RECAP DIRCOM'!$G$6:$EV$12,109,FALSE) -> 2 | M16: =VLOOKUP($A16,'RECAP DIRCOM'!$G$6:$EV$12,110,FALSE) -> 25% | N16: =VLOOKUP($A16,'RECAP DIRCOM'!$G$6:$EV$12,111,FALSE) -> 17% | O16: =VLOOKUP($A16,'RECAP DIRCOM'!$G$6:$EV$12,112,FALSE) -> 5
A17: Total CEGEE Directions Régionales | C17: =SUM(C10:C16) -> 1557

Sheet DC_CONQUETE
A1: Accueil | D1: BAROMETRE BDD - DIRECTIONS REGIONALES
D2: CONQUETE
D3: =ACCUEIL!H7 -> 2019-11-30
D7: Evolution nette clients Bancarisés Principaux | G7: Evolution nette relations PREMIUM | J7: Evolution nette clients Bancarisés Principaux équipés | M7: Evolution nette clients Pro actif équipés | P7: Total Conquête
E8: coef | F8: ='RECAP DIRCOM'!M4 -> 4% | H8: coef | I8: ='RECAP DIRCOM'!P4 -> 4% | K8: coef | L8: ='RECAP DIRCOM'!S4 -> 3% | N8: coef | O8: ='RECAP DIRCOM'!V4 -> 4% | Q8: coef | R8: ='RECAP DIRCOM'!Y4 -> 15%
A9: eds | B9: Direction | C9: ETP perf | D9: Nb / ETP | E9: % Ecart au 1er | F9: Rang | G9: Nb / ETP | H9: % Ecart au 1er | I9: Rang | J9: Nb / ETP | K9: % Ecart au 1er | L9: Rang | M9: Taux réal objectif | N9: % Ecart au 1er | O9: Rang | P9: Moyenne ecart au 1er | Q9: % Ecart au 1er | R9: Rang CEGEE
A10: 50 | B10: Aube Haute Marne | C10: =VLOOKUP($A10,'RECAP DIRCOM'!$G$6:$EV$12,3,FALSE) -> 145 | D10: =VLOOKUP($A10,'RECAP DIRCOM'!$G$6:$EV$12,5,FALSE) -> 0.63 | E10: =VLOOKUP($A10,'RECAP DIRCOM'!$G$6:$EV$12,6,FALSE) -> 44% | F10: =VLOOKUP($A10,'RECAP DIRCOM'!$G$6:$EV$12,7,FALSE) -> 2 | G10: =VLOOKUP($A10,'RECAP DIRCOM'!$G$6:$EV$12,8,FALSE) -> 2.02 | H10: =VLOOKUP($A10,'RECAP DIRCOM'!$G$6:$EV$12,9,FALSE) -> 15% | I10: =VLOOKUP($A10,'RECAP DIRCOM'!$G$6:$EV$12,10,FALSE) -> 6 | J10: =VLOOKUP($A10,'RECAP DIRCOM'!$G$6:$EV$12,11,FALSE) -> 4.04 | K10: =VLOOKUP($A10,'RECAP DIRCOM'!$G$6:$EV$12,12,FALSE) -> 3% | L10: =VLOOKUP($A10,'RECAP DIRCOM'!$G$6:$EV$12,13,FALSE) -> 2 | M10: =VLOOKUP($A10,'RECAP DIRCOM'!$G$6:$EV$12,14,FALSE) -> -8% | N10: =VLOOKUP($A10,'RECAP DIRCOM'!$G$6:$EV$12,15,FALSE) -> 111% | O10: =VLOOKUP($A10,'RECAP DIRCOM'!$G$6:$EV$12,16,FALSE) -> 7 | P10: =VLOOKUP($A10,'RECAP DIRCOM'!$G$6:$EV$12,17,FALSE) -> 46% | Q10: =VLOOKUP($A10,'RECAP DIRCOM'!$G$6:$EV$12,18,FALSE) -> 28% | R10: =VLOOKUP($A10,'RECAP DIRCOM'!$G$6:$EV$12,19,FALSE) -> 4
A11: 262 | B11: Bas-Rhin | C11: =VLOOKUP($A11,'RECAP DIRCOM'!$G$6:$EV$12,3,FALSE) -> 297 | D11: =VLOOKUP($A11,'RECAP DIRCOM'!$G$6:$EV$12,5,FALSE) -> -2.70 | E11: =VLOOKUP($A11,'RECAP DIRCOM'!$G$6:$EV$12,6,FALSE) -> 131% | F11: =VLOOKUP($A11,'RECAP DIRCOM'!$G$6:$EV$12,7,FALSE) -> 6 | G11: =VLOOKUP($A11,'RECAP DIRCOM'!$G$6:$EV$12,8,FALSE) -> 2.20 | H11: =VLOOKUP($A11,'RECAP DIRCOM'!$G$6:$EV$12,9,FALSE) -> 7% | I11: =VLOOKUP($A11,'RECAP DIRCOM'!$G$6:$EV$12,10,FALSE) -> 3 | J11: =VLOOKUP($A11,'RECAP DIRCOM'!$G$6:$EV$12,11,FALSE) -> -0.98 | K11: =VLOOKUP($A11,'RECAP DIRCOM'!$G$6:$EV$12,12,FALSE) -> 123% | L11: =VLOOKUP($A11,'RECAP DIRCOM'!$G$6:$EV$12,13,FALSE) -> 6 | M11: =VLOOKUP($A11,'RECAP DIRCOM'!$G$6:$EV$12,14,FALSE) -> 52% | N11: =VLOOKUP($A11,'RECAP DIRCOM'!$G$6:$EV$12,15,FALSE) -> 31% | O11: =VLOOKUP($A11,'RECAP DIRCOM'!$G$6:$EV$12,16,FALSE) -> 4 | P11: =VLOOKUP($A11,'RECAP DIRCOM'!$G$6:$EV$12,17,FALSE) -> 70% | Q11: =VLOOKUP($A11,'RECAP DIRCOM'!$G$6:$EV$12,18,FALSE) -> 52% | R11: =VLOOKUP($A11,'RECAP DIRCOM'!$G$6:$EV$12,19,FALSE) -> 6
A12: 264 | B12: Haut-Rhin | C12: =VLOOKUP($A12,'RECAP DIRCOM'!$G$6:$EV$12,3,FALSE) -> 174 | D12: =VLOOKUP($A12,'RECAP DIRCOM'!$G$6:$EV$12,5,FALSE) -> -3.42 | E12: =VLOOKUP($A12,'RECAP DIRCOM'!$G$6:$EV$12,6,FALSE) -> 150% | F12: =VLOOKUP($A12,'RECAP DIRCOM'!$G$6:$EV$12,7,FALSE) -> 7 | G12: =VLOOKUP($A12,'RECAP DIRCOM'!$G$6:$EV$12,8,FALSE) -> 2.37 | H12: =VLOOKUP($A12,'RECAP DIRCOM'!$G$6:$EV$12,9,FALSE) -> 0% | I12: =VLOOKUP($A12,'RECAP DIRCOM'!$G$6:$EV$12,10,FALSE) -> 1 | J12: =VLOOKUP($A12,'RECAP DIRCOM'!$G$6:$EV$12,11,FALSE) -> -1.70 | K12: =VLOOKUP($A12,'RECAP DIRCOM'!$G$6:$EV$12,12,FALSE) -> 141% | L12: =VLOOKUP($A12,'RECAP DIRCOM'!$G$6:$EV$12,13,FALSE) -> 7 | M12: =VLOOKUP($A12,'RECAP DIRCOM'!$G$6:$EV$12,14,FALSE) -> 15% | N12: =VLOOKUP($A12,'RECAP DIRCOM'!$G$6:$EV$12,15,FALSE) -> 80% | O12: =VLOOKUP($A12,'RECAP DIRCOM'!$G$6:$EV$12,16,FALSE) -> 6 | P12: =VLOOKUP($A12,'RECAP DIRCOM'!$G$6:$EV$12,17,FALSE) -> 89% | Q12: =VLOOKUP($A12,'RECAP DIRCOM'!$G$6:$EV$12,18,FALSE) -> 72% | R12: =VLOOKUP($A12,'RECAP DIRCOM'!$G$6:$EV$12,19,FALSE) -> 7
A13: 30 | B13: Marne-Ardennes | C13: =VLOOKUP($A13,'RECAP DIRCOM'!$G$6:$EV$12,3,FALSE) -> 237 | D13: =VLOOKUP($A13,'RECAP DIRCOM'!$G$6:$EV$12,5,FALSE) -> 2.30 | E13: =VLOOKUP($A13,'RECAP DIRCOM'!$G$6:$EV$12,6,FALSE) -> 0% | F13: =VLOOKUP($A13,'RECAP DIRCOM'!$G$6:$EV$12,7,FALSE) -> 1 | G13: =VLOOKUP($A13,'RECAP DIRCOM'!$G$6:$EV$12,8,FALSE) -> 2.24 | H13: =VLOOKUP($A13,'RECAP DIRCOM'!$G$6:$EV$12,9,FALSE) -> 5% | I13: =VLOOKUP($A13,'RECAP DIRCOM'!$G$6:$EV$12,10,FALSE) -> 2 | J13: =VLOOKUP($A13,'RECAP DIRCOM'!$G$6:$EV$12,11,FALSE) -> 3.98 | K13: =VLOOKUP($A13,'RECAP DIRCOM'!$G$6:$EV$12,12,FALSE) -> 5% | L13: =VLOOKUP($A13,'RECAP DIRCOM'!$G$6:$EV$12,13,FALSE) -> 3 | M13: =VLOOKUP($A13,'RECAP DIRCOM'!$G$6:$EV$12,14,FALSE) -> 32% | N13: =VLOOKUP($A13,'RECAP DIRCOM'!$G$6:$EV$12,15,FALSE) -> 58% | O13: =VLOOKUP($A13,'RECAP DIRCOM'!$G$6:$EV$12,16,FALSE) -> 5 | P13: =VLOOKUP($A13,'RECAP DIRCOM'!$G$6:$EV$12,17,FALSE) -> 18% | Q13: =VLOOKUP($A13,'RECAP DIRCOM'!$G$6:$EV$12,18,FALSE) -> 0% | R13: =VLOOKUP($A13,'RECAP DIRCOM'!$G$6:$EV$12,19,FALSE) -> 1
A14: 110 | B14: Meurthe et Moselle Meuse | C14: =VLOOKUP($A14,'RECAP DIRCOM'!$G$6:$EV$12,3,FALSE) -> 261 | D14: =VLOOKUP($A14,'RECAP DIRCOM'!$G$6:$EV$12,5,FALSE) -> 0.04 | E14: =VLOOKUP($A14,'RECAP DIRCOM'!$G$6:$EV$12,6,FALSE) -> 59% | F14: =VLOOKUP($A14,'RECAP DIRCOM'!$G$6:$EV$12,7,FALSE) -> 3 | G14: =VLOOKUP($A14,'RECAP DIRCOM'!$G$6:$EV$12,8,FALSE) -> 2.07 | H14: =VLOOKUP($A14,'RECAP DIRCOM'!$G$6:$EV$12,9,FALSE) -> 13% | I14: =VLOOKUP($A14,'RECAP DIRCOM'!$G$6:$EV$12,10,FALSE) -> 5 | J14: =VLOOKUP($A14,'RECAP DIRCOM'!$G$6:$EV$12,11,FALSE) -> 2.25 | K14: =VLOOKUP($A14,'RECAP DIRCOM'!$G$6:$EV$12,12,FALSE) -> 46% | L14: =VLOOKUP($A14,'RECAP DIRCOM'!$G$6:$EV$12,13,FALSE) -> 4 | M14: =VLOOKUP($A14,'RECAP DIRCOM'!$G$6:$EV$12,14,FALSE) -> 67% | N14: =VLOOKUP($A14,'RECAP DIRCOM'!$G$6:$EV$12,15,FALSE) -> 11% | O14: =VLOOKUP($A14,'RECAP DIRCOM'!$G$6:$EV$12,16,FALSE) -> 3 | P14: =VLOOKUP($A14,'RECAP DIRCOM'!$G$6:$EV$12,17,FALSE) -> 31% | Q14: =VLOOKUP($A14,'RECAP DIRCOM'!$G$6:$EV$12,18,FALSE) -> 14% | R14: =VLOOKUP($A14,'RECAP DIRCOM'!$G$6:$EV$12,19,FALSE) -> 3
A15: 160 | B15: Moselle | C15: =VLOOKUP($A15,'RECAP DIRCOM'!$G$6:$EV$12,3,FALSE) -> 298 | D15: =VLOOKUP($A15,'RECAP DIRCOM'!$G$6:$EV$12,5,FALSE) -> -1.32 | E15: =VLOOKUP($A15,'RECAP DIRCOM'!$G$6:$EV$12,6,FALSE) -> 95% | F15: =VLOOKUP($A15,'RECAP DIRCOM'!$G$6:$EV$12,7,FALSE) -> 4 | G15: =VLOOKUP($A15,'RECAP DIRCOM'!$G$6:$EV$12,8,FALSE) -> 2.10 | H15: =VLOOKUP($A15,'RECAP DIRCOM'!$G$6:$EV$12,9,FALSE) -> 11% | I15: =VLOOKUP($A15,'RECAP DIRCOM'!$G$6:$EV$12,10,FALSE) -> 4 | J15: =VLOOKUP($A15,'RECAP DIRCOM'!$G$6:$EV$12,11,FALSE) -> 4.18 | K15: =VLOOKUP($A15,'RECAP DIRCOM'!$G$6:$EV$12,12,FALSE) -> 0% | L15: =VLOOKUP($A15,'RECAP DIRCOM'!$G$6:$EV$12,13,FALSE) -> 1 | M15: =VLOOKUP($A15,'RECAP DIRCOM'!$G$6:$EV$12,14,FALSE) -> 68% | N15: =VLOOKUP($A15,'RECAP DIRCOM'!$G$6:$EV$12,15,FALSE) -> 10% | O15: =VLOOKUP($A15,'RECAP DIRCOM'!$G$6:$EV$12,16,FALSE) -> 2 | P15: =VLOOKUP($A15,'RECAP DIRCOM'!$G$6:$EV$12,17,FALSE) -> 31% | Q15: =VLOOKUP($A15,'RECAP DIRCOM'!$G$6:$EV$12,18,FALSE) -> 13% | R15: =VLOOKUP($A15,'RECAP DIRCOM'!$G$6:$EV$12,19,FALSE) -> 2
A16: 80 | B16: Vosges | C16: =VLOOKUP($A16,'RECAP DIRCOM'!$G$6:$EV$12,3,FALSE) -> 145 | D16: =VLOOKUP($A16,'RECAP DIRCOM'!$G$6:$EV$12,5,FALSE) -> -1.81 | E16: =VLOOKUP($A16,'RECAP DIRCOM'!$G$6:$EV$12,6,FALSE) -> 108% | F16: =VLOOKUP($A16,'RECAP DIRCOM'!$G$6:$EV$12,7,FALSE) -> 5 | G16: =VLOOKUP($A16,'RECAP DIRCOM'!$G$6:$EV$12,8,FALSE) -> 1.61 | H16: =VLOOKUP($A16,'RECAP DIRCOM'!$G$6:$EV$12,9,FALSE) -> 32% | I16: =VLOOKUP($A16,'RECAP DIRCOM'!$G$6:$EV$12,10,FALSE) -> 7 | J16: =VLOOKUP($A16,'RECAP DIRCOM'!$G$6:$EV$12,11,FALSE) -> 1.44 | K16: =VLOOKUP($A16,'RECAP DIRCOM'!$G$6:$EV$12,12,FALSE) -> 65% | L16: =VLOOKUP($A16,'RECAP DIRCOM'!$G$6:$EV$12,13,FALSE) -> 5 | M16: =VLOOKUP($A16,'RECAP DIRCOM'!$G$6:$EV$12,14,FALSE) -> 75% | N16: =VLOOKUP($A16,'RECAP DIRCOM'!$G$6:$EV$12,15,FALSE) -> 0% | O16: =VLOOKUP($A16,'RECAP DIRCOM'!$G$6:$EV$12,16,FALSE) -> 1 | P16: =VLOOKUP($A16,'RECAP DIRCOM'!$G$6:$EV$12,17,FALSE) -> 50% | Q16: =VLOOKUP($A16,'RECAP DIRCOM'!$G$6:$EV$12,18,FALSE) -> 33% | R16: =VLOOKUP($A16,'RECAP DIRCOM'!$G$6:$EV$12,19,FALSE) -> 5
A17: Total CEGEE Directions Régionales | C17: =SUM(C10:C16) -> 1557

Sheet DC_RISQUES
A1: Accueil | D1: BAROMETRE BDD - DIRECTIONS REGIONALES
D2: RISQUES
D3: =ACCUEIL!H7 -> 2019-11-30
D6: Complétude conformité et fiabilisation | J6: Traitement et qualité du traitement des alertes Vigiclient | M6: Total Risques
D7: Nouvelles EER sur flux BDD | G7: EER sur flux cumulés et stock
E8: coef | F8: ='RECAP DIRCOM'!DW4 -> 3% | H8: coef | I8: ='RECAP DIRCOM'!DZ4 -> 3% | K8: coef | L8: ='RECAP DIRCOM'!EC4 -> 4% | N8: coef | O8: ='RECAP DIRCOM'!EF4 -> 10%
A9: eds | B9: Direction | C9: ETP perf | E9: % Ecart au 1er | F9: Rang | H9: % Ecart au 1er | I9: Rang | K9: % Ecart au 1er | L9: Rang | M9: Moyenne ecart au 1er | N9: % Ecart au 1er | O9: Rang CEGEE
A10: 50 | B10: Aube Haute Marne | C10: =VLOOKUP($A10,'RECAP DIRCOM'!$G$6:$EV$12,3,FALSE) -> 145 | D10: =VLOOKUP($A10,'RECAP DIRCOM'!$G$6:$EV$12,119,FALSE) -> 98% | E10: =VLOOKUP($A10,'RECAP DIRCOM'!$G$6:$EV$12,120,FALSE) -> 1% | F10: =VLOOKUP($A10,'RECAP DIRCOM'!$G$6:$EV$12,121,FALSE) -> 3 | G10: =VLOOKUP($A10,'RECAP DIRCOM'!$G$6:$EV$12,122,FALSE) -> 76% | H10: =VLOOKUP($A10,'RECAP DIRCOM'!$G$6:$EV$12,123,FALSE) -> 3% | I10: =VLOOKUP($A10,'RECAP DIRCOM'!$G$6:$EV$12,124,FALSE) -> 3 | J10: =VLOOKUP($A10,'RECAP DIRCOM'!$G$6:$EV$12,125,FALSE) -> 100% | K10: =VLOOKUP($A10,'RECAP DIRCOM'!$G$6:$EV$12,126,FALSE) -> 0% | L10: =VLOOKUP($A10,'RECAP DIRCOM'!$G$6:$EV$12,127,FALSE) -> 1 | M10: =VLOOKUP($A10,'RECAP DIRCOM'!$G$6:$EV$12,128,FALSE) -> 1% | N10: =VLOOKUP($A10,'RECAP DIRCOM'!$G$6:$EV$12,129,FALSE) -> 0% | O10: =VLOOKUP($A10,'RECAP DIRCOM'!$G$6:$EV$12,130,FALSE) -> 2
A11: 262 | B11: Bas-Rhin | C11: =VLOOKUP($A11,'RECAP DIRCOM'!$G$6:$EV$12,3,FALSE) -> 297 | D11: =VLOOKUP($A11,'RECAP DIRCOM'!$G$6:$EV$12,119,FALSE) -> 96% | E11: =VLOOKUP($A11,'RECAP DIRCOM'!$G$6:$EV$12,120,FALSE) -> 2% | F11: =VLOOKUP($A11,'RECAP DIRCOM'!$G$6:$EV$12,121,FALSE) -> 7 | G11: =VLOOKUP($A11,'RECAP DIRCOM'!$G$6:$EV$12,122,FALSE) -> 71% | H11: =VLOOKUP($A11,'RECAP DIRCOM'!$G$6:$EV$12,123,FALSE) -> 9% | I11: =VLOOKUP($A11,'RECAP DIRCOM'!$G$6:$EV$12,124,FALSE) -> 7 | J11: =VLOOKUP($A11,'RECAP DIRCOM'!$G$6:$EV$12,125,FALSE) -> 93% | K11: =VLOOKUP($A11,'RECAP DIRCOM'!$G$6:$EV$12,126,FALSE) -> 7% | L11: =VLOOKUP($A11,'RECAP DIRCOM'!$G$6:$EV$12,127,FALSE) -> 6 | M11: =VLOOKUP($A11,'RECAP DIRCOM'!$G$6:$EV$12,128,FALSE) -> 6% | N11: =VLOOKUP($A11,'RECAP DIRCOM'!$G$6:$EV$12,129,FALSE) -> 5% | O11: =VLOOKUP($A11,'RECAP DIRCOM'!$G$6:$EV$12,130,FALSE) -> 7
A12: 264 | B12: Haut-Rhin | C12: =VLOOKUP($A12,'RECAP DIRCOM'!$G$6:$EV$12,3,FALSE) -> 174 | D12: =VLOOKUP($A12,'RECAP DIRCOM'!$G$6:$EV$12,119,FALSE) -> 97% | E12: =VLOOKUP($A12,'RECAP DIRCOM'!$G$6:$EV$12,120,FALSE) -> 1% | F12: =VLOOKUP($A12,'RECAP DIRCOM'!$G$6:$EV$12,121,FALSE) -> 6 | G12: =VLOOKUP($A12,'RECAP DIRCOM'!$G$6:$EV$12,122,FALSE) -> 73% | H12: =VLOOKUP($A12,'RECAP DIRCOM'!$G$6:$EV$12,123,FALSE) -> 7% | I12: =VLOOKUP($A12,'RECAP DIRCOM'!$G$6:$EV$12,124,FALSE) -> 6 | J12: =VLOOKUP($A12,'RECAP DIRCOM'!$G$6:$EV$12,125,FALSE) -> 99% | K12: =VLOOKUP($A12,'RECAP DIRCOM'!$G$6:$EV$12,126,FALSE) -> 1% | L12: =VLOOKUP($A12,'RECAP DIRCOM'!$G$6:$EV$12,127,FALSE) -> 4 | M12: =VLOOKUP($A12,'RECAP DIRCOM'!$G$6:$EV$12,128,FALSE) -> 3% | N12: =VLOOKUP($A12,'RECAP DIRCOM'!$G$6:$EV$12,129,FALSE) -> 2% | O12: =VLOOKUP($A12,'RECAP DIRCOM'!$G$6:$EV$12,130,FALSE) -> 5
A13: 30 | B13: Marne-Ardennes | C13: =VLOOKUP($A13,'RECAP DIRCOM'!$G$6:$EV$12,3,FALSE) -> 237 | D13: =VLOOKUP($A13,'RECAP DIRCOM'!$G$6:$EV$12,119,FALSE) -> 98% | E13: =VLOOKUP($A13,'RECAP DIRCOM'!$G$6:$EV$12,120,FALSE) -> 1% | F13: =VLOOKUP($A13,'RECAP DIRCOM'!$G$6:$EV$12,121,FALSE) -> 2 | G13: =VLOOKUP($A13,'RECAP DIRCOM'!$G$6:$EV$12,122,FALSE) -> 74% | H13: =VLOOKUP($A13,'RECAP DIRCOM'!$G$6:$EV$12,123,FALSE) -> 6% | I13: =VLOOKUP($A13,'RECAP DIRCOM'!$G$6:$EV$12,124,FALSE) -> 5 | J13: =VLOOKUP($A13,'RECAP DIRCOM'!$G$6:$EV$12,125,FALSE) -> 99% | K13: =VLOOKUP($A13,'RECAP DIRCOM'!$G$6:$EV$12,126,FALSE) -> 1% | L13: =VLOOKUP($A13,'RECAP DIRCOM'!$G$6:$EV$12,127,FALSE) -> 2 | M13: =VLOOKUP($A13,'RECAP DIRCOM'!$G$6:$EV$12,128,FALSE) -> 2% | N13: =VLOOKUP($A13,'RECAP DIRCOM'!$G$6:$EV$12,129,FALSE) -> 1% | O13: =VLOOKUP($A13,'RECAP DIRCOM'!$G$6:$EV$12,130,FALSE) -> 4
A14: 110 | B14: Meurthe et Moselle Meuse | C14: =VLOOKUP($A14,'RECAP DIRCOM'!$G$6:$EV$12,3,FALSE) -> 261 | D14: =VLOOKUP($A14,'RECAP DIRCOM'!$G$6:$EV$12,119,FALSE) -> 97% | E14: =VLOOKUP($A14,'RECAP DIRCOM'!$G$6:$EV$12,120,FALSE) -> 1% | F14: =VLOOKUP($A14,'RECAP DIRCOM'!$G$6:$EV$12,121,FALSE) -> 4 | G14: =VLOOKUP($A14,'RECAP DIRCOM'!$G$6:$EV$12,122,FALSE) -> 76% | H14: =VLOOKUP($A14,'RECAP DIRCOM'!$G$6:$EV$12,123,FALSE) -> 3% | I14: =VLOOKUP($A14,'RECAP DIRCOM'!$G$6:$EV$12,124,FALSE) -> 4 | J14: =VLOOKUP($A14,'RECAP DIRCOM'!$G$6:$EV$12,125,FALSE) -> 91% | K14: =VLOOKUP($A14,'RECAP DIRCOM'!$G$6:$EV$12,126,FALSE) -> 9% | L14: =VLOOKUP($A14,'RECAP DIRCOM'!$G$6:$EV$12,127,FALSE) -> 7 | M14: =VLOOKUP($A14,'RECAP DIRCOM'!$G$6:$EV$12,128,FALSE) -> 5% | N14: =VLOOKUP($A14,'RECAP DIRCOM'!$G$6:$EV$12,129,FALSE) -> 4% | O14: =VLOOKUP($A14,'RECAP DIRCOM'!$G$6:$EV$12,130,FALSE) -> 6
A15: 160 | B15: Moselle | C15: =VLOOKUP($A15,'RECAP DIRCOM'!$G$6:$EV$12,3,FALSE) -> 298 | D15: =VLOOKUP($A15,'RECAP DIRCOM'!$G$6:$EV$12,119,FALSE) -> 97% | E15: =VLOOKUP($A15,'RECAP DIRCOM'!$G$6:$EV$12,120,FALSE) -> 1% | F15: =VLOOKUP($A15,'RECAP DIRCOM'!$G$6:$EV$12,121,FALSE) -> 5 | G15: =VLOOKUP($A15,'RECAP DIRCOM'!$G$6:$EV$12,122,FALSE) -> 78% | H15: =VLOOKUP($A15,'RECAP DIRCOM'!$G$6:$EV$12,123,FALSE) -> 0% | I15: =VLOOKUP($A15,'RECAP DIRCOM'!$G$6:$EV$12,124,FALSE) -> 2 | J15: =VLOOKUP($A15,'RECAP DIRCOM'!$G$6:$EV$12,125,FALSE) -> 99% | K15: =VLOOKUP($A15,'RECAP DIRCOM'!$G$6:$EV$12,126,FALSE) -> 1% | L15: =VLOOKUP($A15,'RECAP DIRCOM'!$G$6:$EV$12,127,FALSE) -> 3 | M15: =VLOOKUP($A15,'RECAP DIRCOM'!$G$6:$EV$12,128,FALSE) -> 1% | N15: =VLOOKUP($A15,'RECAP DIRCOM'!$G$6:$EV$12,129,FALSE) -> 0% | O15: =VLOOKUP($A15,'RECAP DIRCOM'!$G$6:$EV$12,130,FALSE) -> 1
A16: 80 | B16: Vosges | C16: =VLOOKUP($A16,'RECAP DIRCOM'!$G$6:$EV$12,3,FALSE) -> 145 | D16: =VLOOKUP($A16,'RECAP DIRCOM'!$G$6:$EV$12,119,FALSE) -> 99% | E16: =VLOOKUP($A16,'RECAP DIRCOM'!$G$6:$EV$12,120,FALSE) -> 0% | F16: =VLOOKUP($A16,'RECAP DIRCOM'!$G$6:$EV$12,121,FALSE) -> 1 | G16: =VLOOKUP($A16,'RECAP DIRCOM'!$G$6:$EV$12,122,FALSE) -> 78% | H16: =VLOOKUP($A16,'RECAP DIRCOM'!$G$6:$EV$12,123,FALSE) -> 0% | I16: =VLOOKUP($A16,'RECAP DIRCOM'!$G$6:$EV$12,124,FALSE) -> 1 | J16: =VLOOKUP($A16,'RECAP DIRCOM'!$G$6:$EV$12,125,FALSE) -> 96% | K16: =VLOOKUP($A16,'RECAP DIRCOM'!$G$6:$EV$12,126,FALSE) -> 4% | L16: =VLOOKUP($A16,'RECAP DIRCOM'!$G$6:$EV$12,127,FALSE) -> 5 | M16: =VLOOKUP($A16,'RECAP DIRCOM'!$G$6:$EV$12,128,FALSE) -> 2% | N16: =VLOOKUP($A16,'RECAP DIRCOM'!$G$6:$EV$12,129,FALSE) -> 1% | O16: =VLOOKUP($A16,'RECAP DIRCOM'!$G$6:$EV$12,130,FALSE) -> 3
A17: Total CEGEE Directions Régionales | C17: =SUM(C10:C16) -> 1557

Sheet DC_SATISFACTION
A1: Accueil | D1: BAROMETRE BDD - DIRECTIONS REGIONALES
D2: SATISFACTION CLIENTS
D3: =ACCUEIL!H7 -> 2019-11-30
D7: N P S | G7: Enquête Qualité Haute Définition | J7: Total Satisfaction Clients
E8: coef | F8: ='RECAP DIRCOM'!EO4 -> 5% | H8: coef | I8: ='RECAP DIRCOM'!ER4 -> 5% | K8: coef | L8: ='RECAP DIRCOM'!EU4 -> 10%
A9: eds | B9: Direction | C9: ETP perf | E9: % Ecart au 1er | F9: Rang | H9: % Ecart au 1er | I9: Rang | J9: Moyenne ecart au 1er | K9: % Ecart au 1er | L9: Rang CEGEE
A10: 50 | B10: Aube Haute Marne | C10: =VLOOKUP($A10,'RECAP DIRCOM'!$G$6:$EV$12,3,FALSE) -> 145 | D10: =VLOOKUP($A10,'RECAP DIRCOM'!$G$6:$EV$12,137,FALSE) -> -7 | E10: =VLOOKUP($A10,'RECAP DIRCOM'!$G$6:$EV$12,138,FALSE) -> 0% | F10: =VLOOKUP($A10,'RECAP DIRCOM'!$G$6:$EV$12,139,FALSE) -> 1 | G10: =VLOOKUP($A10,'RECAP DIRCOM'!$G$6:$EV$12,140,FALSE) -> 75% | H10: =VLOOKUP($A10,'RECAP DIRCOM'!$G$6:$EV$12,141,FALSE) -> 3% | I10: =VLOOKUP($A10,'RECAP DIRCOM'!$G$6:$EV$12,142,FALSE) -> 5 | J10: =VLOOKUP($A10,'RECAP DIRCOM'!$G$6:$EV$12,143,FALSE) -> 1% | K10: =VLOOKUP($A10,'RECAP DIRCOM'!$G$6:$EV$12,144,FALSE) -> 1% | L10: =VLOOKUP($A10,'RECAP DIRCOM'!$G$6:$EV$12,145,FALSE) -> 2
A11: 262 | B11: Bas-Rhin | C11: =VLOOKUP($A11,'RECAP DIRCOM'!$G$6:$EV$12,3,FALSE) -> 297 | D11: =VLOOKUP($A11,'RECAP DIRCOM'!$G$6:$EV$12,137,FALSE) -> -23 | E11: =VLOOKUP($A11,'RECAP DIRCOM'!$G$6:$EV$12,138,FALSE) -> 150% | F11: =VLOOKUP($A11,'RECAP DIRCOM'!$G$6:$EV$12,139,FALSE) -> 7 | G11: =VLOOKUP($A11,'RECAP DIRCOM'!$G$6:$EV$12,140,FALSE) -> 72% | H11: =VLOOKUP($A11,'RECAP DIRCOM'!$G$6:$EV$12,141,FALSE) -> 7% | I11: =VLOOKUP($A11,'RECAP DIRCOM'!$G$6:$EV$12,142,FALSE) -> 7 | J11: =VLOOKUP($A11,'RECAP DIRCOM'!$G$6:$EV$12,143,FALSE) -> 78% | K11: =VLOOKUP($A11,'RECAP DIRCOM'!$G$6:$EV$12,144,FALSE) -> 78% | L11: =VLOOKUP($A11,'RECAP DIRCOM'!$G$6:$EV$12,145,FALSE) -> 7
A12: 264 | B12: Haut-Rhin | C12: =VLOOKUP($A12,'RECAP DIRCOM'!$G$6:$EV$12,3,FALSE) -> 174 | D12: =VLOOKUP($A12,'RECAP DIRCOM'!$G$6:$EV$12,137,FALSE) -> -22 | E12: =VLOOKUP($A12,'RECAP DIRCOM'!$G$6:$EV$12,138,FALSE) -> 141% | F12: =VLOOKUP($A12,'RECAP DIRCOM'!$G$6:$EV$12,139,FALSE) -> 6 | G12: =VLOOKUP($A12,'RECAP DIRCOM'!$G$6:$EV$12,140,FALSE) -> 73% | H12: =VLOOKUP($A12,'RECAP DIRCOM'!$G$6:$EV$12,141,FALSE) -> 5% | I12: =VLOOKUP($A12,'RECAP DIRCOM'!$G$6:$EV$12,142,FALSE) -> 6 | J12: =VLOOKUP($A12,'RECAP DIRCOM'!$G$6:$EV$12,143,FALSE) -> 73% | K12: =VLOOKUP($A12,'RECAP DIRCOM'!$G$6:$EV$12,144,FALSE) -> 73% | L12: =VLOOKUP($A12,'RECAP DIRCOM'!$G$6:$EV$12,145,FALSE) -> 6
A13: 30 | B13: Marne-Ardennes | C13: =VLOOKUP($A13,'RECAP DIRCOM'!$G$6:$EV$12,3,FALSE) -> 237 | D13: =VLOOKUP($A13,'RECAP DIRCOM'!$G$6:$EV$12,137,FALSE) -> -7 | E13: =VLOOKUP($A13,'RECAP DIRCOM'!$G$6:$EV$12,138,FALSE) -> 0% | F13: =VLOOKUP($A13,'RECAP DIRCOM'!$G$6:$EV$12,139,FALSE) -> 1 | G13: =VLOOKUP($A13,'RECAP DIRCOM'!$G$6:$EV$12,140,FALSE) -> 77% | H13: =VLOOKUP($A13,'RECAP DIRCOM'!$G$6:$EV$12,141,FALSE) -> 0% | I13: =VLOOKUP($A13,'RECAP DIRCOM'!$G$6:$EV$12,142,FALSE) -> 1 | J13: =VLOOKUP($A13,'RECAP DIRCOM'!$G$6:$EV$12,143,FALSE) -> 0% | K13: =VLOOKUP($A13,'RECAP DIRCOM'!$G$6:$EV$12,144,FALSE) -> 0% | L13: =VLOOKUP($A13,'RECAP DIRCOM'!$G$6:$EV$12,145,FALSE) -> 1
A14: 110 | B14: Meurthe et Moselle Meuse | C14: =VLOOKUP($A14,'RECAP DIRCOM'!$G$6:$EV$12,3,FALSE) -> 261 | D14: =VLOOKUP($A14,'RECAP DIRCOM'!$G$6:$EV$12,137,FALSE) -> -12 | E14: =VLOOKUP($A14,'RECAP DIRCOM'!$G$6:$EV$12,138,FALSE) -> 47% | F14: =VLOOKUP($A14,'RECAP DIRCOM'!$G$6:$EV$12,139,FALSE) -> 3 | G14: =VLOOKUP($A14,'RECAP DIRCOM'!$G$6:$EV$12,140,FALSE) -> 75% | H14: =VLOOKUP($A14,'RECAP DIRCOM'!$G$6:$EV$12,141,FALSE) -> 2% | I14: =VLOOKUP($A14,'RECAP DIRCOM'!$G$6:$EV$12,142,FALSE) -> 3 | J14: =VLOOKUP($A14,'RECAP DIRCOM'!$G$6:$EV$12,143,FALSE) -> 25% | K14: =VLOOKUP($A14,'RECAP DIRCOM'!$G$6:$EV$12,144,FALSE) -> 25% | L14: =VLOOKUP($A14,'RECAP DIRCOM'!$G$6:$EV$12,145,FALSE) -> 4
A15: 160 | B15: Moselle | C15: =VLOOKUP($A15,'RECAP DIRCOM'!$G$6:$EV$12,3,FALSE) -> 298 | D15: =VLOOKUP($A15,'RECAP DIRCOM'!$G$6:$EV$12,137,FALSE) -> -12 | E15: =VLOOKUP($A15,'RECAP DIRCOM'!$G$6:$EV$12,138,FALSE) -> 47% | F15: =VLOOKUP($A15,'RECAP DIRCOM'!$G$6:$EV$12,139,FALSE) -> 3 | G15: =VLOOKUP($A15,'RECAP DIRCOM'!$G$6:$EV$12,140,FALSE) -> 76% | H15: =VLOOKUP($A15,'RECAP DIRCOM'!$G$6:$EV$12,141,FALSE) -> 2% | I15: =VLOOKUP($A15,'RECAP DIRCOM'!$G$6:$EV$12,142,FALSE) -> 2 | J15: =VLOOKUP($A15,'RECAP DIRCOM'!$G$6:$EV$12,143,FALSE) -> 24% | K15: =VLOOKUP($A15,'RECAP DIRCOM'!$G$6:$EV$12,144,FALSE) -> 24% | L15: =VLOOKUP($A15,'RECAP DIRCOM'!$G$6:$EV$12,145,FALSE) -> 3
A16: 80 | B16: Vosges | C16: =VLOOKUP($A16,'RECAP DIRCOM'!$G$6:$EV$12,3,FALSE) -> 145 | D16: =VLOOKUP($A16,'RECAP DIRCOM'!$G$6:$EV$12,137,FALSE) -> -13 | E16: =VLOOKUP($A16,'RECAP DIRCOM'!$G$6:$EV$12,138,FALSE) -> 56% | F16: =VLOOKUP($A16,'RECAP DIRCOM'!$G$6:$EV$12,139,FALSE) -> 5 | G16: =VLOOKUP($A16,'RECAP DIRCOM'!$G$6:$EV$12,140,FALSE) -> 75% | H16: =VLOOKUP($A16,'RECAP DIRCOM'!$G$6:$EV$12,141,FALSE) -> 2% | I16: =VLOOKUP($A16,'RECAP DIRCOM'!$G$6:$EV$12,142,FALSE) -> 4 | J16: =VLOOKUP($A16,'RECAP DIRCOM'!$G$6:$EV$12,143,FALSE) -> 29% | K16: =VLOOKUP($A16,'RECAP DIRCOM'!$G$6:$EV$12,144,FALSE) -> 29% | L16: =VLOOKUP($A16,'RECAP DIRCOM'!$G$6:$EV$12,145,FALSE) -> 5
A17: Total CEGEE Directions Régionales | C17: =SUM(C10:C16) -> 1557

Sheet SE_FICHE
A1: Accueil
A2: BAROMETRE BDD
A4: UNITE: | B4: TERRITOIRE | K4: ETP perf : | L4: =VLOOKUP(A5,'RECAP SECT'!$G$6:$I$23,3,FALSE) -> 74.72
A5: =VLOOKUP(B5,LISTES!$H$6:$I$23,2,FALSE) -> 5130 | B5: COLMAR
C6: Coefficient du critére | E6: Résultats | I6: Ecart au 1ier | M6: Rang
E7: du 1ier | G7: du secteur | I7: Du mois | K7: Au 31/12/2018
A9: RANG au CLASSEMENT GENERAL | M9: =VLOOKUP($A$5,'RECAP SECT'!$G$6:$FE$253,154,FALSE) -> 17 | Q9: =VLOOKUP($A$5,'RECAP SECT AN'!$G$6:$FE$312,154,FALSE) -> 33 | S9: =+Q9-M9 -> 16
A11: CRITERE CONQUETE | C11: 15% | M11: =VLOOKUP($A$5,'RECAP SECT'!$G$6:$FE$253,19,FALSE) -> 16
B12: Evolution nette Clients Bancarisés Principaux (BP +JBP) par ETP | C12: 4% | E12: ='RECAP SECT'!K4 -> 4.6 | G12: =VLOOKUP($A$5,'RECAP SECT'!$G$6:$FE$253,5,FALSE) -> -3.9 | I12: =VLOOKUP($A$5,'RECAP SECT'!$G$6:$FE$253,6,FALSE) -> 137% | M12: =VLOOKUP($A$5,'RECAP SECT'!$G$6:$FE$253,7,FALSE) -> 16 | Q12: =VLOOKUP($A$5,'RECAP SECT AN'!$G$6:$FE$312,6,FALSE) -> 105% | S12: =+Q12-I12 -> -33%
B13: Evolution nette relations Premium par ETP | C13: 4% | E13: ='RECAP SECT'!N4 -> 3.1 | G13: =VLOOKUP($A$5,'RECAP SECT'!$G$6:$FE$253,8,FALSE) -> 2.4 | I13: =VLOOKUP($A$5,'RECAP SECT'!$G$6:$FE$253,9,FALSE) -> 22% | M13: =VLOOKUP($A$5,'RECAP SECT'!$G$6:$FE$253,10,FALSE) -> 9 | Q13: =VLOOKUP($A$5,'RECAP SECT AN'!$G$6:$FE$312,9,FALSE) -> 73% | S13: =+Q13-I13 -> 51%
B14: Evolution nette Clients Bancarisés Principaux équipés par ETP | C14: 3% | E14: ='RECAP SECT'!Q4 -> 7.4 | G14: =VLOOKUP($A$5,'RECAP SECT'!$G$6:$FE$253,11,FALSE) -> -0.8 | I14: =VLOOKUP($A$5,'RECAP SECT'!$G$6:$FE$253,12,FALSE) -> 111% | M14: =VLOOKUP($A$5,'RECAP SECT'!$G$6:$FE$253,13,FALSE) -> 15 | Q14: =VLOOKUP($A$5,'RECAP SECT AN'!$G$6:$FE$312,12,FALSE) -> 46% | S14: =+Q14-I14 -> -65%
B15: Evolution nette Clients Pro actif équipés par rapport à l’objectif fixé | C15: 4% | E15: ='RECAP SECT'!T4 -> 123% | G15: =VLOOKUP($A$5,'RECAP SECT'!$G$6:$FE$253,14,FALSE) -> 16% | I15: =VLOOKUP($A$5,'RECAP SECT'!$G$6:$FE$253,15,FALSE) -> 87% | M15: =VLOOKUP($A$5,'RECAP SECT'!$G$6:$FE$253,16,FALSE) -> 12 | Q15: =VLOOKUP($A$5,'RECAP SECT AN'!$G$6:$FE$312,15,FALSE) -> 120% | S15: =+Q15-I15 -> 33%
A17: CRITERE EQUIPEMENT BANCARISATION | C17: 15% | M17: =VLOOKUP($A$5,'RECAP SECT'!$G$6:$FE$253,43,FALSE) -> 11
B18: Ventes nettes forfaits (+ 2 options) par ETP | C18: 3% | E18: ='RECAP SECT'!AF4 -> -14.3 | G18: =VLOOKUP($A$5,'RECAP SECT'!$G$6:$FE$253,26,FALSE) -> -14.3 | I18: =VLOOKUP($A$5,'RECAP SECT'!$G$6:$FE$253,27,FALSE) -> 0% | M18: =VLOOKUP($A$5,'RECAP SECT'!$G$6:$FE$253,28,FALSE) -> 1 | Q18: =VLOOKUP($A$5,'RECAP SECT AN'!$G$6:$FE$312,27,FALSE) -> 26% | S18: =+Q18-I18 -> 26%
B19: Ventes nettes IZICARTES par ETP | C19: 3% | E19: ='RECAP SECT'!AI4 -> 12.0 | G19: =VLOOKUP($A$5,'RECAP SECT'!$G$6:$FE$253,29,FALSE) -> 4.6 | I19: =VLOOKUP($A$5,'RECAP SECT'!$G$6:$FE$253,30,FALSE) -> 61% | M19: =VLOOKUP($A$5,'RECAP SECT'!$G$6:$FE$253,31,FALSE) -> 15 | Q19: =VLOOKUP($A$5,'RECAP SECT AN'!$G$6:$FE$312,30,FALSE) -> 63% | S19: =+Q19-I19 -> 2%
B20: Ventes nettes cartes HDG par ETP | C20: 3% | E20: ='RECAP SECT'!AL4 -> 22.1 | G20: =VLOOKUP($A$5,'RECAP SECT'!$G$6:$FE$253,32,FALSE) -> 15.3 | I20: =VLOOKUP($A$5,'RECAP SECT'!$G$6:$FE$253,33,FALSE) -> 31% | M20: =VLOOKUP($A$5,'RECAP SECT'!$G$6:$FE$253,34,FALSE) -> 11 | Q20: =VLOOKUP($A$5,'RECAP SECT AN'!$G$6:$FE$312,33,FALSE) -> 67% | S20: =+Q20-I20 -> 37%
B21: Vente nette CB débit différé par ETP | C21: 3% | E21: ='RECAP SECT'!AO4 -> 11.9 | G21: =VLOOKUP($A$5,'RECAP SECT'!$G$6:$FE$253,35,FALSE) -> 6.2 | I21: =VLOOKUP($A$5,'RECAP SECT'!$G$6:$FE$253,36,FALSE) -> 48% | M21: =VLOOKUP($A$5,'RECAP SECT'!$G$6:$FE$253,37,FALSE) -> 11 | Q21: =VLOOKUP($A$5,'RECAP SECT AN'!$G$6:$FE$312,36,FALSE) -> 78% | S21: =+Q21-I21 -> 31%
B22: Ventes nettes banca Pro Forfaits Pro, Carte pro par rapport à l’objectif | C22: 3% | E22: ='RECAP SECT'!AR4 -> 133% | G22: =VLOOKUP($A$5,'RECAP SECT'!$G$6:$FE$253,38,FALSE) -> 30% | I22: =VLOOKUP($A$5,'RECAP SECT'!$G$6:$FE$253,39,FALSE) -> 78% | M22: =VLOOKUP($A$5,'RECAP SECT'!$G$6:$FE$253,40,FALSE) -> 15 | Q22: =VLOOKUP($A$5,'RECAP SECT AN'!$G$6:$FE$312,39,FALSE) -> 75% | S22: =+Q22-I22 -> -3%
A24: CRITERE EPARGNE | C24: 15% | M24: =VLOOKUP($A$5,'RECAP SECT'!$G$6:$FE$253,67,FALSE) -> 14
B25: Excédents de collecte (y.c DAV) par ETP | C25: 2% | E25: ='RECAP SECT'!BD4 -> 312.0 | G25: =VLOOKUP($A$5,'RECAP SECT'!$G$6:$FE$253,50,FALSE) -> -17.8 | I25: =VLOOKUP($A$5,'RECAP SECT'!$G$6:$FE$253,51,FALSE) -> 106% | M25: =VLOOKUP($A$5,'RECAP SECT'!$G$6:$FE$253,52,FALSE) -> 17 | Q25: =VLOOKUP($A$5,'RECAP SECT AN'!$G$6:$FE$312,51,FALSE) -> 70% | S25: =+Q25-I25 -> -36%
B26: CA assurance vie par ETP | C26: 2% | E26: ='RECAP SECT'!BG4 -> 704.6 | G26: =VLOOKUP($A$5,'RECAP SECT'!$G$6:$FE$253,53,FALSE) -> 437.6 | I26: =VLOOKUP($A$5,'RECAP SECT'!$G$6:$FE$253,54,FALSE) -> 38% | M26: =VLOOKUP($A$5,'RECAP SECT'!$G$6:$FE$253,55,FALSE) -> 16 | Q26: =VLOOKUP($A$5,'RECAP SECT AN'!$G$6:$FE$312,54,FALSE) -> 45% | S26: =+Q26-I26 -> 7%
B27: Activité UC (CA+arbitrage) par ETP | C27: 2% | E27: ='RECAP SECT'!BJ4 -> 229.1 | G27: =VLOOKUP($A$5,'RECAP SECT'!$G$6:$FE$253,56,FALSE) -> 165.9 | I27: =VLOOKUP($A$5,'RECAP SECT'!$G$6:$FE$253,57,FALSE) -> 28% | M27: =VLOOKUP($A$5,'RECAP SECT'!$G$6:$FE$253,58,FALSE) -> 14 | Q27: =VLOOKUP($A$5,'RECAP SECT AN'!$G$6:$FE$312,57,FALSE) -> 57% | S27: =+Q27-I27 -> 29%
B28: Excédents Assurance-vie par ETP | C28: 2% | E28: ='RECAP SECT'!BM4 -> 264.5 | G28: =VLOOKUP($A$5,'RECAP SECT'!$G$6:$FE$253,59,FALSE) -> -20.4 | I28: =VLOOKUP($A$5,'RECAP SECT'!$G$6:$FE$253,60,FALSE) -> 108% | M28: =VLOOKUP($A$5,'RECAP SECT'!$G$6:$FE$253,61,FALSE) -> 18 | Q28: =VLOOKUP($A$5,'RECAP SECT AN'!$G$6:$FE$312,60,FALSE) -> 78% | S28: =+Q28-I28 -> -30%
B29: Excédents Epargne Bilan (Hors Emprunts CTO) par ETP | C29: 7% | E29: ='RECAP SECT'!BP4 -> 77.2 | G29: =VLOOKUP($A$5,'RECAP SECT'!$G$6:$FE$253,62,FALSE) -> 25.7 | I29: =VLOOKUP($A$5,'RECAP SECT'!$G$6:$FE$253,63,FALSE) -> 52% | M29: =VLOOKUP($A$5,'RECAP SECT'!$G$6:$FE$253,64,FALSE) -> 5 | Q29: =VLOOKUP($A$5,'RECAP SECT AN'!$G$6:$FE$312,63,FALSE) -> 62% | S29: =+Q29-I29 -> 10%
A31: CRITERE CREDITS | C31: 15% | M31: =VLOOKUP($A$5,'RECAP SECT'!$G$6:$FE$253,94,FALSE) -> 18
B32: Engagement Conso par ETP (hors clients 9) | C32: 3% | E32: ='RECAP SECT'!CB4 -> 561.0 | G32: =VLOOKUP($A$5,'RECAP SECT'!$G$6:$FE$253,74,FALSE) -> 390.6 | I32: =VLOOKUP($A$5,'RECAP SECT'!$G$6:$FE$253,75,FALSE) -> 30% | M32: =VLOOKUP($A$5,'RECAP SECT'!$G$6:$FE$253,76,FALSE) -> 17 | Q32: =VLOOKUP($A$5,'RECAP SECT AN'!$G$6:$FE$312,75,FALSE) -> 42% | S32: =+Q32-I32 -> 12%
B33: % CNP sur Conso en valeur absolue | C33: 2% | E33: ='RECAP SECT'!CE4 -> 97% | G33: =VLOOKUP($A$5,'RECAP SECT'!$G$6:$FE$253,77,FALSE) -> 90% | I33: =VLOOKUP($A$5,'RECAP SECT'!$G$6:$FE$253,78,FALSE) -> 7% | M33: =VLOOKUP($A$5,'RECAP SECT'!$G$6:$FE$253,79,FALSE) -> 17 | Q33: =VLOOKUP($A$5,'RECAP SECT AN'!$G$6:$FE$312,78,FALSE) -> 14% | S33: 8%
B34: Engagements Immo par rapport à l’objectif | C34: 3% | E34: ='RECAP SECT'!CH4 -> 169% | G34: =VLOOKUP($A$5,'RECAP SECT'!$G$6:$FE$253,80,FALSE) -> 111% | I34: =VLOOKUP($A$5,'RECAP SECT'!$G$6:$FE$253,81,FALSE) -> 34% | M34: =VLOOKUP($A$5,'RECAP SECT'!$G$6:$FE$253,82,FALSE) -> 15 | Q34: =VLOOKUP($A$5,'RECAP SECT AN'!$G$6:$FE$312,81,FALSE) -> 48% | S34: 14%
B35: % CNP sur crédits immo en valeur absolue | C35: 2% | E35: ='RECAP SECT'!CK4 -> 87% | G35: =VLOOKUP($A$5,'RECAP SECT'!$G$6:$FE$253,83,FALSE) -> 62% | I35: =VLOOKUP($A$5,'RECAP SECT'!$G$6:$FE$253,84,FALSE) -> 29% | M35: =VLOOKUP($A$5,'RECAP SECT'!$G$6:$FE$253,85,FALSE) -> 12 | Q35: =VLOOKUP($A$5,'RECAP SECT AN'!$G$6:$FE$312,84,FALSE) -> 28% | S35: -1%
B36: Taux de couverture SACCEF | C36: 2% | E36: ='RECAP SECT'!CN4 -> 94% | G36: =VLOOKUP($A$5,'RECAP SECT'!$G$6:$FE$253,86,FALSE) -> 79% | I36: =VLOOKUP($A$5,'RECAP SECT'!$G$6:$FE$253,87,FALSE) -> 16% | M36: =VLOOKUP($A$5,'RECAP SECT'!$G$6:$FE$253,88,FALSE) -> 17 | Q36: =VLOOKUP($A$5,'RECAP SECT AN'!$G$6:$FE$312,87,FALSE) -> 34% | S36: 18%
B37: Engagements CMLT + CB par rapport à l’objectif | C37: 3% | E37: ='RECAP SECT'!CQ4 -> 131% | G37: =VLOOKUP($A$5,'RECAP SECT'!$G$6:$FE$253,89,FALSE) -> 58% | I37: =VLOOKUP($A$5,'RECAP SECT'!$G$6:$FE$253,90,FALSE) -> 55% | M37: =VLOOKUP($A$5,'RECAP SECT'!$G$6:$FE$253,91,FALSE) -> 16 | Q37: =VLOOKUP($A$5,'RECAP SECT AN'!$G$6:$FE$312,90,FALSE) -> 61% | S37: 6%
A39: CRITERE IARD PREVOYANCE | C39: 20% | M39: =VLOOKUP($A$5,'RECAP SECT'!$G$6:$FE$253,112,FALSE) -> 16
B40: Ventes nettes IARD (Auto+MRH+ Pro) par ETP | C40: 7% | E40: ='RECAP SECT'!DC4 -> 13.8 | G40: =VLOOKUP($A$5,'RECAP SECT'!$G$6:$FE$253,101,FALSE) -> 5.3 | I40: =VLOOKUP($A$5,'RECAP SECT'!$G$6:$FE$253,102,FALSE) -> 61% | M40: =VLOOKUP($A$5,'RECAP SECT'!$G$6:$FE$253,103,FALSE) -> 17 | Q40: =VLOOKUP($A$5,'RECAP SECT AN'!$G$6:$FE$312,102,FALSE) -> 54% | S40: =+Q40-I40 -> -7%
B41: Ventes nettes Prévoyance (GAV, secur.f,prevoy loc,santé,assist.vie, obséques, Pro) par ETP | C41: 7% | E41: ='RECAP SECT'!DF4 -> 18.8 | G41: =VLOOKUP($A$5,'RECAP SECT'!$G$6:$FE$253,104,FALSE) -> 8.9 | I41: =VLOOKUP($A$5,'RECAP SECT'!$G$6:$FE$253,105,FALSE) -> 53% | M41: =VLOOKUP($A$5,'RECAP SECT'!$G$6:$FE$253,106,FALSE) -> 16 | Q41: =VLOOKUP($A$5,'RECAP SECT AN'!$G$6:$FE$312,105,FALSE) -> 56% | S41: =+Q41-I41 -> 3%
B42: Chiffre d’affaires IARD (Yc Pro) par ETP | C42: 6% | E42: ='RECAP SECT'!DI4 -> 14.6 | G42: =VLOOKUP($A$5,'RECAP SECT'!$G$6:$FE$253,107,FALSE) -> 11.1 | I42: =VLOOKUP($A$5,'RECAP SECT'!$G$6:$FE$253,108,FALSE) -> 24% | M42: =VLOOKUP($A$5,'RECAP SECT'!$G$6:$FE$253,109,FALSE) -> 15 | Q42: =VLOOKUP($A$5,'RECAP SECT AN'!$G$6:$FE$312,108,FALSE) -> 43% | S42: =+Q42-I42 -> 20%
A44: CRITERE RISQUES | C44: 10% | M44: =VLOOKUP($A$5,'RECAP SECT'!$G$6:$FE$253,130,FALSE) -> 9
B45: Complétude, conformité et fiabilisation des nouvelles EER sur flux BDD | C45: 3% | E45: ='RECAP SECT'!DU4 -> 99% | G45: =VLOOKUP($A$5,'RECAP SECT'!$G$6:$FE$253,119,FALSE) -> 97% | I45: =VLOOKUP($A$5,'RECAP SECT'!$G$6:$FE$253,120,FALSE) -> 1% | M45: =VLOOKUP($A$5,'RECAP SECT'!$G$6:$FE$253,121,FALSE) -> 12 | Q45: =VLOOKUP($A$5,'RECAP SECT AN'!$G$6:$FE$312,120,FALSE) -> 4% | S45: =+Q45-I45 -> 2%
B46: Complétude, conformité et fiabilisation des EER sur flux cumulé et stock | C46: 3% | E46: ='RECAP SECT'!DX4 -> 79% | G46: =VLOOKUP($A$5,'RECAP SECT'!$G$6:$FE$253,122,FALSE) -> 73% | I46: =VLOOKUP($A$5,'RECAP SECT'!$G$6:$FE$253,123,FALSE) -> 8% | M46: =VLOOKUP($A$5,'RECAP SECT'!$G$6:$FE$253,124,FALSE) -> 14 | Q46: =VLOOKUP($A$5,'RECAP SECT AN'!$G$6:$FE$312,123,FALSE) -> 16% | S46: =+Q46-I46 -> 8%
B47: Traitement et qualité du traitement des alertes Vigiclient | C47: 4% | E47: ='RECAP SECT'!EA4 -> 100% | G47: =VLOOKUP($A$5,'RECAP SECT'!$G$6:$FE$253,125,FALSE) -> 100% | I47: =VLOOKUP($A$5,'RECAP SECT'!$G$6:$FE$253,126,FALSE) -> 0% | M47: =VLOOKUP($A$5,'RECAP SECT'!$G$6:$FE$253,127,FALSE) -> 5 | Q47: =VLOOKUP($A$5,'RECAP SECT AN'!$G$6:$FE$312,126,FALSE) -> 0% | S47: =+Q47-I47 -> -0%
A49: CRITERE Satisfaction Clients | C49: 10% | M49: =VLOOKUP($A$5,'RECAP SECT'!$G$6:$FE$253,145,FALSE) -> 15
B50: Objectifs NPS* | C50: 5% | E50: ='RECAP SECT'!EM4 -> -2 | G50: =VLOOKUP($A$5,'RECAP SECT'!$G$6:$FE$253,137,FALSE) -> -21 | I50: =VLOOKUP($A$5,'RECAP SECT'!$G$6:$FE$253,138,FALSE) -> 110% | M50: =VLOOKUP($A$5,'RECAP SECT'!$G$6:$FE$253,139,FALSE) -> 15 | Q50: =VLOOKUP($A$5,'RECAP SECT AN'!$G$6:$FE$312,138,FALSE) -> 117% | S50: =+Q50-I50 -> 7%
B51: Enquête Qualité Haute Définition | C51: 5% | E51: ='RECAP SECT'!EP4 -> 79% | G51: =VLOOKUP($A$5,'RECAP SECT'!$G$6:$FE$253,140,FALSE) -> 74% | I51: =VLOOKUP($A$5,'RECAP SECT'!$G$6:$FE$253,141,FALSE) -> 7% | M51: =VLOOKUP($A$5,'RECAP SECT'!$G$6:$FE$253,142,FALSE) -> 14 | Q51: =VLOOKUP($A$5,'RECAP SECT AN'!$G$6:$FE$312,141,FALSE) -> 12% | S51: =+Q51-I51 -> 5%

Sheet SE_OBJECTIF
A1: Accueil | F1: BAROMETRE BDD - TERRITOIRES
F2: PV PART SUR OBJECTIFS
F3: =ACCUEIL!H7 -> 2019-11-30
F7: Excédent de collecte par ETP yc DAV | I7: Engagements crédit conso par ETP (hors clients note octroi à 9 et DRC complet) | L7: Ventes brutes IARD prevoyance Part et Pro (si DRC complet) par ETP | O7: Evolution des Bpe+JBPe par ETP | R7: PNB sur activité nouvelle (yc bonus digital) par ETP
G8: Taux d'atteinte saisonalisé | H8: =VLOOKUP(ACCUEIL!$H$7,Tableau1[],2,FALSE) -> 100% | J8: Taux d'atteinte saisonalisé | K8: =VLOOKUP(ACCUEIL!$H$7,Tableau1[],3,FALSE) -> 100% | M8: Taux d'atteinte saisonalisé | N8: =VLOOKUP(ACCUEIL!$H$7,Tableau1[],4,FALSE) -> 100% | P8: Taux d'atteinte saisonalisé | Q8: =VLOOKUP(ACCUEIL!$H$7,Tableau1[],5,FALSE) -> 100% | S8: Taux d'atteinte saisonalisé | T8: =VLOOKUP(ACCUEIL!$H$7,Tableau1[],6,FALSE) -> 100%
A9: eds | B9: Direction | C9: eds | D9: Territoire | E9: ETP perf | F9: Réal | G9: Obj | H9: % | I9: Réal | J9: Obj | K9: % | L9: Réal | M9: Obj | N9: % | O9: Réal | P9: Obj | Q9: % | R9: Réal | S9: Obj | T9: % | V9: <80% | W9: 100% | X9: 110% | Y9: 120%
A10: 50 | B10: AUBE HAUTE MARNE | C10: 21 | D10: CHAUMONT | E10: =VLOOKUP($C10,'RECAP SECT'!$G$6:$EV$253,3,FALSE) -> 45.0 | F10: =VLOOKUP($C10,'RECAP SECT'!$G$6:$FZ$26,158,FALSE) -> 82 | G10: =VLOOKUP($C10,'RECAP SECT'!$G$6:$FZ$26,159,FALSE) -> 107 | H10: =VLOOKUP($C10,'RECAP SECT'!$G$6:$FZ$26,160,FALSE) -> 75% | I10: =VLOOKUP($C10,'RECAP SECT'!$G$6:$FZ$26,161,FALSE) -> 561 | J10: =VLOOKUP($C10,'RECAP SECT'!$G$6:$FZ$26,162,FALSE) -> 467 | K10: =VLOOKUP($C10,'RECAP SECT'!$G$6:$FZ$26,163,FALSE) -> 120% | L10: =VLOOKUP($C10,'RECAP SECT'!$G$6:$FZ$26,164,FALSE) -> 58 | M10: =VLOOKUP($C10,'RECAP SECT'!$G$6:$FZ$26,165,FALSE) -> 59 | N10: =VLOOKUP($C10,'RECAP SECT'!$G$6:$FZ$26,166,FALSE) -> 98% | O10: =VLOOKUP($C10,'RECAP SECT'!$G$6:$FZ$26,167,FALSE) -> 7 | P10: =VLOOKUP($C10,'RECAP SECT'!$G$6:$FZ$26,168,FALSE) -> 4 | Q10: =VLOOKUP($C10,'RECAP SECT'!$G$6:$FZ$26,169,FALSE) -> 186% | R10: =VLOOKUP($C10,'RECAP SECT'!$G$6:$FZ$26,170,FALSE) -> 153 | S10: =VLOOKUP($C10,'RECAP SECT'!$G$6:$FZ$26,171,FALSE) -> 126 | T10: =VLOOKUP($C10,'RECAP SECT'!$G$6:$FZ$26,172,FALSE) -> 121% | V10: =$H$8*0.8 -> 80% | W10: =$H$8 -> 100% | X10: =$H$8*1.1 -> 110% | Y10: =$H$8*1.2 -> 120%
A11: 50 | B11: AUBE HAUTE MARNE | C11: 14 | D11: TROYES | E11: =VLOOKUP($C11,'RECAP SECT'!$G$6:$EV$253,3,FALSE) -> 76.8 | F11: =VLOOKUP($C11,'RECAP SECT'!$G$6:$FZ$26,158,FALSE) -> 105 | G11: =VLOOKUP($C11,'RECAP SECT'!$G$6:$FZ$26,159,FALSE) -> 122 | H11: =VLOOKUP($C11,'RECAP SECT'!$G$6:$FZ$26,160,FALSE) -> 86% | I11: =VLOOKUP($C11,'RECAP SECT'!$G$6:$FZ$26,161,FALSE) -> 525 | J11: =VLOOKUP($C11,'RECAP SECT'!$G$6:$FZ$26,162,FALSE) -> 467 | K11: =VLOOKUP($C11,'RECAP SECT'!$G$6:$FZ$26,163,FALSE) -> 112% | L11: =VLOOKUP($C11,'RECAP SECT'!$G$6:$FZ$26,164,FALSE) -> 42 | M11: =VLOOKUP($C11,'RECAP SECT'!$G$6:$FZ$26,165,FALSE) -> 59 | N11: =VLOOKUP($C11,'RECAP SECT'!$G$6:$FZ$26,166,FALSE) -> 70% | O11: =VLOOKUP($C11,'RECAP SECT'!$G$6:$FZ$26,167,FALSE) -> 3 | P11: =VLOOKUP($C11,'RECAP SECT'!$G$6:$FZ$26,168,FALSE) -> 4 | Q11: =VLOOKUP($C11,'RECAP SECT'!$G$6:$FZ$26,169,FALSE) -> 81% | R11: =VLOOKUP($C11,'RECAP SECT'!$G$6:$FZ$26,170,FALSE) -> 160 | S11: =VLOOKUP($C11,'RECAP SECT'!$G$6:$FZ$26,171,FALSE) -> 136 | T11: =VLOOKUP($C11,'RECAP SECT'!$G$6:$FZ$26,172,FALSE) -> 117% | V11: =$H$8*0.8 -> 80% | W11: =$H$8 -> 100% | X11: =$H$8*1.1 -> 110% | Y11: =$H$8*1.2 -> 120%
A12: 262 | B12: BAS-RHIN | C12: 5060 | D12: HAGUENAU | E12: =VLOOKUP($C12,'RECAP SECT'!$G$6:$EV$253,3,FALSE) -> 87.2 | F12: =VLOOKUP($C12,'RECAP SECT'!$G$6:$FZ$26,158,FALSE) -> 70 | G12: =VLOOKUP($C12,'RECAP SECT'!$G$6:$FZ$26,159,FALSE) -> 122 | H12: =VLOOKUP($C12,'RECAP SECT'!$G$6:$FZ$26,160,FALSE) -> 57% | I12: =VLOOKUP($C12,'RECAP SECT'!$G$6:$FZ$26,161,FALSE) -> 430 | J12: =VLOOKUP($C12,'RECAP SECT'!$G$6:$FZ$26,162,FALSE) -> 467 | K12: =VLOOKUP($C12,'RECAP SECT'!$G$6:$FZ$26,163,FALSE) -> 91% | L12: =VLOOKUP($C12,'RECAP SECT'!$G$6:$FZ$26,164,FALSE) -> 53 | M12: =VLOOKUP($C12,'RECAP SECT'!$G$6:$FZ$26,165,FALSE) -> 59 | N12: =VLOOKUP($C12,'RECAP SECT'!$G$6:$FZ$26,166,FALSE) -> 89% | O12: =VLOOKUP($C12,'RECAP SECT'!$G$6:$FZ$26,167,FALSE) -> 0 | P12: =VLOOKUP($C12,'RECAP SECT'!$G$6:$FZ$26,168,FALSE) -> 4 | Q12: =VLOOKUP($C12,'RECAP SECT'!$G$6:$FZ$26,169,FALSE) -> 0% | R12: =VLOOKUP($C12,'RECAP SECT'!$G$6:$FZ$26,170,FALSE) -> 139 | S12: =VLOOKUP($C12,'RECAP SECT'!$G$6:$FZ$26,171,FALSE) -> 133 | T12: =VLOOKUP($C12,'RECAP SECT'!$G$6:$FZ$26,172,FALSE) -> 104% | V12: 80% | W12: 100% | X12: 110% | Y12: 120%
A13: 262 | B13: BAS-RHIN | C13: 5101 | D13: SELESTAT | E13: =VLOOKUP($C13,'RECAP SECT'!$G$6:$EV$253,3,FALSE) -> 74.4 | F13: =VLOOKUP($C13,'RECAP SECT'!$G$6:$FZ$26,158,FALSE) -> 108 | G13: =VLOOKUP($C13,'RECAP SECT'!$G$6:$FZ$26,159,FALSE) -> 136 | H13: =VLOOKUP($C13,'RECAP SECT'!$G$6:$FZ$26,160,FALSE) -> 79% | I13: =VLOOKUP($C13,'RECAP SECT'!$G$6:$FZ$26,161,FALSE) -> 431 | J13: =VLOOKUP($C13,'RECAP SECT'!$G$6:$FZ$26,162,FALSE) -> 467 | K13: =VLOOKUP($C13,'RECAP SECT'!$G$6:$FZ$26,163,FALSE) -> 92% | L13: =VLOOKUP($C13,'RECAP SECT'!$G$6:$FZ$26,164,FALSE) -> 50 | M13: =VLOOKUP($C13,'RECAP SECT'!$G$6:$FZ$26,165,FALSE) -> 59 | N13: =VLOOKUP($C13,'RECAP SECT'!$G$6:$FZ$26,166,FALSE) -> 83% | O13: =VLOOKUP($C13,'RECAP SECT'!$G$6:$FZ$26,167,FALSE) -> -2 | P13: =VLOOKUP($C13,'RECAP SECT'!$G$6:$FZ$26,168,FALSE) -> 4 | Q13: =VLOOKUP($C13,'RECAP SECT'!$G$6:$FZ$26,169,FALSE) -> -48% | R13: =VLOOKUP($C13,'RECAP SECT'!$G$6:$FZ$26,170,FALSE) -> 149 | S13: =VLOOKUP($C13,'RECAP SECT'!$G$6:$FZ$26,171,FALSE) -> 139 | T13: =VLOOKUP($C13,'RECAP SECT'!$G$6:$FZ$26,172,FALSE) -> 107% | V13: 80% | W13: 100% | X13: 110% | Y13: 120%
A14: 262 | B14: BAS-RHIN | C14: 5006 | D14: STRASBOURG | E14: =VLOOKUP($C14,'RECAP SECT'!$G$6:$EV$253,3,FALSE) -> 91.1 | F14: =VLOOKUP($C14,'RECAP SECT'!$G$6:$FZ$26,158,FALSE) -> 94 | G14: =VLOOKUP($C14,'RECAP SECT'!$G$6:$FZ$26,159,FALSE) -> 127 | H14: =VLOOKUP($C14,'RECAP SECT'!$G$6:$FZ$26,160,FALSE) -> 74% | I14: =VLOOKUP($C14,'RECAP SECT'!$G$6:$FZ$26,161,FALSE) -> 377 | J14: =VLOOKUP($C14,'RECAP SECT'!$G$6:$FZ$26,162,FALSE) -> 467 | K14: =VLOOKUP($C14,'RECAP SECT'!$G$6:$FZ$26,163,FALSE) -> 80% | L14: =VLOOKUP($C14,'RECAP SECT'!$G$6:$FZ$26,164,FALSE) -> 42 | M14: =VLOOKUP($C14,'RECAP SECT'!$G$6:$FZ$26,165,FALSE) -> 59 | N14: =VLOOKUP($C14,'RECAP SECT'!$G$6:$FZ$26,166,FALSE) -> 71% | O14: =VLOOKUP($C14,'RECAP SECT'!$G$6:$FZ$26,167,FALSE) -> -2 | P14: =VLOOKUP($C14,'RECAP SECT'!$G$6:$FZ$26,168,FALSE) -> 4 | Q14: =VLOOKUP($C14,'RECAP SECT'!$G$6:$FZ$26,169,FALSE) -> -42% | R14: =VLOOKUP($C14,'RECAP SECT'!$G$6:$FZ$26,170,FALSE) -> 145 | S14: =VLOOKUP($C14,'RECAP SECT'!$G$6:$FZ$26,171,FALSE) -> 136 | T14: =VLOOKUP($C14,'RECAP SECT'!$G$6:$FZ$26,172,FALSE) -> 106% | V14: 80% | W14: 100% | X14: 110% | Y14: 120%
A15: 264 | B15: HAUT-RHIN | C15: 5130 | D15: COLMAR | E15: =VLOOKUP($C15,'RECAP SECT'!$G$6:$EV$253,3,FALSE) -> 74.7 | F15: =VLOOKUP($C15,'RECAP SECT'!$G$6:$FZ$26,158,FALSE) -> -18 | G15: =VLOOKUP($C15,'RECAP SECT'!$G$6:$FZ$26,159,FALSE) -> 135 | H15: =VLOOKUP($C15,'RECAP SECT'!$G$6:$FZ$26,160,FALSE) -> -14% | I15: =VLOOKUP($C15,'RECAP SECT'!$G$6:$FZ$26,161,FALSE) -> 391 | J15: =VLOOKUP($C15,'RECAP SECT'!$G$6:$FZ$26,162,FALSE) -> 467 | K15: =VLOOKUP($C15,'RECAP SECT'!$G$6:$FZ$26,163,FALSE) -> 83% | L15: =VLOOKUP($C15,'RECAP SECT'!$G$6:$FZ$26,164,FALSE) -> 44 | M15: =VLOOKUP($C15,'RECAP SECT'!$G$6:$FZ$26,165,FALSE) -> 59 | N15: =VLOOKUP($C15,'RECAP SECT'!$G$6:$FZ$26,166,FALSE) -> 75% | O15: =VLOOKUP($C15,'RECAP SECT'!$G$6:$FZ$26,167,FALSE) -> -1 | P15: =VLOOKUP($C15,'RECAP SECT'!$G$6:$FZ$26,168,FALSE) -> 4 | Q15: =VLOOKUP($C15,'RECAP SECT'!$G$6:$FZ$26,169,FALSE) -> -21% | R15: =VLOOKUP($C15,'RECAP SECT'!$G$6:$FZ$26,170,FALSE) -> 139 | S15: =VLOOKUP($C15,'RECAP SECT'!$G$6:$FZ$26,171,FALSE) -> 140 | T15: =VLOOKUP($C15,'RECAP SECT'!$G$6:$FZ$26,172,FALSE) -> 99% | V15: 80% | W15: 100% | X15: 110% | Y15: 120%
A16: 264 | B16: HAUT-RHIN | C16: 5169 | D16: MULHOUSE | E16: =VLOOKUP($C16,'RECAP SECT'!$G$6:$EV$253,3,FALSE) -> 73.6 | F16: =VLOOKUP($C16,'RECAP SECT'!$G$6:$FZ$26,158,FALSE) -> 80 | G16: =VLOOKUP($C16,'RECAP SECT'!$G$6:$FZ$26,159,FALSE) -> 129 | H16: =VLOOKUP($C16,'RECAP SECT'!$G$6:$FZ$26,160,FALSE) -> 62% | I16: =VLOOKUP($C16,'RECAP SECT'!$G$6:$FZ$26,161,FALSE) -> 459 | J16: =VLOOKUP($C16,'RECAP SECT'!$G$6:$FZ$26,162,FALSE) -> 467 | K16: =VLOOKUP($C16,'RECAP SECT'!$G$6:$FZ$26,163,FALSE) -> 98% | L16: =VLOOKUP($C16,'RECAP SECT'!$G$6:$FZ$26,164,FALSE) -> 43 | M16: =VLOOKUP($C16,'RECAP SECT'!$G$6:$FZ$26,165,FALSE) -> 59 | N16: =VLOOKUP($C16,'RECAP SECT'!$G$6:$FZ$26,166,FALSE) -> 72% | O16: =VLOOKUP($C16,'RECAP SECT'!$G$6:$FZ$26,167,FALSE) -> -3 | P16: =VLOOKUP($C16,'RECAP SECT'!$G$6:$FZ$26,168,FALSE) -> 4 | Q16: =VLOOKUP($C16,'RECAP SECT'!$G$6:$FZ$26,169,FALSE) -> -80% | R16: =VLOOKUP($C16,'RECAP SECT'!$G$6:$FZ$26,170,FALSE) -> 165 | S16: =VLOOKUP($C16,'RECAP SECT'!$G$6:$FZ$26,171,FALSE) -> 140 | T16: =VLOOKUP($C16,'RECAP SECT'!$G$6:$FZ$26,172,FALSE) -> 118% | V16: 80% | W16: 100% | X16: 110% | Y16: 120%
A17: 30 | B17: MARNE-ARDENNES | C17: 6 | D17: CHALONS EN CHAMPAGNE | E17: =VLOOKUP($C17,'RECAP SECT'!$G$6:$EV$253,3,FALSE) -> 48.5 | F17: =VLOOKUP($C17,'RECAP SECT'!$G$6:$FZ$26,158,FALSE) -> -33 | G17: =VLOOKUP($C17,'RECAP SECT'!$G$6:$FZ$26,159,FALSE) -> 130 | H17: =VLOOKUP($C17,'RECAP SECT'!$G$6:$FZ$26,160,FALSE) -> -26% | I17: =VLOOKUP($C17,'RECAP SECT'!$G$6:$FZ$26,161,FALSE) -> 507 | J17: =VLOOKUP($C17,'RECAP SECT'!$G$6:$FZ$26,162,FALSE) -> 467 | K17: =VLOOKUP($C17,'RECAP SECT'!$G$6:$FZ$26,163,FALSE) -> 108% | L17: =VLOOKUP($C17,'RECAP SECT'!$G$6:$FZ$26,164,FALSE) -> 54 | M17: =VLOOKUP($C17,'RECAP SECT'!$G$6:$FZ$26,165,FALSE) -> 59 | N17: =VLOOKUP($C17,'RECAP SECT'!$G$6:$FZ$26,166,FALSE) -> 90% | O17: =VLOOKUP($C17,'RECAP SECT'!$G$6:$FZ$26,167,FALSE) -> 4 | P17: =VLOOKUP($C17,'RECAP SECT'!$G$6:$FZ$26,168,FALSE) -> 4 | Q17: =VLOOKUP($C17,'RECAP SECT'!$G$6:$FZ$26,169,FALSE) -> 107% | R17: =VLOOKUP($C17,'RECAP SECT'!$G$6:$FZ$26,170,FALSE) -> 178 | S17: =VLOOKUP($C17,'RECAP SECT'!$G$6:$FZ$26,171,FALSE) -> 137 | T17: =VLOOKUP($C17,'RECAP SECT'!$G$6:$FZ$26,172,FALSE) -> 129% | V17: 80% | W17: 100% | X17: 110% | Y17: 120%
A18: 30 | B18: MARNE-ARDENNES | C18: 2 | D18: CHARLEVILLE MEZIERES | E18: =VLOOKUP($C18,'RECAP SECT'!$G$6:$EV$253,3,FALSE) -> 61.7 | F18: =VLOOKUP($C18,'RECAP SECT'!$G$6:$FZ$26,158,FALSE) -> 22 | G18: =VLOOKUP($C18,'RECAP SECT'!$G$6:$FZ$26,159,FALSE) -> 122 | H18: =VLOOKUP($C18,'RECAP SECT'!$G$6:$FZ$26,160,FALSE) -> 18% | I18: =VLOOKUP($C18,'RECAP SECT'!$G$6:$FZ$26,161,FALSE) -> 485 | J18: =VLOOKUP($C18,'RECAP SECT'!$G$6:$FZ$26,162,FALSE) -> 467 | K18: =VLOOKUP($C18,'RECAP SECT'!$G$6:$FZ$26,163,FALSE) -> 103% | L18: =VLOOKUP($C18,'RECAP SECT'!$G$6:$FZ$26,164,FALSE) -> 58 | M18: =VLOOKUP($C18,'RECAP SECT'!$G$6:$FZ$26,165,FALSE) -> 59 | N18: =VLOOKUP($C18,'RECAP SECT'!$G$6:$FZ$26,166,FALSE) -> 98% | O18: =VLOOKUP($C18,'RECAP SECT'!$G$6:$FZ$26,167,FALSE) -> 6 | P18: =VLOOKUP($C18,'RECAP SECT'!$G$6:$FZ$26,168,FALSE) -> 4 | Q18: =VLOOKUP($C18,'RECAP SECT'!$G$6:$FZ$26,169,FALSE) -> 147% | R18: =VLOOKUP($C18,'RECAP SECT'!$G$6:$FZ$26,170,FALSE) -> 183 | S18: =VLOOKUP($C18,'RECAP SECT'!$G$6:$FZ$26,171,FALSE) -> 132 | T18: =VLOOKUP($C18,'RECAP SECT'!$G$6:$FZ$26,172,FALSE) -> 139% | V18: 80% | W18: 100% | X18: 110% | Y18: 120%
A19: 30 | B19: MARNE-ARDENNES | C19: 11 | D19: REIMS | E19: =VLOOKUP($C19,'RECAP SECT'!$G$6:$EV$253,3,FALSE) -> 89.2 | F19: =VLOOKUP($C19,'RECAP SECT'!$G$6:$FZ$26,158,FALSE) -> 124 | G19: =VLOOKUP($C19,'RECAP SECT'!$G$6:$FZ$26,159,FALSE) -> 143 | H19: =VLOOKUP($C19,'RECAP SECT'!$G$6:$FZ$26,160,FALSE) -> 86% | I19: =VLOOKUP($C19,'RECAP SECT'!$G$6:$FZ$26,161,FALSE) -> 559 | J19: =VLOOKUP($C19,'RECAP SECT'!$G$6:$FZ$26,162,FALSE) -> 467 | K19: =VLOOKUP($C19,'RECAP SECT'!$G$6:$FZ$26,163,FALSE) -> 119% | L19: =VLOOKUP($C19,'RECAP SECT'!$G$6:$FZ$26,164,FALSE) -> 54 | M19: =VLOOKUP($C19,'RECAP SECT'!$G$6:$FZ$26,165,FALSE) -> 59 | N19: =VLOOKUP($C19,'RECAP SECT'!$G$6:$FZ$26,166,FALSE) -> 91% | O19: =VLOOKUP($C19,'RECAP SECT'!$G$6:$FZ$26,167,FALSE) -> 4 | P19: =VLOOKUP($C19,'RECAP SECT'!$G$6:$FZ$26,168,FALSE) -> 4 | Q19: =VLOOKUP($C19,'RECAP SECT'!$G$6:$FZ$26,169,FALSE) -> 104% | R19: =VLOOKUP($C19,'RECAP SECT'!$G$6:$FZ$26,170,FALSE) -> 215 | S19: =VLOOKUP($C19,'RECAP SECT'!$G$6:$FZ$26,171,FALSE) -> 148 | T19: =VLOOKUP($C19,'RECAP SECT'!$G$6:$FZ$26,172,FALSE) -> 145% | V19: 80% | W19: 100% | X19: 110% | Y19: 120%
A20: 110 | B20: MEURTHE ET MOSELLE MEUSE | C20: 26 | D20: NANCY | E20: =VLOOKUP($C20,'RECAP SECT'!$G$6:$EV$253,3,FALSE) -> 77.3 | F20: =VLOOKUP($C20,'RECAP SECT'!$G$6:$FZ$26,158,FALSE) -> 65 | G20: =VLOOKUP($C20,'RECAP SECT'!$G$6:$FZ$26,159,FALSE) -> 118 | H20: =VLOOKUP($C20,'RECAP SECT'!$G$6:$FZ$26,160,FALSE) -> 54% | I20: =VLOOKUP($C20,'RECAP SECT'!$G$6:$FZ$26,161,FALSE) -> 465 | J20: =VLOOKUP($C20,'RECAP SECT'!$G$6:$FZ$26,162,FALSE) -> 467 | K20: =VLOOKUP($C20,'RECAP SECT'!$G$6:$FZ$26,163,FALSE) -> 99% | L20: =VLOOKUP($C20,'RECAP SECT'!$G$6:$FZ$26,164,FALSE) -> 53 | M20: =VLOOKUP($C20,'RECAP SECT'!$G$6:$FZ$26,165,FALSE) -> 59 | N20: =VLOOKUP($C20,'RECAP SECT'!$G$6:$FZ$26,166,FALSE) -> 90% | O20: =VLOOKUP($C20,'RECAP SECT'!$G$6:$FZ$26,167,FALSE) -> 3 | P20: =VLOOKUP($C20,'RECAP SECT'!$G$6:$FZ$26,168,FALSE) -> 4 | Q20: =VLOOKUP($C20,'RECAP SECT'!$G$6:$FZ$26,169,FALSE) -> 76% | R20: =VLOOKUP($C20,'RECAP SECT'!$G$6:$FZ$26,170,FALSE) -> 163 | S20: =VLOOKUP($C20,'RECAP SECT'!$G$6:$FZ$26,171,FALSE) -> 131 | T20: =VLOOKUP($C20,'RECAP SECT'!$G$6:$FZ$26,172,FALSE) -> 124% | V20: 80% | W20: 100% | X20: 110% | Y20: 120%
A21: 110 | B21: MEURTHE ET MOSELLE MEUSE | C21: 27 | D21: PONT A MOUSSON | E21: =VLOOKUP($C21,'RECAP SECT'!$G$6:$EV$253,3,FALSE) -> 86.9 | F21: =VLOOKUP($C21,'RECAP SECT'!$G$6:$FZ$26,158,FALSE) -> 103 | G21: =VLOOKUP($C21,'RECAP SECT'!$G$6:$FZ$26,159,FALSE) -> 118 | H21: =VLOOKUP($C21,'RECAP SECT'!$G$6:$FZ$26,160,FALSE) -> 86% | I21: =VLOOKUP($C21,'RECAP SECT'!$G$6:$FZ$26,161,FALSE) -> 470 | J21: =VLOOKUP($C21,'RECAP SECT'!$G$6:$FZ$26,162,FALSE) -> 467 | K21: =VLOOKUP($C21,'RECAP SECT'!$G$6:$FZ$26,163,FALSE) -> 100% | L21: =VLOOKUP($C21,'RECAP SECT'!$G$6:$FZ$26,164,FALSE) -> 55 | M21: =VLOOKUP($C21,'RECAP SECT'!$G$6:$FZ$26,165,FALSE) -> 59 | N21: =VLOOKUP($C21,'RECAP SECT'!$G$6:$FZ$26,166,FALSE) -> 92% | O21: =VLOOKUP($C21,'RECAP SECT'!$G$6:$FZ$26,167,FALSE) -> 3 | P21: =VLOOKUP($C21,'RECAP SECT'!$G$6:$FZ$26,168,FALSE) -> 4 | Q21: =VLOOKUP($C21,'RECAP SECT'!$G$6:$FZ$26,169,FALSE) -> 69% | R21: =VLOOKUP($C21,'RECAP SECT'!$G$6:$FZ$26,170,FALSE) -> 181 | S21: =VLOOKUP($C21,'RECAP SECT'!$G$6:$FZ$26,171,FALSE) -> 132 | T21: =VLOOKUP($C21,'RECAP SECT'!$G$6:$FZ$26,172,FALSE) -> 136% | V21: 80% | W21: 100% | X21: 110% | Y21: 120%
A22: 110 | B22: MEURTHE ET MOSELLE MEUSE | C22: 31 | D22: VERDUN | E22: =VLOOKUP($C22,'RECAP SECT'!$G$6:$EV$253,3,FALSE) -> 62.6 | F22: =VLOOKUP($C22,'RECAP SECT'!$G$6:$FZ$26,158,FALSE) -> 132 | G22: =VLOOKUP($C22,'RECAP SECT'!$G$6:$FZ$26,159,FALSE) -> 116 | H22: =VLOOKUP($C22,'RECAP SECT'!$G$6:$FZ$26,160,FALSE) -> 114% | I22: =VLOOKUP($C22,'RECAP SECT'!$G$6:$FZ$26,161,FALSE) -> 538 | J22: =VLOOKUP($C22,'RECAP SECT'!$G$6:$FZ$26,162,FALSE) -> 467 | K22: =VLOOKUP($C22,'RECAP SECT'!$G$6:$FZ$26,163,FALSE) -> 115% | L22: =VLOOKUP($C22,'RECAP SECT'!$G$6:$FZ$26,164,FALSE) -> 48 | M22: =VLOOKUP($C22,'RECAP SECT'!$G$6:$FZ$26,165,FALSE) -> 59 | N22: =VLOOKUP($C22,'RECAP SECT'!$G$6:$FZ$26,166,FALSE) -> 81% | O22: =VLOOKUP($C22,'RECAP SECT'!$G$6:$FZ$26,167,FALSE) -> 2 | P22: =VLOOKUP($C22,'RECAP SECT'!$G$6:$FZ$26,168,FALSE) -> 4 | Q22: =VLOOKUP($C22,'RECAP SECT'!$G$6:$FZ$26,169,FALSE) -> 44% | R22: =VLOOKUP($C22,'RECAP SECT'!$G$6:$FZ$26,170,FALSE) -> 152 | S22: =VLOOKUP($C22,'RECAP SECT'!$G$6:$FZ$26,171,FALSE) -> 130 | T22: =VLOOKUP($C22,'RECAP SECT'!$G$6:$FZ$26,172,FALSE) -> 116% | V22: 80% | W22: 100% | X22: 110% | Y22: 120%
A23: 160 | B23: MOSELLE | C23: 45 | D23: METZ | E23: =VLOOKUP($C23,'RECAP SECT'!$G$6:$EV$253,3,FALSE) -> 99.7 | F23: =VLOOKUP($C23,'RECAP SECT'!$G$6:$FZ$26,158,FALSE) -> 312 | G23: =VLOOKUP($C23,'RECAP SECT'!$G$6:$FZ$26,159,FALSE) -> 125 | H23: =VLOOKUP($C23,'RECAP SECT'!$G$6:$FZ$26,160,FALSE) -> 250% | I23: =VLOOKUP($C23,'RECAP SECT'!$G$6:$FZ$26,161,FALSE) -> 495 | J23: =VLOOKUP($C23,'RECAP SECT'!$G$6:$FZ$26,162,FALSE) -> 467 | K23: =VLOOKUP($C23,'RECAP SECT'!$G$6:$FZ$26,163,FALSE) -> 106% | L23: =VLOOKUP($C23,'RECAP SECT'!$G$6:$FZ$26,164,FALSE) -> 45 | M23: =VLOOKUP($C23,'RECAP SECT'!$G$6:$FZ$26,165,FALSE) -> 59 | N23: =VLOOKUP($C23,'RECAP SECT'!$G$6:$FZ$26,166,FALSE) -> 76% | O23: =VLOOKUP($C23,'RECAP SECT'!$G$6:$FZ$26,167,FALSE) -> 4 | P23: =VLOOKUP($C23,'RECAP SECT'!$G$6:$FZ$26,168,FALSE) -> 4 | Q23: =VLOOKUP($C23,'RECAP SECT'!$G$6:$FZ$26,169,FALSE) -> 111% | R23: =VLOOKUP($C23,'RECAP SECT'!$G$6:$FZ$26,170,FALSE) -> 169 | S23: =VLOOKUP($C23,'RECAP SECT'!$G$6:$FZ$26,171,FALSE) -> 136 | T23: =VLOOKUP($C23,'RECAP SECT'!$G$6:$FZ$26,172,FALSE) -> 123% | V23: 80% | W23: 100% | X23: 110% | Y23: 120%
A24: 160 | B24: MOSELLE | C24: 42 | D24: MOSELLE EST | E24: =VLOOKUP($C24,'RECAP SECT'!$G$6:$EV$253,3,FALSE) -> 83.0 | F24: =VLOOKUP($C24,'RECAP SECT'!$G$6:$FZ$26,158,FALSE) -> 48 | G24: =VLOOKUP($C24,'RECAP SECT'!$G$6:$FZ$26,159,FALSE) -> 106 | H24: =VLOOKUP($C24,'RECAP SECT'!$G$6:$FZ$26,160,FALSE) -> 44% | I24: =VLOOKUP($C24,'RECAP SECT'!$G$6:$FZ$26,161,FALSE) -> 478 | J24: =VLOOKUP($C24,'RECAP SECT'!$G$6:$FZ$26,162,FALSE) -> 467 | K24: =VLOOKUP($C24,'RECAP SECT'!$G$6:$FZ$26,163,FALSE) -> 102% | L24: =VLOOKUP($C24,'RECAP SECT'!$G$6:$FZ$26,164,FALSE) -> 49 | M24: =VLOOKUP($C24,'RECAP SECT'!$G$6:$FZ$26,165,FALSE) -> 59 | N24: =VLOOKUP($C24,'RECAP SECT'!$G$6:$FZ$26,166,FALSE) -> 83% | O24: =VLOOKUP($C24,'RECAP SECT'!$G$6:$FZ$26,167,FALSE) -> 6 | P24: =VLOOKUP($C24,'RECAP SECT'!$G$6:$FZ$26,168,FALSE) -> 4 | Q24: =VLOOKUP($C24,'RECAP SECT'!$G$6:$FZ$26,169,FALSE) -> 149% | R24: =VLOOKUP($C24,'RECAP SECT'!$G$6:$FZ$26,170,FALSE) -> 148 | S24: =VLOOKUP($C24,'RECAP SECT'!$G$6:$FZ$26,171,FALSE) -> 131 | T24: =VLOOKUP($C24,'RECAP SECT'!$G$6:$FZ$26,172,FALSE) -> 113% | V24: 80% | W24: 100% | X24: 110% | Y24: 120%
A25: 160 | B25: MOSELLE | C25: 44 | D25: MOSELLE NORD | E25: =VLOOKUP($C25,'RECAP SECT'!$G$6:$EV$253,3,FALSE) -> 77.6 | F25: =VLOOKUP($C25,'RECAP SECT'!$G$6:$FZ$26,158,FALSE) -> 75 | G25: =VLOOKUP($C25,'RECAP SECT'!$G$6:$FZ$26,159,FALSE) -> 119 | H25: =VLOOKUP($C25,'RECAP SECT'!$G$6:$FZ$26,160,FALSE) -> 63% | I25: =VLOOKUP($C25,'RECAP SECT'!$G$6:$FZ$26,161,FALSE) -> 538 | J25: =VLOOKUP($C25,'RECAP SECT'!$G$6:$FZ$26,162,FALSE) -> 467 | K25: =VLOOKUP($C25,'RECAP SECT'!$G$6:$FZ$26,163,FALSE) -> 115% | L25: =VLOOKUP($C25,'RECAP SECT'!$G$6:$FZ$26,164,FALSE) -> 51 | M25: =VLOOKUP($C25,'RECAP SECT'!$G$6:$FZ$26,165,FALSE) -> 59 | N25: =VLOOKUP($C25,'RECAP SECT'!$G$6:$FZ$26,166,FALSE) -> 87% | O25: =VLOOKUP($C25,'RECAP SECT'!$G$6:$FZ$26,167,FALSE) -> 4 | P25: =VLOOKUP($C25,'RECAP SECT'!$G$6:$FZ$26,168,FALSE) -> 4 | Q25: =VLOOKUP($C25,'RECAP SECT'!$G$6:$FZ$26,169,FALSE) -> 97% | R25: =VLOOKUP($C25,'RECAP SECT'!$G$6:$FZ$26,170,FALSE) -> 192 | S25: =VLOOKUP($C25,'RECAP SECT'!$G$6:$FZ$26,171,FALSE) -> 134 | T25: =VLOOKUP($C25,'RECAP SECT'!$G$6:$FZ$26,172,FALSE) -> 143% | V25: 80% | W25: 100% | X25: 110% | Y25: 120%
A26: 80 | B26: VOSGES | C26: 57 | D26: EPINAL | E26: =VLOOKUP($C26,'RECAP SECT'!$G$6:$EV$253,3,FALSE) -> 66.5 | F26: =VLOOKUP($C26,'RECAP SECT'!$G$6:$FZ$26,158,FALSE) -> 111 | G26: =VLOOKUP($C26,'RECAP SECT'!$G$6:$FZ$26,159,FALSE) -> 108 | H26: =VLOOKUP($C26,'RECAP SECT'!$G$6:$FZ$26,160,FALSE) -> 102% | I26: =VLOOKUP($C26,'RECAP SECT'!$G$6:$FZ$26,161,FALSE) -> 424 | J26: =VLOOKUP($C26,'RECAP SECT'!$G$6:$FZ$26,162,FALSE) -> 467 | K26: =VLOOKUP($C26,'RECAP SECT'!$G$6:$FZ$26,163,FALSE) -> 90% | L26: =VLOOKUP($C26,'RECAP SECT'!$G$6:$FZ$26,164,FALSE) -> 50 | M26: =VLOOKUP($C26,'RECAP SECT'!$G$6:$FZ$26,165,FALSE) -> 59 | N26: =VLOOKUP($C26,'RECAP SECT'!$G$6:$FZ$26,166,FALSE) -> 84% | O26: =VLOOKUP($C26,'RECAP SECT'!$G$6:$FZ$26,167,FALSE) -> 2 | P26: =VLOOKUP($C26,'RECAP SECT'!$G$6:$FZ$26,168,FALSE) -> 4 | Q26: =VLOOKUP($C26,'RECAP SECT'!$G$6:$FZ$26,169,FALSE) -> 47% | R26: =VLOOKUP($C26,'RECAP SECT'!$G$6:$FZ$26,170,FALSE) -> 139 | S26: =VLOOKUP($C26,'RECAP SECT'!$G$6:$FZ$26,171,FALSE) -> 126 | T26: =VLOOKUP($C26,'RECAP SECT'!$G$6:$FZ$26,172,FALSE) -> 109% | V26: 80% | W26: 100% | X26: 110% | Y26: 120%
A27: 80 | B27: VOSGES | C27: 55 | D27: SAINT DIE | E27: =VLOOKUP($C27,'RECAP SECT'!$G$6:$EV$253,3,FALSE) -> 55.8 | F27: =VLOOKUP($C27,'RECAP SECT'!$G$6:$FZ$26,158,FALSE) -> 135 | G27: =VLOOKUP($C27,'RECAP SECT'!$G$6:$FZ$26,159,FALSE) -> 113 | H27: =VLOOKUP($C27,'RECAP SECT'!$G$6:$FZ$26,160,FALSE) -> 119% | I27: =VLOOKUP($C27,'RECAP SECT'!$G$6:$FZ$26,161,FALSE) -> 495 | J27: =VLOOKUP($C27,'RECAP SECT'!$G$6:$FZ$26,162,FALSE) -> 467 | K27: =VLOOKUP($C27,'RECAP SECT'!$G$6:$FZ$26,163,FALSE) -> 105% | L27: =VLOOKUP($C27,'RECAP SECT'!$G$6:$FZ$26,164,FALSE) -> 50 | M27: =VLOOKUP($C27,'RECAP SECT'!$G$6:$FZ$26,165,FALSE) -> 59 | N27: =VLOOKUP($C27,'RECAP SECT'!$G$6:$FZ$26,166,FALSE) -> 84% | O27: =VLOOKUP($C27,'RECAP SECT'!$G$6:$FZ$26,167,FALSE) -> 1 | P27: =VLOOKUP($C27,'RECAP SECT'!$G$6:$FZ$26,168,FALSE) -> 4 | Q27: =VLOOKUP($C27,'RECAP SECT'!$G$6:$FZ$26,169,FALSE) -> 37% | R27: =VLOOKUP($C27,'RECAP SECT'!$G$6:$FZ$26,170,FALSE) -> 157 | S27: =VLOOKUP($C27,'RECAP SECT'!$G$6:$FZ$26,171,FALSE) -> 127 | T27: =VLOOKUP($C27,'RECAP SECT'!$G$6:$FZ$26,172,FALSE) -> 123% | V27: 80% | W27: 100% | X27: 110% | Y27: 120%
A28: Total CEGEE | C28: Directions Régionales | E28: =SUM(E10:E27) -> 1332 | G28: ='RECAP SECT'!GG24 -> 11 | H28: ='RECAP SECT'!GH24 -> 3 | J28: ='RECAP SECT'!GL24 -> 0 | K28: ='RECAP SECT'!GM24 -> 7 | M28: ='RECAP SECT'!GQ24 -> 5 | N28: ='RECAP SECT'!GR24 -> 13 | P28: ='RECAP SECT'!GV24 -> 10 | Q28: ='RECAP SECT'!GW24 -> 2 | S28: ='RECAP SECT'!HA24 -> 0 | T28: ='RECAP SECT'!HB24 -> 1
G29: ='RECAP SECT'!GI24 -> 1 | H29: ='RECAP SECT'!GJ24 -> 3 | J29: ='RECAP SECT'!GN24 -> 10 | K29: ='RECAP SECT'!GO24 -> 0 | M29: ='RECAP SECT'!GS24 -> 0 | N29: ='RECAP SECT'!GT24 -> 0 | P29: ='RECAP SECT'!GX24 -> 3 | Q29: ='RECAP SECT'!GY24 -> 3 | S29: ='RECAP SECT'!HC24 -> 8 | T29: ='RECAP SECT'!HD24 -> 9
D32: Taux d'atteinte objectif annuel > 110 % ou 120 % en saisonnalisé en fonction des critères (collecte 110 %, autres 120 %)
D34: Taux d'atteinte objectif annuel entre 100 % et 110 % ou 120 % en saisonnalisé en fonction des critères (collecte 110 %, autres 120 %)
D36: Taux d'atteinte objectif annuel entre 80 % et 100 % en saisonnalisé
D38: Taux d'atteinte objectif annuel < 80 % en saisonnalisé

Sheet SE_TOTAL
A1: Accueil | F1: BAROMETRE BDD - TERRITOIRES
F2: TOTAL GENERAL
F3: =ACCUEIL!H7 -> 2019-11-30
F7: TOTAL GENERAL | I7: Total Conquête | L7: Total Equipement Bancarisation | O7: Total Epargne | R7: Total Crédits | U7: Total IARD Prévoyance | X7: Total Risques | AA7: Total Satisfaction Clients
G8: coef | H8: 100% | J8: coef | K8: ='RECAP DIRCOM'!$Y$4 -> 15% | M8: coef | N8: ='RECAP DIRCOM'!$AW$4 -> 15% | P8: coef | Q8: ='RECAP DIRCOM'!$BU$4 -> 15% | S8: coef | T8: ='RECAP DIRCOM'!$CV$4 -> 15% | V8: coef | W8: ='RECAP DIRCOM'!$DN$4 -> 20% | Y8: coef | Z8: ='RECAP DIRCOM'!$EF$4 -> 10% | AB8: coef | AC8: ='RECAP DIRCOM'!$EU$4 -> 10%
A9: eds | B9: Direction | C9: eds | D9: Territoire | E9: ETP perf | F9: Moyenne ecart au 1er | G9: % Ecart au 1er | H9: Rang CEGEE | I9: Moyenne ecart au 1er | J9: % Ecart au 1er | K9: Rang CEGEE | L9: Moyenne ecart au 1er | M9: % Ecart au 1er | N9: Rang CEGEE | O9: Moyenne ecart au 1er | P9: % Ecart au 1er | Q9: Rang CEGEE | R9: Moyenne ecart au 1er | S9: % Ecart au 1er | T9: Rang CEGEE | U9: Moyenne ecart au 1er | V9: % Ecart au 1er | W9: Rang CEGEE | X9: Moyenne ecart au 1er | Y9: % Ecart au 1er | Z9: Rang CEGEE | AA9: Moyenne ecart au 1er | AB9: % Ecart au 1er | AC9: Rang CEGEE
A10: 30 | B10: MARNE-ARDENNES | C10: 2 | D10: CHARLEVILLE MEZIERES | E10: =VLOOKUP($C10,'RECAP SECT'!$G$6:$EV$253,3,FALSE) -> 61.7 | F10: =VLOOKUP($C10,'RECAP SECT'!$G$6:$FF$253,152,FALSE) -> 13% | G10: =VLOOKUP($C10,'RECAP SECT'!$G$6:$FF$253,153,FALSE) -> 0% | H10: =VLOOKUP($C10,'RECAP SECT'!$G$6:$FF$253,154,FALSE) -> 1 | I10: =VLOOKUP($C10,'RECAP SECT'!$G$6:$FF$253,17,FALSE) -> 15% | J10: =VLOOKUP($C10,'RECAP SECT'!$G$6:$FF$253,18,FALSE) -> 0% | K10: =VLOOKUP($C10,'RECAP SECT'!$G$6:$FF$253,19,FALSE) -> 1 | L10: =VLOOKUP($C10,'RECAP SECT'!$G$6:$FF$253,41,FALSE) -> 26% | M10: =VLOOKUP($C10,'RECAP SECT'!$G$6:$FF$253,42,FALSE) -> 4% | N10: =VLOOKUP($C10,'RECAP SECT'!$G$6:$FF$253,43,FALSE) -> 2 | O10: =VLOOKUP($C10,'RECAP SECT'!$G$6:$FF$253,65,FALSE) -> 64% | P10: =VLOOKUP($C10,'RECAP SECT'!$G$6:$FF$253,66,FALSE) -> 64% | Q10: =VLOOKUP($C10,'RECAP SECT'!$G$6:$FF$253,67,FALSE) -> 15 | R10: =VLOOKUP($C10,'RECAP SECT'!$G$6:$FF$253,92,FALSE) -> 9% | S10: =VLOOKUP($C10,'RECAP SECT'!$G$6:$FF$253,93,FALSE) -> 0% | T10: =VLOOKUP($C10,'RECAP SECT'!$G$6:$FF$253,94,FALSE) -> 2 | U10: =VLOOKUP($C10,'RECAP SECT'!$G$6:$FF$253,110,FALSE) -> 9% | V10: =VLOOKUP($C10,'RECAP SECT'!$G$6:$FF$253,111,FALSE) -> 0% | W10: =VLOOKUP($C10,'RECAP SECT'!$G$6:$FF$253,112,FALSE) -> 1 | X10: =VLOOKUP($C10,'RECAP SECT'!$G$6:$FF$253,128,FALSE) -> 2% | Y10: =VLOOKUP($C10,'RECAP SECT'!$G$6:$FF$253,129,FALSE) -> 1% | Z10: =VLOOKUP($C10,'RECAP SECT'!$G$6:$FF$253,130,FALSE) -> 5 | AA10: =VLOOKUP($C10,'RECAP SECT'!$G$6:$FF$253,143,FALSE) -> 25% | AB10: =VLOOKUP($C10,'RECAP SECT'!$G$6:$FF$253,144,FALSE) -> 24% | AC10: =VLOOKUP($C10,'RECAP SECT'!$G$6:$FF$253,145,FALSE) -> 7
A11: 30 | B11: MARNE-ARDENNES | C11: 11 | D11: REIMS | E11: =VLOOKUP($C11,'RECAP SECT'!$G$6:$EV$253,3,FALSE) -> 89.2 | F11: =VLOOKUP($C11,'RECAP SECT'!$G$6:$FF$253,152,FALSE) -> 14% | G11: =VLOOKUP($C11,'RECAP SECT'!$G$6:$FF$253,153,FALSE) -> 2% | H11: =VLOOKUP($C11,'RECAP SECT'!$G$6:$FF$253,154,FALSE) -> 2 | I11: =VLOOKUP($C11,'RECAP SECT'!$G$6:$FF$253,17,FALSE) -> 45% | J11: =VLOOKUP($C11,'RECAP SECT'!$G$6:$FF$253,18,FALSE) -> 30% | K11: =VLOOKUP($C11,'RECAP SECT'!$G$6:$FF$253,19,FALSE) -> 3 | L11: =VLOOKUP($C11,'RECAP SECT'!$G$6:$FF$253,41,FALSE) -> 22% | M11: =VLOOKUP($C11,'RECAP SECT'!$G$6:$FF$253,42,FALSE) -> 0% | N11: =VLOOKUP($C11,'RECAP SECT'!$G$6:$FF$253,43,FALSE) -> 1 | O11: =VLOOKUP($C11,'RECAP SECT'!$G$6:$FF$253,65,FALSE) -> 51% | P11: =VLOOKUP($C11,'RECAP SECT'!$G$6:$FF$253,66,FALSE) -> 51% | Q11: =VLOOKUP($C11,'RECAP SECT'!$G$6:$FF$253,67,FALSE) -> 6 | R11: =VLOOKUP($C11,'RECAP SECT'!$G$6:$FF$253,92,FALSE) -> 9% | S11: =VLOOKUP($C11,'RECAP SECT'!$G$6:$FF$253,93,FALSE) -> 0% | T11: =VLOOKUP($C11,'RECAP SECT'!$G$6:$FF$253,94,FALSE) -> 1 | U11: =VLOOKUP($C11,'RECAP SECT'!$G$6:$FF$253,110,FALSE) -> 17% | V11: =VLOOKUP($C11,'RECAP SECT'!$G$6:$FF$253,111,FALSE) -> 8% | W11: =VLOOKUP($C11,'RECAP SECT'!$G$6:$FF$253,112,FALSE) -> 4 | X11: =VLOOKUP($C11,'RECAP SECT'!$G$6:$FF$253,128,FALSE) -> 4% | Y11: =VLOOKUP($C11,'RECAP SECT'!$G$6:$FF$253,129,FALSE) -> 3% | Z11: =VLOOKUP($C11,'RECAP SECT'!$G$6:$FF$253,130,FALSE) -> 12 | AA11: =VLOOKUP($C11,'RECAP SECT'!$G$6:$FF$253,143,FALSE) -> 6% | AB11: =VLOOKUP($C11,'RECAP SECT'!$G$6:$FF$253,144,FALSE) -> 4% | AC11: =VLOOKUP($C11,'RECAP SECT'!$G$6:$FF$253,145,FALSE) -> 2
A12: 50 | B12: AUBE HAUTE MARNE | C12: 21 | D12: CHAUMONT | E12: =VLOOKUP($C12,'RECAP SECT'!$G$6:$EV$253,3,FALSE) -> 45.0 | F12: =VLOOKUP($C12,'RECAP SECT'!$G$6:$FF$253,152,FALSE) -> 15% | G12: =VLOOKUP($C12,'RECAP SECT'!$G$6:$FF$253,153,FALSE) -> 3% | H12: =VLOOKUP($C12,'RECAP SECT'!$G$6:$FF$253,154,FALSE) -> 3 | I12: =VLOOKUP($C12,'RECAP SECT'!$G$6:$FF$253,17,FALSE) -> 39% | J12: =VLOOKUP($C12,'RECAP SECT'!$G$6:$FF$253,18,FALSE) -> 24% | K12: =VLOOKUP($C12,'RECAP SECT'!$G$6:$FF$253,19,FALSE) -> 2 | L12: =VLOOKUP($C12,'RECAP SECT'!$G$6:$FF$253,41,FALSE) -> 36% | M12: =VLOOKUP($C12,'RECAP SECT'!$G$6:$FF$253,42,FALSE) -> 13% | N12: =VLOOKUP($C12,'RECAP SECT'!$G$6:$FF$253,43,FALSE) -> 5 | O12: =VLOOKUP($C12,'RECAP SECT'!$G$6:$FF$253,65,FALSE) -> 58% | P12: =VLOOKUP($C12,'RECAP SECT'!$G$6:$FF$253,66,FALSE) -> 57% | Q12: =VLOOKUP($C12,'RECAP SECT'!$G$6:$FF$253,67,FALSE) -> 12 | R12: =VLOOKUP($C12,'RECAP SECT'!$G$6:$FF$253,92,FALSE) -> 16% | S12: =VLOOKUP($C12,'RECAP SECT'!$G$6:$FF$253,93,FALSE) -> 7% | T12: =VLOOKUP($C12,'RECAP SECT'!$G$6:$FF$253,94,FALSE) -> 7 | U12: =VLOOKUP($C12,'RECAP SECT'!$G$6:$FF$253,110,FALSE) -> 10% | V12: =VLOOKUP($C12,'RECAP SECT'!$G$6:$FF$253,111,FALSE) -> 0% | W12: =VLOOKUP($C12,'RECAP SECT'!$G$6:$FF$253,112,FALSE) -> 2 | X12: =VLOOKUP($C12,'RECAP SECT'!$G$6:$FF$253,128,FALSE) -> 1% | Y12: =VLOOKUP($C12,'RECAP SECT'!$G$6:$FF$253,129,FALSE) -> 0% | Z12: =VLOOKUP($C12,'RECAP SECT'!$G$6:$FF$253,130,FALSE) -> 1 | AA12: =VLOOKUP($C12,'RECAP SECT'!$G$6:$FF$253,143,FALSE) -> 2% | AB12: =VLOOKUP($C12,'RECAP SECT'!$G$6:$FF$253,144,FALSE) -> 0% | AC12: =VLOOKUP($C12,'RECAP SECT'!$G$6:$FF$253,145,FALSE) -> 1
A13: 160 | B13: MOSELLE | C13: 45 | D13: METZ | E13: =VLOOKUP($C13,'RECAP SECT'!$G$6:$EV$253,3,FALSE) -> 99.7 | F13: =VLOOKUP($C13,'RECAP SECT'!$G$6:$FF$253,152,FALSE) -> 18% | G13: =VLOOKUP($C13,'RECAP SECT'!$G$6:$FF$253,153,FALSE) -> 6% | H13: =VLOOKUP($C13,'RECAP SECT'!$G$6:$FF$253,154,FALSE) -> 4 | I13: =VLOOKUP($C13,'RECAP SECT'!$G$6:$FF$253,17,FALSE) -> 46% | J13: =VLOOKUP($C13,'RECAP SECT'!$G$6:$FF$253,18,FALSE) -> 31% | K13: =VLOOKUP($C13,'RECAP SECT'!$G$6:$FF$253,19,FALSE) -> 4 | L13: =VLOOKUP($C13,'RECAP SECT'!$G$6:$FF$253,41,FALSE) -> 46% | M13: =VLOOKUP($C13,'RECAP SECT'!$G$6:$FF$253,42,FALSE) -> 24% | N13: =VLOOKUP($C13,'RECAP SECT'!$G$6:$FF$253,43,FALSE) -> 15 | O13: =VLOOKUP($C13,'RECAP SECT'!$G$6:$FF$253,65,FALSE) -> 1% | P13: =VLOOKUP($C13,'RECAP SECT'!$G$6:$FF$253,66,FALSE) -> 0% | Q13: =VLOOKUP($C13,'RECAP SECT'!$G$6:$FF$253,67,FALSE) -> 1 | R13: =VLOOKUP($C13,'RECAP SECT'!$G$6:$FF$253,92,FALSE) -> 20% | S13: =VLOOKUP($C13,'RECAP SECT'!$G$6:$FF$253,93,FALSE) -> 12% | T13: =VLOOKUP($C13,'RECAP SECT'!$G$6:$FF$253,94,FALSE) -> 12 | U13: =VLOOKUP($C13,'RECAP SECT'!$G$6:$FF$253,110,FALSE) -> 37% | V13: =VLOOKUP($C13,'RECAP SECT'!$G$6:$FF$253,111,FALSE) -> 28% | W13: =VLOOKUP($C13,'RECAP SECT'!$G$6:$FF$253,112,FALSE) -> 13 | X13: =VLOOKUP($C13,'RECAP SECT'!$G$6:$FF$253,128,FALSE) -> 2% | Y13: =VLOOKUP($C13,'RECAP SECT'!$G$6:$FF$253,129,FALSE) -> 2% | Z13: =VLOOKUP($C13,'RECAP SECT'!$G$6:$FF$253,130,FALSE) -> 7 | AA13: =VLOOKUP($C13,'RECAP SECT'!$G$6:$FF$253,143,FALSE) -> 27% | AB13: =VLOOKUP($C13,'RECAP SECT'!$G$6:$FF$253,144,FALSE) -> 25% | AC13: =VLOOKUP($C13,'RECAP SECT'!$G$6:$FF$253,145,FALSE) -> 9
A14: 30 | B14: MARNE-ARDENNES | C14: 6 | D14: CHALONS EN CHAMPAGNE | E14: =VLOOKUP($C14,'RECAP SECT'!$G$6:$EV$253,3,FALSE) -> 48.5 | F14: =VLOOKUP($C14,'RECAP SECT'!$G$6:$FF$253,152,FALSE) -> 19% | G14: =VLOOKUP($C14,'RECAP SECT'!$G$6:$FF$253,153,FALSE) -> 6% | H14: =VLOOKUP($C14,'RECAP SECT'!$G$6:$FF$253,154,FALSE) -> 5 | I14: =VLOOKUP($C14,'RECAP SECT'!$G$6:$FF$253,17,FALSE) -> 55% | J14: =VLOOKUP($C14,'RECAP SECT'!$G$6:$FF$253,18,FALSE) -> 39% | K14: =VLOOKUP($C14,'RECAP SECT'!$G$6:$FF$253,19,FALSE) -> 9 | L14: =VLOOKUP($C14,'RECAP SECT'!$G$6:$FF$253,41,FALSE) -> 39% | M14: =VLOOKUP($C14,'RECAP SECT'!$G$6:$FF$253,42,FALSE) -> 16% | N14: =VLOOKUP($C14,'RECAP SECT'!$G$6:$FF$253,43,FALSE) -> 7 | O14: =VLOOKUP($C14,'RECAP SECT'!$G$6:$FF$253,65,FALSE) -> 35% | P14: =VLOOKUP($C14,'RECAP SECT'!$G$6:$FF$253,66,FALSE) -> 34% | Q14: =VLOOKUP($C14,'RECAP SECT'!$G$6:$FF$253,67,FALSE) -> 2 | R14: =VLOOKUP($C14,'RECAP SECT'!$G$6:$FF$253,92,FALSE) -> 14% | S14: =VLOOKUP($C14,'RECAP SECT'!$G$6:$FF$253,93,FALSE) -> 5% | T14: =VLOOKUP($C14,'RECAP SECT'!$G$6:$FF$253,94,FALSE) -> 3 | U14: =VLOOKUP($C14,'RECAP SECT'!$G$6:$FF$253,110,FALSE) -> 22% | V14: =VLOOKUP($C14,'RECAP SECT'!$G$6:$FF$253,111,FALSE) -> 13% | W14: =VLOOKUP($C14,'RECAP SECT'!$G$6:$FF$253,112,FALSE) -> 7 | X14: =VLOOKUP($C14,'RECAP SECT'!$G$6:$FF$253,128,FALSE) -> 3% | Y14: =VLOOKUP($C14,'RECAP SECT'!$G$6:$FF$253,129,FALSE) -> 2% | Z14: =VLOOKUP($C14,'RECAP SECT'!$G$6:$FF$253,130,FALSE) -> 8 | AA14: =VLOOKUP($C14,'RECAP SECT'!$G$6:$FF$253,143,FALSE) -> 20% | AB14: =VLOOKUP($C14,'RECAP SECT'!$G$6:$FF$253,144,FALSE) -> 18% | AC14: =VLOOKUP($C14,'RECAP SECT'!$G$6:$FF$253,145,FALSE) -> 5
A15: 110 | B15: MEURTHE ET MOSELLE MEUSE | C15: 26 | D15: NANCY | E15: =VLOOKUP($C15,'RECAP SECT'!$G$6:$EV$253,3,FALSE) -> 77.3 | F15: =VLOOKUP($C15,'RECAP SECT'!$G$6:$FF$253,152,FALSE) -> 24% | G15: =VLOOKUP($C15,'RECAP SECT'!$G$6:$FF$253,153,FALSE) -> 11% | H15: =VLOOKUP($C15,'RECAP SECT'!$G$6:$FF$253,154,FALSE) -> 6 | I15: =VLOOKUP($C15,'RECAP SECT'!$G$6:$FF$253,17,FALSE) -> 48% | J15: =VLOOKUP($C15,'RECAP SECT'!$G$6:$FF$253,18,FALSE) -> 33% | K15: =VLOOKUP($C15,'RECAP SECT'!$G$6:$FF$253,19,FALSE) -> 5 | L15: =VLOOKUP($C15,'RECAP SECT'!$G$6:$FF$253,41,FALSE) -> 44% | M15: =VLOOKUP($C15,'RECAP SECT'!$G$6:$FF$253,42,FALSE) -> 21% | N15: =VLOOKUP($C15,'RECAP SECT'!$G$6:$FF$253,43,FALSE) -> 12 | O15: =VLOOKUP($C15,'RECAP SECT'!$G$6:$FF$253,65,FALSE) -> 53% | P15: =VLOOKUP($C15,'RECAP SECT'!$G$6:$FF$253,66,FALSE) -> 53% | Q15: =VLOOKUP($C15,'RECAP SECT'!$G$6:$FF$253,67,FALSE) -> 8 | R15: =VLOOKUP($C15,'RECAP SECT'!$G$6:$FF$253,92,FALSE) -> 15% | S15: =VLOOKUP($C15,'RECAP SECT'!$G$6:$FF$253,93,FALSE) -> 6% | T15: =VLOOKUP($C15,'RECAP SECT'!$G$6:$FF$253,94,FALSE) -> 5 | U15: =VLOOKUP($C15,'RECAP SECT'!$G$6:$FF$253,110,FALSE) -> 19% | V15: =VLOOKUP($C15,'RECAP SECT'!$G$6:$FF$253,111,FALSE) -> 10% | W15: =VLOOKUP($C15,'RECAP SECT'!$G$6:$FF$253,112,FALSE) -> 5 | X15: =VLOOKUP($C15,'RECAP SECT'!$G$6:$FF$253,128,FALSE) -> 6% | Y15: =VLOOKUP($C15,'RECAP SECT'!$G$6:$FF$253,129,FALSE) -> 6% | Z15: =VLOOKUP($C15,'RECAP SECT'!$G$6:$FF$253,130,FALSE) -> 17 | AA15: =VLOOKUP($C15,'RECAP SECT'!$G$6:$FF$253,143,FALSE) -> 42% | AB15: =VLOOKUP($C15,'RECAP SECT'!$G$6:$FF$253,144,FALSE) -> 40% | AC15: =VLOOKUP($C15,'RECAP SECT'!$G$6:$FF$253,145,FALSE) -> 12
A16: 110 | B16: MEURTHE ET MOSELLE MEUSE | C16: 27 | D16: PONT A MOUSSON | E16: =VLOOKUP($C16,'RECAP SECT'!$G$6:$EV$253,3,FALSE) -> 86.9 | F16: =VLOOKUP($C16,'RECAP SECT'!$G$6:$FF$253,152,FALSE) -> 24% | G16: =VLOOKUP($C16,'RECAP SECT'!$G$6:$FF$253,153,FALSE) -> 11% | H16: =VLOOKUP($C16,'RECAP SECT'!$G$6:$FF$253,154,FALSE) -> 7 | I16: =VLOOKUP($C16,'RECAP SECT'!$G$6:$FF$253,17,FALSE) -> 51% | J16: =VLOOKUP($C16,'RECAP SECT'!$G$6:$FF$253,18,FALSE) -> 36% | K16: =VLOOKUP($C16,'RECAP SECT'!$G$6:$FF$253,19,FALSE) -> 6 | L16: =VLOOKUP($C16,'RECAP SECT'!$G$6:$FF$253,41,FALSE) -> 46% | M16: =VLOOKUP($C16,'RECAP SECT'!$G$6:$FF$253,42,FALSE) -> 24% | N16: =VLOOKUP($C16,'RECAP SECT'!$G$6:$FF$253,43,FALSE) -> 14 | O16: =VLOOKUP($C16,'RECAP SECT'!$G$6:$FF$253,65,FALSE) -> 67% | P16: =VLOOKUP($C16,'RECAP SECT'!$G$6:$FF$253,66,FALSE) -> 67% | Q16: =VLOOKUP($C16,'RECAP SECT'!$G$6:$FF$253,67,FALSE) -> 16 | R16: =VLOOKUP($C16,'RECAP SECT'!$G$6:$FF$253,92,FALSE) -> 17% | S16: =VLOOKUP($C16,'RECAP SECT'!$G$6:$FF$253,93,FALSE) -> 8% | T16: =VLOOKUP($C16,'RECAP SECT'!$G$6:$FF$253,94,FALSE) -> 8 | U16: =VLOOKUP($C16,'RECAP SECT'!$G$6:$FF$253,110,FALSE) -> 10% | V16: =VLOOKUP($C16,'RECAP SECT'!$G$6:$FF$253,111,FALSE) -> 1% | W16: =VLOOKUP($C16,'RECAP SECT'!$G$6:$FF$253,112,FALSE) -> 3 | X16: =VLOOKUP($C16,'RECAP SECT'!$G$6:$FF$253,128,FALSE) -> 5% | Y16: =VLOOKUP($C16,'RECAP SECT'!$G$6:$FF$253,129,FALSE) -> 5% | Z16: =VLOOKUP($C16,'RECAP SECT'!$G$6:$FF$253,130,FALSE) -> 14 | AA16: =VLOOKUP($C16,'RECAP SECT'!$G$6:$FF$253,143,FALSE) -> 32% | AB16: =VLOOKUP($C16,'RECAP SECT'!$G$6:$FF$253,144,FALSE) -> 31% | AC16: =VLOOKUP($C16,'RECAP SECT'!$G$6:$FF$253,145,FALSE) -> 10
A17: 80 | B17: VOSGES | C17: 55 | D17: SAINT DIE | E17: =VLOOKUP($C17,'RECAP SECT'!$G$6:$EV$253,3,FALSE) -> 55.8 | F17: =VLOOKUP($C17,'RECAP SECT'!$G$6:$FF$253,152,FALSE) -> 25% | G17: =VLOOKUP($C17,'RECAP SECT'!$G$6:$FF$253,153,FALSE) -> 12% | H17: =VLOOKUP($C17,'RECAP SECT'!$G$6:$FF$253,154,FALSE) -> 8 | I17: =VLOOKUP($C17,'RECAP SECT'!$G$6:$FF$253,17,FALSE) -> 54% | J17: =VLOOKUP($C17,'RECAP SECT'!$G$6:$FF$253,18,FALSE) -> 39% | K17: =VLOOKUP($C17,'RECAP SECT'!$G$6:$FF$253,19,FALSE) -> 8 | L17: =VLOOKUP($C17,'RECAP SECT'!$G$6:$FF$253,41,FALSE) -> 33% | M17: =VLOOKUP($C17,'RECAP SECT'!$G$6:$FF$253,42,FALSE) -> 11% | N17: =VLOOKUP($C17,'RECAP SECT'!$G$6:$FF$253,43,FALSE) -> 3 | O17: =VLOOKUP($C17,'RECAP SECT'!$G$6:$FF$253,65,FALSE) -> 68% | P17: =VLOOKUP($C17,'RECAP SECT'!$G$6:$FF$253,66,FALSE) -> 67% | Q17: =VLOOKUP($C17,'RECAP SECT'!$G$6:$FF$253,67,FALSE) -> 17 | R17: =VLOOKUP($C17,'RECAP SECT'!$G$6:$FF$253,92,FALSE) -> 15% | S17: =VLOOKUP($C17,'RECAP SECT'!$G$6:$FF$253,93,FALSE) -> 6% | T17: =VLOOKUP($C17,'RECAP SECT'!$G$6:$FF$253,94,FALSE) -> 4 | U17: =VLOOKUP($C17,'RECAP SECT'!$G$6:$FF$253,110,FALSE) -> 30% | V17: =VLOOKUP($C17,'RECAP SECT'!$G$6:$FF$253,111,FALSE) -> 20% | W17: =VLOOKUP($C17,'RECAP SECT'!$G$6:$FF$253,112,FALSE) -> 9 | X17: =VLOOKUP($C17,'RECAP SECT'!$G$6:$FF$253,128,FALSE) -> 1% | Y17: =VLOOKUP($C17,'RECAP SECT'!$G$6:$FF$253,129,FALSE) -> 0% | Z17: =VLOOKUP($C17,'RECAP SECT'!$G$6:$FF$253,130,FALSE) -> 4 | AA17: =VLOOKUP($C17,'RECAP SECT'!$G$6:$FF$253,143,FALSE) -> 25% | AB17: =VLOOKUP($C17,'RECAP SECT'!$G$6:$FF$253,144,FALSE) -> 24% | AC17: =VLOOKUP($C17,'RECAP SECT'!$G$6:$FF$253,145,FALSE) -> 6
A18: 160 | B18: MOSELLE | C18: 42 | D18: MOSELLE EST | E18: =VLOOKUP($C18,'RECAP SECT'!$G$6:$EV$253,3,FALSE) -> 83.0 | F18: =VLOOKUP($C18,'RECAP SECT'!$G$6:$FF$253,152,FALSE) -> 26% | G18: =VLOOKUP($C18,'RECAP SECT'!$G$6:$FF$253,153,FALSE) -> 13% | H18: =VLOOKUP($C18,'RECAP SECT'!$G$6:$FF$253,154,FALSE) -> 9 | I18: =VLOOKUP($C18,'RECAP SECT'!$G$6:$FF$253,17,FALSE) -> 52% | J18: =VLOOKUP($C18,'RECAP SECT'!$G$6:$FF$253,18,FALSE) -> 37% | K18: =VLOOKUP($C18,'RECAP SECT'!$G$6:$FF$253,19,FALSE) -> 7 | L18: =VLOOKUP($C18,'RECAP SECT'!$G$6:$FF$253,41,FALSE) -> 41% | M18: =VLOOKUP($C18,'RECAP SECT'!$G$6:$FF$253,42,FALSE) -> 19% | N18: =VLOOKUP($C18,'RECAP SECT'!$G$6:$FF$253,43,FALSE) -> 8 | O18: =VLOOKUP($C18,'RECAP SECT'!$G$6:$FF$253,65,FALSE) -> 56% | P18: =VLOOKUP($C18,'RECAP SECT'!$G$6:$FF$253,66,FALSE) -> 55% | Q18: =VLOOKUP($C18,'RECAP SECT'!$G$6:$FF$253,67,FALSE) -> 10 | R18: =VLOOKUP($C18,'RECAP SECT'!$G$6:$FF$253,92,FALSE) -> 23% | S18: =VLOOKUP($C18,'RECAP SECT'!$G$6:$FF$253,93,FALSE) -> 14% | T18: =VLOOKUP($C18,'RECAP SECT'!$G$6:$FF$253,94,FALSE) -> 16 | U18: =VLOOKUP($C18,'RECAP SECT'!$G$6:$FF$253,110,FALSE) -> 37% | V18: =VLOOKUP($C18,'RECAP SECT'!$G$6:$FF$253,111,FALSE) -> 28% | W18: =VLOOKUP($C18,'RECAP SECT'!$G$6:$FF$253,112,FALSE) -> 12 | X18: =VLOOKUP($C18,'RECAP SECT'!$G$6:$FF$253,128,FALSE) -> 1% | Y18: =VLOOKUP($C18,'RECAP SECT'!$G$6:$FF$253,129,FALSE) -> 0% | Z18: =VLOOKUP($C18,'RECAP SECT'!$G$6:$FF$253,130,FALSE) -> 2 | AA18: =VLOOKUP($C18,'RECAP SECT'!$G$6:$FF$253,143,FALSE) -> 19% | AB18: =VLOOKUP($C18,'RECAP SECT'!$G$6:$FF$253,144,FALSE) -> 17% | AC18: =VLOOKUP($C18,'RECAP SECT'!$G$6:$FF$253,145,FALSE) -> 3
A19: 110 | B19: MEURTHE ET MOSELLE MEUSE | C19: 31 | D19: VERDUN | E19: =VLOOKUP($C19,'RECAP SECT'!$G$6:$EV$253,3,FALSE) -> 62.6 | F19: =VLOOKUP($C19,'RECAP SECT'!$G$6:$FF$253,152,FALSE) -> 27% | G19: =VLOOKUP($C19,'RECAP SECT'!$G$6:$FF$253,153,FALSE) -> 15% | H19: =VLOOKUP($C19,'RECAP SECT'!$G$6:$FF$253,154,FALSE) -> 10 | I19: =VLOOKUP($C19,'RECAP SECT'!$G$6:$FF$253,17,FALSE) -> 56% | J19: =VLOOKUP($C19,'RECAP SECT'!$G$6:$FF$253,18,FALSE) -> 40% | K19: =VLOOKUP($C19,'RECAP SECT'!$G$6:$FF$253,19,FALSE) -> 10 | L19: =VLOOKUP($C19,'RECAP SECT'!$G$6:$FF$253,41,FALSE) -> 57% | M19: =VLOOKUP($C19,'RECAP SECT'!$G$6:$FF$253,42,FALSE) -> 35% | N19: =VLOOKUP($C19,'RECAP SECT'!$G$6:$FF$253,43,FALSE) -> 17 | O19: =VLOOKUP($C19,'RECAP SECT'!$G$6:$FF$253,65,FALSE) -> 52% | P19: =VLOOKUP($C19,'RECAP SECT'!$G$6:$FF$253,66,FALSE) -> 52% | Q19: =VLOOKUP($C19,'RECAP SECT'!$G$6:$FF$253,67,FALSE) -> 7 | R19: =VLOOKUP($C19,'RECAP SECT'!$G$6:$FF$253,92,FALSE) -> 22% | S19: =VLOOKUP($C19,'RECAP SECT'!$G$6:$FF$253,93,FALSE) -> 14% | T19: =VLOOKUP($C19,'RECAP SECT'!$G$6:$FF$253,94,FALSE) -> 15 | U19: =VLOOKUP($C19,'RECAP SECT'!$G$6:$FF$253,110,FALSE) -> 30% | V19: =VLOOKUP($C19,'RECAP SECT'!$G$6:$FF$253,111,FALSE) -> 21% | W19: =VLOOKUP($C19,'RECAP SECT'!$G$6:$FF$253,112,FALSE) -> 10 | X19: =VLOOKUP($C19,'RECAP SECT'!$G$6:$FF$253,128,FALSE) -> 4% | Y19: =VLOOKUP($C19,'RECAP SECT'!$G$6:$FF$253,129,FALSE) -> 3% | Z19: =VLOOKUP($C19,'RECAP SECT'!$G$6:$FF$253,130,FALSE) -> 13 | AA19: =VLOOKUP($C19,'RECAP SECT'!$G$6:$FF$253,143,FALSE) -> 20% | AB19: =VLOOKUP($C19,'RECAP SECT'!$G$6:$FF$253,144,FALSE) -> 18% | AC19: =VLOOKUP($C19,'RECAP SECT'!$G$6:$FF$253,145,FALSE) -> 4
A20: 262 | B20: BAS-RHIN | C20: 5060 | D20: HAGUENAU | E20: =VLOOKUP($C20,'RECAP SECT'!$G$6:$EV$253,3,FALSE) -> 87.2 | F20: =VLOOKUP($C20,'RECAP SECT'!$G$6:$FF$253,152,FALSE) -> 28% | G20: =VLOOKUP($C20,'RECAP SECT'!$G$6:$FF$253,153,FALSE) -> 15% | H20: =VLOOKUP($C20,'RECAP SECT'!$G$6:$FF$253,154,FALSE) -> 11 | I20: =VLOOKUP($C20,'RECAP SECT'!$G$6:$FF$253,17,FALSE) -> 69% | J20: =VLOOKUP($C20,'RECAP SECT'!$G$6:$FF$253,18,FALSE) -> 54% | K20: =VLOOKUP($C20,'RECAP SECT'!$G$6:$FF$253,19,FALSE) -> 13 | L20: =VLOOKUP($C20,'RECAP SECT'!$G$6:$FF$253,41,FALSE) -> 37% | M20: =VLOOKUP($C20,'RECAP SECT'!$G$6:$FF$253,42,FALSE) -> 15% | N20: =VLOOKUP($C20,'RECAP SECT'!$G$6:$FF$253,43,FALSE) -> 6 | O20: =VLOOKUP($C20,'RECAP SECT'!$G$6:$FF$253,65,FALSE) -> 49% | P20: =VLOOKUP($C20,'RECAP SECT'!$G$6:$FF$253,66,FALSE) -> 48% | Q20: =VLOOKUP($C20,'RECAP SECT'!$G$6:$FF$253,67,FALSE) -> 4 | R20: =VLOOKUP($C20,'RECAP SECT'!$G$6:$FF$253,92,FALSE) -> 26% | S20: =VLOOKUP($C20,'RECAP SECT'!$G$6:$FF$253,93,FALSE) -> 17% | T20: =VLOOKUP($C20,'RECAP SECT'!$G$6:$FF$253,94,FALSE) -> 17 | U20: =VLOOKUP($C20,'RECAP SECT'!$G$6:$FF$253,110,FALSE) -> 28% | V20: =VLOOKUP($C20,'RECAP SECT'!$G$6:$FF$253,111,FALSE) -> 19% | W20: =VLOOKUP($C20,'RECAP SECT'!$G$6:$FF$253,112,FALSE) -> 8 | X20: =VLOOKUP($C20,'RECAP SECT'!$G$6:$FF$253,128,FALSE) -> 6% | Y20: =VLOOKUP($C20,'RECAP SECT'!$G$6:$FF$253,129,FALSE) -> 6% | Z20: =VLOOKUP($C20,'RECAP SECT'!$G$6:$FF$253,130,FALSE) -> 16 | AA20: =VLOOKUP($C20,'RECAP SECT'!$G$6:$FF$253,143,FALSE) -> 37% | AB20: =VLOOKUP($C20,'RECAP SECT'!$G$6:$FF$253,144,FALSE) -> 35% | AC20: =VLOOKUP($C20,'RECAP SECT'!$G$6:$FF$253,145,FALSE) -> 11
A21: 80 | B21: VOSGES | C21: 57 | D21: EPINAL | E21: =VLOOKUP($C21,'RECAP SECT'!$G$6:$EV$253,3,FALSE) -> 66.5 | F21: =VLOOKUP($C21,'RECAP SECT'!$G$6:$FF$253,152,FALSE) -> 31% | G21: =VLOOKUP($C21,'RECAP SECT'!$G$6:$FF$253,153,FALSE) -> 18% | H21: =VLOOKUP($C21,'RECAP SECT'!$G$6:$FF$253,154,FALSE) -> 12 | I21: =VLOOKUP($C21,'RECAP SECT'!$G$6:$FF$253,17,FALSE) -> 75% | J21: =VLOOKUP($C21,'RECAP SECT'!$G$6:$FF$253,18,FALSE) -> 60% | K21: =VLOOKUP($C21,'RECAP SECT'!$G$6:$FF$253,19,FALSE) -> 15 | L21: =VLOOKUP($C21,'RECAP SECT'!$G$6:$FF$253,41,FALSE) -> 43% | M21: =VLOOKUP($C21,'RECAP SECT'!$G$6:$FF$253,42,FALSE) -> 21% | N21: =VLOOKUP($C21,'RECAP SECT'!$G$6:$FF$253,43,FALSE) -> 10 | O21: =VLOOKUP($C21,'RECAP SECT'!$G$6:$FF$253,65,FALSE) -> 55% | P21: =VLOOKUP($C21,'RECAP SECT'!$G$6:$FF$253,66,FALSE) -> 55% | Q21: =VLOOKUP($C21,'RECAP SECT'!$G$6:$FF$253,67,FALSE) -> 9 | R21: =VLOOKUP($C21,'RECAP SECT'!$G$6:$FF$253,92,FALSE) -> 19% | S21: =VLOOKUP($C21,'RECAP SECT'!$G$6:$FF$253,93,FALSE) -> 10% | T21: =VLOOKUP($C21,'RECAP SECT'!$G$6:$FF$253,94,FALSE) -> 11 | U21: =VLOOKUP($C21,'RECAP SECT'!$G$6:$FF$253,110,FALSE) -> 32% | V21: =VLOOKUP($C21,'RECAP SECT'!$G$6:$FF$253,111,FALSE) -> 23% | W21: =VLOOKUP($C21,'RECAP SECT'!$G$6:$FF$253,112,FALSE) -> 11 | X21: =VLOOKUP($C21,'RECAP SECT'!$G$6:$FF$253,128,FALSE) -> 3% | Y21: =VLOOKUP($C21,'RECAP SECT'!$G$6:$FF$253,129,FALSE) -> 3% | Z21: =VLOOKUP($C21,'RECAP SECT'!$G$6:$FF$253,130,FALSE) -> 10 | AA21: =VLOOKUP($C21,'RECAP SECT'!$G$6:$FF$253,143,FALSE) -> 43% | AB21: =VLOOKUP($C21,'RECAP SECT'!$G$6:$FF$253,144,FALSE) -> 42% | AC21: =VLOOKUP($C21,'RECAP SECT'!$G$6:$FF$253,145,FALSE) -> 13
A22: 50 | B22: AUBE HAUTE MARNE | C22: 14 | D22: TROYES | E22: =VLOOKUP($C22,'RECAP SECT'!$G$6:$EV$253,3,FALSE) -> 76.8 | F22: =VLOOKUP($C22,'RECAP SECT'!$G$6:$FF$253,152,FALSE) -> 31% | G22: =VLOOKUP($C22,'RECAP SECT'!$G$6:$FF$253,153,FALSE) -> 18% | H22: =VLOOKUP($C22,'RECAP SECT'!$G$6:$FF$253,154,FALSE) -> 13 | I22: =VLOOKUP($C22,'RECAP SECT'!$G$6:$FF$253,17,FALSE) -> 69% | J22: =VLOOKUP($C22,'RECAP SECT'!$G$6:$FF$253,18,FALSE) -> 54% | K22: =VLOOKUP($C22,'RECAP SECT'!$G$6:$FF$253,19,FALSE) -> 14 | L22: =VLOOKUP($C22,'RECAP SECT'!$G$6:$FF$253,41,FALSE) -> 42% | M22: =VLOOKUP($C22,'RECAP SECT'!$G$6:$FF$253,42,FALSE) -> 19% | N22: =VLOOKUP($C22,'RECAP SECT'!$G$6:$FF$253,43,FALSE) -> 9 | O22: =VLOOKUP($C22,'RECAP SECT'!$G$6:$FF$253,65,FALSE) -> 60% | P22: =VLOOKUP($C22,'RECAP SECT'!$G$6:$FF$253,66,FALSE) -> 60% | Q22: =VLOOKUP($C22,'RECAP SECT'!$G$6:$FF$253,67,FALSE) -> 13 | R22: =VLOOKUP($C22,'RECAP SECT'!$G$6:$FF$253,92,FALSE) -> 18% | S22: =VLOOKUP($C22,'RECAP SECT'!$G$6:$FF$253,93,FALSE) -> 9% | T22: =VLOOKUP($C22,'RECAP SECT'!$G$6:$FF$253,94,FALSE) -> 9 | U22: =VLOOKUP($C22,'RECAP SECT'!$G$6:$FF$253,110,FALSE) -> 43% | V22: =VLOOKUP($C22,'RECAP SECT'!$G$6:$FF$253,111,FALSE) -> 34% | W22: =VLOOKUP($C22,'RECAP SECT'!$G$6:$FF$253,112,FALSE) -> 14 | X22: =VLOOKUP($C22,'RECAP SECT'!$G$6:$FF$253,128,FALSE) -> 2% | Y22: =VLOOKUP($C22,'RECAP SECT'!$G$6:$FF$253,129,FALSE) -> 1% | Z22: =VLOOKUP($C22,'RECAP SECT'!$G$6:$FF$253,130,FALSE) -> 6 | AA22: =VLOOKUP($C22,'RECAP SECT'!$G$6:$FF$253,143,FALSE) -> 26% | AB22: =VLOOKUP($C22,'RECAP SECT'!$G$6:$FF$253,144,FALSE) -> 25% | AC22: =VLOOKUP($C22,'RECAP SECT'!$G$6:$FF$253,145,FALSE) -> 8
A23: 160 | B23: MOSELLE | C23: 44 | D23: MOSELLE NORD | E23: =VLOOKUP($C23,'RECAP SECT'!$G$6:$EV$253,3,FALSE) -> 77.6 | F23: =VLOOKUP($C23,'RECAP SECT'!$G$6:$FF$253,152,FALSE) -> 32% | G23: =VLOOKUP($C23,'RECAP SECT'!$G$6:$FF$253,153,FALSE) -> 19% | H23: =VLOOKUP($C23,'RECAP SECT'!$G$6:$FF$253,154,FALSE) -> 14 | I23: =VLOOKUP($C23,'RECAP SECT'!$G$6:$FF$253,17,FALSE) -> 60% | J23: =VLOOKUP($C23,'RECAP SECT'!$G$6:$FF$253,18,FALSE) -> 44% | K23: =VLOOKUP($C23,'RECAP SECT'!$G$6:$FF$253,19,FALSE) -> 11 | L23: =VLOOKUP($C23,'RECAP SECT'!$G$6:$FF$253,41,FALSE) -> 44% | M23: =VLOOKUP($C23,'RECAP SECT'!$G$6:$FF$253,42,FALSE) -> 22% | N23: =VLOOKUP($C23,'RECAP SECT'!$G$6:$FF$253,43,FALSE) -> 13 | O23: =VLOOKUP($C23,'RECAP SECT'!$G$6:$FF$253,65,FALSE) -> 85% | P23: =VLOOKUP($C23,'RECAP SECT'!$G$6:$FF$253,66,FALSE) -> 85% | Q23: =VLOOKUP($C23,'RECAP SECT'!$G$6:$FF$253,67,FALSE) -> 18 | R23: =VLOOKUP($C23,'RECAP SECT'!$G$6:$FF$253,92,FALSE) -> 21% | S23: =VLOOKUP($C23,'RECAP SECT'!$G$6:$FF$253,93,FALSE) -> 12% | T23: =VLOOKUP($C23,'RECAP SECT'!$G$6:$FF$253,94,FALSE) -> 14 | U23: =VLOOKUP($C23,'RECAP SECT'!$G$6:$FF$253,110,FALSE) -> 21% | V23: =VLOOKUP($C23,'RECAP SECT'!$G$6:$FF$253,111,FALSE) -> 12% | W23: =VLOOKUP($C23,'RECAP SECT'!$G$6:$FF$253,112,FALSE) -> 6 | X23: =VLOOKUP($C23,'RECAP SECT'!$G$6:$FF$253,128,FALSE) -> 1% | Y23: =VLOOKUP($C23,'RECAP SECT'!$G$6:$FF$253,129,FALSE) -> 0% | Z23: =VLOOKUP($C23,'RECAP SECT'!$G$6:$FF$253,130,FALSE) -> 3 | AA23: =VLOOKUP($C23,'RECAP SECT'!$G$6:$FF$253,143,FALSE) -> 53% | AB23: =VLOOKUP($C23,'RECAP SECT'!$G$6:$FF$253,144,FALSE) -> 52% | AC23: =VLOOKUP($C23,'RECAP SECT'!$G$6:$FF$253,145,FALSE) -> 14
A24: 262 | B24: BAS-RHIN | C24: 5006 | D24: STRASBOURG | E24: =VLOOKUP($C24,'RECAP SECT'!$G$6:$EV$253,3,FALSE) -> 91.1 | F24: =VLOOKUP($C24,'RECAP SECT'!$G$6:$FF$253,152,FALSE) -> 37% | G24: =VLOOKUP($C24,'RECAP SECT'!$G$6:$FF$253,153,FALSE) -> 25% | H24: =VLOOKUP($C24,'RECAP SECT'!$G$6:$FF$253,154,FALSE) -> 15 | I24: =VLOOKUP($C24,'RECAP SECT'!$G$6:$FF$253,17,FALSE) -> 62% | J24: =VLOOKUP($C24,'RECAP SECT'!$G$6:$FF$253,18,FALSE) -> 47% | K24: =VLOOKUP($C24,'RECAP SECT'!$G$6:$FF$253,19,FALSE) -> 12 | L24: =VLOOKUP($C24,'RECAP SECT'!$G$6:$FF$253,41,FALSE) -> 35% | M24: =VLOOKUP($C24,'RECAP SECT'!$G$6:$FF$253,42,FALSE) -> 13% | N24: =VLOOKUP($C24,'RECAP SECT'!$G$6:$FF$253,43,FALSE) -> 4 | O24: =VLOOKUP($C24,'RECAP SECT'!$G$6:$FF$253,65,FALSE) -> 57% | P24: =VLOOKUP($C24,'RECAP SECT'!$G$6:$FF$253,66,FALSE) -> 56% | Q24: =VLOOKUP($C24,'RECAP SECT'!$G$6:$FF$253,67,FALSE) -> 11 | R24: =VLOOKUP($C24,'RECAP SECT'!$G$6:$FF$253,92,FALSE) -> 18% | S24: =VLOOKUP($C24,'RECAP SECT'!$G$6:$FF$253,93,FALSE) -> 10% | T24: =VLOOKUP($C24,'RECAP SECT'!$G$6:$FF$253,94,FALSE) -> 10 | U24: =VLOOKUP($C24,'RECAP SECT'!$G$6:$FF$253,110,FALSE) -> 59% | V24: =VLOOKUP($C24,'RECAP SECT'!$G$6:$FF$253,111,FALSE) -> 49% | W24: =VLOOKUP($C24,'RECAP SECT'!$G$6:$FF$253,112,FALSE) -> 18 | X24: =VLOOKUP($C24,'RECAP SECT'!$G$6:$FF$253,128,FALSE) -> 7% | Y24: =VLOOKUP($C24,'RECAP SECT'!$G$6:$FF$253,129,FALSE) -> 7% | Z24: =VLOOKUP($C24,'RECAP SECT'!$G$6:$FF$253,130,FALSE) -> 18 | AA24: =VLOOKUP($C24,'RECAP SECT'!$G$6:$FF$253,143,FALSE) -> 82% | AB24: =VLOOKUP($C24,'RECAP SECT'!$G$6:$FF$253,144,FALSE) -> 81% | AC24: =VLOOKUP($C24,'RECAP SECT'!$G$6:$FF$253,145,FALSE) -> 18
A25: 264 | B25: HAUT-RHIN | C25: 5169 | D25: MULHOUSE | E25: =VLOOKUP($C25,'RECAP SECT'!$G$6:$EV$253,3,FALSE) -> 73.6 | F25: =VLOOKUP($C25,'RECAP SECT'!$G$6:$FF$253,152,FALSE) -> 39% | G25: =VLOOKUP($C25,'RECAP SECT'!$G$6:$FF$253,153,FALSE) -> 26% | H25: =VLOOKUP($C25,'RECAP SECT'!$G$6:$FF$253,154,FALSE) -> 16 | I25: =VLOOKUP($C25,'RECAP SECT'!$G$6:$FF$253,17,FALSE) -> 90% | J25: =VLOOKUP($C25,'RECAP SECT'!$G$6:$FF$253,18,FALSE) -> 75% | K25: =VLOOKUP($C25,'RECAP SECT'!$G$6:$FF$253,19,FALSE) -> 17 | L25: =VLOOKUP($C25,'RECAP SECT'!$G$6:$FF$253,41,FALSE) -> 65% | M25: =VLOOKUP($C25,'RECAP SECT'!$G$6:$FF$253,42,FALSE) -> 42% | N25: =VLOOKUP($C25,'RECAP SECT'!$G$6:$FF$253,43,FALSE) -> 18 | O25: =VLOOKUP($C25,'RECAP SECT'!$G$6:$FF$253,65,FALSE) -> 39% | P25: =VLOOKUP($C25,'RECAP SECT'!$G$6:$FF$253,66,FALSE) -> 38% | Q25: =VLOOKUP($C25,'RECAP SECT'!$G$6:$FF$253,67,FALSE) -> 3 | R25: =VLOOKUP($C25,'RECAP SECT'!$G$6:$FF$253,92,FALSE) -> 15% | S25: =VLOOKUP($C25,'RECAP SECT'!$G$6:$FF$253,93,FALSE) -> 6% | T25: =VLOOKUP($C25,'RECAP SECT'!$G$6:$FF$253,94,FALSE) -> 6 | U25: =VLOOKUP($C25,'RECAP SECT'!$G$6:$FF$253,110,FALSE) -> 49% | V25: =VLOOKUP($C25,'RECAP SECT'!$G$6:$FF$253,111,FALSE) -> 40% | W25: =VLOOKUP($C25,'RECAP SECT'!$G$6:$FF$253,112,FALSE) -> 17 | X25: =VLOOKUP($C25,'RECAP SECT'!$G$6:$FF$253,128,FALSE) -> 3% | Y25: =VLOOKUP($C25,'RECAP SECT'!$G$6:$FF$253,129,FALSE) -> 3% | Z25: =VLOOKUP($C25,'RECAP SECT'!$G$6:$FF$253,130,FALSE) -> 11 | AA25: =VLOOKUP($C25,'RECAP SECT'!$G$6:$FF$253,143,FALSE) -> 65% | AB25: =VLOOKUP($C25,'RECAP SECT'!$G$6:$FF$253,144,FALSE) -> 63% | AC25: =VLOOKUP($C25,'RECAP SECT'!$G$6:$FF$253,145,FALSE) -> 16
A26: 264 | B26: HAUT-RHIN | C26: 5130 | D26: COLMAR | E26: =VLOOKUP($C26,'RECAP SECT'!$G$6:$EV$253,3,FALSE) -> 74.7 | F26: =VLOOKUP($C26,'RECAP SECT'!$G$6:$FF$253,152,FALSE) -> 40% | G26: =VLOOKUP($C26,'RECAP SECT'!$G$6:$FF$253,153,FALSE) -> 27% | H26: =VLOOKUP($C26,'RECAP SECT'!$G$6:$FF$253,154,FALSE) -> 17 | I26: =VLOOKUP($C26,'RECAP SECT'!$G$6:$FF$253,17,FALSE) -> 88% | J26: =VLOOKUP($C26,'RECAP SECT'!$G$6:$FF$253,18,FALSE) -> 73% | K26: =VLOOKUP($C26,'RECAP SECT'!$G$6:$FF$253,19,FALSE) -> 16 | L26: =VLOOKUP($C26,'RECAP SECT'!$G$6:$FF$253,41,FALSE) -> 43% | M26: =VLOOKUP($C26,'RECAP SECT'!$G$6:$FF$253,42,FALSE) -> 21% | N26: =VLOOKUP($C26,'RECAP SECT'!$G$6:$FF$253,43,FALSE) -> 11 | O26: =VLOOKUP($C26,'RECAP SECT'!$G$6:$FF$253,65,FALSE) -> 61% | P26: =VLOOKUP($C26,'RECAP SECT'!$G$6:$FF$253,66,FALSE) -> 61% | Q26: =VLOOKUP($C26,'RECAP SECT'!$G$6:$FF$253,67,FALSE) -> 14 | R26: =VLOOKUP($C26,'RECAP SECT'!$G$6:$FF$253,92,FALSE) -> 31% | S26: =VLOOKUP($C26,'RECAP SECT'!$G$6:$FF$253,93,FALSE) -> 22% | T26: =VLOOKUP($C26,'RECAP SECT'!$G$6:$FF$253,94,FALSE) -> 18 | U26: =VLOOKUP($C26,'RECAP SECT'!$G$6:$FF$253,110,FALSE) -> 47% | V26: =VLOOKUP($C26,'RECAP SECT'!$G$6:$FF$253,111,FALSE) -> 38% | W26: =VLOOKUP($C26,'RECAP SECT'!$G$6:$FF$253,112,FALSE) -> 16 | X26: =VLOOKUP($C26,'RECAP SECT'!$G$6:$FF$253,128,FALSE) -> 3% | Y26: =VLOOKUP($C26,'RECAP SECT'!$G$6:$FF$253,129,FALSE) -> 3% | Z26: =VLOOKUP($C26,'RECAP SECT'!$G$6:$FF$253,130,FALSE) -> 9 | AA26: =VLOOKUP($C26,'RECAP SECT'!$G$6:$FF$253,143,FALSE) -> 58% | AB26: =VLOOKUP($C26,'RECAP SECT'!$G$6:$FF$253,144,FALSE) -> 57% | AC26: =VLOOKUP($C26,'RECAP SECT'!$G$6:$FF$253,145,FALSE) -> 15
A27: 262 | B27: BAS-RHIN | C27: 5101 | D27: SELESTAT | E27: =VLOOKUP($C27,'RECAP SECT'!$G$6:$EV$253,3,FALSE) -> 74.4 | F27: =VLOOKUP($C27,'RECAP SECT'!$G$6:$FF$253,152,FALSE) -> 41% | G27: =VLOOKUP($C27,'RECAP SECT'!$G$6:$FF$253,153,FALSE) -> 29% | H27: =VLOOKUP($C27,'RECAP SECT'!$G$6:$FF$253,154,FALSE) -> 18 | I27: =VLOOKUP($C27,'RECAP SECT'!$G$6:$FF$253,17,FALSE) -> 103% | J27: =VLOOKUP($C27,'RECAP SECT'!$G$6:$FF$253,18,FALSE) -> 88% | K27: =VLOOKUP($C27,'RECAP SECT'!$G$6:$FF$253,19,FALSE) -> 18 | L27: =VLOOKUP($C27,'RECAP SECT'!$G$6:$FF$253,41,FALSE) -> 47% | M27: =VLOOKUP($C27,'RECAP SECT'!$G$6:$FF$253,42,FALSE) -> 25% | N27: =VLOOKUP($C27,'RECAP SECT'!$G$6:$FF$253,43,FALSE) -> 16 | O27: =VLOOKUP($C27,'RECAP SECT'!$G$6:$FF$253,65,FALSE) -> 51% | P27: =VLOOKUP($C27,'RECAP SECT'!$G$6:$FF$253,66,FALSE) -> 50% | Q27: =VLOOKUP($C27,'RECAP SECT'!$G$6:$FF$253,67,FALSE) -> 5 | R27: =VLOOKUP($C27,'RECAP SECT'!$G$6:$FF$253,92,FALSE) -> 20% | S27: =VLOOKUP($C27,'RECAP SECT'!$G$6:$FF$253,93,FALSE) -> 12% | T27: =VLOOKUP($C27,'RECAP SECT'!$G$6:$FF$253,94,FALSE) -> 13 | U27: =VLOOKUP($C27,'RECAP SECT'!$G$6:$FF$253,110,FALSE) -> 44% | V27: =VLOOKUP($C27,'RECAP SECT'!$G$6:$FF$253,111,FALSE) -> 34% | W27: =VLOOKUP($C27,'RECAP SECT'!$G$6:$FF$253,112,FALSE) -> 15 | X27: =VLOOKUP($C27,'RECAP SECT'!$G$6:$FF$253,128,FALSE) -> 6% | Y27: =VLOOKUP($C27,'RECAP SECT'!$G$6:$FF$253,129,FALSE) -> 5% | Z27: =VLOOKUP($C27,'RECAP SECT'!$G$6:$FF$253,130,FALSE) -> 15 | AA27: =VLOOKUP($C27,'RECAP SECT'!$G$6:$FF$253,143,FALSE) -> 79% | AB27: =VLOOKUP($C27,'RECAP SECT'!$G$6:$FF$253,144,FALSE) -> 77% | AC27: =VLOOKUP($C27,'RECAP SECT'!$G$6:$FF$253,145,FALSE) -> 17
A28: Total CEGEE Directions Régionales | E28: =SUM(E10:E27) -> 1332

Sheet SE_BANCA
A1: Accueil | F1: BAROMETRE BDD - TERRITOIRES
F2: EQUIPEMENT BANCARISATION
F3: =ACCUEIL!H7 -> 2019-11-30
F7: Ventes nettes FORFAITS avec 2 options | I7: Ventes nettes IZICARTES | L7: Ventes nettes Cartes HDG | O7: Ventes nettes CB débit différé | R7: Ventes nettes banca Pro | U7: Total Equipement Bancarisation
G8: coef | H8: ='RECAP DIRCOM'!AH4 -> 3% | J8: coef | K8: ='RECAP DIRCOM'!AK4 -> 3% | M8: coef | N8: ='RECAP DIRCOM'!AN4 -> 3% | P8: coef | Q8: ='RECAP DIRCOM'!AQ4 -> 3% | S8: coef | T8: ='RECAP DIRCOM'!AT4 -> 3% | V8: coef | W8: ='RECAP DIRCOM'!AW4 -> 15%
A9: eds | B9: Direction | C9: eds | D9: Territoire | E9: ETP perf | F9: Nb / ETP | G9: % Ecart au 1er | H9: Rang | I9: Nb / ETP | J9: % Ecart au 1er | K9: Rang | L9: Nb / ETP | M9: % Ecart au 1er | N9: Rang | O9: Nb / ETP | P9: % Ecart au 1er | Q9: Rang | R9: Taux réal objectif | S9: % Ecart au 1er | T9: Rang | U9: Moyenne ecart au 1er | V9: % Ecart au 1er | W9: Rang CEGEE
A10: 50 | B10: AUBE HAUTE MARNE | C10: 21 | D10: CHAUMONT | E10: =VLOOKUP($C10,'RECAP SECT'!$G$6:$EV$253,3,FALSE) -> 45.0 | F10: =VLOOKUP($C10,'RECAP SECT'!$G$6:$EV$253,26,FALSE) -> -20.04 | G10: =VLOOKUP($C10,'RECAP SECT'!$G$6:$EV$253,27,FALSE) -> 40% | H10: =VLOOKUP($C10,'RECAP SECT'!$G$6:$EV$253,28,FALSE) -> 5 | I10: =VLOOKUP($C10,'RECAP SECT'!$G$6:$EV$253,29,FALSE) -> 4.18 | J10: =VLOOKUP($C10,'RECAP SECT'!$G$6:$EV$253,30,FALSE) -> 65% | K10: =VLOOKUP($C10,'RECAP SECT'!$G$6:$EV$253,31,FALSE) -> 16 | L10: =VLOOKUP($C10,'RECAP SECT'!$G$6:$EV$253,32,FALSE) -> 12.49 | M10: =VLOOKUP($C10,'RECAP SECT'!$G$6:$EV$253,33,FALSE) -> 43% | N10: =VLOOKUP($C10,'RECAP SECT'!$G$6:$EV$253,34,FALSE) -> 16 | O10: =VLOOKUP($C10,'RECAP SECT'!$G$6:$EV$253,35,FALSE) -> 10.04 | P10: =VLOOKUP($C10,'RECAP SECT'!$G$6:$EV$253,36,FALSE) -> 15% | Q10: =VLOOKUP($C10,'RECAP SECT'!$G$6:$EV$253,37,FALSE) -> 3 | R10: =VLOOKUP($C10,'RECAP SECT'!$G$6:$EV$253,38,FALSE) -> 115% | S10: =VLOOKUP($C10,'RECAP SECT'!$G$6:$EV$253,39,FALSE) -> 14% | T10: =VLOOKUP($C10,'RECAP SECT'!$G$6:$EV$253,40,FALSE) -> 4 | U10: =VLOOKUP($C10,'RECAP SECT'!$G$6:$EV$253,41,FALSE) -> 36% | V10: =VLOOKUP($C10,'RECAP SECT'!$G$6:$EV$253,42,FALSE) -> 13% | W10: =VLOOKUP($C10,'RECAP SECT'!$G$6:$EV$253,43,FALSE) -> 5
A11: 50 | B11: AUBE HAUTE MARNE | C11: 14 | D11: TROYES | E11: =VLOOKUP($C11,'RECAP SECT'!$G$6:$EV$253,3,FALSE) -> 76.8 | F11: =VLOOKUP($C11,'RECAP SECT'!$G$6:$EV$253,26,FALSE) -> -24.22 | G11: =VLOOKUP($C11,'RECAP SECT'!$G$6:$EV$253,27,FALSE) -> 70% | H11: =VLOOKUP($C11,'RECAP SECT'!$G$6:$EV$253,28,FALSE) -> 14 | I11: =VLOOKUP($C11,'RECAP SECT'!$G$6:$EV$253,29,FALSE) -> 6.47 | J11: =VLOOKUP($C11,'RECAP SECT'!$G$6:$EV$253,30,FALSE) -> 46% | K11: =VLOOKUP($C11,'RECAP SECT'!$G$6:$EV$253,31,FALSE) -> 8 | L11: =VLOOKUP($C11,'RECAP SECT'!$G$6:$EV$253,32,FALSE) -> 16.74 | M11: =VLOOKUP($C11,'RECAP SECT'!$G$6:$EV$253,33,FALSE) -> 24% | N11: =VLOOKUP($C11,'RECAP SECT'!$G$6:$EV$253,34,FALSE) -> 9 | O11: =VLOOKUP($C11,'RECAP SECT'!$G$6:$EV$253,35,FALSE) -> 8.62 | P11: =VLOOKUP($C11,'RECAP SECT'!$G$6:$EV$253,36,FALSE) -> 27% | Q11: =VLOOKUP($C11,'RECAP SECT'!$G$6:$EV$253,37,FALSE) -> 5 | R11: =VLOOKUP($C11,'RECAP SECT'!$G$6:$EV$253,38,FALSE) -> 79% | S11: =VLOOKUP($C11,'RECAP SECT'!$G$6:$EV$253,39,FALSE) -> 40% | T11: =VLOOKUP($C11,'RECAP SECT'!$G$6:$EV$253,40,FALSE) -> 9 | U11: =VLOOKUP($C11,'RECAP SECT'!$G$6:$EV$253,41,FALSE) -> 42% | V11: =VLOOKUP($C11,'RECAP SECT'!$G$6:$EV$253,42,FALSE) -> 19% | W11: =VLOOKUP($C11,'RECAP SECT'!$G$6:$EV$253,43,FALSE) -> 9
A12: 262 | B12: BAS-RHIN | C12: 5060 | D12: HAGUENAU | E12: =VLOOKUP($C12,'RECAP SECT'!$G$6:$EV$253,3,FALSE) -> 87.2 | F12: =VLOOKUP($C12,'RECAP SECT'!$G$6:$EV$253,26,FALSE) -> -15.56 | G12: =VLOOKUP($C12,'RECAP SECT'!$G$6:$EV$253,27,FALSE) -> 9% | H12: =VLOOKUP($C12,'RECAP SECT'!$G$6:$EV$253,28,FALSE) -> 2 | I12: =VLOOKUP($C12,'RECAP SECT'!$G$6:$EV$253,29,FALSE) -> 5.98 | J12: =VLOOKUP($C12,'RECAP SECT'!$G$6:$EV$253,30,FALSE) -> 50% | K12: =VLOOKUP($C12,'RECAP SECT'!$G$6:$EV$253,31,FALSE) -> 12 | L12: =VLOOKUP($C12,'RECAP SECT'!$G$6:$EV$253,32,FALSE) -> 16.59 | M12: =VLOOKUP($C12,'RECAP SECT'!$G$6:$EV$253,33,FALSE) -> 25% | N12: =VLOOKUP($C12,'RECAP SECT'!$G$6:$EV$253,34,FALSE) -> 10 | O12: =VLOOKUP($C12,'RECAP SECT'!$G$6:$EV$253,35,FALSE) -> 6.88 | P12: =VLOOKUP($C12,'RECAP SECT'!$G$6:$EV$253,36,FALSE) -> 42% | Q12: =VLOOKUP($C12,'RECAP SECT'!$G$6:$EV$253,37,FALSE) -> 9 | R12: =VLOOKUP($C12,'RECAP SECT'!$G$6:$EV$253,38,FALSE) -> 56% | S12: =VLOOKUP($C12,'RECAP SECT'!$G$6:$EV$253,39,FALSE) -> 58% | T12: =VLOOKUP($C12,'RECAP SECT'!$G$6:$EV$253,40,FALSE) -> 11 | U12: =VLOOKUP($C12,'RECAP SECT'!$G$6:$EV$253,41,FALSE) -> 37% | V12: =VLOOKUP($C12,'RECAP SECT'!$G$6:$EV$253,42,FALSE) -> 15% | W12: =VLOOKUP($C12,'RECAP SECT'!$G$6:$EV$253,43,FALSE) -> 6
A13: 262 | B13: BAS-RHIN | C13: 5101 | D13: SELESTAT | E13: =VLOOKUP($C13,'RECAP SECT'!$G$6:$EV$253,3,FALSE) -> 74.4 | F13: =VLOOKUP($C13,'RECAP SECT'!$G$6:$EV$253,26,FALSE) -> -16.87 | G13: =VLOOKUP($C13,'RECAP SECT'!$G$6:$EV$253,27,FALSE) -> 18% | H13: =VLOOKUP($C13,'RECAP SECT'!$G$6:$EV$253,28,FALSE) -> 4 | I13: =VLOOKUP($C13,'RECAP SECT'!$G$6:$EV$253,29,FALSE) -> 1.56 | J13: =VLOOKUP($C13,'RECAP SECT'!$G$6:$EV$253,30,FALSE) -> 87% | K13: =VLOOKUP($C13,'RECAP SECT'!$G$6:$EV$253,31,FALSE) -> 18 | L13: =VLOOKUP($C13,'RECAP SECT'!$G$6:$EV$253,32,FALSE) -> 17.21 | M13: =VLOOKUP($C13,'RECAP SECT'!$G$6:$EV$253,33,FALSE) -> 22% | N13: =VLOOKUP($C13,'RECAP SECT'!$G$6:$EV$253,34,FALSE) -> 8 | O13: =VLOOKUP($C13,'RECAP SECT'!$G$6:$EV$253,35,FALSE) -> 8.52 | P13: =VLOOKUP($C13,'RECAP SECT'!$G$6:$EV$253,36,FALSE) -> 28% | Q13: =VLOOKUP($C13,'RECAP SECT'!$G$6:$EV$253,37,FALSE) -> 6 | R13: =VLOOKUP($C13,'RECAP SECT'!$G$6:$EV$253,38,FALSE) -> 26% | S13: =VLOOKUP($C13,'RECAP SECT'!$G$6:$EV$253,39,FALSE) -> 80% | T13: =VLOOKUP($C13,'RECAP SECT'!$G$6:$EV$253,40,FALSE) -> 18 | U13: =VLOOKUP($C13,'RECAP SECT'!$G$6:$EV$253,41,FALSE) -> 47% | V13: =VLOOKUP($C13,'RECAP SECT'!$G$6:$EV$253,42,FALSE) -> 25% | W13: =VLOOKUP($C13,'RECAP SECT'!$G$6:$EV$253,43,FALSE) -> 16
A14: 262 | B14: BAS-RHIN | C14: 5006 | D14: STRASBOURG | E14: =VLOOKUP($C14,'RECAP SECT'!$G$6:$EV$253,3,FALSE) -> 91.1 | F14: =VLOOKUP($C14,'RECAP SECT'!$G$6:$EV$253,26,FALSE) -> -15.83 | G14: =VLOOKUP($C14,'RECAP SECT'!$G$6:$EV$253,27,FALSE) -> 11% | H14: =VLOOKUP($C14,'RECAP SECT'!$G$6:$EV$253,28,FALSE) -> 3 | I14: =VLOOKUP($C14,'RECAP SECT'!$G$6:$EV$253,29,FALSE) -> 5.21 | J14: =VLOOKUP($C14,'RECAP SECT'!$G$6:$EV$253,30,FALSE) -> 57% | K14: =VLOOKUP($C14,'RECAP SECT'!$G$6:$EV$253,31,FALSE) -> 14 | L14: =VLOOKUP($C14,'RECAP SECT'!$G$6:$EV$253,32,FALSE) -> 13.97 | M14: =VLOOKUP($C14,'RECAP SECT'!$G$6:$EV$253,33,FALSE) -> 37% | N14: =VLOOKUP($C14,'RECAP SECT'!$G$6:$EV$253,34,FALSE) -> 14 | O14: =VLOOKUP($C14,'RECAP SECT'!$G$6:$EV$253,35,FALSE) -> 11.86 | P14: =VLOOKUP($C14,'RECAP SECT'!$G$6:$EV$253,36,FALSE) -> 0% | Q14: =VLOOKUP($C14,'RECAP SECT'!$G$6:$EV$253,37,FALSE) -> 1 | R14: =VLOOKUP($C14,'RECAP SECT'!$G$6:$EV$253,38,FALSE) -> 35% | S14: =VLOOKUP($C14,'RECAP SECT'!$G$6:$EV$253,39,FALSE) -> 73% | T14: =VLOOKUP($C14,'RECAP SECT'!$G$6:$EV$253,40,FALSE) -> 12 | U14: =VLOOKUP($C14,'RECAP SECT'!$G$6:$EV$253,41,FALSE) -> 35% | V14: =VLOOKUP($C14,'RECAP SECT'!$G$6:$EV$253,42,FALSE) -> 13% | W14: =VLOOKUP($C14,'RECAP SECT'!$G$6:$EV$253,43,FALSE) -> 4
A15: 264 | B15: HAUT-RHIN | C15: 5130 | D15: COLMAR | E15: =VLOOKUP($C15,'RECAP SECT'!$G$6:$EV$253,3,FALSE) -> 74.7 | F15: =VLOOKUP($C15,'RECAP SECT'!$G$6:$EV$253,26,FALSE) -> -14.28 | G15: =VLOOKUP($C15,'RECAP SECT'!$G$6:$EV$253,27,FALSE) -> 0% | H15: =VLOOKUP($C15,'RECAP SECT'!$G$6:$EV$253,28,FALSE) -> 1 | I15: =VLOOKUP($C15,'RECAP SECT'!$G$6:$EV$253,29,FALSE) -> 4.64 | J15: =VLOOKUP($C15,'RECAP SECT'!$G$6:$EV$253,30,FALSE) -> 61% | K15: =VLOOKUP($C15,'RECAP SECT'!$G$6:$EV$253,31,FALSE) -> 15 | L15: =VLOOKUP($C15,'RECAP SECT'!$G$6:$EV$253,32,FALSE) -> 15.30 | M15: =VLOOKUP($C15,'RECAP SECT'!$G$6:$EV$253,33,FALSE) -> 31% | N15: =VLOOKUP($C15,'RECAP SECT'!$G$6:$EV$253,34,FALSE) -> 11 | O15: =VLOOKUP($C15,'RECAP SECT'!$G$6:$EV$253,35,FALSE) -> 6.20 | P15: =VLOOKUP($C15,'RECAP SECT'!$G$6:$EV$253,36,FALSE) -> 48% | Q15: =VLOOKUP($C15,'RECAP SECT'!$G$6:$EV$253,37,FALSE) -> 11 | R15: =VLOOKUP($C15,'RECAP SECT'!$G$6:$EV$253,38,FALSE) -> 30% | S15: =VLOOKUP($C15,'RECAP SECT'!$G$6:$EV$253,39,FALSE) -> 78% | T15: =VLOOKUP($C15,'RECAP SECT'!$G$6:$EV$253,40,FALSE) -> 15 | U15: =VLOOKUP($C15,'RECAP SECT'!$G$6:$EV$253,41,FALSE) -> 43% | V15: =VLOOKUP($C15,'RECAP SECT'!$G$6:$EV$253,42,FALSE) -> 21% | W15: =VLOOKUP($C15,'RECAP SECT'!$G$6:$EV$253,43,FALSE) -> 11
A16: 264 | B16: HAUT-RHIN | C16: 5169 | D16: MULHOUSE | E16: =VLOOKUP($C16,'RECAP SECT'!$G$6:$EV$253,3,FALSE) -> 73.6 | F16: =VLOOKUP($C16,'RECAP SECT'!$G$6:$EV$253,26,FALSE) -> -21.87 | G16: =VLOOKUP($C16,'RECAP SECT'!$G$6:$EV$253,27,FALSE) -> 53% | H16: =VLOOKUP($C16,'RECAP SECT'!$G$6:$EV$253,28,FALSE) -> 9 | I16: =VLOOKUP($C16,'RECAP SECT'!$G$6:$EV$253,29,FALSE) -> 3.48 | J16: =VLOOKUP($C16,'RECAP SECT'!$G$6:$EV$253,30,FALSE) -> 71% | K16: =VLOOKUP($C16,'RECAP SECT'!$G$6:$EV$253,31,FALSE) -> 17 | L16: =VLOOKUP($C16,'RECAP SECT'!$G$6:$EV$253,32,FALSE) -> 11.24 | M16: =VLOOKUP($C16,'RECAP SECT'!$G$6:$EV$253,33,FALSE) -> 49% | N16: =VLOOKUP($C16,'RECAP SECT'!$G$6:$EV$253,34,FALSE) -> 18 | O16: =VLOOKUP($C16,'RECAP SECT'!$G$6:$EV$253,35,FALSE) -> 3.44 | P16: =VLOOKUP($C16,'RECAP SECT'!$G$6:$EV$253,36,FALSE) -> 71% | Q16: =VLOOKUP($C16,'RECAP SECT'!$G$6:$EV$253,37,FALSE) -> 18 | R16: =VLOOKUP($C16,'RECAP SECT'!$G$6:$EV$253,38,FALSE) -> 27% | S16: =VLOOKUP($C16,'RECAP SECT'!$G$6:$EV$253,39,FALSE) -> 80% | T16: =VLOOKUP($C16,'RECAP SECT'!$G$6:$EV$253,40,FALSE) -> 17 | U16: =VLOOKUP($C16,'RECAP SECT'!$G$6:$EV$253,41,FALSE) -> 65% | V16: =VLOOKUP($C16,'RECAP SECT'!$G$6:$EV$253,42,FALSE) -> 42% | W16: =VLOOKUP($C16,'RECAP SECT'!$G$6:$EV$253,43,FALSE) -> 18
A17: 30 | B17: MARNE-ARDENNES | C17: 6 | D17: CHALONS EN CHAMPAGNE | E17: =VLOOKUP($C17,'RECAP SECT'!$G$6:$EV$253,3,FALSE) -> 48.5 | F17: =VLOOKUP($C17,'RECAP SECT'!$G$6:$EV$253,26,FALSE) -> -20.27 | G17: =VLOOKUP($C17,'RECAP SECT'!$G$6:$EV$253,27,FALSE) -> 42% | H17: =VLOOKUP($C17,'RECAP SECT'!$G$6:$EV$253,28,FALSE) -> 6 | I17: =VLOOKUP($C17,'RECAP SECT'!$G$6:$EV$253,29,FALSE) -> 9.05 | J17: =VLOOKUP($C17,'RECAP SECT'!$G$6:$EV$253,30,FALSE) -> 24% | K17: =VLOOKUP($C17,'RECAP SECT'!$G$6:$EV$253,31,FALSE) -> 3 | L17: =VLOOKUP($C17,'RECAP SECT'!$G$6:$EV$253,32,FALSE) -> 19.38 | M17: =VLOOKUP($C17,'RECAP SECT'!$G$6:$EV$253,33,FALSE) -> 12% | N17: =VLOOKUP($C17,'RECAP SECT'!$G$6:$EV$253,34,FALSE) -> 4 | O17: =VLOOKUP($C17,'RECAP SECT'!$G$6:$EV$253,35,FALSE) -> 7.07 | P17: =VLOOKUP($C17,'RECAP SECT'!$G$6:$EV$253,36,FALSE) -> 40% | Q17: =VLOOKUP($C17,'RECAP SECT'!$G$6:$EV$253,37,FALSE) -> 8 | R17: =VLOOKUP($C17,'RECAP SECT'!$G$6:$EV$253,38,FALSE) -> 34% | S17: =VLOOKUP($C17,'RECAP SECT'!$G$6:$EV$253,39,FALSE) -> 75% | T17: =VLOOKUP($C17,'RECAP SECT'!$G$6:$EV$253,40,FALSE) -> 13 | U17: =VLOOKUP($C17,'RECAP SECT'!$G$6:$EV$253,41,FALSE) -> 39% | V17: =VLOOKUP($C17,'RECAP SECT'!$G$6:$EV$253,42,FALSE) -> 16% | W17: =VLOOKUP($C17,'RECAP SECT'!$G$6:$EV$253,43,FALSE) -> 7
A18: 30 | B18: MARNE-ARDENNES | C18: 2 | D18: CHARLEVILLE MEZIERES | E18: =VLOOKUP($C18,'RECAP SECT'!$G$6:$EV$253,3,FALSE) -> 61.7 | F18: =VLOOKUP($C18,'RECAP SECT'!$G$6:$EV$253,26,FALSE) -> -25.78 | G18: =VLOOKUP($C18,'RECAP SECT'!$G$6:$EV$253,27,FALSE) -> 81% | H18: =VLOOKUP($C18,'RECAP SECT'!$G$6:$EV$253,28,FALSE) -> 16 | I18: =VLOOKUP($C18,'RECAP SECT'!$G$6:$EV$253,29,FALSE) -> 9.00 | J18: =VLOOKUP($C18,'RECAP SECT'!$G$6:$EV$253,30,FALSE) -> 25% | K18: =VLOOKUP($C18,'RECAP SECT'!$G$6:$EV$253,31,FALSE) -> 4 | L18: =VLOOKUP($C18,'RECAP SECT'!$G$6:$EV$253,32,FALSE) -> 19.25 | M18: =VLOOKUP($C18,'RECAP SECT'!$G$6:$EV$253,33,FALSE) -> 13% | N18: =VLOOKUP($C18,'RECAP SECT'!$G$6:$EV$253,34,FALSE) -> 5 | O18: =VLOOKUP($C18,'RECAP SECT'!$G$6:$EV$253,35,FALSE) -> 10.36 | P18: =VLOOKUP($C18,'RECAP SECT'!$G$6:$EV$253,36,FALSE) -> 13% | Q18: =VLOOKUP($C18,'RECAP SECT'!$G$6:$EV$253,37,FALSE) -> 2 | R18: =VLOOKUP($C18,'RECAP SECT'!$G$6:$EV$253,38,FALSE) -> 133% | S18: =VLOOKUP($C18,'RECAP SECT'!$G$6:$EV$253,39,FALSE) -> 0% | T18: =VLOOKUP($C18,'RECAP SECT'!$G$6:$EV$253,40,FALSE) -> 1 | U18: =VLOOKUP($C18,'RECAP SECT'!$G$6:$EV$253,41,FALSE) -> 26% | V18: =VLOOKUP($C18,'RECAP SECT'!$G$6:$EV$253,42,FALSE) -> 4% | W18: =VLOOKUP($C18,'RECAP SECT'!$G$6:$EV$253,43,FALSE) -> 2
A19: 30 | B19: MARNE-ARDENNES | C19: 11 | D19: REIMS | E19: =VLOOKUP($C19,'RECAP SECT'!$G$6:$EV$253,3,FALSE) -> 89.2 | F19: =VLOOKUP($C19,'RECAP SECT'!$G$6:$EV$253,26,FALSE) -> -21.11 | G19: =VLOOKUP($C19,'RECAP SECT'!$G$6:$EV$253,27,FALSE) -> 48% | H19: =VLOOKUP($C19,'RECAP SECT'!$G$6:$EV$253,28,FALSE) -> 8 | I19: =VLOOKUP($C19,'RECAP SECT'!$G$6:$EV$253,29,FALSE) -> 11.99 | J19: =VLOOKUP($C19,'RECAP SECT'!$G$6:$EV$253,30,FALSE) -> 0% | K19: =VLOOKUP($C19,'RECAP SECT'!$G$6:$EV$253,31,FALSE) -> 1 | L19: =VLOOKUP($C19,'RECAP SECT'!$G$6:$EV$253,32,FALSE) -> 21.33 | M19: =VLOOKUP($C19,'RECAP SECT'!$G$6:$EV$253,33,FALSE) -> 3% | N19: =VLOOKUP($C19,'RECAP SECT'!$G$6:$EV$253,34,FALSE) -> 2 | O19: =VLOOKUP($C19,'RECAP SECT'!$G$6:$EV$253,35,FALSE) -> 7.83 | P19: =VLOOKUP($C19,'RECAP SECT'!$G$6:$EV$253,36,FALSE) -> 34% | Q19: =VLOOKUP($C19,'RECAP SECT'!$G$6:$EV$253,37,FALSE) -> 7 | R19: =VLOOKUP($C19,'RECAP SECT'!$G$6:$EV$253,38,FALSE) -> 98% | S19: =VLOOKUP($C19,'RECAP SECT'!$G$6:$EV$253,39,FALSE) -> 26% | T19: =VLOOKUP($C19,'RECAP SECT'!$G$6:$EV$253,40,FALSE) -> 6 | U19: =VLOOKUP($C19,'RECAP SECT'!$G$6:$EV$253,41,FALSE) -> 22% | V19: =VLOOKUP($C19,'RECAP SECT'!$G$6:$EV$253,42,FALSE) -> 0% | W19: =VLOOKUP($C19,'RECAP SECT'!$G$6:$EV$253,43,FALSE) -> 1
A20: 110 | B20: MEURTHE ET MOSELLE MEUSE | C20: 26 | D20: NANCY | E20: =VLOOKUP($C20,'RECAP SECT'!$G$6:$EV$253,3,FALSE) -> 77.3 | F20: =VLOOKUP($C20,'RECAP SECT'!$G$6:$EV$253,26,FALSE) -> -23.67 | G20: =VLOOKUP($C20,'RECAP SECT'!$G$6:$EV$253,27,FALSE) -> 66% | H20: =VLOOKUP($C20,'RECAP SECT'!$G$6:$EV$253,28,FALSE) -> 12 | I20: =VLOOKUP($C20,'RECAP SECT'!$G$6:$EV$253,29,FALSE) -> 6.01 | J20: =VLOOKUP($C20,'RECAP SECT'!$G$6:$EV$253,30,FALSE) -> 50% | K20: =VLOOKUP($C20,'RECAP SECT'!$G$6:$EV$253,31,FALSE) -> 11 | L20: =VLOOKUP($C20,'RECAP SECT'!$G$6:$EV$253,32,FALSE) -> 14.18 | M20: =VLOOKUP($C20,'RECAP SECT'!$G$6:$EV$253,33,FALSE) -> 36% | N20: =VLOOKUP($C20,'RECAP SECT'!$G$6:$EV$253,34,FALSE) -> 13 | O20: =VLOOKUP($C20,'RECAP SECT'!$G$6:$EV$253,35,FALSE) -> 5.07 | P20: =VLOOKUP($C20,'RECAP SECT'!$G$6:$EV$253,36,FALSE) -> 57% | Q20: =VLOOKUP($C20,'RECAP SECT'!$G$6:$EV$253,37,FALSE) -> 16 | R20: =VLOOKUP($C20,'RECAP SECT'!$G$6:$EV$253,38,FALSE) -> 120% | S20: =VLOOKUP($C20,'RECAP SECT'!$G$6:$EV$253,39,FALSE) -> 10% | T20: =VLOOKUP($C20,'RECAP SECT'!$G$6:$EV$253,40,FALSE) -> 3 | U20: =VLOOKUP($C20,'RECAP SECT'!$G$6:$EV$253,41,FALSE) -> 44% | V20: =VLOOKUP($C20,'RECAP SECT'!$G$6:$EV$253,42,FALSE) -> 21% | W20: =VLOOKUP($C20,'RECAP SECT'!$G$6:$EV$253,43,FALSE) -> 12
A21: 110 | B21: MEURTHE ET MOSELLE MEUSE | C21: 27 | D21: PONT A MOUSSON | E21: =VLOOKUP($C21,'RECAP SECT'!$G$6:$EV$253,3,FALSE) -> 86.9 | F21: =VLOOKUP($C21,'RECAP SECT'!$G$6:$EV$253,26,FALSE) -> -24.26 | G21: =VLOOKUP($C21,'RECAP SECT'!$G$6:$EV$253,27,FALSE) -> 70% | H21: =VLOOKUP($C21,'RECAP SECT'!$G$6:$EV$253,28,FALSE) -> 15 | I21: =VLOOKUP($C21,'RECAP SECT'!$G$6:$EV$253,29,FALSE) -> 10.81 | J21: =VLOOKUP($C21,'RECAP SECT'!$G$6:$EV$253,30,FALSE) -> 10% | K21: =VLOOKUP($C21,'RECAP SECT'!$G$6:$EV$253,31,FALSE) -> 2 | L21: =VLOOKUP($C21,'RECAP SECT'!$G$6:$EV$253,32,FALSE) -> 17.24 | M21: =VLOOKUP($C21,'RECAP SECT'!$G$6:$EV$253,33,FALSE) -> 22% | N21: =VLOOKUP($C21,'RECAP SECT'!$G$6:$EV$253,34,FALSE) -> 7 | O21: =VLOOKUP($C21,'RECAP SECT'!$G$6:$EV$253,35,FALSE) -> 5.93 | P21: =VLOOKUP($C21,'RECAP SECT'!$G$6:$EV$253,36,FALSE) -> 50% | Q21: =VLOOKUP($C21,'RECAP SECT'!$G$6:$EV$253,37,FALSE) -> 13 | R21: =VLOOKUP($C21,'RECAP SECT'!$G$6:$EV$253,38,FALSE) -> 30% | S21: =VLOOKUP($C21,'RECAP SECT'!$G$6:$EV$253,39,FALSE) -> 77% | T21: =VLOOKUP($C21,'RECAP SECT'!$G$6:$EV$253,40,FALSE) -> 14 | U21: =VLOOKUP($C21,'RECAP SECT'!$G$6:$EV$253,41,FALSE) -> 46% | V21: =VLOOKUP($C21,'RECAP SECT'!$G$6:$EV$253,42,FALSE) -> 24% | W21: =VLOOKUP($C21,'RECAP SECT'!$G$6:$EV$253,43,FALSE) -> 14
A22: 110 | B22: MEURTHE ET MOSELLE MEUSE | C22: 31 | D22: VERDUN | E22: =VLOOKUP($C22,'RECAP SECT'!$G$6:$EV$253,3,FALSE) -> 62.6 | F22: =VLOOKUP($C22,'RECAP SECT'!$G$6:$EV$253,26,FALSE) -> -28.06 | G22: =VLOOKUP($C22,'RECAP SECT'!$G$6:$EV$253,27,FALSE) -> 96% | H22: =VLOOKUP($C22,'RECAP SECT'!$G$6:$EV$253,28,FALSE) -> 18 | I22: =VLOOKUP($C22,'RECAP SECT'!$G$6:$EV$253,29,FALSE) -> 7.90 | J22: =VLOOKUP($C22,'RECAP SECT'!$G$6:$EV$253,30,FALSE) -> 34% | K22: =VLOOKUP($C22,'RECAP SECT'!$G$6:$EV$253,31,FALSE) -> 6 | L22: =VLOOKUP($C22,'RECAP SECT'!$G$6:$EV$253,32,FALSE) -> 13.02 | M22: =VLOOKUP($C22,'RECAP SECT'!$G$6:$EV$253,33,FALSE) -> 41% | N22: =VLOOKUP($C22,'RECAP SECT'!$G$6:$EV$253,34,FALSE) -> 15 | O22: =VLOOKUP($C22,'RECAP SECT'!$G$6:$EV$253,35,FALSE) -> 5.13 | P22: =VLOOKUP($C22,'RECAP SECT'!$G$6:$EV$253,36,FALSE) -> 57% | Q22: =VLOOKUP($C22,'RECAP SECT'!$G$6:$EV$253,37,FALSE) -> 15 | R22: =VLOOKUP($C22,'RECAP SECT'!$G$6:$EV$253,38,FALSE) -> 59% | S22: =VLOOKUP($C22,'RECAP SECT'!$G$6:$EV$253,39,FALSE) -> 56% | T22: =VLOOKUP($C22,'RECAP SECT'!$G$6:$EV$253,40,FALSE) -> 10 | U22: =VLOOKUP($C22,'RECAP SECT'!$G$6:$EV$253,41,FALSE) -> 57% | V22: =VLOOKUP($C22,'RECAP SECT'!$G$6:$EV$253,42,FALSE) -> 35% | W22: =VLOOKUP($C22,'RECAP SECT'!$G$6:$EV$253,43,FALSE) -> 17
A23: 160 | B23: MOSELLE | C23: 45 | D23: METZ | E23: =VLOOKUP($C23,'RECAP SECT'!$G$6:$EV$253,3,FALSE) -> 99.7 | F23: =VLOOKUP($C23,'RECAP SECT'!$G$6:$EV$253,26,FALSE) -> -25.87 | G23: =VLOOKUP($C23,'RECAP SECT'!$G$6:$EV$253,27,FALSE) -> 81% | H23: =VLOOKUP($C23,'RECAP SECT'!$G$6:$EV$253,28,FALSE) -> 17 | I23: =VLOOKUP($C23,'RECAP SECT'!$G$6:$EV$253,29,FALSE) -> 6.70 | J23: =VLOOKUP($C23,'RECAP SECT'!$G$6:$EV$253,30,FALSE) -> 44% | K23: =VLOOKUP($C23,'RECAP SECT'!$G$6:$EV$253,31,FALSE) -> 7 | L23: =VLOOKUP($C23,'RECAP SECT'!$G$6:$EV$253,32,FALSE) -> 18.63 | M23: =VLOOKUP($C23,'RECAP SECT'!$G$6:$EV$253,33,FALSE) -> 16% | N23: =VLOOKUP($C23,'RECAP SECT'!$G$6:$EV$253,34,FALSE) -> 6 | O23: =VLOOKUP($C23,'RECAP SECT'!$G$6:$EV$253,35,FALSE) -> 6.08 | P23: =VLOOKUP($C23,'RECAP SECT'!$G$6:$EV$253,36,FALSE) -> 49% | Q23: =VLOOKUP($C23,'RECAP SECT'!$G$6:$EV$253,37,FALSE) -> 12 | R23: =VLOOKUP($C23,'RECAP SECT'!$G$6:$EV$253,38,FALSE) -> 80% | S23: =VLOOKUP($C23,'RECAP SECT'!$G$6:$EV$253,39,FALSE) -> 40% | T23: =VLOOKUP($C23,'RECAP SECT'!$G$6:$EV$253,40,FALSE) -> 8 | U23: =VLOOKUP($C23,'RECAP SECT'!$G$6:$EV$253,41,FALSE) -> 46% | V23: =VLOOKUP($C23,'RECAP SECT'!$G$6:$EV$253,42,FALSE) -> 24% | W23: =VLOOKUP($C23,'RECAP SECT'!$G$6:$EV$253,43,FALSE) -> 15
A24: 160 | B24: MOSELLE | C24: 42 | D24: MOSELLE EST | E24: =VLOOKUP($C24,'RECAP SECT'!$G$6:$EV$253,3,FALSE) -> 83.0 | F24: =VLOOKUP($C24,'RECAP SECT'!$G$6:$EV$253,26,FALSE) -> -22.45 | G24: =VLOOKUP($C24,'RECAP SECT'!$G$6:$EV$253,27,FALSE) -> 57% | H24: =VLOOKUP($C24,'RECAP SECT'!$G$6:$EV$253,28,FALSE) -> 10 | I24: =VLOOKUP($C24,'RECAP SECT'!$G$6:$EV$253,29,FALSE) -> 5.62 | J24: =VLOOKUP($C24,'RECAP SECT'!$G$6:$EV$253,30,FALSE) -> 53% | K24: =VLOOKUP($C24,'RECAP SECT'!$G$6:$EV$253,31,FALSE) -> 13 | L24: =VLOOKUP($C24,'RECAP SECT'!$G$6:$EV$253,32,FALSE) -> 20.28 | M24: =VLOOKUP($C24,'RECAP SECT'!$G$6:$EV$253,33,FALSE) -> 8% | N24: =VLOOKUP($C24,'RECAP SECT'!$G$6:$EV$253,34,FALSE) -> 3 | O24: =VLOOKUP($C24,'RECAP SECT'!$G$6:$EV$253,35,FALSE) -> 5.41 | P24: =VLOOKUP($C24,'RECAP SECT'!$G$6:$EV$253,36,FALSE) -> 54% | Q24: =VLOOKUP($C24,'RECAP SECT'!$G$6:$EV$253,37,FALSE) -> 14 | R24: =VLOOKUP($C24,'RECAP SECT'!$G$6:$EV$253,38,FALSE) -> 90% | S24: =VLOOKUP($C24,'RECAP SECT'!$G$6:$EV$253,39,FALSE) -> 32% | T24: =VLOOKUP($C24,'RECAP SECT'!$G$6:$EV$253,40,FALSE) -> 7 | U24: =VLOOKUP($C24,'RECAP SECT'!$G$6:$EV$253,41,FALSE) -> 41% | V24: =VLOOKUP($C24,'RECAP SECT'!$G$6:$EV$253,42,FALSE) -> 19% | W24: =VLOOKUP($C24,'RECAP SECT'!$G$6:$EV$253,43,FALSE) -> 8
A25: 160 | B25: MOSELLE | C25: 44 | D25: MOSELLE NORD | E25: =VLOOKUP($C25,'RECAP SECT'!$G$6:$EV$253,3,FALSE) -> 77.6 | F25: =VLOOKUP($C25,'RECAP SECT'!$G$6:$EV$253,26,FALSE) -> -24.07 | G25: =VLOOKUP($C25,'RECAP SECT'!$G$6:$EV$253,27,FALSE) -> 69% | H25: =VLOOKUP($C25,'RECAP SECT'!$G$6:$EV$253,28,FALSE) -> 13 | I25: =VLOOKUP($C25,'RECAP SECT'!$G$6:$EV$253,29,FALSE) -> 8.62 | J25: =VLOOKUP($C25,'RECAP SECT'!$G$6:$EV$253,30,FALSE) -> 28% | K25: =VLOOKUP($C25,'RECAP SECT'!$G$6:$EV$253,31,FALSE) -> 5 | L25: =VLOOKUP($C25,'RECAP SECT'!$G$6:$EV$253,32,FALSE) -> 22.07 | M25: =VLOOKUP($C25,'RECAP SECT'!$G$6:$EV$253,33,FALSE) -> 0% | N25: =VLOOKUP($C25,'RECAP SECT'!$G$6:$EV$253,34,FALSE) -> 1 | O25: =VLOOKUP($C25,'RECAP SECT'!$G$6:$EV$253,35,FALSE) -> 6.68 | P25: =VLOOKUP($C25,'RECAP SECT'!$G$6:$EV$253,36,FALSE) -> 44% | Q25: =VLOOKUP($C25,'RECAP SECT'!$G$6:$EV$253,37,FALSE) -> 10 | R25: =VLOOKUP($C25,'RECAP SECT'!$G$6:$EV$253,38,FALSE) -> 27% | S25: =VLOOKUP($C25,'RECAP SECT'!$G$6:$EV$253,39,FALSE) -> 79% | T25: =VLOOKUP($C25,'RECAP SECT'!$G$6:$EV$253,40,FALSE) -> 16 | U25: =VLOOKUP($C25,'RECAP SECT'!$G$6:$EV$253,41,FALSE) -> 44% | V25: =VLOOKUP($C25,'RECAP SECT'!$G$6:$EV$253,42,FALSE) -> 22% | W25: =VLOOKUP($C25,'RECAP SECT'!$G$6:$EV$253,43,FALSE) -> 13
A26: 80 | B26: VOSGES | C26: 57 | D26: EPINAL | E26: =VLOOKUP($C26,'RECAP SECT'!$G$6:$EV$253,3,FALSE) -> 66.5 | F26: =VLOOKUP($C26,'RECAP SECT'!$G$6:$EV$253,26,FALSE) -> -22.50 | G26: =VLOOKUP($C26,'RECAP SECT'!$G$6:$EV$253,27,FALSE) -> 58% | H26: =VLOOKUP($C26,'RECAP SECT'!$G$6:$EV$253,28,FALSE) -> 11 | I26: =VLOOKUP($C26,'RECAP SECT'!$G$6:$EV$253,29,FALSE) -> 6.13 | J26: =VLOOKUP($C26,'RECAP SECT'!$G$6:$EV$253,30,FALSE) -> 49% | K26: =VLOOKUP($C26,'RECAP SECT'!$G$6:$EV$253,31,FALSE) -> 10 | L26: =VLOOKUP($C26,'RECAP SECT'!$G$6:$EV$253,32,FALSE) -> 12.04 | M26: =VLOOKUP($C26,'RECAP SECT'!$G$6:$EV$253,33,FALSE) -> 45% | N26: =VLOOKUP($C26,'RECAP SECT'!$G$6:$EV$253,34,FALSE) -> 17 | O26: =VLOOKUP($C26,'RECAP SECT'!$G$6:$EV$253,35,FALSE) -> 4.91 | P26: =VLOOKUP($C26,'RECAP SECT'!$G$6:$EV$253,36,FALSE) -> 59% | Q26: =VLOOKUP($C26,'RECAP SECT'!$G$6:$EV$253,37,FALSE) -> 17 | R26: =VLOOKUP($C26,'RECAP SECT'!$G$6:$EV$253,38,FALSE) -> 127% | S26: =VLOOKUP($C26,'RECAP SECT'!$G$6:$EV$253,39,FALSE) -> 4% | T26: =VLOOKUP($C26,'RECAP SECT'!$G$6:$EV$253,40,FALSE) -> 2 | U26: =VLOOKUP($C26,'RECAP SECT'!$G$6:$EV$253,41,FALSE) -> 43% | V26: =VLOOKUP($C26,'RECAP SECT'!$G$6:$EV$253,42,FALSE) -> 21% | W26: =VLOOKUP($C26,'RECAP SECT'!$G$6:$EV$253,43,FALSE) -> 10
A27: 80 | B27: VOSGES | C27: 55 | D27: SAINT DIE | E27: =VLOOKUP($C27,'RECAP SECT'!$G$6:$EV$253,3,FALSE) -> 55.8 | F27: =VLOOKUP($C27,'RECAP SECT'!$G$6:$EV$253,26,FALSE) -> -20.84 | G27: =VLOOKUP($C27,'RECAP SECT'!$G$6:$EV$253,27,FALSE) -> 46% | H27: =VLOOKUP($C27,'RECAP SECT'!$G$6:$EV$253,28,FALSE) -> 7 | I27: =VLOOKUP($C27,'RECAP SECT'!$G$6:$EV$253,29,FALSE) -> 6.46 | J27: =VLOOKUP($C27,'RECAP SECT'!$G$6:$EV$253,30,FALSE) -> 46% | K27: =VLOOKUP($C27,'RECAP SECT'!$G$6:$EV$253,31,FALSE) -> 9 | L27: =VLOOKUP($C27,'RECAP SECT'!$G$6:$EV$253,32,FALSE) -> 15.12 | M27: =VLOOKUP($C27,'RECAP SECT'!$G$6:$EV$253,33,FALSE) -> 31% | N27: =VLOOKUP($C27,'RECAP SECT'!$G$6:$EV$253,34,FALSE) -> 12 | O27: =VLOOKUP($C27,'RECAP SECT'!$G$6:$EV$253,35,FALSE) -> 9.51 | P27: =VLOOKUP($C27,'RECAP SECT'!$G$6:$EV$253,36,FALSE) -> 20% | Q27: =VLOOKUP($C27,'RECAP SECT'!$G$6:$EV$253,37,FALSE) -> 4 | R27: =VLOOKUP($C27,'RECAP SECT'!$G$6:$EV$253,38,FALSE) -> 102% | S27: =VLOOKUP($C27,'RECAP SECT'!$G$6:$EV$253,39,FALSE) -> 23% | T27: =VLOOKUP($C27,'RECAP SECT'!$G$6:$EV$253,40,FALSE) -> 5 | U27: =VLOOKUP($C27,'RECAP SECT'!$G$6:$EV$253,41,FALSE) -> 33% | V27: =VLOOKUP($C27,'RECAP SECT'!$G$6:$EV$253,42,FALSE) -> 11% | W27: =VLOOKUP($C27,'RECAP SECT'!$G$6:$EV$253,43,FALSE) -> 3
A28: Total CEGEE Directions Régionales | E28: =SUM(E10:E27) -> 1332

Sheet SE_EPARGNE
A1: Accueil | F1: BAROMETRE BDD - TERRITOIRES
F2: EPARGNE
F3: =ACCUEIL!H7 -> 2019-11-30
F7: Excédent de collecte yc DAV | I7: CA assurance vie | L7: Activité UC (CA+Arbitrage) | O7: Excédent assurance vie | R7: Excédent Epargne Bilan (hors emprunt CTO) | U7: Total Epargne
G8: coef | H8: ='RECAP DIRCOM'!BF4 -> 2% | J8: coef | K8: ='RECAP DIRCOM'!BI4 -> 2% | M8: coef | N8: ='RECAP DIRCOM'!BL4 -> 2% | P8: coef | Q8: ='RECAP DIRCOM'!BO4 -> 2% | S8: coef | T8: ='RECAP DIRCOM'!BR4 -> 7% | V8: coef | W8: ='RECAP DIRCOM'!BU4 -> 15%
A9: eds | B9: Direction | C9: eds | D9: Territoire | E9: ETP perf | F9: Réal / ETP | G9: % Ecart au 1er | H9: Rang | I9: Réal / ETP | J9: % Ecart au 1er | K9: Rang | L9: Réal / ETP | M9: % Ecart au 1er | N9: Rang | O9: Réal / ETP | P9: % Ecart au 1er | Q9: Rang | R9: Réal / ETP | S9: % Ecart au 1er | T9: Rang | U9: Moyenne ecart au 1er | V9: % Ecart au 1er | W9: Rang CEGEE
A10: 50 | B10: AUBE HAUTE MARNE | C10: 21 | D10: CHAUMONT | E10: =VLOOKUP($C10,'RECAP SECT'!$G$6:$EV$253,3,FALSE) -> 45.0 | F10: =VLOOKUP($C10,'RECAP SECT'!$G$6:$EV$253,50,FALSE) -> 81.54 | G10: =VLOOKUP($C10,'RECAP SECT'!$G$6:$EV$253,51,FALSE) -> 74% | H10: =VLOOKUP($C10,'RECAP SECT'!$G$6:$EV$253,52,FALSE) -> 10 | I10: =VLOOKUP($C10,'RECAP SECT'!$G$6:$EV$253,53,FALSE) -> 555.74 | J10: =VLOOKUP($C10,'RECAP SECT'!$G$6:$EV$253,54,FALSE) -> 21% | K10: =VLOOKUP($C10,'RECAP SECT'!$G$6:$EV$253,55,FALSE) -> 8 | L10: =VLOOKUP($C10,'RECAP SECT'!$G$6:$EV$253,56,FALSE) -> 167 | M10: =VLOOKUP($C10,'RECAP SECT'!$G$6:$EV$253,57,FALSE) -> 27% | N10: =VLOOKUP($C10,'RECAP SECT'!$G$6:$EV$253,58,FALSE) -> 13 | O10: =VLOOKUP($C10,'RECAP SECT'!$G$6:$EV$253,59,FALSE) -> 57.64 | P10: =VLOOKUP($C10,'RECAP SECT'!$G$6:$EV$253,60,FALSE) -> 78% | Q10: =VLOOKUP($C10,'RECAP SECT'!$G$6:$EV$253,61,FALSE) -> 15 | R10: =VLOOKUP($C10,'RECAP SECT'!$G$6:$EV$253,62,FALSE) -> 10.33 | S10: =VLOOKUP($C10,'RECAP SECT'!$G$6:$EV$253,63,FALSE) -> 67% | T10: =VLOOKUP($C10,'RECAP SECT'!$G$6:$EV$253,64,FALSE) -> 10 | U10: =VLOOKUP($C10,'RECAP SECT'!$G$6:$EV$253,65,FALSE) -> 58% | V10: =VLOOKUP($C10,'RECAP SECT'!$G$6:$EV$253,66,FALSE) -> 57% | W10: =VLOOKUP($C10,'RECAP SECT'!$G$6:$EV$253,67,FALSE) -> 12
A11: 50 | B11: AUBE HAUTE MARNE | C11: 14 | D11: TROYES | E11: =VLOOKUP($C11,'RECAP SECT'!$G$6:$EV$253,3,FALSE) -> 76.8 | F11: =VLOOKUP($C11,'RECAP SECT'!$G$6:$EV$253,50,FALSE) -> 105.46 | G11: =VLOOKUP($C11,'RECAP SECT'!$G$6:$EV$253,51,FALSE) -> 66% | H11: =VLOOKUP($C11,'RECAP SECT'!$G$6:$EV$253,52,FALSE) -> 7 | I11: =VLOOKUP($C11,'RECAP SECT'!$G$6:$EV$253,53,FALSE) -> 621.32 | J11: =VLOOKUP($C11,'RECAP SECT'!$G$6:$EV$253,54,FALSE) -> 12% | K11: =VLOOKUP($C11,'RECAP SECT'!$G$6:$EV$253,55,FALSE) -> 6 | L11: =VLOOKUP($C11,'RECAP SECT'!$G$6:$EV$253,56,FALSE) -> 229 | M11: =VLOOKUP($C11,'RECAP SECT'!$G$6:$EV$253,57,FALSE) -> 0% | N11: =VLOOKUP($C11,'RECAP SECT'!$G$6:$EV$253,58,FALSE) -> 1 | O11: =VLOOKUP($C11,'RECAP SECT'!$G$6:$EV$253,59,FALSE) -> 142.06 | P11: =VLOOKUP($C11,'RECAP SECT'!$G$6:$EV$253,60,FALSE) -> 46% | Q11: =VLOOKUP($C11,'RECAP SECT'!$G$6:$EV$253,61,FALSE) -> 7 | R11: =VLOOKUP($C11,'RECAP SECT'!$G$6:$EV$253,62,FALSE) -> -16.32 | S11: =VLOOKUP($C11,'RECAP SECT'!$G$6:$EV$253,63,FALSE) -> 94% | T11: =VLOOKUP($C11,'RECAP SECT'!$G$6:$EV$253,64,FALSE) -> 15 | U11: =VLOOKUP($C11,'RECAP SECT'!$G$6:$EV$253,65,FALSE) -> 60% | V11: =VLOOKUP($C11,'RECAP SECT'!$G$6:$EV$253,66,FALSE) -> 60% | W11: =VLOOKUP($C11,'RECAP SECT'!$G$6:$EV$253,67,FALSE) -> 13
A12: 262 | B12: BAS-RHIN | C12: 5060 | D12: HAGUENAU | E12: =VLOOKUP($C12,'RECAP SECT'!$G$6:$EV$253,3,FALSE) -> 87.2 | F12: =VLOOKUP($C12,'RECAP SECT'!$G$6:$EV$253,50,FALSE) -> 70.23 | G12: =VLOOKUP($C12,'RECAP SECT'!$G$6:$EV$253,51,FALSE) -> 77% | H12: =VLOOKUP($C12,'RECAP SECT'!$G$6:$EV$253,52,FALSE) -> 13 | I12: =VLOOKUP($C12,'RECAP SECT'!$G$6:$EV$253,53,FALSE) -> 435.59 | J12: =VLOOKUP($C12,'RECAP SECT'!$G$6:$EV$253,54,FALSE) -> 38% | K12: =VLOOKUP($C12,'RECAP SECT'!$G$6:$EV$253,55,FALSE) -> 17 | L12: =VLOOKUP($C12,'RECAP SECT'!$G$6:$EV$253,56,FALSE) -> 147 | M12: =VLOOKUP($C12,'RECAP SECT'!$G$6:$EV$253,57,FALSE) -> 36% | N12: =VLOOKUP($C12,'RECAP SECT'!$G$6:$EV$253,58,FALSE) -> 16 | O12: =VLOOKUP($C12,'RECAP SECT'!$G$6:$EV$253,59,FALSE) -> 64.20 | P12: =VLOOKUP($C12,'RECAP SECT'!$G$6:$EV$253,60,FALSE) -> 76% | Q12: =VLOOKUP($C12,'RECAP SECT'!$G$6:$EV$253,61,FALSE) -> 14 | R12: =VLOOKUP($C12,'RECAP SECT'!$G$6:$EV$253,62,FALSE) -> 37.95 | S12: =VLOOKUP($C12,'RECAP SECT'!$G$6:$EV$253,63,FALSE) -> 39% | T12: =VLOOKUP($C12,'RECAP SECT'!$G$6:$EV$253,64,FALSE) -> 4 | U12: =VLOOKUP($C12,'RECAP SECT'!$G$6:$EV$253,65,FALSE) -> 49% | V12: =VLOOKUP($C12,'RECAP SECT'!$G$6:$EV$253,66,FALSE) -> 48% | W12: =VLOOKUP($C12,'RECAP SECT'!$G$6:$EV$253,67,FALSE) -> 4
A13: 262 | B13: BAS-RHIN | C13: 5101 | D13: SELESTAT | E13: =VLOOKUP($C13,'RECAP SECT'!$G$6:$EV$253,3,FALSE) -> 74.4 | F13: =VLOOKUP($C13,'RECAP SECT'!$G$6:$EV$253,50,FALSE) -> 108.50 | G13: =VLOOKUP($C13,'RECAP SECT'!$G$6:$EV$253,51,FALSE) -> 65% | H13: =VLOOKUP($C13,'RECAP SECT'!$G$6:$EV$253,52,FALSE) -> 6 | I13: =VLOOKUP($C13,'RECAP SECT'!$G$6:$EV$253,53,FALSE) -> 496.80 | J13: =VLOOKUP($C13,'RECAP SECT'!$G$6:$EV$253,54,FALSE) -> 29% | K13: =VLOOKUP($C13,'RECAP SECT'!$G$6:$EV$253,55,FALSE) -> 14 | L13: =VLOOKUP($C13,'RECAP SECT'!$G$6:$EV$253,56,FALSE) -> 201 | M13: =VLOOKUP($C13,'RECAP SECT'!$G$6:$EV$253,57,FALSE) -> 12% | N13: =VLOOKUP($C13,'RECAP SECT'!$G$6:$EV$253,58,FALSE) -> 6 | O13: =VLOOKUP($C13,'RECAP SECT'!$G$6:$EV$253,59,FALSE) -> 72.12 | P13: =VLOOKUP($C13,'RECAP SECT'!$G$6:$EV$253,60,FALSE) -> 73% | Q13: =VLOOKUP($C13,'RECAP SECT'!$G$6:$EV$253,61,FALSE) -> 13 | R13: =VLOOKUP($C13,'RECAP SECT'!$G$6:$EV$253,62,FALSE) -> 20.22 | S13: =VLOOKUP($C13,'RECAP SECT'!$G$6:$EV$253,63,FALSE) -> 57% | T13: =VLOOKUP($C13,'RECAP SECT'!$G$6:$EV$253,64,FALSE) -> 6 | U13: =VLOOKUP($C13,'RECAP SECT'!$G$6:$EV$253,65,FALSE) -> 51% | V13: =VLOOKUP($C13,'RECAP SECT'!$G$6:$EV$253,66,FALSE) -> 50% | W13: =VLOOKUP($C13,'RECAP SECT'!$G$6:$EV$253,67,FALSE) -> 5
A14: 262 | B14: BAS-RHIN | C14: 5006 | D14: STRASBOURG | E14: =VLOOKUP($C14,'RECAP SECT'!$G$6:$EV$253,3,FALSE) -> 91.1 | F14: =VLOOKUP($C14,'RECAP SECT'!$G$6:$EV$253,50,FALSE) -> 93.81 | G14: =VLOOKUP($C14,'RECAP SECT'!$G$6:$EV$253,51,FALSE) -> 70% | H14: =VLOOKUP($C14,'RECAP SECT'!$G$6:$EV$253,52,FALSE) -> 9 | I14: =VLOOKUP($C14,'RECAP SECT'!$G$6:$EV$253,53,FALSE) -> 509.05 | J14: =VLOOKUP($C14,'RECAP SECT'!$G$6:$EV$253,54,FALSE) -> 28% | K14: =VLOOKUP($C14,'RECAP SECT'!$G$6:$EV$253,55,FALSE) -> 13 | L14: =VLOOKUP($C14,'RECAP SECT'!$G$6:$EV$253,56,FALSE) -> 212 | M14: =VLOOKUP($C14,'RECAP SECT'!$G$6:$EV$253,57,FALSE) -> 8% | N14: =VLOOKUP($C14,'RECAP SECT'!$G$6:$EV$253,58,FALSE) -> 3 | O14: =VLOOKUP($C14,'RECAP SECT'!$G$6:$EV$253,59,FALSE) -> 97.44 | P14: =VLOOKUP($C14,'RECAP SECT'!$G$6:$EV$253,60,FALSE) -> 63% | Q14: =VLOOKUP($C14,'RECAP SECT'!$G$6:$EV$253,61,FALSE) -> 11 | R14: =VLOOKUP($C14,'RECAP SECT'!$G$6:$EV$253,62,FALSE) -> 3.92 | S14: =VLOOKUP($C14,'RECAP SECT'!$G$6:$EV$253,63,FALSE) -> 74% | T14: =VLOOKUP($C14,'RECAP SECT'!$G$6:$EV$253,64,FALSE) -> 12 | U14: =VLOOKUP($C14,'RECAP SECT'!$G$6:$EV$253,65,FALSE) -> 57% | V14: =VLOOKUP($C14,'RECAP SECT'!$G$6:$EV$253,66,FALSE) -> 56% | W14: =VLOOKUP($C14,'RECAP SECT'!$G$6:$EV$253,67,FALSE) -> 11
A15: 264 | B15: HAUT-RHIN | C15: 5130 | D15: COLMAR | E15: =VLOOKUP($C15,'RECAP SECT'!$G$6:$EV$253,3,FALSE) -> 74.7 | F15: =VLOOKUP($C15,'RECAP SECT'!$G$6:$EV$253,50,FALSE) -> -17.84 | G15: =VLOOKUP($C15,'RECAP SECT'!$G$6:$EV$253,51,FALSE) -> 106% | H15: =VLOOKUP($C15,'RECAP SECT'!$G$6:$EV$253,52,FALSE) -> 17 | I15: =VLOOKUP($C15,'RECAP SECT'!$G$6:$EV$253,53,FALSE) -> 437.62 | J15: =VLOOKUP($C15,'RECAP SECT'!$G$6:$EV$253,54,FALSE) -> 38% | K15: =VLOOKUP($C15,'RECAP SECT'!$G$6:$EV$253,55,FALSE) -> 16 | L15: =VLOOKUP($C15,'RECAP SECT'!$G$6:$EV$253,56,FALSE) -> 166 | M15: =VLOOKUP($C15,'RECAP SECT'!$G$6:$EV$253,57,FALSE) -> 28% | N15: =VLOOKUP($C15,'RECAP SECT'!$G$6:$EV$253,58,FALSE) -> 14 | O15: =VLOOKUP($C15,'RECAP SECT'!$G$6:$EV$253,59,FALSE) -> -20.38 | P15: =VLOOKUP($C15,'RECAP SECT'!$G$6:$EV$253,60,FALSE) -> 108% | Q15: =VLOOKUP($C15,'RECAP SECT'!$G$6:$EV$253,61,FALSE) -> 18 | R15: =VLOOKUP($C15,'RECAP SECT'!$G$6:$EV$253,62,FALSE) -> 25.70 | S15: =VLOOKUP($C15,'RECAP SECT'!$G$6:$EV$253,63,FALSE) -> 52% | T15: =VLOOKUP($C15,'RECAP SECT'!$G$6:$EV$253,64,FALSE) -> 5 | U15: =VLOOKUP($C15,'RECAP SECT'!$G$6:$EV$253,65,FALSE) -> 61% | V15: =VLOOKUP($C15,'RECAP SECT'!$G$6:$EV$253,66,FALSE) -> 61% | W15: =VLOOKUP($C15,'RECAP SECT'!$G$6:$EV$253,67,FALSE) -> 14
A16: 264 | B16: HAUT-RHIN | C16: 5169 | D16: MULHOUSE | E16: =VLOOKUP($C16,'RECAP SECT'!$G$6:$EV$253,3,FALSE) -> 73.6 | F16: =VLOOKUP($C16,'RECAP SECT'!$G$6:$EV$253,50,FALSE) -> 80.48 | G16: =VLOOKUP($C16,'RECAP SECT'!$G$6:$EV$253,51,FALSE) -> 74% | H16: =VLOOKUP($C16,'RECAP SECT'!$G$6:$EV$253,52,FALSE) -> 11 | I16: =VLOOKUP($C16,'RECAP SECT'!$G$6:$EV$253,53,FALSE) -> 422.08 | J16: =VLOOKUP($C16,'RECAP SECT'!$G$6:$EV$253,54,FALSE) -> 40% | K16: =VLOOKUP($C16,'RECAP SECT'!$G$6:$EV$253,55,FALSE) -> 18 | L16: =VLOOKUP($C16,'RECAP SECT'!$G$6:$EV$253,56,FALSE) -> 134 | M16: =VLOOKUP($C16,'RECAP SECT'!$G$6:$EV$253,57,FALSE) -> 41% | N16: =VLOOKUP($C16,'RECAP SECT'!$G$6:$EV$253,58,FALSE) -> 18 | O16: =VLOOKUP($C16,'RECAP SECT'!$G$6:$EV$253,59,FALSE) -> 85.26 | P16: =VLOOKUP($C16,'RECAP SECT'!$G$6:$EV$253,60,FALSE) -> 68% | Q16: =VLOOKUP($C16,'RECAP SECT'!$G$6:$EV$253,61,FALSE) -> 12 | R16: =VLOOKUP($C16,'RECAP SECT'!$G$6:$EV$253,62,FALSE) -> 58.30 | S16: =VLOOKUP($C16,'RECAP SECT'!$G$6:$EV$253,63,FALSE) -> 19% | T16: =VLOOKUP($C16,'RECAP SECT'!$G$6:$EV$253,64,FALSE) -> 3 | U16: =VLOOKUP($C16,'RECAP SECT'!$G$6:$EV$253,65,FALSE) -> 39% | V16: =VLOOKUP($C16,'RECAP SECT'!$G$6:$EV$253,66,FALSE) -> 38% | W16: =VLOOKUP($C16,'RECAP SECT'!$G$6:$EV$253,67,FALSE) -> 3
A17: 30 | B17: MARNE-ARDENNES | C17: 6 | D17: CHALONS EN CHAMPAGNE | E17: =VLOOKUP($C17,'RECAP SECT'!$G$6:$EV$253,3,FALSE) -> 48.5 | F17: =VLOOKUP($C17,'RECAP SECT'!$G$6:$EV$253,50,FALSE) -> -32.74 | G17: =VLOOKUP($C17,'RECAP SECT'!$G$6:$EV$253,51,FALSE) -> 110% | H17: =VLOOKUP($C17,'RECAP SECT'!$G$6:$EV$253,52,FALSE) -> 18 | I17: =VLOOKUP($C17,'RECAP SECT'!$G$6:$EV$253,53,FALSE) -> 553.78 | J17: =VLOOKUP($C17,'RECAP SECT'!$G$6:$EV$253,54,FALSE) -> 21% | K17: =VLOOKUP($C17,'RECAP SECT'!$G$6:$EV$253,55,FALSE) -> 10 | L17: =VLOOKUP($C17,'RECAP SECT'!$G$6:$EV$253,56,FALSE) -> 200 | M17: =VLOOKUP($C17,'RECAP SECT'!$G$6:$EV$253,57,FALSE) -> 13% | N17: =VLOOKUP($C17,'RECAP SECT'!$G$6:$EV$253,58,FALSE) -> 7 | O17: =VLOOKUP($C17,'RECAP SECT'!$G$6:$EV$253,59,FALSE) -> 12.98 | P17: =VLOOKUP($C17,'RECAP SECT'!$G$6:$EV$253,60,FALSE) -> 95% | Q17: =VLOOKUP($C17,'RECAP SECT'!$G$6:$EV$253,61,FALSE) -> 16 | R17: =VLOOKUP($C17,'RECAP SECT'!$G$6:$EV$253,62,FALSE) -> 70.64 | S17: =VLOOKUP($C17,'RECAP SECT'!$G$6:$EV$253,63,FALSE) -> 7% | T17: =VLOOKUP($C17,'RECAP SECT'!$G$6:$EV$253,64,FALSE) -> 2 | U17: =VLOOKUP($C17,'RECAP SECT'!$G$6:$EV$253,65,FALSE) -> 35% | V17: =VLOOKUP($C17,'RECAP SECT'!$G$6:$EV$253,66,FALSE) -> 34% | W17: =VLOOKUP($C17,'RECAP SECT'!$G$6:$EV$253,67,FALSE) -> 2
A18: 30 | B18: MARNE-ARDENNES | C18: 2 | D18: CHARLEVILLE MEZIERES | E18: =VLOOKUP($C18,'RECAP SECT'!$G$6:$EV$253,3,FALSE) -> 61.7 | F18: =VLOOKUP($C18,'RECAP SECT'!$G$6:$EV$253,50,FALSE) -> 22.44 | G18: =VLOOKUP($C18,'RECAP SECT'!$G$6:$EV$253,51,FALSE) -> 93% | H18: =VLOOKUP($C18,'RECAP SECT'!$G$6:$EV$253,52,FALSE) -> 16 | I18: =VLOOKUP($C18,'RECAP SECT'!$G$6:$EV$253,53,FALSE) -> 461.10 | J18: =VLOOKUP($C18,'RECAP SECT'!$G$6:$EV$253,54,FALSE) -> 35% | K18: =VLOOKUP($C18,'RECAP SECT'!$G$6:$EV$253,55,FALSE) -> 15 | L18: =VLOOKUP($C18,'RECAP SECT'!$G$6:$EV$253,56,FALSE) -> 141 | M18: =VLOOKUP($C18,'RECAP SECT'!$G$6:$EV$253,57,FALSE) -> 39% | N18: =VLOOKUP($C18,'RECAP SECT'!$G$6:$EV$253,58,FALSE) -> 17 | O18: =VLOOKUP($C18,'RECAP SECT'!$G$6:$EV$253,59,FALSE) -> -1.37 | P18: =VLOOKUP($C18,'RECAP SECT'!$G$6:$EV$253,60,FALSE) -> 101% | Q18: =VLOOKUP($C18,'RECAP SECT'!$G$6:$EV$253,61,FALSE) -> 17 | R18: =VLOOKUP($C18,'RECAP SECT'!$G$6:$EV$253,62,FALSE) -> 16.05 | S18: =VLOOKUP($C18,'RECAP SECT'!$G$6:$EV$253,63,FALSE) -> 61% | T18: =VLOOKUP($C18,'RECAP SECT'!$G$6:$EV$253,64,FALSE) -> 7 | U18: =VLOOKUP($C18,'RECAP SECT'!$G$6:$EV$253,65,FALSE) -> 64% | V18: =VLOOKUP($C18,'RECAP SECT'!$G$6:$EV$253,66,FALSE) -> 64% | W18: =VLOOKUP($C18,'RECAP SECT'!$G$6:$EV$253,67,FALSE) -> 15
A19: 30 | B19: MARNE-ARDENNES | C19: 11 | D19: REIMS | E19: =VLOOKUP($C19,'RECAP SECT'!$G$6:$EV$253,3,FALSE) -> 89.2 | F19: =VLOOKUP($C19,'RECAP SECT'!$G$6:$EV$253,50,FALSE) -> 123.57 | G19: =VLOOKUP($C19,'RECAP SECT'!$G$6:$EV$253,51,FALSE) -> 60% | H19: =VLOOKUP($C19,'RECAP SECT'!$G$6:$EV$253,52,FALSE) -> 4 | I19: =VLOOKUP($C19,'RECAP SECT'!$G$6:$EV$253,53,FALSE) -> 669.90 | J19: =VLOOKUP($C19,'RECAP SECT'!$G$6:$EV$253,54,FALSE) -> 5% | K19: =VLOOKUP($C19,'RECAP SECT'!$G$6:$EV$253,55,FALSE) -> 3 | L19: =VLOOKUP($C19,'RECAP SECT'!$G$6:$EV$253,56,FALSE) -> 171 | M19: =VLOOKUP($C19,'RECAP SECT'!$G$6:$EV$253,57,FALSE) -> 25% | N19: =VLOOKUP($C19,'RECAP SECT'!$G$6:$EV$253,58,FALSE) -> 10 | O19: =VLOOKUP($C19,'RECAP SECT'!$G$6:$EV$253,59,FALSE) -> 209.56 | P19: =VLOOKUP($C19,'RECAP SECT'!$G$6:$EV$253,60,FALSE) -> 21% | Q19: =VLOOKUP($C19,'RECAP SECT'!$G$6:$EV$253,61,FALSE) -> 2 | R19: =VLOOKUP($C19,'RECAP SECT'!$G$6:$EV$253,62,FALSE) -> -0.64 | S19: =VLOOKUP($C19,'RECAP SECT'!$G$6:$EV$253,63,FALSE) -> 78% | T19: =VLOOKUP($C19,'RECAP SECT'!$G$6:$EV$253,64,FALSE) -> 13 | U19: =VLOOKUP($C19,'RECAP SECT'!$G$6:$EV$253,65,FALSE) -> 51% | V19: =VLOOKUP($C19,'RECAP SECT'!$G$6:$EV$253,66,FALSE) -> 51% | W19: =VLOOKUP($C19,'RECAP SECT'!$G$6:$EV$253,67,FALSE) -> 6
A20: 110 | B20: MEURTHE ET MOSELLE MEUSE | C20: 26 | D20: NANCY | E20: =VLOOKUP($C20,'RECAP SECT'!$G$6:$EV$253,3,FALSE) -> 77.3 | F20: =VLOOKUP($C20,'RECAP SECT'!$G$6:$EV$253,50,FALSE) -> 64.97 | G20: =VLOOKUP($C20,'RECAP SECT'!$G$6:$EV$253,51,FALSE) -> 79% | H20: =VLOOKUP($C20,'RECAP SECT'!$G$6:$EV$253,52,FALSE) -> 14 | I20: =VLOOKUP($C20,'RECAP SECT'!$G$6:$EV$253,53,FALSE) -> 599.01 | J20: =VLOOKUP($C20,'RECAP SECT'!$G$6:$EV$253,54,FALSE) -> 15% | K20: =VLOOKUP($C20,'RECAP SECT'!$G$6:$EV$253,55,FALSE) -> 7 | L20: =VLOOKUP($C20,'RECAP SECT'!$G$6:$EV$253,56,FALSE) -> 175 | M20: =VLOOKUP($C20,'RECAP SECT'!$G$6:$EV$253,57,FALSE) -> 24% | N20: =VLOOKUP($C20,'RECAP SECT'!$G$6:$EV$253,58,FALSE) -> 9 | O20: =VLOOKUP($C20,'RECAP SECT'!$G$6:$EV$253,59,FALSE) -> 132.98 | P20: =VLOOKUP($C20,'RECAP SECT'!$G$6:$EV$253,60,FALSE) -> 50% | Q20: =VLOOKUP($C20,'RECAP SECT'!$G$6:$EV$253,61,FALSE) -> 8 | R20: =VLOOKUP($C20,'RECAP SECT'!$G$6:$EV$253,62,FALSE) -> 10.81 | S20: =VLOOKUP($C20,'RECAP SECT'!$G$6:$EV$253,63,FALSE) -> 67% | T20: =VLOOKUP($C20,'RECAP SECT'!$G$6:$EV$253,64,FALSE) -> 9 | U20: =VLOOKUP($C20,'RECAP SECT'!$G$6:$EV$253,65,FALSE) -> 53% | V20: =VLOOKUP($C20,'RECAP SECT'!$G$6:$EV$253,66,FALSE) -> 53% | W20: =VLOOKUP($C20,'RECAP SECT'!$G$6:$EV$253,67,FALSE) -> 8
A21: 110 | B21: MEURTHE ET MOSELLE MEUSE | C21: 27 | D21: PONT A MOUSSON | E21: =VLOOKUP($C21,'RECAP SECT'!$G$6:$EV$253,3,FALSE) -> 86.9 | F21: =VLOOKUP($C21,'RECAP SECT'!$G$6:$EV$253,50,FALSE) -> 102.68 | G21: =VLOOKUP($C21,'RECAP SECT'!$G$6:$EV$253,51,FALSE) -> 67% | H21: =VLOOKUP($C21,'RECAP SECT'!$G$6:$EV$253,52,FALSE) -> 8 | I21: =VLOOKUP($C21,'RECAP SECT'!$G$6:$EV$253,53,FALSE) -> 555.33 | J21: =VLOOKUP($C21,'RECAP SECT'!$G$6:$EV$253,54,FALSE) -> 21% | K21: =VLOOKUP($C21,'RECAP SECT'!$G$6:$EV$253,55,FALSE) -> 9 | L21: =VLOOKUP($C21,'RECAP SECT'!$G$6:$EV$253,56,FALSE) -> 158 | M21: =VLOOKUP($C21,'RECAP SECT'!$G$6:$EV$253,57,FALSE) -> 31% | N21: =VLOOKUP($C21,'RECAP SECT'!$G$6:$EV$253,58,FALSE) -> 15 | O21: =VLOOKUP($C21,'RECAP SECT'!$G$6:$EV$253,59,FALSE) -> 179.61 | P21: =VLOOKUP($C21,'RECAP SECT'!$G$6:$EV$253,60,FALSE) -> 32% | Q21: =VLOOKUP($C21,'RECAP SECT'!$G$6:$EV$253,61,FALSE) -> 4 | R21: =VLOOKUP($C21,'RECAP SECT'!$G$6:$EV$253,62,FALSE) -> -23.34 | S21: =VLOOKUP($C21,'RECAP SECT'!$G$6:$EV$253,63,FALSE) -> 101% | T21: =VLOOKUP($C21,'RECAP SECT'!$G$6:$EV$253,64,FALSE) -> 16 | U21: =VLOOKUP($C21,'RECAP SECT'!$G$6:$EV$253,65,FALSE) -> 67% | V21: =VLOOKUP($C21,'RECAP SECT'!$G$6:$EV$253,66,FALSE) -> 67% | W21: =VLOOKUP($C21,'RECAP SECT'!$G$6:$EV$253,67,FALSE) -> 16
A22: 110 | B22: MEURTHE ET MOSELLE MEUSE | C22: 31 | D22: VERDUN | E22: =VLOOKUP($C22,'RECAP SECT'!$G$6:$EV$253,3,FALSE) -> 62.6 | F22: =VLOOKUP($C22,'RECAP SECT'!$G$6:$EV$253,50,FALSE) -> 132.36 | G22: =VLOOKUP($C22,'RECAP SECT'!$G$6:$EV$253,51,FALSE) -> 58% | H22: =VLOOKUP($C22,'RECAP SECT'!$G$6:$EV$253,52,FALSE) -> 3 | I22: =VLOOKUP($C22,'RECAP SECT'!$G$6:$EV$253,53,FALSE) -> 644.58 | J22: =VLOOKUP($C22,'RECAP SECT'!$G$6:$EV$253,54,FALSE) -> 9% | K22: =VLOOKUP($C22,'RECAP SECT'!$G$6:$EV$253,55,FALSE) -> 5 | L22: =VLOOKUP($C22,'RECAP SECT'!$G$6:$EV$253,56,FALSE) -> 195 | M22: =VLOOKUP($C22,'RECAP SECT'!$G$6:$EV$253,57,FALSE) -> 15% | N22: =VLOOKUP($C22,'RECAP SECT'!$G$6:$EV$253,58,FALSE) -> 8 | O22: =VLOOKUP($C22,'RECAP SECT'!$G$6:$EV$253,59,FALSE) -> 177.37 | P22: =VLOOKUP($C22,'RECAP SECT'!$G$6:$EV$253,60,FALSE) -> 33% | Q22: =VLOOKUP($C22,'RECAP SECT'!$G$6:$EV$253,61,FALSE) -> 5 | R22: =VLOOKUP($C22,'RECAP SECT'!$G$6:$EV$253,62,FALSE) -> -2.20 | S22: =VLOOKUP($C22,'RECAP SECT'!$G$6:$EV$253,63,FALSE) -> 80% | T22: =VLOOKUP($C22,'RECAP SECT'!$G$6:$EV$253,64,FALSE) -> 14 | U22: =VLOOKUP($C22,'RECAP SECT'!$G$6:$EV$253,65,FALSE) -> 52% | V22: =VLOOKUP($C22,'RECAP SECT'!$G$6:$EV$253,66,FALSE) -> 52% | W22: =VLOOKUP($C22,'RECAP SECT'!$G$6:$EV$253,67,FALSE) -> 7
A23: 160 | B23: MOSELLE | C23: 45 | D23: METZ | E23: =VLOOKUP($C23,'RECAP SECT'!$G$6:$EV$253,3,FALSE) -> 99.7 | F23: =VLOOKUP($C23,'RECAP SECT'!$G$6:$EV$253,50,FALSE) -> 312.02 | G23: =VLOOKUP($C23,'RECAP SECT'!$G$6:$EV$253,51,FALSE) -> 0% | H23: =VLOOKUP($C23,'RECAP SECT'!$G$6:$EV$253,52,FALSE) -> 1 | I23: =VLOOKUP($C23,'RECAP SECT'!$G$6:$EV$253,53,FALSE) -> 704.58 | J23: =VLOOKUP($C23,'RECAP SECT'!$G$6:$EV$253,54,FALSE) -> 0% | K23: =VLOOKUP($C23,'RECAP SECT'!$G$6:$EV$253,55,FALSE) -> 1 | L23: =VLOOKUP($C23,'RECAP SECT'!$G$6:$EV$253,56,FALSE) -> 219 | M23: =VLOOKUP($C23,'RECAP SECT'!$G$6:$EV$253,57,FALSE) -> 4% | N23: =VLOOKUP($C23,'RECAP SECT'!$G$6:$EV$253,58,FALSE) -> 2 | O23: =VLOOKUP($C23,'RECAP SECT'!$G$6:$EV$253,59,FALSE) -> 264.49 | P23: =VLOOKUP($C23,'RECAP SECT'!$G$6:$EV$253,60,FALSE) -> 0% | Q23: =VLOOKUP($C23,'RECAP SECT'!$G$6:$EV$253,61,FALSE) -> 1 | R23: =VLOOKUP($C23,'RECAP SECT'!$G$6:$EV$253,62,FALSE) -> 77.19 | S23: =VLOOKUP($C23,'RECAP SECT'!$G$6:$EV$253,63,FALSE) -> 0% | T23: =VLOOKUP($C23,'RECAP SECT'!$G$6:$EV$253,64,FALSE) -> 1 | U23: =VLOOKUP($C23,'RECAP SECT'!$G$6:$EV$253,65,FALSE) -> 1% | V23: =VLOOKUP($C23,'RECAP SECT'!$G$6:$EV$253,66,FALSE) -> 0% | W23: =VLOOKUP($C23,'RECAP SECT'!$G$6:$EV$253,67,FALSE) -> 1
A24: 160 | B24: MOSELLE | C24: 42 | D24: MOSELLE EST | E24: =VLOOKUP($C24,'RECAP SECT'!$G$6:$EV$253,3,FALSE) -> 83.0 | F24: =VLOOKUP($C24,'RECAP SECT'!$G$6:$EV$253,50,FALSE) -> 47.68 | G24: =VLOOKUP($C24,'RECAP SECT'!$G$6:$EV$253,51,FALSE) -> 85% | H24: =VLOOKUP($C24,'RECAP SECT'!$G$6:$EV$253,52,FALSE) -> 15 | I24: =VLOOKUP($C24,'RECAP SECT'!$G$6:$EV$253,53,FALSE) -> 540.46 | J24: =VLOOKUP($C24,'RECAP SECT'!$G$6:$EV$253,54,FALSE) -> 23% | K24: =VLOOKUP($C24,'RECAP SECT'!$G$6:$EV$253,55,FALSE) -> 12 | L24: =VLOOKUP($C24,'RECAP SECT'!$G$6:$EV$253,56,FALSE) -> 171 | M24: =VLOOKUP($C24,'RECAP SECT'!$G$6:$EV$253,57,FALSE) -> 26% | N24: =VLOOKUP($C24,'RECAP SECT'!$G$6:$EV$253,58,FALSE) -> 12 | O24: =VLOOKUP($C24,'RECAP SECT'!$G$6:$EV$253,59,FALSE) -> 117.05 | P24: =VLOOKUP($C24,'RECAP SECT'!$G$6:$EV$253,60,FALSE) -> 56% | Q24: =VLOOKUP($C24,'RECAP SECT'!$G$6:$EV$253,61,FALSE) -> 10 | R24: =VLOOKUP($C24,'RECAP SECT'!$G$6:$EV$253,62,FALSE) -> 12.45 | S24: =VLOOKUP($C24,'RECAP SECT'!$G$6:$EV$253,63,FALSE) -> 65% | T24: =VLOOKUP($C24,'RECAP SECT'!$G$6:$EV$253,64,FALSE) -> 8 | U24: =VLOOKUP($C24,'RECAP SECT'!$G$6:$EV$253,65,FALSE) -> 56% | V24: =VLOOKUP($C24,'RECAP SECT'!$G$6:$EV$253,66,FALSE) -> 55% | W24: =VLOOKUP($C24,'RECAP SECT'!$G$6:$EV$253,67,FALSE) -> 10
A25: 160 | B25: MOSELLE | C25: 44 | D25: MOSELLE NORD | E25: =VLOOKUP($C25,'RECAP SECT'!$G$6:$EV$253,3,FALSE) -> 77.6 | F25: =VLOOKUP($C25,'RECAP SECT'!$G$6:$EV$253,50,FALSE) -> 75.45 | G25: =VLOOKUP($C25,'RECAP SECT'!$G$6:$EV$253,51,FALSE) -> 76% | H25: =VLOOKUP($C25,'RECAP SECT'!$G$6:$EV$253,52,FALSE) -> 12 | I25: =VLOOKUP($C25,'RECAP SECT'!$G$6:$EV$253,53,FALSE) -> 661.51 | J25: =VLOOKUP($C25,'RECAP SECT'!$G$6:$EV$253,54,FALSE) -> 6% | K25: =VLOOKUP($C25,'RECAP SECT'!$G$6:$EV$253,55,FALSE) -> 4 | L25: =VLOOKUP($C25,'RECAP SECT'!$G$6:$EV$253,56,FALSE) -> 209 | M25: =VLOOKUP($C25,'RECAP SECT'!$G$6:$EV$253,57,FALSE) -> 9% | N25: =VLOOKUP($C25,'RECAP SECT'!$G$6:$EV$253,58,FALSE) -> 4 | O25: =VLOOKUP($C25,'RECAP SECT'!$G$6:$EV$253,59,FALSE) -> 199.34 | P25: =VLOOKUP($C25,'RECAP SECT'!$G$6:$EV$253,60,FALSE) -> 25% | Q25: =VLOOKUP($C25,'RECAP SECT'!$G$6:$EV$253,61,FALSE) -> 3 | R25: =VLOOKUP($C25,'RECAP SECT'!$G$6:$EV$253,62,FALSE) -> -72.31 | S25: =VLOOKUP($C25,'RECAP SECT'!$G$6:$EV$253,63,FALSE) -> 150% | T25: =VLOOKUP($C25,'RECAP SECT'!$G$6:$EV$253,64,FALSE) -> 18 | U25: =VLOOKUP($C25,'RECAP SECT'!$G$6:$EV$253,65,FALSE) -> 85% | V25: =VLOOKUP($C25,'RECAP SECT'!$G$6:$EV$253,66,FALSE) -> 85% | W25: =VLOOKUP($C25,'RECAP SECT'!$G$6:$EV$253,67,FALSE) -> 18
A26: 80 | B26: VOSGES | C26: 57 | D26: EPINAL | E26: =VLOOKUP($C26,'RECAP SECT'!$G$6:$EV$253,3,FALSE) -> 66.5 | F26: =VLOOKUP($C26,'RECAP SECT'!$G$6:$EV$253,50,FALSE) -> 111.05 | G26: =VLOOKUP($C26,'RECAP SECT'!$G$6:$EV$253,51,FALSE) -> 64% | H26: =VLOOKUP($C26,'RECAP SECT'!$G$6:$EV$253,52,FALSE) -> 5 | I26: =VLOOKUP($C26,'RECAP SECT'!$G$6:$EV$253,53,FALSE) -> 549.90 | J26: =VLOOKUP($C26,'RECAP SECT'!$G$6:$EV$253,54,FALSE) -> 22% | K26: =VLOOKUP($C26,'RECAP SECT'!$G$6:$EV$253,55,FALSE) -> 11 | L26: =VLOOKUP($C26,'RECAP SECT'!$G$6:$EV$253,56,FALSE) -> 171 | M26: =VLOOKUP($C26,'RECAP SECT'!$G$6:$EV$253,57,FALSE) -> 25% | N26: =VLOOKUP($C26,'RECAP SECT'!$G$6:$EV$253,58,FALSE) -> 11 | O26: =VLOOKUP($C26,'RECAP SECT'!$G$6:$EV$253,59,FALSE) -> 119.39 | P26: =VLOOKUP($C26,'RECAP SECT'!$G$6:$EV$253,60,FALSE) -> 55% | Q26: =VLOOKUP($C26,'RECAP SECT'!$G$6:$EV$253,61,FALSE) -> 9 | R26: =VLOOKUP($C26,'RECAP SECT'!$G$6:$EV$253,62,FALSE) -> 6.83 | S26: =VLOOKUP($C26,'RECAP SECT'!$G$6:$EV$253,63,FALSE) -> 71% | T26: =VLOOKUP($C26,'RECAP SECT'!$G$6:$EV$253,64,FALSE) -> 11 | U26: =VLOOKUP($C26,'RECAP SECT'!$G$6:$EV$253,65,FALSE) -> 55% | V26: =VLOOKUP($C26,'RECAP SECT'!$G$6:$EV$253,66,FALSE) -> 55% | W26: =VLOOKUP($C26,'RECAP SECT'!$G$6:$EV$253,67,FALSE) -> 9
A27: 80 | B27: VOSGES | C27: 55 | D27: SAINT DIE | E27: =VLOOKUP($C27,'RECAP SECT'!$G$6:$EV$253,3,FALSE) -> 55.8 | F27: =VLOOKUP($C27,'RECAP SECT'!$G$6:$EV$253,50,FALSE) -> 134.96 | G27: =VLOOKUP($C27,'RECAP SECT'!$G$6:$EV$253,51,FALSE) -> 57% | H27: =VLOOKUP($C27,'RECAP SECT'!$G$6:$EV$253,52,FALSE) -> 2 | I27: =VLOOKUP($C27,'RECAP SECT'!$G$6:$EV$253,53,FALSE) -> 672.82 | J27: =VLOOKUP($C27,'RECAP SECT'!$G$6:$EV$253,54,FALSE) -> 5% | K27: =VLOOKUP($C27,'RECAP SECT'!$G$6:$EV$253,55,FALSE) -> 2 | L27: =VLOOKUP($C27,'RECAP SECT'!$G$6:$EV$253,56,FALSE) -> 203 | M27: =VLOOKUP($C27,'RECAP SECT'!$G$6:$EV$253,57,FALSE) -> 11% | N27: =VLOOKUP($C27,'RECAP SECT'!$G$6:$EV$253,58,FALSE) -> 5 | O27: =VLOOKUP($C27,'RECAP SECT'!$G$6:$EV$253,59,FALSE) -> 157.51 | P27: =VLOOKUP($C27,'RECAP SECT'!$G$6:$EV$253,60,FALSE) -> 40% | Q27: =VLOOKUP($C27,'RECAP SECT'!$G$6:$EV$253,61,FALSE) -> 6 | R27: =VLOOKUP($C27,'RECAP SECT'!$G$6:$EV$253,62,FALSE) -> -35.51 | S27: =VLOOKUP($C27,'RECAP SECT'!$G$6:$EV$253,63,FALSE) -> 113% | T27: =VLOOKUP($C27,'RECAP SECT'!$G$6:$EV$253,64,FALSE) -> 17 | U27: =VLOOKUP($C27,'RECAP SECT'!$G$6:$EV$253,65,FALSE) -> 68% | V27: =VLOOKUP($C27,'RECAP SECT'!$G$6:$EV$253,66,FALSE) -> 67% | W27: =VLOOKUP($C27,'RECAP SECT'!$G$6:$EV$253,67,FALSE) -> 17
A28: Total CEGEE Directions Régionales | E28: =SUM(E10:E27) -> 1332

Sheet SE_CREDIT
A1: Accueil | F1: BAROMETRE BDD - TERRITOIRES
F2: CREDITS
F3: =ACCUEIL!H7 -> 2019-11-30
F7: Engagements crédit conso (hors clients note octroi à 9) | I7: % CNP crédit conso | L7: Engagements crédi immo | O7: % CNP crédit immo | R7: Taux couverture SACCEF | U7: Engagement Crédit MLT + Crédit Bail | X7: Total Crédits
G8: coef | H8: ='RECAP DIRCOM'!CD4 -> 3% | J8: coef | K8: ='RECAP DIRCOM'!CG4 -> 2% | M8: coef | N8: ='RECAP DIRCOM'!CJ4 -> 3% | P8: coef | Q8: ='RECAP DIRCOM'!CM4 -> 2% | S8: coef | T8: ='RECAP DIRCOM'!CP4 -> 2% | V8: coef | W8: ='RECAP DIRCOM'!CS4 -> 3% | Y8: coef | Z8: ='RECAP DIRCOM'!CV4 -> 15%
A9: eds | B9: Direction | C9: eds | D9: Territoire | E9: ETP perf | F9: Réal / ETP | G9: % Ecart au 1er | H9: Rang | J9: % Ecart au 1er | K9: Rang | L9: Taux réal objectif | M9: % Ecart au 1er | N9: Rang | P9: % Ecart au 1er | Q9: Rang | S9: % Ecart au 1er | T9: Rang | U9: Taux réal objectif | V9: % Ecart au 1er | W9: Rang | X9: Moyenne ecart au 1er | Y9: % Ecart au 1er | Z9: Rang CEGEE
A10: 50 | B10: AUBE HAUTE MARNE | C10: 21 | D10: CHAUMONT | E10: =VLOOKUP($C10,'RECAP SECT'!$G$6:$EV$253,3,FALSE) -> 45.0 | F10: =VLOOKUP($C10,'RECAP SECT'!$G$6:$EV$253,74,FALSE) -> 560.96 | G10: =VLOOKUP($C10,'RECAP SECT'!$G$6:$EV$253,75,FALSE) -> 0% | H10: =VLOOKUP($C10,'RECAP SECT'!$G$6:$EV$253,76,FALSE) -> 1 | I10: =VLOOKUP($C10,'RECAP SECT'!$G$6:$EV$253,77,FALSE) -> 94% | J10: =VLOOKUP($C10,'RECAP SECT'!$G$6:$EV$253,78,FALSE) -> 2% | K10: =VLOOKUP($C10,'RECAP SECT'!$G$6:$EV$253,79,FALSE) -> 11 | L10: =VLOOKUP($C10,'RECAP SECT'!$G$6:$EV$253,80,FALSE) -> 88% | M10: =VLOOKUP($C10,'RECAP SECT'!$G$6:$EV$253,81,FALSE) -> 48% | N10: =VLOOKUP($C10,'RECAP SECT'!$G$6:$EV$253,82,FALSE) -> 18 | O10: =VLOOKUP($C10,'RECAP SECT'!$G$6:$EV$253,83,FALSE) -> 59% | P10: =VLOOKUP($C10,'RECAP SECT'!$G$6:$EV$253,84,FALSE) -> 32% | Q10: =VLOOKUP($C10,'RECAP SECT'!$G$6:$EV$253,85,FALSE) -> 14 | R10: =VLOOKUP($C10,'RECAP SECT'!$G$6:$EV$253,86,FALSE) -> 86% | S10: =VLOOKUP($C10,'RECAP SECT'!$G$6:$EV$253,87,FALSE) -> 8% | T10: =VLOOKUP($C10,'RECAP SECT'!$G$6:$EV$253,88,FALSE) -> 11 | U10: =VLOOKUP($C10,'RECAP SECT'!$G$6:$EV$253,89,FALSE) -> 125% | V10: =VLOOKUP($C10,'RECAP SECT'!$G$6:$EV$253,90,FALSE) -> 5% | W10: =VLOOKUP($C10,'RECAP SECT'!$G$6:$EV$253,91,FALSE) -> 2 | X10: =VLOOKUP($C10,'RECAP SECT'!$G$6:$EV$253,92,FALSE) -> 16% | Y10: =VLOOKUP($C10,'RECAP SECT'!$G$6:$EV$253,93,FALSE) -> 7% | Z10: =VLOOKUP($C10,'RECAP SECT'!$G$6:$EV$253,94,FALSE) -> 7
A11: 50 | B11: AUBE HAUTE MARNE | C11: 14 | D11: TROYES | E11: =VLOOKUP($C11,'RECAP SECT'!$G$6:$EV$253,3,FALSE) -> 76.8 | F11: =VLOOKUP($C11,'RECAP SECT'!$G$6:$EV$253,74,FALSE) -> 525.38 | G11: =VLOOKUP($C11,'RECAP SECT'!$G$6:$EV$253,75,FALSE) -> 6% | H11: =VLOOKUP($C11,'RECAP SECT'!$G$6:$EV$253,76,FALSE) -> 5 | I11: =VLOOKUP($C11,'RECAP SECT'!$G$6:$EV$253,77,FALSE) -> 91% | J11: =VLOOKUP($C11,'RECAP SECT'!$G$6:$EV$253,78,FALSE) -> 6% | K11: =VLOOKUP($C11,'RECAP SECT'!$G$6:$EV$253,79,FALSE) -> 16 | L11: =VLOOKUP($C11,'RECAP SECT'!$G$6:$EV$253,80,FALSE) -> 114% | M11: =VLOOKUP($C11,'RECAP SECT'!$G$6:$EV$253,81,FALSE) -> 32% | N11: =VLOOKUP($C11,'RECAP SECT'!$G$6:$EV$253,82,FALSE) -> 11 | O11: =VLOOKUP($C11,'RECAP SECT'!$G$6:$EV$253,83,FALSE) -> 64% | P11: =VLOOKUP($C11,'RECAP SECT'!$G$6:$EV$253,84,FALSE) -> 26% | Q11: =VLOOKUP($C11,'RECAP SECT'!$G$6:$EV$253,85,FALSE) -> 11 | R11: =VLOOKUP($C11,'RECAP SECT'!$G$6:$EV$253,86,FALSE) -> 85% | S11: =VLOOKUP($C11,'RECAP SECT'!$G$6:$EV$253,87,FALSE) -> 10% | T11: =VLOOKUP($C11,'RECAP SECT'!$G$6:$EV$253,88,FALSE) -> 14 | U11: =VLOOKUP($C11,'RECAP SECT'!$G$6:$EV$253,89,FALSE) -> 100% | V11: =VLOOKUP($C11,'RECAP SECT'!$G$6:$EV$253,90,FALSE) -> 24% | W11: =VLOOKUP($C11,'RECAP SECT'!$G$6:$EV$253,91,FALSE) -> 8 | X11: =VLOOKUP($C11,'RECAP SECT'!$G$6:$EV$253,92,FALSE) -> 18% | Y11: =VLOOKUP($C11,'RECAP SECT'!$G$6:$EV$253,93,FALSE) -> 9% | Z11: =VLOOKUP($C11,'RECAP SECT'!$G$6:$EV$253,94,FALSE) -> 9
A12: 262 | B12: BAS-RHIN | C12: 5060 | D12: HAGUENAU | E12: =VLOOKUP($C12,'RECAP SECT'!$G$6:$EV$253,3,FALSE) -> 87.2 | F12: =VLOOKUP($C12,'RECAP SECT'!$G$6:$EV$253,74,FALSE) -> 429.55 | G12: =VLOOKUP($C12,'RECAP SECT'!$G$6:$EV$253,75,FALSE) -> 23% | H12: =VLOOKUP($C12,'RECAP SECT'!$G$6:$EV$253,76,FALSE) -> 15 | I12: =VLOOKUP($C12,'RECAP SECT'!$G$6:$EV$253,77,FALSE) -> 96% | J12: =VLOOKUP($C12,'RECAP SECT'!$G$6:$EV$253,78,FALSE) -> 1% | K12: =VLOOKUP($C12,'RECAP SECT'!$G$6:$EV$253,79,FALSE) -> 3 | L12: =VLOOKUP($C12,'RECAP SECT'!$G$6:$EV$253,80,FALSE) -> 104% | M12: =VLOOKUP($C12,'RECAP SECT'!$G$6:$EV$253,81,FALSE) -> 38% | N12: =VLOOKUP($C12,'RECAP SECT'!$G$6:$EV$253,82,FALSE) -> 17 | O12: =VLOOKUP($C12,'RECAP SECT'!$G$6:$EV$253,83,FALSE) -> 60% | P12: =VLOOKUP($C12,'RECAP SECT'!$G$6:$EV$253,84,FALSE) -> 31% | Q12: =VLOOKUP($C12,'RECAP SECT'!$G$6:$EV$253,85,FALSE) -> 13 | R12: =VLOOKUP($C12,'RECAP SECT'!$G$6:$EV$253,86,FALSE) -> 85% | S12: =VLOOKUP($C12,'RECAP SECT'!$G$6:$EV$253,87,FALSE) -> 9% | T12: =VLOOKUP($C12,'RECAP SECT'!$G$6:$EV$253,88,FALSE) -> 12 | U12: =VLOOKUP($C12,'RECAP SECT'!$G$6:$EV$253,89,FALSE) -> 78% | V12: =VLOOKUP($C12,'RECAP SECT'!$G$6:$EV$253,90,FALSE) -> 40% | W12: =VLOOKUP($C12,'RECAP SECT'!$G$6:$EV$253,91,FALSE) -> 14 | X12: =VLOOKUP($C12,'RECAP SECT'!$G$6:$EV$253,92,FALSE) -> 26% | Y12: =VLOOKUP($C12,'RECAP SECT'!$G$6:$EV$253,93,FALSE) -> 17% | Z12: =VLOOKUP($C12,'RECAP SECT'!$G$6:$EV$253,94,FALSE) -> 17
A13: 262 | B13: BAS-RHIN | C13: 5101 | D13: SELESTAT | E13: =VLOOKUP($C13,'RECAP SECT'!$G$6:$EV$253,3,FALSE) -> 74.4 | F13: =VLOOKUP($C13,'RECAP SECT'!$G$6:$EV$253,74,FALSE) -> 430.95 | G13: =VLOOKUP($C13,'RECAP SECT'!$G$6:$EV$253,75,FALSE) -> 23% | H13: =VLOOKUP($C13,'RECAP SECT'!$G$6:$EV$253,76,FALSE) -> 14 | I13: =VLOOKUP($C13,'RECAP SECT'!$G$6:$EV$253,77,FALSE) -> 95% | J13: =VLOOKUP($C13,'RECAP SECT'!$G$6:$EV$253,78,FALSE) -> 2% | K13: =VLOOKUP($C13,'RECAP SECT'!$G$6:$EV$253,79,FALSE) -> 8 | L13: =VLOOKUP($C13,'RECAP SECT'!$G$6:$EV$253,80,FALSE) -> 119% | M13: =VLOOKUP($C13,'RECAP SECT'!$G$6:$EV$253,81,FALSE) -> 30% | N13: =VLOOKUP($C13,'RECAP SECT'!$G$6:$EV$253,82,FALSE) -> 10 | O13: =VLOOKUP($C13,'RECAP SECT'!$G$6:$EV$253,83,FALSE) -> 58% | P13: =VLOOKUP($C13,'RECAP SECT'!$G$6:$EV$253,84,FALSE) -> 33% | Q13: =VLOOKUP($C13,'RECAP SECT'!$G$6:$EV$253,85,FALSE) -> 15 | R13: =VLOOKUP($C13,'RECAP SECT'!$G$6:$EV$253,86,FALSE) -> 87% | S13: =VLOOKUP($C13,'RECAP SECT'!$G$6:$EV$253,87,FALSE) -> 8% | T13: =VLOOKUP($C13,'RECAP SECT'!$G$6:$EV$253,88,FALSE) -> 9 | U13: =VLOOKUP($C13,'RECAP SECT'!$G$6:$EV$253,89,FALSE) -> 104% | V13: =VLOOKUP($C13,'RECAP SECT'!$G$6:$EV$253,90,FALSE) -> 21% | W13: =VLOOKUP($C13,'RECAP SECT'!$G$6:$EV$253,91,FALSE) -> 6 | X13: =VLOOKUP($C13,'RECAP SECT'!$G$6:$EV$253,92,FALSE) -> 20% | Y13: =VLOOKUP($C13,'RECAP SECT'!$G$6:$EV$253,93,FALSE) -> 12% | Z13: =VLOOKUP($C13,'RECAP SECT'!$G$6:$EV$253,94,FALSE) -> 13
A14: 262 | B14: BAS-RHIN | C14: 5006 | D14: STRASBOURG | E14: =VLOOKUP($C14,'RECAP SECT'!$G$6:$EV$253,3,FALSE) -> 91.1 | F14: =VLOOKUP($C14,'RECAP SECT'!$G$6:$EV$253,74,FALSE) -> 376.66 | G14: =VLOOKUP($C14,'RECAP SECT'!$G$6:$EV$253,75,FALSE) -> 33% | H14: =VLOOKUP($C14,'RECAP SECT'!$G$6:$EV$253,76,FALSE) -> 18 | I14: =VLOOKUP($C14,'RECAP SECT'!$G$6:$EV$253,77,FALSE) -> 91% | J14: =VLOOKUP($C14,'RECAP SECT'!$G$6:$EV$253,78,FALSE) -> 6% | K14: =VLOOKUP($C14,'RECAP SECT'!$G$6:$EV$253,79,FALSE) -> 15 | L14: =VLOOKUP($C14,'RECAP SECT'!$G$6:$EV$253,80,FALSE) -> 135% | M14: =VLOOKUP($C14,'RECAP SECT'!$G$6:$EV$253,81,FALSE) -> 20% | N14: =VLOOKUP($C14,'RECAP SECT'!$G$6:$EV$253,82,FALSE) -> 8 | O14: =VLOOKUP($C14,'RECAP SECT'!$G$6:$EV$253,83,FALSE) -> 51% | P14: =VLOOKUP($C14,'RECAP SECT'!$G$6:$EV$253,84,FALSE) -> 41% | Q14: =VLOOKUP($C14,'RECAP SECT'!$G$6:$EV$253,85,FALSE) -> 18 | R14: =VLOOKUP($C14,'RECAP SECT'!$G$6:$EV$253,86,FALSE) -> 84% | S14: =VLOOKUP($C14,'RECAP SECT'!$G$6:$EV$253,87,FALSE) -> 10% | T14: =VLOOKUP($C14,'RECAP SECT'!$G$6:$EV$253,88,FALSE) -> 15 | U14: =VLOOKUP($C14,'RECAP SECT'!$G$6:$EV$253,89,FALSE) -> 131% | V14: =VLOOKUP($C14,'RECAP SECT'!$G$6:$EV$253,90,FALSE) -> 0% | W14: =VLOOKUP($C14,'RECAP SECT'!$G$6:$EV$253,91,FALSE) -> 1 | X14: =VLOOKUP($C14,'RECAP SECT'!$G$6:$EV$253,92,FALSE) -> 18% | Y14: =VLOOKUP($C14,'RECAP SECT'!$G$6:$EV$253,93,FALSE) -> 10% | Z14: =VLOOKUP($C14,'RECAP SECT'!$G$6:$EV$253,94,FALSE) -> 10
A15: 264 | B15: HAUT-RHIN | C15: 5130 | D15: COLMAR | E15: =VLOOKUP($C15,'RECAP SECT'!$G$6:$EV$253,3,FALSE) -> 74.7 | F15: =VLOOKUP($C15,'RECAP SECT'!$G$6:$EV$253,74,FALSE) -> 390.61 | G15: =VLOOKUP($C15,'RECAP SECT'!$G$6:$EV$253,75,FALSE) -> 30% | H15: =VLOOKUP($C15,'RECAP SECT'!$G$6:$EV$253,76,FALSE) -> 17 | I15: =VLOOKUP($C15,'RECAP SECT'!$G$6:$EV$253,77,FALSE) -> 90% | J15: =VLOOKUP($C15,'RECAP SECT'!$G$6:$EV$253,78,FALSE) -> 7% | K15: =VLOOKUP($C15,'RECAP SECT'!$G$6:$EV$253,79,FALSE) -> 17 | L15: =VLOOKUP($C15,'RECAP SECT'!$G$6:$EV$253,80,FALSE) -> 111% | M15: =VLOOKUP($C15,'RECAP SECT'!$G$6:$EV$253,81,FALSE) -> 34% | N15: =VLOOKUP($C15,'RECAP SECT'!$G$6:$EV$253,82,FALSE) -> 15 | O15: =VLOOKUP($C15,'RECAP SECT'!$G$6:$EV$253,83,FALSE) -> 62% | P15: =VLOOKUP($C15,'RECAP SECT'!$G$6:$EV$253,84,FALSE) -> 29% | Q15: =VLOOKUP($C15,'RECAP SECT'!$G$6:$EV$253,85,FALSE) -> 12 | R15: =VLOOKUP($C15,'RECAP SECT'!$G$6:$EV$253,86,FALSE) -> 79% | S15: =VLOOKUP($C15,'RECAP SECT'!$G$6:$EV$253,87,FALSE) -> 16% | T15: =VLOOKUP($C15,'RECAP SECT'!$G$6:$EV$253,88,FALSE) -> 17 | U15: =VLOOKUP($C15,'RECAP SECT'!$G$6:$EV$253,89,FALSE) -> 58% | V15: =VLOOKUP($C15,'RECAP SECT'!$G$6:$EV$253,90,FALSE) -> 55% | W15: =VLOOKUP($C15,'RECAP SECT'!$G$6:$EV$253,91,FALSE) -> 16 | X15: =VLOOKUP($C15,'RECAP SECT'!$G$6:$EV$253,92,FALSE) -> 31% | Y15: =VLOOKUP($C15,'RECAP SECT'!$G$6:$EV$253,93,FALSE) -> 22% | Z15: =VLOOKUP($C15,'RECAP SECT'!$G$6:$EV$253,94,FALSE) -> 18
A16: 264 | B16: HAUT-RHIN | C16: 5169 | D16: MULHOUSE | E16: =VLOOKUP($C16,'RECAP SECT'!$G$6:$EV$253,3,FALSE) -> 73.6 | F16: =VLOOKUP($C16,'RECAP SECT'!$G$6:$EV$253,74,FALSE) -> 458.89 | G16: =VLOOKUP($C16,'RECAP SECT'!$G$6:$EV$253,75,FALSE) -> 18% | H16: =VLOOKUP($C16,'RECAP SECT'!$G$6:$EV$253,76,FALSE) -> 13 | I16: =VLOOKUP($C16,'RECAP SECT'!$G$6:$EV$253,77,FALSE) -> 96% | J16: =VLOOKUP($C16,'RECAP SECT'!$G$6:$EV$253,78,FALSE) -> 1% | K16: =VLOOKUP($C16,'RECAP SECT'!$G$6:$EV$253,79,FALSE) -> 6 | L16: =VLOOKUP($C16,'RECAP SECT'!$G$6:$EV$253,80,FALSE) -> 131% | M16: =VLOOKUP($C16,'RECAP SECT'!$G$6:$EV$253,81,FALSE) -> 22% | N16: =VLOOKUP($C16,'RECAP SECT'!$G$6:$EV$253,82,FALSE) -> 9 | O16: =VLOOKUP($C16,'RECAP SECT'!$G$6:$EV$253,83,FALSE) -> 73% | P16: =VLOOKUP($C16,'RECAP SECT'!$G$6:$EV$253,84,FALSE) -> 16% | Q16: =VLOOKUP($C16,'RECAP SECT'!$G$6:$EV$253,85,FALSE) -> 8 | R16: =VLOOKUP($C16,'RECAP SECT'!$G$6:$EV$253,86,FALSE) -> 71% | S16: =VLOOKUP($C16,'RECAP SECT'!$G$6:$EV$253,87,FALSE) -> 25% | T16: =VLOOKUP($C16,'RECAP SECT'!$G$6:$EV$253,88,FALSE) -> 18 | U16: =VLOOKUP($C16,'RECAP SECT'!$G$6:$EV$253,89,FALSE) -> 122% | V16: =VLOOKUP($C16,'RECAP SECT'!$G$6:$EV$253,90,FALSE) -> 7% | W16: =VLOOKUP($C16,'RECAP SECT'!$G$6:$EV$253,91,FALSE) -> 3 | X16: =VLOOKUP($C16,'RECAP SECT'!$G$6:$EV$253,92,FALSE) -> 15% | Y16: =VLOOKUP($C16,'RECAP SECT'!$G$6:$EV$253,93,FALSE) -> 6% | Z16: =VLOOKUP($C16,'RECAP SECT'!$G$6:$EV$253,94,FALSE) -> 6
A17: 30 | B17: MARNE-ARDENNES | C17: 6 | D17: CHALONS EN CHAMPAGNE | E17: =VLOOKUP($C17,'RECAP SECT'!$G$6:$EV$253,3,FALSE) -> 48.5 | F17: =VLOOKUP($C17,'RECAP SECT'!$G$6:$EV$253,74,FALSE) -> 506.71 | G17: =VLOOKUP($C17,'RECAP SECT'!$G$6:$EV$253,75,FALSE) -> 10% | H17: =VLOOKUP($C17,'RECAP SECT'!$G$6:$EV$253,76,FALSE) -> 6 | I17: =VLOOKUP($C17,'RECAP SECT'!$G$6:$EV$253,77,FALSE) -> 94% | J17: =VLOOKUP($C17,'RECAP SECT'!$G$6:$EV$253,78,FALSE) -> 2% | K17: =VLOOKUP($C17,'RECAP SECT'!$G$6:$EV$253,79,FALSE) -> 10 | L17: =VLOOKUP($C17,'RECAP SECT'!$G$6:$EV$253,80,FALSE) -> 139% | M17: =VLOOKUP($C17,'RECAP SECT'!$G$6:$EV$253,81,FALSE) -> 18% | N17: =VLOOKUP($C17,'RECAP SECT'!$G$6:$EV$253,82,FALSE) -> 7 | O17: =VLOOKUP($C17,'RECAP SECT'!$G$6:$EV$253,83,FALSE) -> 81% | P17: =VLOOKUP($C17,'RECAP SECT'!$G$6:$EV$253,84,FALSE) -> 7% | Q17: =VLOOKUP($C17,'RECAP SECT'!$G$6:$EV$253,85,FALSE) -> 2 | R17: =VLOOKUP($C17,'RECAP SECT'!$G$6:$EV$253,86,FALSE) -> 89% | S17: =VLOOKUP($C17,'RECAP SECT'!$G$6:$EV$253,87,FALSE) -> 6% | T17: =VLOOKUP($C17,'RECAP SECT'!$G$6:$EV$253,88,FALSE) -> 7 | U17: =VLOOKUP($C17,'RECAP SECT'!$G$6:$EV$253,89,FALSE) -> 91% | V17: =VLOOKUP($C17,'RECAP SECT'!$G$6:$EV$253,90,FALSE) -> 31% | W17: =VLOOKUP($C17,'RECAP SECT'!$G$6:$EV$253,91,FALSE) -> 11 | X17: =VLOOKUP($C17,'RECAP SECT'!$G$6:$EV$253,92,FALSE) -> 14% | Y17: =VLOOKUP($C17,'RECAP SECT'!$G$6:$EV$253,93,FALSE) -> 5% | Z17: =VLOOKUP($C17,'RECAP SECT'!$G$6:$EV$253,94,FALSE) -> 3
A18: 30 | B18: MARNE-ARDENNES | C18: 2 | D18: CHARLEVILLE MEZIERES | E18: =VLOOKUP($C18,'RECAP SECT'!$G$6:$EV$253,3,FALSE) -> 61.7 | F18: =VLOOKUP($C18,'RECAP SECT'!$G$6:$EV$253,74,FALSE) -> 484.64 | G18: =VLOOKUP($C18,'RECAP SECT'!$G$6:$EV$253,75,FALSE) -> 14% | H18: =VLOOKUP($C18,'RECAP SECT'!$G$6:$EV$253,76,FALSE) -> 9 | I18: =VLOOKUP($C18,'RECAP SECT'!$G$6:$EV$253,77,FALSE) -> 96% | J18: =VLOOKUP($C18,'RECAP SECT'!$G$6:$EV$253,78,FALSE) -> 1% | K18: =VLOOKUP($C18,'RECAP SECT'!$G$6:$EV$253,79,FALSE) -> 5 | L18: =VLOOKUP($C18,'RECAP SECT'!$G$6:$EV$253,80,FALSE) -> 139% | M18: =VLOOKUP($C18,'RECAP SECT'!$G$6:$EV$253,81,FALSE) -> 18% | N18: =VLOOKUP($C18,'RECAP SECT'!$G$6:$EV$253,82,FALSE) -> 6 | O18: =VLOOKUP($C18,'RECAP SECT'!$G$6:$EV$253,83,FALSE) -> 87% | P18: =VLOOKUP($C18,'RECAP SECT'!$G$6:$EV$253,84,FALSE) -> 0% | Q18: =VLOOKUP($C18,'RECAP SECT'!$G$6:$EV$253,85,FALSE) -> 1 | R18: =VLOOKUP($C18,'RECAP SECT'!$G$6:$EV$253,86,FALSE) -> 86% | S18: =VLOOKUP($C18,'RECAP SECT'!$G$6:$EV$253,87,FALSE) -> 8% | T18: =VLOOKUP($C18,'RECAP SECT'!$G$6:$EV$253,88,FALSE) -> 10 | U18: =VLOOKUP($C18,'RECAP SECT'!$G$6:$EV$253,89,FALSE) -> 121% | V18: =VLOOKUP($C18,'RECAP SECT'!$G$6:$EV$253,90,FALSE) -> 8% | W18: =VLOOKUP($C18,'RECAP SECT'!$G$6:$EV$253,91,FALSE) -> 4 | X18: =VLOOKUP($C18,'RECAP SECT'!$G$6:$EV$253,92,FALSE) -> 9% | Y18: =VLOOKUP($C18,'RECAP SECT'!$G$6:$EV$253,93,FALSE) -> 0% | Z18: =VLOOKUP($C18,'RECAP SECT'!$G$6:$EV$253,94,FALSE) -> 2
A19: 30 | B19: MARNE-ARDENNES | C19: 11 | D19: REIMS | E19: =VLOOKUP($C19,'RECAP SECT'!$G$6:$EV$253,3,FALSE) -> 89.2 | F19: =VLOOKUP($C19,'RECAP SECT'!$G$6:$EV$253,74,FALSE) -> 559.40 | G19: =VLOOKUP($C19,'RECAP SECT'!$G$6:$EV$253,75,FALSE) -> 0% | H19: =VLOOKUP($C19,'RECAP SECT'!$G$6:$EV$253,76,FALSE) -> 2 | I19: =VLOOKUP($C19,'RECAP SECT'!$G$6:$EV$253,77,FALSE) -> 85% | J19: =VLOOKUP($C19,'RECAP SECT'!$G$6:$EV$253,78,FALSE) -> 12% | K19: =VLOOKUP($C19,'RECAP SECT'!$G$6:$EV$253,79,FALSE) -> 18 | L19: =VLOOKUP($C19,'RECAP SECT'!$G$6:$EV$253,80,FALSE) -> 169% | M19: =VLOOKUP($C19,'RECAP SECT'!$G$6:$EV$253,81,FALSE) -> 0% | N19: =VLOOKUP($C19,'RECAP SECT'!$G$6:$EV$253,82,FALSE) -> 1 | O19: =VLOOKUP($C19,'RECAP SECT'!$G$6:$EV$253,83,FALSE) -> 76% | P19: =VLOOKUP($C19,'RECAP SECT'!$G$6:$EV$253,84,FALSE) -> 13% | Q19: =VLOOKUP($C19,'RECAP SECT'!$G$6:$EV$253,85,FALSE) -> 5 | R19: =VLOOKUP($C19,'RECAP SECT'!$G$6:$EV$253,86,FALSE) -> 90% | S19: =VLOOKUP($C19,'RECAP SECT'!$G$6:$EV$253,87,FALSE) -> 4% | T19: =VLOOKUP($C19,'RECAP SECT'!$G$6:$EV$253,88,FALSE) -> 6 | U19: =VLOOKUP($C19,'RECAP SECT'!$G$6:$EV$253,89,FALSE) -> 99% | V19: =VLOOKUP($C19,'RECAP SECT'!$G$6:$EV$253,90,FALSE) -> 25% | W19: =VLOOKUP($C19,'RECAP SECT'!$G$6:$EV$253,91,FALSE) -> 9 | X19: =VLOOKUP($C19,'RECAP SECT'!$G$6:$EV$253,92,FALSE) -> 9% | Y19: =VLOOKUP($C19,'RECAP SECT'!$G$6:$EV$253,93,FALSE) -> 0% | Z19: =VLOOKUP($C19,'RECAP SECT'!$G$6:$EV$253,94,FALSE) -> 1
A20: 110 | B20: MEURTHE ET MOSELLE MEUSE | C20: 26 | D20: NANCY | E20: =VLOOKUP($C20,'RECAP SECT'!$G$6:$EV$253,3,FALSE) -> 77.3 | F20: =VLOOKUP($C20,'RECAP SECT'!$G$6:$EV$253,74,FALSE) -> 465.02 | G20: =VLOOKUP($C20,'RECAP SECT'!$G$6:$EV$253,75,FALSE) -> 17% | H20: =VLOOKUP($C20,'RECAP SECT'!$G$6:$EV$253,76,FALSE) -> 12 | I20: =VLOOKUP($C20,'RECAP SECT'!$G$6:$EV$253,77,FALSE) -> 92% | J20: =VLOOKUP($C20,'RECAP SECT'!$G$6:$EV$253,78,FALSE) -> 5% | K20: =VLOOKUP($C20,'RECAP SECT'!$G$6:$EV$253,79,FALSE) -> 13 | L20: =VLOOKUP($C20,'RECAP SECT'!$G$6:$EV$253,80,FALSE) -> 149% | M20: =VLOOKUP($C20,'RECAP SECT'!$G$6:$EV$253,81,FALSE) -> 12% | N20: =VLOOKUP($C20,'RECAP SECT'!$G$6:$EV$253,82,FALSE) -> 3 | O20: =VLOOKUP($C20,'RECAP SECT'!$G$6:$EV$253,83,FALSE) -> 65% | P20: =VLOOKUP($C20,'RECAP SECT'!$G$6:$EV$253,84,FALSE) -> 25% | Q20: =VLOOKUP($C20,'RECAP SECT'!$G$6:$EV$253,85,FALSE) -> 10 | R20: =VLOOKUP($C20,'RECAP SECT'!$G$6:$EV$253,86,FALSE) -> 94% | S20: =VLOOKUP($C20,'RECAP SECT'!$G$6:$EV$253,87,FALSE) -> 0% | T20: =VLOOKUP($C20,'RECAP SECT'!$G$6:$EV$253,88,FALSE) -> 1 | U20: =VLOOKUP($C20,'RECAP SECT'!$G$6:$EV$253,89,FALSE) -> 97% | V20: =VLOOKUP($C20,'RECAP SECT'!$G$6:$EV$253,90,FALSE) -> 26% | W20: =VLOOKUP($C20,'RECAP SECT'!$G$6:$EV$253,91,FALSE) -> 10 | X20: =VLOOKUP($C20,'RECAP SECT'!$G$6:$EV$253,92,FALSE) -> 15% | Y20: =VLOOKUP($C20,'RECAP SECT'!$G$6:$EV$253,93,FALSE) -> 6% | Z20: =VLOOKUP($C20,'RECAP SECT'!$G$6:$EV$253,94,FALSE) -> 5
A21: 110 | B21: MEURTHE ET MOSELLE MEUSE | C21: 27 | D21: PONT A MOUSSON | E21: =VLOOKUP($C21,'RECAP SECT'!$G$6:$EV$253,3,FALSE) -> 86.9 | F21: =VLOOKUP($C21,'RECAP SECT'!$G$6:$EV$253,74,FALSE) -> 469.59 | G21: =VLOOKUP($C21,'RECAP SECT'!$G$6:$EV$253,75,FALSE) -> 16% | H21: =VLOOKUP($C21,'RECAP SECT'!$G$6:$EV$253,76,FALSE) -> 11 | I21: =VLOOKUP($C21,'RECAP SECT'!$G$6:$EV$253,77,FALSE) -> 91% | J21: =VLOOKUP($C21,'RECAP SECT'!$G$6:$EV$253,78,FALSE) -> 6% | K21: =VLOOKUP($C21,'RECAP SECT'!$G$6:$EV$253,79,FALSE) -> 14 | L21: =VLOOKUP($C21,'RECAP SECT'!$G$6:$EV$253,80,FALSE) -> 143% | M21: =VLOOKUP($C21,'RECAP SECT'!$G$6:$EV$253,81,FALSE) -> 15% | N21: =VLOOKUP($C21,'RECAP SECT'!$G$6:$EV$253,82,FALSE) -> 4 | O21: =VLOOKUP($C21,'RECAP SECT'!$G$6:$EV$253,83,FALSE) -> 73% | P21: =VLOOKUP($C21,'RECAP SECT'!$G$6:$EV$253,84,FALSE) -> 16% | Q21: =VLOOKUP($C21,'RECAP SECT'!$G$6:$EV$253,85,FALSE) -> 6 | R21: =VLOOKUP($C21,'RECAP SECT'!$G$6:$EV$253,86,FALSE) -> 93% | S21: =VLOOKUP($C21,'RECAP SECT'!$G$6:$EV$253,87,FALSE) -> 1% | T21: =VLOOKUP($C21,'RECAP SECT'!$G$6:$EV$253,88,FALSE) -> 2 | U21: =VLOOKUP($C21,'RECAP SECT'!$G$6:$EV$253,89,FALSE) -> 80% | V21: =VLOOKUP($C21,'RECAP SECT'!$G$6:$EV$253,90,FALSE) -> 39% | W21: =VLOOKUP($C21,'RECAP SECT'!$G$6:$EV$253,91,FALSE) -> 12 | X21: =VLOOKUP($C21,'RECAP SECT'!$G$6:$EV$253,92,FALSE) -> 17% | Y21: =VLOOKUP($C21,'RECAP SECT'!$G$6:$EV$253,93,FALSE) -> 8% | Z21: =VLOOKUP($C21,'RECAP SECT'!$G$6:$EV$253,94,FALSE) -> 8
A22: 110 | B22: MEURTHE ET MOSELLE MEUSE | C22: 31 | D22: VERDUN | E22: =VLOOKUP($C22,'RECAP SECT'!$G$6:$EV$253,3,FALSE) -> 62.6 | F22: =VLOOKUP($C22,'RECAP SECT'!$G$6:$EV$253,74,FALSE) -> 537.55 | G22: =VLOOKUP($C22,'RECAP SECT'!$G$6:$EV$253,75,FALSE) -> 4% | H22: =VLOOKUP($C22,'RECAP SECT'!$G$6:$EV$253,76,FALSE) -> 4 | I22: =VLOOKUP($C22,'RECAP SECT'!$G$6:$EV$253,77,FALSE) -> 92% | J22: =VLOOKUP($C22,'RECAP SECT'!$G$6:$EV$253,78,FALSE) -> 5% | K22: =VLOOKUP($C22,'RECAP SECT'!$G$6:$EV$253,79,FALSE) -> 12 | L22: =VLOOKUP($C22,'RECAP SECT'!$G$6:$EV$253,80,FALSE) -> 111% | M22: =VLOOKUP($C22,'RECAP SECT'!$G$6:$EV$253,81,FALSE) -> 34% | N22: =VLOOKUP($C22,'RECAP SECT'!$G$6:$EV$253,82,FALSE) -> 14 | O22: =VLOOKUP($C22,'RECAP SECT'!$G$6:$EV$253,83,FALSE) -> 77% | P22: =VLOOKUP($C22,'RECAP SECT'!$G$6:$EV$253,84,FALSE) -> 11% | Q22: =VLOOKUP($C22,'RECAP SECT'!$G$6:$EV$253,85,FALSE) -> 4 | R22: =VLOOKUP($C22,'RECAP SECT'!$G$6:$EV$253,86,FALSE) -> 92% | S22: =VLOOKUP($C22,'RECAP SECT'!$G$6:$EV$253,87,FALSE) -> 2% | T22: =VLOOKUP($C22,'RECAP SECT'!$G$6:$EV$253,88,FALSE) -> 4 | U22: =VLOOKUP($C22,'RECAP SECT'!$G$6:$EV$253,89,FALSE) -> 51% | V22: =VLOOKUP($C22,'RECAP SECT'!$G$6:$EV$253,90,FALSE) -> 61% | W22: =VLOOKUP($C22,'RECAP SECT'!$G$6:$EV$253,91,FALSE) -> 17 | X22: =VLOOKUP($C22,'RECAP SECT'!$G$6:$EV$253,92,FALSE) -> 22% | Y22: =VLOOKUP($C22,'RECAP SECT'!$G$6:$EV$253,93,FALSE) -> 14% | Z22: =VLOOKUP($C22,'RECAP SECT'!$G$6:$EV$253,94,FALSE) -> 15
A23: 160 | B23: MOSELLE | C23: 45 | D23: METZ | E23: =VLOOKUP($C23,'RECAP SECT'!$G$6:$EV$253,3,FALSE) -> 99.7 | F23: =VLOOKUP($C23,'RECAP SECT'!$G$6:$EV$253,74,FALSE) -> 495.30 | G23: =VLOOKUP($C23,'RECAP SECT'!$G$6:$EV$253,75,FALSE) -> 12% | H23: =VLOOKUP($C23,'RECAP SECT'!$G$6:$EV$253,76,FALSE) -> 7 | I23: =VLOOKUP($C23,'RECAP SECT'!$G$6:$EV$253,77,FALSE) -> 95% | J23: =VLOOKUP($C23,'RECAP SECT'!$G$6:$EV$253,78,FALSE) -> 2% | K23: =VLOOKUP($C23,'RECAP SECT'!$G$6:$EV$253,79,FALSE) -> 9 | L23: =VLOOKUP($C23,'RECAP SECT'!$G$6:$EV$253,80,FALSE) -> 141% | M23: =VLOOKUP($C23,'RECAP SECT'!$G$6:$EV$253,81,FALSE) -> 16% | N23: =VLOOKUP($C23,'RECAP SECT'!$G$6:$EV$253,82,FALSE) -> 5 | O23: =VLOOKUP($C23,'RECAP SECT'!$G$6:$EV$253,83,FALSE) -> 52% | P23: =VLOOKUP($C23,'RECAP SECT'!$G$6:$EV$253,84,FALSE) -> 40% | Q23: =VLOOKUP($C23,'RECAP SECT'!$G$6:$EV$253,85,FALSE) -> 16 | R23: =VLOOKUP($C23,'RECAP SECT'!$G$6:$EV$253,86,FALSE) -> 92% | S23: =VLOOKUP($C23,'RECAP SECT'!$G$6:$EV$253,87,FALSE) -> 2% | T23: =VLOOKUP($C23,'RECAP SECT'!$G$6:$EV$253,88,FALSE) -> 5 | U23: =VLOOKUP($C23,'RECAP SECT'!$G$6:$EV$253,89,FALSE) -> 72% | V23: =VLOOKUP($C23,'RECAP SECT'!$G$6:$EV$253,90,FALSE) -> 45% | W23: =VLOOKUP($C23,'RECAP SECT'!$G$6:$EV$253,91,FALSE) -> 15 | X23: =VLOOKUP($C23,'RECAP SECT'!$G$6:$EV$253,92,FALSE) -> 20% | Y23: =VLOOKUP($C23,'RECAP SECT'!$G$6:$EV$253,93,FALSE) -> 12% | Z23: =VLOOKUP($C23,'RECAP SECT'!$G$6:$EV$253,94,FALSE) -> 12
A24: 160 | B24: MOSELLE | C24: 42 | D24: MOSELLE EST | E24: =VLOOKUP($C24,'RECAP SECT'!$G$6:$EV$253,3,FALSE) -> 83.0 | F24: =VLOOKUP($C24,'RECAP SECT'!$G$6:$EV$253,74,FALSE) -> 477.72 | G24: =VLOOKUP($C24,'RECAP SECT'!$G$6:$EV$253,75,FALSE) -> 15% | H24: =VLOOKUP($C24,'RECAP SECT'!$G$6:$EV$253,76,FALSE) -> 10 | I24: =VLOOKUP($C24,'RECAP SECT'!$G$6:$EV$253,77,FALSE) -> 96% | J24: =VLOOKUP($C24,'RECAP SECT'!$G$6:$EV$253,78,FALSE) -> 0% | K24: =VLOOKUP($C24,'RECAP SECT'!$G$6:$EV$253,79,FALSE) -> 2 | L24: =VLOOKUP($C24,'RECAP SECT'!$G$6:$EV$253,80,FALSE) -> 105% | M24: =VLOOKUP($C24,'RECAP SECT'!$G$6:$EV$253,81,FALSE) -> 38% | N24: =VLOOKUP($C24,'RECAP SECT'!$G$6:$EV$253,82,FALSE) -> 16 | O24: =VLOOKUP($C24,'RECAP SECT'!$G$6:$EV$253,83,FALSE) -> 69% | P24: =VLOOKUP($C24,'RECAP SECT'!$G$6:$EV$253,84,FALSE) -> 20% | Q24: =VLOOKUP($C24,'RECAP SECT'!$G$6:$EV$253,85,FALSE) -> 9 | R24: =VLOOKUP($C24,'RECAP SECT'!$G$6:$EV$253,86,FALSE) -> 82% | S24: =VLOOKUP($C24,'RECAP SECT'!$G$6:$EV$253,87,FALSE) -> 13% | T24: =VLOOKUP($C24,'RECAP SECT'!$G$6:$EV$253,88,FALSE) -> 16 | U24: =VLOOKUP($C24,'RECAP SECT'!$G$6:$EV$253,89,FALSE) -> 79% | V24: =VLOOKUP($C24,'RECAP SECT'!$G$6:$EV$253,90,FALSE) -> 39% | W24: =VLOOKUP($C24,'RECAP SECT'!$G$6:$EV$253,91,FALSE) -> 13 | X24: =VLOOKUP($C24,'RECAP SECT'!$G$6:$EV$253,92,FALSE) -> 23% | Y24: =VLOOKUP($C24,'RECAP SECT'!$G$6:$EV$253,93,FALSE) -> 14% | Z24: =VLOOKUP($C24,'RECAP SECT'!$G$6:$EV$253,94,FALSE) -> 16
A25: 160 | B25: MOSELLE | C25: 44 | D25: MOSELLE NORD | E25: =VLOOKUP($C25,'RECAP SECT'!$G$6:$EV$253,3,FALSE) -> 77.6 | F25: =VLOOKUP($C25,'RECAP SECT'!$G$6:$EV$253,74,FALSE) -> 537.72 | G25: =VLOOKUP($C25,'RECAP SECT'!$G$6:$EV$253,75,FALSE) -> 4% | H25: =VLOOKUP($C25,'RECAP SECT'!$G$6:$EV$253,76,FALSE) -> 3 | I25: =VLOOKUP($C25,'RECAP SECT'!$G$6:$EV$253,77,FALSE) -> 96% | J25: =VLOOKUP($C25,'RECAP SECT'!$G$6:$EV$253,78,FALSE) -> 1% | K25: =VLOOKUP($C25,'RECAP SECT'!$G$6:$EV$253,79,FALSE) -> 4 | L25: =VLOOKUP($C25,'RECAP SECT'!$G$6:$EV$253,80,FALSE) -> 152% | M25: =VLOOKUP($C25,'RECAP SECT'!$G$6:$EV$253,81,FALSE) -> 10% | N25: =VLOOKUP($C25,'RECAP SECT'!$G$6:$EV$253,82,FALSE) -> 2 | O25: =VLOOKUP($C25,'RECAP SECT'!$G$6:$EV$253,83,FALSE) -> 52% | P25: =VLOOKUP($C25,'RECAP SECT'!$G$6:$EV$253,84,FALSE) -> 40% | Q25: =VLOOKUP($C25,'RECAP SECT'!$G$6:$EV$253,85,FALSE) -> 17 | R25: =VLOOKUP($C25,'RECAP SECT'!$G$6:$EV$253,86,FALSE) -> 93% | S25: =VLOOKUP($C25,'RECAP SECT'!$G$6:$EV$253,87,FALSE) -> 1% | T25: =VLOOKUP($C25,'RECAP SECT'!$G$6:$EV$253,88,FALSE) -> 3 | U25: =VLOOKUP($C25,'RECAP SECT'!$G$6:$EV$253,89,FALSE) -> 46% | V25: =VLOOKUP($C25,'RECAP SECT'!$G$6:$EV$253,90,FALSE) -> 65% | W25: =VLOOKUP($C25,'RECAP SECT'!$G$6:$EV$253,91,FALSE) -> 18 | X25: =VLOOKUP($C25,'RECAP SECT'!$G$6:$EV$253,92,FALSE) -> 21% | Y25: =VLOOKUP($C25,'RECAP SECT'!$G$6:$EV$253,93,FALSE) -> 12% | Z25: =VLOOKUP($C25,'RECAP SECT'!$G$6:$EV$253,94,FALSE) -> 14
A26: 80 | B26: VOSGES | C26: 57 | D26: EPINAL | E26: =VLOOKUP($C26,'RECAP SECT'!$G$6:$EV$253,3,FALSE) -> 66.5 | F26: =VLOOKUP($C26,'RECAP SECT'!$G$6:$EV$253,74,FALSE) -> 423.57 | G26: =VLOOKUP($C26,'RECAP SECT'!$G$6:$EV$253,75,FALSE) -> 24% | H26: =VLOOKUP($C26,'RECAP SECT'!$G$6:$EV$253,76,FALSE) -> 16 | I26: =VLOOKUP($C26,'RECAP SECT'!$G$6:$EV$253,77,FALSE) -> 95% | J26: =VLOOKUP($C26,'RECAP SECT'!$G$6:$EV$253,78,FALSE) -> 2% | K26: =VLOOKUP($C26,'RECAP SECT'!$G$6:$EV$253,79,FALSE) -> 7 | L26: =VLOOKUP($C26,'RECAP SECT'!$G$6:$EV$253,80,FALSE) -> 114% | M26: =VLOOKUP($C26,'RECAP SECT'!$G$6:$EV$253,81,FALSE) -> 32% | N26: =VLOOKUP($C26,'RECAP SECT'!$G$6:$EV$253,82,FALSE) -> 12 | O26: =VLOOKUP($C26,'RECAP SECT'!$G$6:$EV$253,83,FALSE) -> 73% | P26: =VLOOKUP($C26,'RECAP SECT'!$G$6:$EV$253,84,FALSE) -> 16% | Q26: =VLOOKUP($C26,'RECAP SECT'!$G$6:$EV$253,85,FALSE) -> 7 | R26: =VLOOKUP($C26,'RECAP SECT'!$G$6:$EV$253,86,FALSE) -> 89% | S26: =VLOOKUP($C26,'RECAP SECT'!$G$6:$EV$253,87,FALSE) -> 6% | T26: =VLOOKUP($C26,'RECAP SECT'!$G$6:$EV$253,88,FALSE) -> 8 | U26: =VLOOKUP($C26,'RECAP SECT'!$G$6:$EV$253,89,FALSE) -> 103% | V26: =VLOOKUP($C26,'RECAP SECT'!$G$6:$EV$253,90,FALSE) -> 22% | W26: =VLOOKUP($C26,'RECAP SECT'!$G$6:$EV$253,91,FALSE) -> 7 | X26: =VLOOKUP($C26,'RECAP SECT'!$G$6:$EV$253,92,FALSE) -> 19% | Y26: =VLOOKUP($C26,'RECAP SECT'!$G$6:$EV$253,93,FALSE) -> 10% | Z26: =VLOOKUP($C26,'RECAP SECT'!$G$6:$EV$253,94,FALSE) -> 11
A27: 80 | B27: VOSGES | C27: 55 | D27: SAINT DIE | E27: =VLOOKUP($C27,'RECAP SECT'!$G$6:$EV$253,3,FALSE) -> 55.8 | F27: =VLOOKUP($C27,'RECAP SECT'!$G$6:$EV$253,74,FALSE) -> 494.84 | G27: =VLOOKUP($C27,'RECAP SECT'!$G$6:$EV$253,75,FALSE) -> 12% | H27: =VLOOKUP($C27,'RECAP SECT'!$G$6:$EV$253,76,FALSE) -> 8 | I27: =VLOOKUP($C27,'RECAP SECT'!$G$6:$EV$253,77,FALSE) -> 97% | J27: =VLOOKUP($C27,'RECAP SECT'!$G$6:$EV$253,78,FALSE) -> 0% | K27: =VLOOKUP($C27,'RECAP SECT'!$G$6:$EV$253,79,FALSE) -> 1 | L27: =VLOOKUP($C27,'RECAP SECT'!$G$6:$EV$253,80,FALSE) -> 113% | M27: =VLOOKUP($C27,'RECAP SECT'!$G$6:$EV$253,81,FALSE) -> 33% | N27: =VLOOKUP($C27,'RECAP SECT'!$G$6:$EV$253,82,FALSE) -> 13 | O27: =VLOOKUP($C27,'RECAP SECT'!$G$6:$EV$253,83,FALSE) -> 78% | P27: =VLOOKUP($C27,'RECAP SECT'!$G$6:$EV$253,84,FALSE) -> 10% | Q27: =VLOOKUP($C27,'RECAP SECT'!$G$6:$EV$253,85,FALSE) -> 3 | R27: =VLOOKUP($C27,'RECAP SECT'!$G$6:$EV$253,86,FALSE) -> 85% | S27: =VLOOKUP($C27,'RECAP SECT'!$G$6:$EV$253,87,FALSE) -> 10% | T27: =VLOOKUP($C27,'RECAP SECT'!$G$6:$EV$253,88,FALSE) -> 13 | U27: =VLOOKUP($C27,'RECAP SECT'!$G$6:$EV$253,89,FALSE) -> 112% | V27: =VLOOKUP($C27,'RECAP SECT'!$G$6:$EV$253,90,FALSE) -> 15% | W27: =VLOOKUP($C27,'RECAP SECT'!$G$6:$EV$253,91,FALSE) -> 5 | X27: =VLOOKUP($C27,'RECAP SECT'!$G$6:$EV$253,92,FALSE) -> 15% | Y27: =VLOOKUP($C27,'RECAP SECT'!$G$6:$EV$253,93,FALSE) -> 6% | Z27: =VLOOKUP($C27,'RECAP SECT'!$G$6:$EV$253,94,FALSE) -> 4
A28: Total CEGEE Directions Régionales | E28: =SUM(E10:E27) -> 1332

Sheet SE_IARD
A1: Accueil | F1: BAROMETRE BDD - TERRITOIRES
F2: IARD PREVOYANCE
F3: =ACCUEIL!H7 -> 2019-11-30
F7: Ventes nettes IARD (AUTO+MRH+Pro) | I7: Ventes nettes Prévoyance | L7: Chiffre d'affaires IARD | O7: Total IARD Prévoyance
G8: coef | H8: ='RECAP DIRCOM'!DE4 -> 7% | J8: coef | K8: ='RECAP DIRCOM'!DH4 -> 7% | M8: coef | N8: ='RECAP DIRCOM'!DK4 -> 6% | P8: coef | Q8: ='RECAP DIRCOM'!DN4 -> 20%
A9: eds | B9: Direction | C9: eds | D9: Territoire | E9: ETP perf | F9: Nb / ETP | G9: % Ecart au 1er | H9: Rang | I9: Nb / ETP | J9: % Ecart au 1er | K9: Rang | L9: Nb / ETP | M9: % Ecart au 1er | N9: Rang | O9: Moyenne ecart au 1er | P9: % Ecart au 1er | Q9: Rang CEGEE
A10: 50 | B10: AUBE HAUTE MARNE | C10: 21 | D10: CHAUMONT | E10: =VLOOKUP($C10,'RECAP SECT'!$G$6:$EV$253,3,FALSE) -> 45.0 | F10: =VLOOKUP($C10,'RECAP SECT'!$G$6:$EV$253,101,FALSE) -> 11.29 | G10: =VLOOKUP($C10,'RECAP SECT'!$G$6:$EV$253,102,FALSE) -> 18% | H10: =VLOOKUP($C10,'RECAP SECT'!$G$6:$EV$253,103,FALSE) -> 4 | I10: =VLOOKUP($C10,'RECAP SECT'!$G$6:$EV$253,104,FALSE) -> 18.82 | J10: =VLOOKUP($C10,'RECAP SECT'!$G$6:$EV$253,105,FALSE) -> 0% | K10: =VLOOKUP($C10,'RECAP SECT'!$G$6:$EV$253,106,FALSE) -> 1 | L10: =VLOOKUP($C10,'RECAP SECT'!$G$6:$EV$253,107,FALSE) -> 12.96 | M10: =VLOOKUP($C10,'RECAP SECT'!$G$6:$EV$253,108,FALSE) -> 11% | N10: =VLOOKUP($C10,'RECAP SECT'!$G$6:$EV$253,109,FALSE) -> 7 | O10: =VLOOKUP($C10,'RECAP SECT'!$G$6:$EV$253,110,FALSE) -> 10% | P10: =VLOOKUP($C10,'RECAP SECT'!$G$6:$EV$253,111,FALSE) -> 0% | Q10: =VLOOKUP($C10,'RECAP SECT'!$G$6:$EV$253,112,FALSE) -> 2
A11: 50 | B11: AUBE HAUTE MARNE | C11: 14 | D11: TROYES | E11: =VLOOKUP($C11,'RECAP SECT'!$G$6:$EV$253,3,FALSE) -> 76.8 | F11: =VLOOKUP($C11,'RECAP SECT'!$G$6:$EV$253,101,FALSE) -> 7.37 | G11: =VLOOKUP($C11,'RECAP SECT'!$G$6:$EV$253,102,FALSE) -> 47% | H11: =VLOOKUP($C11,'RECAP SECT'!$G$6:$EV$253,103,FALSE) -> 13 | I11: =VLOOKUP($C11,'RECAP SECT'!$G$6:$EV$253,104,FALSE) -> 9.92 | J11: =VLOOKUP($C11,'RECAP SECT'!$G$6:$EV$253,105,FALSE) -> 47% | K11: =VLOOKUP($C11,'RECAP SECT'!$G$6:$EV$253,106,FALSE) -> 14 | L11: =VLOOKUP($C11,'RECAP SECT'!$G$6:$EV$253,107,FALSE) -> 9.48 | M11: =VLOOKUP($C11,'RECAP SECT'!$G$6:$EV$253,108,FALSE) -> 35% | N11: =VLOOKUP($C11,'RECAP SECT'!$G$6:$EV$253,109,FALSE) -> 17 | O11: =VLOOKUP($C11,'RECAP SECT'!$G$6:$EV$253,110,FALSE) -> 43% | P11: =VLOOKUP($C11,'RECAP SECT'!$G$6:$EV$253,111,FALSE) -> 34% | Q11: =VLOOKUP($C11,'RECAP SECT'!$G$6:$EV$253,112,FALSE) -> 14
A12: 262 | B12: BAS-RHIN | C12: 5060 | D12: HAGUENAU | E12: =VLOOKUP($C12,'RECAP SECT'!$G$6:$EV$253,3,FALSE) -> 87.2 | F12: =VLOOKUP($C12,'RECAP SECT'!$G$6:$EV$253,101,FALSE) -> 8.09 | G12: =VLOOKUP($C12,'RECAP SECT'!$G$6:$EV$253,102,FALSE) -> 41% | H12: =VLOOKUP($C12,'RECAP SECT'!$G$6:$EV$253,103,FALSE) -> 11 | I12: =VLOOKUP($C12,'RECAP SECT'!$G$6:$EV$253,104,FALSE) -> 12.75 | J12: =VLOOKUP($C12,'RECAP SECT'!$G$6:$EV$253,105,FALSE) -> 32% | K12: =VLOOKUP($C12,'RECAP SECT'!$G$6:$EV$253,106,FALSE) -> 8 | L12: =VLOOKUP($C12,'RECAP SECT'!$G$6:$EV$253,107,FALSE) -> 13.43 | M12: =VLOOKUP($C12,'RECAP SECT'!$G$6:$EV$253,108,FALSE) -> 8% | N12: =VLOOKUP($C12,'RECAP SECT'!$G$6:$EV$253,109,FALSE) -> 3 | O12: =VLOOKUP($C12,'RECAP SECT'!$G$6:$EV$253,110,FALSE) -> 28% | P12: =VLOOKUP($C12,'RECAP SECT'!$G$6:$EV$253,111,FALSE) -> 19% | Q12: =VLOOKUP($C12,'RECAP SECT'!$G$6:$EV$253,112,FALSE) -> 8
A13: 262 | B13: BAS-RHIN | C13: 5101 | D13: SELESTAT | E13: =VLOOKUP($C13,'RECAP SECT'!$G$6:$EV$253,3,FALSE) -> 74.4 | F13: =VLOOKUP($C13,'RECAP SECT'!$G$6:$EV$253,101,FALSE) -> 5.93 | G13: =VLOOKUP($C13,'RECAP SECT'!$G$6:$EV$253,102,FALSE) -> 57% | H13: =VLOOKUP($C13,'RECAP SECT'!$G$6:$EV$253,103,FALSE) -> 16 | I13: =VLOOKUP($C13,'RECAP SECT'!$G$6:$EV$253,104,FALSE) -> 9.31 | J13: =VLOOKUP($C13,'RECAP SECT'!$G$6:$EV$253,105,FALSE) -> 51% | K13: =VLOOKUP($C13,'RECAP SECT'!$G$6:$EV$253,106,FALSE) -> 15 | L13: =VLOOKUP($C13,'RECAP SECT'!$G$6:$EV$253,107,FALSE) -> 11.51 | M13: =VLOOKUP($C13,'RECAP SECT'!$G$6:$EV$253,108,FALSE) -> 21% | N13: =VLOOKUP($C13,'RECAP SECT'!$G$6:$EV$253,109,FALSE) -> 13 | O13: =VLOOKUP($C13,'RECAP SECT'!$G$6:$EV$253,110,FALSE) -> 44% | P13: =VLOOKUP($C13,'RECAP SECT'!$G$6:$EV$253,111,FALSE) -> 34% | Q13: =VLOOKUP($C13,'RECAP SECT'!$G$6:$EV$253,112,FALSE) -> 15
A14: 262 | B14: BAS-RHIN | C14: 5006 | D14: STRASBOURG | E14: =VLOOKUP($C14,'RECAP SECT'!$G$6:$EV$253,3,FALSE) -> 91.1 | F14: =VLOOKUP($C14,'RECAP SECT'!$G$6:$EV$253,101,FALSE) -> 4.20 | G14: =VLOOKUP($C14,'RECAP SECT'!$G$6:$EV$253,102,FALSE) -> 70% | H14: =VLOOKUP($C14,'RECAP SECT'!$G$6:$EV$253,103,FALSE) -> 18 | I14: =VLOOKUP($C14,'RECAP SECT'!$G$6:$EV$253,104,FALSE) -> 6.55 | J14: =VLOOKUP($C14,'RECAP SECT'!$G$6:$EV$253,105,FALSE) -> 65% | K14: =VLOOKUP($C14,'RECAP SECT'!$G$6:$EV$253,106,FALSE) -> 17 | L14: =VLOOKUP($C14,'RECAP SECT'!$G$6:$EV$253,107,FALSE) -> 8.93 | M14: =VLOOKUP($C14,'RECAP SECT'!$G$6:$EV$253,108,FALSE) -> 39% | N14: =VLOOKUP($C14,'RECAP SECT'!$G$6:$EV$253,109,FALSE) -> 18 | O14: =VLOOKUP($C14,'RECAP SECT'!$G$6:$EV$253,110,FALSE) -> 59% | P14: =VLOOKUP($C14,'RECAP SECT'!$G$6:$EV$253,111,FALSE) -> 49% | Q14: =VLOOKUP($C14,'RECAP SECT'!$G$6:$EV$253,112,FALSE) -> 18
A15: 264 | B15: HAUT-RHIN | C15: 5130 | D15: COLMAR | E15: =VLOOKUP($C15,'RECAP SECT'!$G$6:$EV$253,3,FALSE) -> 74.7 | F15: =VLOOKUP($C15,'RECAP SECT'!$G$6:$EV$253,101,FALSE) -> 5.33 | G15: =VLOOKUP($C15,'RECAP SECT'!$G$6:$EV$253,102,FALSE) -> 61% | H15: =VLOOKUP($C15,'RECAP SECT'!$G$6:$EV$253,103,FALSE) -> 17 | I15: =VLOOKUP($C15,'RECAP SECT'!$G$6:$EV$253,104,FALSE) -> 8.87 | J15: =VLOOKUP($C15,'RECAP SECT'!$G$6:$EV$253,105,FALSE) -> 53% | K15: =VLOOKUP($C15,'RECAP SECT'!$G$6:$EV$253,106,FALSE) -> 16 | L15: =VLOOKUP($C15,'RECAP SECT'!$G$6:$EV$253,107,FALSE) -> 11.13 | M15: =VLOOKUP($C15,'RECAP SECT'!$G$6:$EV$253,108,FALSE) -> 24% | N15: =VLOOKUP($C15,'RECAP SECT'!$G$6:$EV$253,109,FALSE) -> 15 | O15: =VLOOKUP($C15,'RECAP SECT'!$G$6:$EV$253,110,FALSE) -> 47% | P15: =VLOOKUP($C15,'RECAP SECT'!$G$6:$EV$253,111,FALSE) -> 38% | Q15: =VLOOKUP($C15,'RECAP SECT'!$G$6:$EV$253,112,FALSE) -> 16
A16: 264 | B16: HAUT-RHIN | C16: 5169 | D16: MULHOUSE | E16: =VLOOKUP($C16,'RECAP SECT'!$G$6:$EV$253,3,FALSE) -> 73.6 | F16: =VLOOKUP($C16,'RECAP SECT'!$G$6:$EV$253,101,FALSE) -> 6.69 | G16: =VLOOKUP($C16,'RECAP SECT'!$G$6:$EV$253,102,FALSE) -> 52% | H16: =VLOOKUP($C16,'RECAP SECT'!$G$6:$EV$253,103,FALSE) -> 14 | I16: =VLOOKUP($C16,'RECAP SECT'!$G$6:$EV$253,104,FALSE) -> 4.21 | J16: =VLOOKUP($C16,'RECAP SECT'!$G$6:$EV$253,105,FALSE) -> 78% | K16: =VLOOKUP($C16,'RECAP SECT'!$G$6:$EV$253,106,FALSE) -> 18 | L16: =VLOOKUP($C16,'RECAP SECT'!$G$6:$EV$253,107,FALSE) -> 12.50 | M16: =VLOOKUP($C16,'RECAP SECT'!$G$6:$EV$253,108,FALSE) -> 14% | N16: =VLOOKUP($C16,'RECAP SECT'!$G$6:$EV$253,109,FALSE) -> 10 | O16: =VLOOKUP($C16,'RECAP SECT'!$G$6:$EV$253,110,FALSE) -> 49% | P16: =VLOOKUP($C16,'RECAP SECT'!$G$6:$EV$253,111,FALSE) -> 40% | Q16: =VLOOKUP($C16,'RECAP SECT'!$G$6:$EV$253,112,FALSE) -> 17
A17: 30 | B17: MARNE-ARDENNES | C17: 6 | D17: CHALONS EN CHAMPAGNE | E17: =VLOOKUP($C17,'RECAP SECT'!$G$6:$EV$253,3,FALSE) -> 48.5 | F17: =VLOOKUP($C17,'RECAP SECT'!$G$6:$EV$253,101,FALSE) -> 8.84 | G17: =VLOOKUP($C17,'RECAP SECT'!$G$6:$EV$253,102,FALSE) -> 36% | H17: =VLOOKUP($C17,'RECAP SECT'!$G$6:$EV$253,103,FALSE) -> 7 | I17: =VLOOKUP($C17,'RECAP SECT'!$G$6:$EV$253,104,FALSE) -> 16.16 | J17: =VLOOKUP($C17,'RECAP SECT'!$G$6:$EV$253,105,FALSE) -> 14% | K17: =VLOOKUP($C17,'RECAP SECT'!$G$6:$EV$253,106,FALSE) -> 4 | L17: =VLOOKUP($C17,'RECAP SECT'!$G$6:$EV$253,107,FALSE) -> 12.39 | M17: =VLOOKUP($C17,'RECAP SECT'!$G$6:$EV$253,108,FALSE) -> 15% | N17: =VLOOKUP($C17,'RECAP SECT'!$G$6:$EV$253,109,FALSE) -> 11 | O17: =VLOOKUP($C17,'RECAP SECT'!$G$6:$EV$253,110,FALSE) -> 22% | P17: =VLOOKUP($C17,'RECAP SECT'!$G$6:$EV$253,111,FALSE) -> 13% | Q17: =VLOOKUP($C17,'RECAP SECT'!$G$6:$EV$253,112,FALSE) -> 7
A18: 30 | B18: MARNE-ARDENNES | C18: 2 | D18: CHARLEVILLE MEZIERES | E18: =VLOOKUP($C18,'RECAP SECT'!$G$6:$EV$253,3,FALSE) -> 61.7 | F18: =VLOOKUP($C18,'RECAP SECT'!$G$6:$EV$253,101,FALSE) -> 11.81 | G18: =VLOOKUP($C18,'RECAP SECT'!$G$6:$EV$253,102,FALSE) -> 14% | H18: =VLOOKUP($C18,'RECAP SECT'!$G$6:$EV$253,103,FALSE) -> 3 | I18: =VLOOKUP($C18,'RECAP SECT'!$G$6:$EV$253,104,FALSE) -> 16.46 | J18: =VLOOKUP($C18,'RECAP SECT'!$G$6:$EV$253,105,FALSE) -> 13% | K18: =VLOOKUP($C18,'RECAP SECT'!$G$6:$EV$253,106,FALSE) -> 3 | L18: =VLOOKUP($C18,'RECAP SECT'!$G$6:$EV$253,107,FALSE) -> 14.56 | M18: =VLOOKUP($C18,'RECAP SECT'!$G$6:$EV$253,108,FALSE) -> 0% | N18: =VLOOKUP($C18,'RECAP SECT'!$G$6:$EV$253,109,FALSE) -> 1 | O18: =VLOOKUP($C18,'RECAP SECT'!$G$6:$EV$253,110,FALSE) -> 9% | P18: =VLOOKUP($C18,'RECAP SECT'!$G$6:$EV$253,111,FALSE) -> 0% | Q18: =VLOOKUP($C18,'RECAP SECT'!$G$6:$EV$253,112,FALSE) -> 1
A19: 30 | B19: MARNE-ARDENNES | C19: 11 | D19: REIMS | E19: =VLOOKUP($C19,'RECAP SECT'!$G$6:$EV$253,3,FALSE) -> 89.2 | F19: =VLOOKUP($C19,'RECAP SECT'!$G$6:$EV$253,101,FALSE) -> 10.92 | G19: =VLOOKUP($C19,'RECAP SECT'!$G$6:$EV$253,102,FALSE) -> 21% | H19: =VLOOKUP($C19,'RECAP SECT'!$G$6:$EV$253,103,FALSE) -> 5 | I19: =VLOOKUP($C19,'RECAP SECT'!$G$6:$EV$253,104,FALSE) -> 16.95 | J19: =VLOOKUP($C19,'RECAP SECT'!$G$6:$EV$253,105,FALSE) -> 10% | K19: =VLOOKUP($C19,'RECAP SECT'!$G$6:$EV$253,106,FALSE) -> 2 | L19: =VLOOKUP($C19,'RECAP SECT'!$G$6:$EV$253,107,FALSE) -> 11.44 | M19: =VLOOKUP($C19,'RECAP SECT'!$G$6:$EV$253,108,FALSE) -> 21% | N19: =VLOOKUP($C19,'RECAP SECT'!$G$6:$EV$253,109,FALSE) -> 14 | O19: =VLOOKUP($C19,'RECAP SECT'!$G$6:$EV$253,110,FALSE) -> 17% | P19: =VLOOKUP($C19,'RECAP SECT'!$G$6:$EV$253,111,FALSE) -> 8% | Q19: =VLOOKUP($C19,'RECAP SECT'!$G$6:$EV$253,112,FALSE) -> 4
A20: 110 | B20: MEURTHE ET MOSELLE MEUSE | C20: 26 | D20: NANCY | E20: =VLOOKUP($C20,'RECAP SECT'!$G$6:$EV$253,3,FALSE) -> 77.3 | F20: =VLOOKUP($C20,'RECAP SECT'!$G$6:$EV$253,101,FALSE) -> 13.38 | G20: =VLOOKUP($C20,'RECAP SECT'!$G$6:$EV$253,102,FALSE) -> 3% | H20: =VLOOKUP($C20,'RECAP SECT'!$G$6:$EV$253,103,FALSE) -> 2 | I20: =VLOOKUP($C20,'RECAP SECT'!$G$6:$EV$253,104,FALSE) -> 10.50 | J20: =VLOOKUP($C20,'RECAP SECT'!$G$6:$EV$253,105,FALSE) -> 44% | K20: =VLOOKUP($C20,'RECAP SECT'!$G$6:$EV$253,106,FALSE) -> 12 | L20: =VLOOKUP($C20,'RECAP SECT'!$G$6:$EV$253,107,FALSE) -> 13.28 | M20: =VLOOKUP($C20,'RECAP SECT'!$G$6:$EV$253,108,FALSE) -> 9% | N20: =VLOOKUP($C20,'RECAP SECT'!$G$6:$EV$253,109,FALSE) -> 4 | O20: =VLOOKUP($C20,'RECAP SECT'!$G$6:$EV$253,110,FALSE) -> 19% | P20: =VLOOKUP($C20,'RECAP SECT'!$G$6:$EV$253,111,FALSE) -> 10% | Q20: =VLOOKUP($C20,'RECAP SECT'!$G$6:$EV$253,112,FALSE) -> 5
A21: 110 | B21: MEURTHE ET MOSELLE MEUSE | C21: 27 | D21: PONT A MOUSSON | E21: =VLOOKUP($C21,'RECAP SECT'!$G$6:$EV$253,3,FALSE) -> 86.9 | F21: =VLOOKUP($C21,'RECAP SECT'!$G$6:$EV$253,101,FALSE) -> 13.80 | G21: =VLOOKUP($C21,'RECAP SECT'!$G$6:$EV$253,102,FALSE) -> 0% | H21: =VLOOKUP($C21,'RECAP SECT'!$G$6:$EV$253,103,FALSE) -> 1 | I21: =VLOOKUP($C21,'RECAP SECT'!$G$6:$EV$253,104,FALSE) -> 13.82 | J21: =VLOOKUP($C21,'RECAP SECT'!$G$6:$EV$253,105,FALSE) -> 27% | K21: =VLOOKUP($C21,'RECAP SECT'!$G$6:$EV$253,106,FALSE) -> 5 | L21: =VLOOKUP($C21,'RECAP SECT'!$G$6:$EV$253,107,FALSE) -> 14.10 | M21: =VLOOKUP($C21,'RECAP SECT'!$G$6:$EV$253,108,FALSE) -> 3% | N21: =VLOOKUP($C21,'RECAP SECT'!$G$6:$EV$253,109,FALSE) -> 2 | O21: =VLOOKUP($C21,'RECAP SECT'!$G$6:$EV$253,110,FALSE) -> 10% | P21: =VLOOKUP($C21,'RECAP SECT'!$G$6:$EV$253,111,FALSE) -> 1% | Q21: =VLOOKUP($C21,'RECAP SECT'!$G$6:$EV$253,112,FALSE) -> 3
A22: 110 | B22: MEURTHE ET MOSELLE MEUSE | C22: 31 | D22: VERDUN | E22: =VLOOKUP($C22,'RECAP SECT'!$G$6:$EV$253,3,FALSE) -> 62.6 | F22: =VLOOKUP($C22,'RECAP SECT'!$G$6:$EV$253,101,FALSE) -> 8.54 | G22: =VLOOKUP($C22,'RECAP SECT'!$G$6:$EV$253,102,FALSE) -> 38% | H22: =VLOOKUP($C22,'RECAP SECT'!$G$6:$EV$253,103,FALSE) -> 9 | I22: =VLOOKUP($C22,'RECAP SECT'!$G$6:$EV$253,104,FALSE) -> 11.56 | J22: =VLOOKUP($C22,'RECAP SECT'!$G$6:$EV$253,105,FALSE) -> 39% | K22: =VLOOKUP($C22,'RECAP SECT'!$G$6:$EV$253,106,FALSE) -> 9 | L22: =VLOOKUP($C22,'RECAP SECT'!$G$6:$EV$253,107,FALSE) -> 12.92 | M22: =VLOOKUP($C22,'RECAP SECT'!$G$6:$EV$253,108,FALSE) -> 11% | N22: =VLOOKUP($C22,'RECAP SECT'!$G$6:$EV$253,109,FALSE) -> 9 | O22: =VLOOKUP($C22,'RECAP SECT'!$G$6:$EV$253,110,FALSE) -> 30% | P22: =VLOOKUP($C22,'RECAP SECT'!$G$6:$EV$253,111,FALSE) -> 21% | Q22: =VLOOKUP($C22,'RECAP SECT'!$G$6:$EV$253,112,FALSE) -> 10
A23: 160 | B23: MOSELLE | C23: 45 | D23: METZ | E23: =VLOOKUP($C23,'RECAP SECT'!$G$6:$EV$253,3,FALSE) -> 99.7 | F23: =VLOOKUP($C23,'RECAP SECT'!$G$6:$EV$253,101,FALSE) -> 8.46 | G23: =VLOOKUP($C23,'RECAP SECT'!$G$6:$EV$253,102,FALSE) -> 39% | H23: =VLOOKUP($C23,'RECAP SECT'!$G$6:$EV$253,103,FALSE) -> 10 | I23: =VLOOKUP($C23,'RECAP SECT'!$G$6:$EV$253,104,FALSE) -> 10.51 | J23: =VLOOKUP($C23,'RECAP SECT'!$G$6:$EV$253,105,FALSE) -> 44% | K23: =VLOOKUP($C23,'RECAP SECT'!$G$6:$EV$253,106,FALSE) -> 11 | L23: =VLOOKUP($C23,'RECAP SECT'!$G$6:$EV$253,107,FALSE) -> 10.44 | M23: =VLOOKUP($C23,'RECAP SECT'!$G$6:$EV$253,108,FALSE) -> 28% | N23: =VLOOKUP($C23,'RECAP SECT'!$G$6:$EV$253,109,FALSE) -> 16 | O23: =VLOOKUP($C23,'RECAP SECT'!$G$6:$EV$253,110,FALSE) -> 37% | P23: =VLOOKUP($C23,'RECAP SECT'!$G$6:$EV$253,111,FALSE) -> 28% | Q23: =VLOOKUP($C23,'RECAP SECT'!$G$6:$EV$253,112,FALSE) -> 13
A24: 160 | B24: MOSELLE | C24: 42 | D24: MOSELLE EST | E24: =VLOOKUP($C24,'RECAP SECT'!$G$6:$EV$253,3,FALSE) -> 83.0 | F24: =VLOOKUP($C24,'RECAP SECT'!$G$6:$EV$253,101,FALSE) -> 6.30 | G24: =VLOOKUP($C24,'RECAP SECT'!$G$6:$EV$253,102,FALSE) -> 54% | H24: =VLOOKUP($C24,'RECAP SECT'!$G$6:$EV$253,103,FALSE) -> 15 | I24: =VLOOKUP($C24,'RECAP SECT'!$G$6:$EV$253,104,FALSE) -> 11.41 | J24: =VLOOKUP($C24,'RECAP SECT'!$G$6:$EV$253,105,FALSE) -> 39% | K24: =VLOOKUP($C24,'RECAP SECT'!$G$6:$EV$253,106,FALSE) -> 10 | L24: =VLOOKUP($C24,'RECAP SECT'!$G$6:$EV$253,107,FALSE) -> 12.28 | M24: =VLOOKUP($C24,'RECAP SECT'!$G$6:$EV$253,108,FALSE) -> 16% | N24: =VLOOKUP($C24,'RECAP SECT'!$G$6:$EV$253,109,FALSE) -> 12 | O24: =VLOOKUP($C24,'RECAP SECT'!$G$6:$EV$253,110,FALSE) -> 37% | P24: =VLOOKUP($C24,'RECAP SECT'!$G$6:$EV$253,111,FALSE) -> 28% | Q24: =VLOOKUP($C24,'RECAP SECT'!$G$6:$EV$253,112,FALSE) -> 12
A25: 160 | B25: MOSELLE | C25: 44 | D25: MOSELLE NORD | E25: =VLOOKUP($C25,'RECAP SECT'!$G$6:$EV$253,3,FALSE) -> 77.6 | F25: =VLOOKUP($C25,'RECAP SECT'!$G$6:$EV$253,101,FALSE) -> 10.33 | G25: =VLOOKUP($C25,'RECAP SECT'!$G$6:$EV$253,102,FALSE) -> 25% | H25: =VLOOKUP($C25,'RECAP SECT'!$G$6:$EV$253,103,FALSE) -> 6 | I25: =VLOOKUP($C25,'RECAP SECT'!$G$6:$EV$253,104,FALSE) -> 13.72 | J25: =VLOOKUP($C25,'RECAP SECT'!$G$6:$EV$253,105,FALSE) -> 27% | K25: =VLOOKUP($C25,'RECAP SECT'!$G$6:$EV$253,106,FALSE) -> 6 | L25: =VLOOKUP($C25,'RECAP SECT'!$G$6:$EV$253,107,FALSE) -> 13.07 | M25: =VLOOKUP($C25,'RECAP SECT'!$G$6:$EV$253,108,FALSE) -> 10% | N25: =VLOOKUP($C25,'RECAP SECT'!$G$6:$EV$253,109,FALSE) -> 5 | O25: =VLOOKUP($C25,'RECAP SECT'!$G$6:$EV$253,110,FALSE) -> 21% | P25: =VLOOKUP($C25,'RECAP SECT'!$G$6:$EV$253,111,FALSE) -> 12% | Q25: =VLOOKUP($C25,'RECAP SECT'!$G$6:$EV$253,112,FALSE) -> 6
A26: 80 | B26: VOSGES | C26: 57 | D26: EPINAL | E26: =VLOOKUP($C26,'RECAP SECT'!$G$6:$EV$253,3,FALSE) -> 66.5 | F26: =VLOOKUP($C26,'RECAP SECT'!$G$6:$EV$253,101,FALSE) -> 8.69 | G26: =VLOOKUP($C26,'RECAP SECT'!$G$6:$EV$253,102,FALSE) -> 37% | H26: =VLOOKUP($C26,'RECAP SECT'!$G$6:$EV$253,103,FALSE) -> 8 | I26: =VLOOKUP($C26,'RECAP SECT'!$G$6:$EV$253,104,FALSE) -> 10.31 | J26: =VLOOKUP($C26,'RECAP SECT'!$G$6:$EV$253,105,FALSE) -> 45% | K26: =VLOOKUP($C26,'RECAP SECT'!$G$6:$EV$253,106,FALSE) -> 13 | L26: =VLOOKUP($C26,'RECAP SECT'!$G$6:$EV$253,107,FALSE) -> 12.92 | M26: =VLOOKUP($C26,'RECAP SECT'!$G$6:$EV$253,108,FALSE) -> 11% | N26: =VLOOKUP($C26,'RECAP SECT'!$G$6:$EV$253,109,FALSE) -> 8 | O26: =VLOOKUP($C26,'RECAP SECT'!$G$6:$EV$253,110,FALSE) -> 32% | P26: =VLOOKUP($C26,'RECAP SECT'!$G$6:$EV$253,111,FALSE) -> 23% | Q26: =VLOOKUP($C26,'RECAP SECT'!$G$6:$EV$253,112,FALSE) -> 11
A27: 80 | B27: VOSGES | C27: 55 | D27: SAINT DIE | E27: =VLOOKUP($C27,'RECAP SECT'!$G$6:$EV$253,3,FALSE) -> 55.8 | F27: =VLOOKUP($C27,'RECAP SECT'!$G$6:$EV$253,101,FALSE) -> 7.68 | G27: =VLOOKUP($C27,'RECAP SECT'!$G$6:$EV$253,102,FALSE) -> 44% | H27: =VLOOKUP($C27,'RECAP SECT'!$G$6:$EV$253,103,FALSE) -> 12 | I27: =VLOOKUP($C27,'RECAP SECT'!$G$6:$EV$253,104,FALSE) -> 12.84 | J27: =VLOOKUP($C27,'RECAP SECT'!$G$6:$EV$253,105,FALSE) -> 32% | K27: =VLOOKUP($C27,'RECAP SECT'!$G$6:$EV$253,106,FALSE) -> 7 | L27: =VLOOKUP($C27,'RECAP SECT'!$G$6:$EV$253,107,FALSE) -> 12.98 | M27: =VLOOKUP($C27,'RECAP SECT'!$G$6:$EV$253,108,FALSE) -> 11% | N27: =VLOOKUP($C27,'RECAP SECT'!$G$6:$EV$253,109,FALSE) -> 6 | O27: =VLOOKUP($C27,'RECAP SECT'!$G$6:$EV$253,110,FALSE) -> 30% | P27: =VLOOKUP($C27,'RECAP SECT'!$G$6:$EV$253,111,FALSE) -> 20% | Q27: =VLOOKUP($C27,'RECAP SECT'!$G$6:$EV$253,112,FALSE) -> 9
A28: Total CEGEE Directions Régionales | E28: =SUM(E10:E27) -> 1332

Sheet SE_CONQUETE
A1: Accueil | F1: BAROMETRE BDD - TERRITOIRES
F2: CONQUETE
F3: =ACCUEIL!H7 -> 2019-11-30
F7: Evolution nette clients Bancarisés Principaux | I7: Evolution nette relations PREMIUM | L7: Evolution nette clients Bancarisés Principaux équipés | O7: Evolution nette clients Pro actif équipés | R7: Total Conquête
G8: coef | H8: ='RECAP DIRCOM'!M4 -> 4% | J8: coef | K8: ='RECAP DIRCOM'!P4 -> 4% | M8: coef | N8: ='RECAP DIRCOM'!S4 -> 3% | P8: coef | Q8: ='RECAP DIRCOM'!V4 -> 4% | S8: coef | T8: ='RECAP DIRCOM'!Y4 -> 15%
A9: eds | B9: Direction | C9: eds | D9: Territoire | E9: ETP perf | F9: Nb / ETP | G9: % Ecart au 1er | H9: Rang | I9: Nb / ETP | J9: % Ecart au 1er | K9: Rang | L9: Nb / ETP | M9: % Ecart au 1er | N9: Rang | O9: Taux réal objectif | P9: % Ecart au 1er | Q9: Rang | R9: Moyenne ecart au 1er | S9: % Ecart au 1er | T9: Rang CEGEE
A10: 50 | B10: AUBE HAUTE MARNE | C10: 21 | D10: CHAUMONT | E10: =VLOOKUP($C10,'RECAP SECT'!$G$6:$EV$253,3,FALSE) -> 45.0 | F10: =VLOOKUP($C10,'RECAP SECT'!$G$6:$EV$253,5,FALSE) -> 2.58 | G10: =VLOOKUP($C10,'RECAP SECT'!$G$6:$EV$253,6,FALSE) -> 33% | H10: =VLOOKUP($C10,'RECAP SECT'!$G$6:$EV$253,7,FALSE) -> 2 | I10: =VLOOKUP($C10,'RECAP SECT'!$G$6:$EV$253,8,FALSE) -> 2.69 | J10: =VLOOKUP($C10,'RECAP SECT'!$G$6:$EV$253,9,FALSE) -> 14% | K10: =VLOOKUP($C10,'RECAP SECT'!$G$6:$EV$253,10,FALSE) -> 5 | L10: =VLOOKUP($C10,'RECAP SECT'!$G$6:$EV$253,11,FALSE) -> 7.44 | M10: =VLOOKUP($C10,'RECAP SECT'!$G$6:$EV$253,12,FALSE) -> 0% | N10: =VLOOKUP($C10,'RECAP SECT'!$G$6:$EV$253,13,FALSE) -> 1 | O10: =VLOOKUP($C10,'RECAP SECT'!$G$6:$EV$253,14,FALSE) -> 0% | P10: =VLOOKUP($C10,'RECAP SECT'!$G$6:$EV$253,15,FALSE) -> 100% | Q10: =VLOOKUP($C10,'RECAP SECT'!$G$6:$EV$253,16,FALSE) -> 15 | R10: =VLOOKUP($C10,'RECAP SECT'!$G$6:$EV$253,17,FALSE) -> 39% | S10: =VLOOKUP($C10,'RECAP SECT'!$G$6:$EV$253,18,FALSE) -> 24% | T10: =VLOOKUP($C10,'RECAP SECT'!$G$6:$EV$253,19,FALSE) -> 2
A11: 50 | B11: AUBE HAUTE MARNE | C11: 14 | D11: TROYES | E11: =VLOOKUP($C11,'RECAP SECT'!$G$6:$EV$253,3,FALSE) -> 76.8 | F11: =VLOOKUP($C11,'RECAP SECT'!$G$6:$EV$253,5,FALSE) -> -0.33 | G11: =VLOOKUP($C11,'RECAP SECT'!$G$6:$EV$253,6,FALSE) -> 80% | H11: =VLOOKUP($C11,'RECAP SECT'!$G$6:$EV$253,7,FALSE) -> 8 | I11: =VLOOKUP($C11,'RECAP SECT'!$G$6:$EV$253,8,FALSE) -> 2.23 | J11: =VLOOKUP($C11,'RECAP SECT'!$G$6:$EV$253,9,FALSE) -> 29% | K11: =VLOOKUP($C11,'RECAP SECT'!$G$6:$EV$253,10,FALSE) -> 15 | L11: =VLOOKUP($C11,'RECAP SECT'!$G$6:$EV$253,11,FALSE) -> 3.25 | M11: =VLOOKUP($C11,'RECAP SECT'!$G$6:$EV$253,12,FALSE) -> 56% | N11: =VLOOKUP($C11,'RECAP SECT'!$G$6:$EV$253,13,FALSE) -> 8 | O11: =VLOOKUP($C11,'RECAP SECT'!$G$6:$EV$253,14,FALSE) -> -12% | P11: =VLOOKUP($C11,'RECAP SECT'!$G$6:$EV$253,15,FALSE) -> 110% | Q11: =VLOOKUP($C11,'RECAP SECT'!$G$6:$EV$253,16,FALSE) -> 16 | R11: =VLOOKUP($C11,'RECAP SECT'!$G$6:$EV$253,17,FALSE) -> 69% | S11: =VLOOKUP($C11,'RECAP SECT'!$G$6:$EV$253,18,FALSE) -> 54% | T11: =VLOOKUP($C11,'RECAP SECT'!$G$6:$EV$253,19,FALSE) -> 14
A12: 262 | B12: BAS-RHIN | C12: 5060 | D12: HAGUENAU | E12: =VLOOKUP($C12,'RECAP SECT'!$G$6:$EV$253,3,FALSE) -> 87.2 | F12: =VLOOKUP($C12,'RECAP SECT'!$G$6:$EV$253,5,FALSE) -> -2.36 | G12: =VLOOKUP($C12,'RECAP SECT'!$G$6:$EV$253,6,FALSE) -> 113% | H12: =VLOOKUP($C12,'RECAP SECT'!$G$6:$EV$253,7,FALSE) -> 12 | I12: =VLOOKUP($C12,'RECAP SECT'!$G$6:$EV$253,8,FALSE) -> 2.43 | J12: =VLOOKUP($C12,'RECAP SECT'!$G$6:$EV$253,9,FALSE) -> 23% | K12: =VLOOKUP($C12,'RECAP SECT'!$G$6:$EV$253,10,FALSE) -> 10 | L12: =VLOOKUP($C12,'RECAP SECT'!$G$6:$EV$253,11,FALSE) -> 0.01 | M12: =VLOOKUP($C12,'RECAP SECT'!$G$6:$EV$253,12,FALSE) -> 100% | N12: =VLOOKUP($C12,'RECAP SECT'!$G$6:$EV$253,13,FALSE) -> 14 | O12: =VLOOKUP($C12,'RECAP SECT'!$G$6:$EV$253,14,FALSE) -> 63% | P12: =VLOOKUP($C12,'RECAP SECT'!$G$6:$EV$253,15,FALSE) -> 49% | Q12: =VLOOKUP($C12,'RECAP SECT'!$G$6:$EV$253,16,FALSE) -> 8 | R12: =VLOOKUP($C12,'RECAP SECT'!$G$6:$EV$253,17,FALSE) -> 69% | S12: =VLOOKUP($C12,'RECAP SECT'!$G$6:$EV$253,18,FALSE) -> 54% | T12: =VLOOKUP($C12,'RECAP SECT'!$G$6:$EV$253,19,FALSE) -> 13
A13: 262 | B13: BAS-RHIN | C13: 5101 | D13: SELESTAT | E13: =VLOOKUP($C13,'RECAP SECT'!$G$6:$EV$253,3,FALSE) -> 74.4 | F13: =VLOOKUP($C13,'RECAP SECT'!$G$6:$EV$253,5,FALSE) -> -4.68 | G13: =VLOOKUP($C13,'RECAP SECT'!$G$6:$EV$253,6,FALSE) -> 150% | H13: =VLOOKUP($C13,'RECAP SECT'!$G$6:$EV$253,7,FALSE) -> 18 | I13: =VLOOKUP($C13,'RECAP SECT'!$G$6:$EV$253,8,FALSE) -> 2.94 | J13: =VLOOKUP($C13,'RECAP SECT'!$G$6:$EV$253,9,FALSE) -> 6% | K13: =VLOOKUP($C13,'RECAP SECT'!$G$6:$EV$253,10,FALSE) -> 2 | L13: =VLOOKUP($C13,'RECAP SECT'!$G$6:$EV$253,11,FALSE) -> -1.89 | M13: =VLOOKUP($C13,'RECAP SECT'!$G$6:$EV$253,12,FALSE) -> 125% | N13: =VLOOKUP($C13,'RECAP SECT'!$G$6:$EV$253,13,FALSE) -> 17 | O13: =VLOOKUP($C13,'RECAP SECT'!$G$6:$EV$253,14,FALSE) -> -46% | P13: =VLOOKUP($C13,'RECAP SECT'!$G$6:$EV$253,15,FALSE) -> 137% | Q13: =VLOOKUP($C13,'RECAP SECT'!$G$6:$EV$253,16,FALSE) -> 18 | R13: =VLOOKUP($C13,'RECAP SECT'!$G$6:$EV$253,17,FALSE) -> 103% | S13: =VLOOKUP($C13,'RECAP SECT'!$G$6:$EV$253,18,FALSE) -> 88% | T13: =VLOOKUP($C13,'RECAP SECT'!$G$6:$EV$253,19,FALSE) -> 18
A14: 262 | B14: BAS-RHIN | C14: 5006 | D14: STRASBOURG | E14: =VLOOKUP($C14,'RECAP SECT'!$G$6:$EV$253,3,FALSE) -> 91.1 | F14: =VLOOKUP($C14,'RECAP SECT'!$G$6:$EV$253,5,FALSE) -> -2.70 | G14: =VLOOKUP($C14,'RECAP SECT'!$G$6:$EV$253,6,FALSE) -> 118% | H14: =VLOOKUP($C14,'RECAP SECT'!$G$6:$EV$253,7,FALSE) -> 13 | I14: =VLOOKUP($C14,'RECAP SECT'!$G$6:$EV$253,8,FALSE) -> 2.44 | J14: =VLOOKUP($C14,'RECAP SECT'!$G$6:$EV$253,9,FALSE) -> 22% | K14: =VLOOKUP($C14,'RECAP SECT'!$G$6:$EV$253,10,FALSE) -> 8 | L14: =VLOOKUP($C14,'RECAP SECT'!$G$6:$EV$253,11,FALSE) -> -1.65 | M14: =VLOOKUP($C14,'RECAP SECT'!$G$6:$EV$253,12,FALSE) -> 122% | N14: =VLOOKUP($C14,'RECAP SECT'!$G$6:$EV$253,13,FALSE) -> 16 | O14: =VLOOKUP($C14,'RECAP SECT'!$G$6:$EV$253,14,FALSE) -> 123% | P14: =VLOOKUP($C14,'RECAP SECT'!$G$6:$EV$253,15,FALSE) -> 0% | Q14: =VLOOKUP($C14,'RECAP SECT'!$G$6:$EV$253,16,FALSE) -> 1 | R14: =VLOOKUP($C14,'RECAP SECT'!$G$6:$EV$253,17,FALSE) -> 62% | S14: =VLOOKUP($C14,'RECAP SECT'!$G$6:$EV$253,18,FALSE) -> 47% | T14: =VLOOKUP($C14,'RECAP SECT'!$G$6:$EV$253,19,FALSE) -> 12
A15: 264 | B15: HAUT-RHIN | C15: 5130 | D15: COLMAR | E15: =VLOOKUP($C15,'RECAP SECT'!$G$6:$EV$253,3,FALSE) -> 74.7 | F15: =VLOOKUP($C15,'RECAP SECT'!$G$6:$EV$253,5,FALSE) -> -3.88 | G15: =VLOOKUP($C15,'RECAP SECT'!$G$6:$EV$253,6,FALSE) -> 137% | H15: =VLOOKUP($C15,'RECAP SECT'!$G$6:$EV$253,7,FALSE) -> 16 | I15: =VLOOKUP($C15,'RECAP SECT'!$G$6:$EV$253,8,FALSE) -> 2.44 | J15: =VLOOKUP($C15,'RECAP SECT'!$G$6:$EV$253,9,FALSE) -> 22% | K15: =VLOOKUP($C15,'RECAP SECT'!$G$6:$EV$253,10,FALSE) -> 9 | L15: =VLOOKUP($C15,'RECAP SECT'!$G$6:$EV$253,11,FALSE) -> -0.83 | M15: =VLOOKUP($C15,'RECAP SECT'!$G$6:$EV$253,12,FALSE) -> 111% | N15: =VLOOKUP($C15,'RECAP SECT'!$G$6:$EV$253,13,FALSE) -> 15 | O15: =VLOOKUP($C15,'RECAP SECT'!$G$6:$EV$253,14,FALSE) -> 16% | P15: =VLOOKUP($C15,'RECAP SECT'!$G$6:$EV$253,15,FALSE) -> 87% | Q15: =VLOOKUP($C15,'RECAP SECT'!$G$6:$EV$253,16,FALSE) -> 12 | R15: =VLOOKUP($C15,'RECAP SECT'!$G$6:$EV$253,17,FALSE) -> 88% | S15: =VLOOKUP($C15,'RECAP SECT'!$G$6:$EV$253,18,FALSE) -> 73% | T15: =VLOOKUP($C15,'RECAP SECT'!$G$6:$EV$253,19,FALSE) -> 16
A16: 264 | B16: HAUT-RHIN | C16: 5169 | D16: MULHOUSE | E16: =VLOOKUP($C16,'RECAP SECT'!$G$6:$EV$253,3,FALSE) -> 73.6 | F16: =VLOOKUP($C16,'RECAP SECT'!$G$6:$EV$253,5,FALSE) -> -4.16 | G16: =VLOOKUP($C16,'RECAP SECT'!$G$6:$EV$253,6,FALSE) -> 142% | H16: =VLOOKUP($C16,'RECAP SECT'!$G$6:$EV$253,7,FALSE) -> 17 | I16: =VLOOKUP($C16,'RECAP SECT'!$G$6:$EV$253,8,FALSE) -> 3.14 | J16: =VLOOKUP($C16,'RECAP SECT'!$G$6:$EV$253,9,FALSE) -> 0% | K16: =VLOOKUP($C16,'RECAP SECT'!$G$6:$EV$253,10,FALSE) -> 1 | L16: =VLOOKUP($C16,'RECAP SECT'!$G$6:$EV$253,11,FALSE) -> -3.19 | M16: =VLOOKUP($C16,'RECAP SECT'!$G$6:$EV$253,12,FALSE) -> 143% | N16: =VLOOKUP($C16,'RECAP SECT'!$G$6:$EV$253,13,FALSE) -> 18 | O16: =VLOOKUP($C16,'RECAP SECT'!$G$6:$EV$253,14,FALSE) -> 14% | P16: =VLOOKUP($C16,'RECAP SECT'!$G$6:$EV$253,15,FALSE) -> 88% | Q16: =VLOOKUP($C16,'RECAP SECT'!$G$6:$EV$253,16,FALSE) -> 14 | R16: =VLOOKUP($C16,'RECAP SECT'!$G$6:$EV$253,17,FALSE) -> 90% | S16: =VLOOKUP($C16,'RECAP SECT'!$G$6:$EV$253,18,FALSE) -> 75% | T16: =VLOOKUP($C16,'RECAP SECT'!$G$6:$EV$253,19,FALSE) -> 17
A17: 30 | B17: MARNE-ARDENNES | C17: 6 | D17: CHALONS EN CHAMPAGNE | E17: =VLOOKUP($C17,'RECAP SECT'!$G$6:$EV$253,3,FALSE) -> 48.5 | F17: =VLOOKUP($C17,'RECAP SECT'!$G$6:$EV$253,5,FALSE) -> 1.67 | G17: =VLOOKUP($C17,'RECAP SECT'!$G$6:$EV$253,6,FALSE) -> 47% | H17: =VLOOKUP($C17,'RECAP SECT'!$G$6:$EV$253,7,FALSE) -> 4 | I17: =VLOOKUP($C17,'RECAP SECT'!$G$6:$EV$253,8,FALSE) -> 2.66 | J17: =VLOOKUP($C17,'RECAP SECT'!$G$6:$EV$253,9,FALSE) -> 15% | K17: =VLOOKUP($C17,'RECAP SECT'!$G$6:$EV$253,10,FALSE) -> 6 | L17: =VLOOKUP($C17,'RECAP SECT'!$G$6:$EV$253,11,FALSE) -> 4.29 | M17: =VLOOKUP($C17,'RECAP SECT'!$G$6:$EV$253,12,FALSE) -> 42% | N17: =VLOOKUP($C17,'RECAP SECT'!$G$6:$EV$253,13,FALSE) -> 5 | O17: =VLOOKUP($C17,'RECAP SECT'!$G$6:$EV$253,14,FALSE) -> -14% | P17: =VLOOKUP($C17,'RECAP SECT'!$G$6:$EV$253,15,FALSE) -> 111% | Q17: =VLOOKUP($C17,'RECAP SECT'!$G$6:$EV$253,16,FALSE) -> 17 | R17: =VLOOKUP($C17,'RECAP SECT'!$G$6:$EV$253,17,FALSE) -> 55% | S17: =VLOOKUP($C17,'RECAP SECT'!$G$6:$EV$253,18,FALSE) -> 39% | T17: =VLOOKUP($C17,'RECAP SECT'!$G$6:$EV$253,19,FALSE) -> 9
A18: 30 | B18: MARNE-ARDENNES | C18: 2 | D18: CHARLEVILLE MEZIERES | E18: =VLOOKUP($C18,'RECAP SECT'!$G$6:$EV$253,3,FALSE) -> 61.7 | F18: =VLOOKUP($C18,'RECAP SECT'!$G$6:$EV$253,5,FALSE) -> 4.59 | G18: =VLOOKUP($C18,'RECAP SECT'!$G$6:$EV$253,6,FALSE) -> 0% | H18: =VLOOKUP($C18,'RECAP SECT'!$G$6:$EV$253,7,FALSE) -> 1 | I18: =VLOOKUP($C18,'RECAP SECT'!$G$6:$EV$253,8,FALSE) -> 2.32 | J18: =VLOOKUP($C18,'RECAP SECT'!$G$6:$EV$253,9,FALSE) -> 26% | K18: =VLOOKUP($C18,'RECAP SECT'!$G$6:$EV$253,10,FALSE) -> 13 | L18: =VLOOKUP($C18,'RECAP SECT'!$G$6:$EV$253,11,FALSE) -> 5.90 | M18: =VLOOKUP($C18,'RECAP SECT'!$G$6:$EV$253,12,FALSE) -> 21% | N18: =VLOOKUP($C18,'RECAP SECT'!$G$6:$EV$253,13,FALSE) -> 3 | O18: =VLOOKUP($C18,'RECAP SECT'!$G$6:$EV$253,14,FALSE) -> 104% | P18: =VLOOKUP($C18,'RECAP SECT'!$G$6:$EV$253,15,FALSE) -> 16% | Q18: =VLOOKUP($C18,'RECAP SECT'!$G$6:$EV$253,16,FALSE) -> 3 | R18: =VLOOKUP($C18,'RECAP SECT'!$G$6:$EV$253,17,FALSE) -> 15% | S18: =VLOOKUP($C18,'RECAP SECT'!$G$6:$EV$253,18,FALSE) -> 0% | T18: =VLOOKUP($C18,'RECAP SECT'!$G$6:$EV$253,19,FALSE) -> 1
A19: 30 | B19: MARNE-ARDENNES | C19: 11 | D19: REIMS | E19: =VLOOKUP($C19,'RECAP SECT'!$G$6:$EV$253,3,FALSE) -> 89.2 | F19: =VLOOKUP($C19,'RECAP SECT'!$G$6:$EV$253,5,FALSE) -> 2.04 | G19: =VLOOKUP($C19,'RECAP SECT'!$G$6:$EV$253,6,FALSE) -> 41% | H19: =VLOOKUP($C19,'RECAP SECT'!$G$6:$EV$253,7,FALSE) -> 3 | I19: =VLOOKUP($C19,'RECAP SECT'!$G$6:$EV$253,8,FALSE) -> 2.92 | J19: =VLOOKUP($C19,'RECAP SECT'!$G$6:$EV$253,9,FALSE) -> 7% | K19: =VLOOKUP($C19,'RECAP SECT'!$G$6:$EV$253,10,FALSE) -> 3 | L19: =VLOOKUP($C19,'RECAP SECT'!$G$6:$EV$253,11,FALSE) -> 4.17 | M19: =VLOOKUP($C19,'RECAP SECT'!$G$6:$EV$253,12,FALSE) -> 44% | N19: =VLOOKUP($C19,'RECAP SECT'!$G$6:$EV$253,13,FALSE) -> 6 | O19: =VLOOKUP($C19,'RECAP SECT'!$G$6:$EV$253,14,FALSE) -> 15% | P19: =VLOOKUP($C19,'RECAP SECT'!$G$6:$EV$253,15,FALSE) -> 88% | Q19: =VLOOKUP($C19,'RECAP SECT'!$G$6:$EV$253,16,FALSE) -> 13 | R19: =VLOOKUP($C19,'RECAP SECT'!$G$6:$EV$253,17,FALSE) -> 45% | S19: =VLOOKUP($C19,'RECAP SECT'!$G$6:$EV$253,18,FALSE) -> 30% | T19: =VLOOKUP($C19,'RECAP SECT'!$G$6:$EV$253,19,FALSE) -> 3
A20: 110 | B20: MEURTHE ET MOSELLE MEUSE | C20: 26 | D20: NANCY | E20: =VLOOKUP($C20,'RECAP SECT'!$G$6:$EV$253,3,FALSE) -> 77.3 | F20: =VLOOKUP($C20,'RECAP SECT'!$G$6:$EV$253,5,FALSE) -> 0.36 | G20: =VLOOKUP($C20,'RECAP SECT'!$G$6:$EV$253,6,FALSE) -> 68% | H20: =VLOOKUP($C20,'RECAP SECT'!$G$6:$EV$253,7,FALSE) -> 6 | I20: =VLOOKUP($C20,'RECAP SECT'!$G$6:$EV$253,8,FALSE) -> 2.48 | J20: =VLOOKUP($C20,'RECAP SECT'!$G$6:$EV$253,9,FALSE) -> 21% | K20: =VLOOKUP($C20,'RECAP SECT'!$G$6:$EV$253,10,FALSE) -> 7 | L20: =VLOOKUP($C20,'RECAP SECT'!$G$6:$EV$253,11,FALSE) -> 3.05 | M20: =VLOOKUP($C20,'RECAP SECT'!$G$6:$EV$253,12,FALSE) -> 59% | N20: =VLOOKUP($C20,'RECAP SECT'!$G$6:$EV$253,13,FALSE) -> 9 | O20: =VLOOKUP($C20,'RECAP SECT'!$G$6:$EV$253,14,FALSE) -> 65% | P20: =VLOOKUP($C20,'RECAP SECT'!$G$6:$EV$253,15,FALSE) -> 47% | Q20: =VLOOKUP($C20,'RECAP SECT'!$G$6:$EV$253,16,FALSE) -> 7 | R20: =VLOOKUP($C20,'RECAP SECT'!$G$6:$EV$253,17,FALSE) -> 48% | S20: =VLOOKUP($C20,'RECAP SECT'!$G$6:$EV$253,18,FALSE) -> 33% | T20: =VLOOKUP($C20,'RECAP SECT'!$G$6:$EV$253,19,FALSE) -> 5
A21: 110 | B21: MEURTHE ET MOSELLE MEUSE | C21: 27 | D21: PONT A MOUSSON | E21: =VLOOKUP($C21,'RECAP SECT'!$G$6:$EV$253,3,FALSE) -> 86.9 | F21: =VLOOKUP($C21,'RECAP SECT'!$G$6:$EV$253,5,FALSE) -> -0.40 | G21: =VLOOKUP($C21,'RECAP SECT'!$G$6:$EV$253,6,FALSE) -> 81% | H21: =VLOOKUP($C21,'RECAP SECT'!$G$6:$EV$253,7,FALSE) -> 9 | I21: =VLOOKUP($C21,'RECAP SECT'!$G$6:$EV$253,8,FALSE) -> 2.29 | J21: =VLOOKUP($C21,'RECAP SECT'!$G$6:$EV$253,9,FALSE) -> 27% | K21: =VLOOKUP($C21,'RECAP SECT'!$G$6:$EV$253,10,FALSE) -> 14 | L21: =VLOOKUP($C21,'RECAP SECT'!$G$6:$EV$253,11,FALSE) -> 2.76 | M21: =VLOOKUP($C21,'RECAP SECT'!$G$6:$EV$253,12,FALSE) -> 63% | N21: =VLOOKUP($C21,'RECAP SECT'!$G$6:$EV$253,13,FALSE) -> 10 | O21: =VLOOKUP($C21,'RECAP SECT'!$G$6:$EV$253,14,FALSE) -> 79% | P21: =VLOOKUP($C21,'RECAP SECT'!$G$6:$EV$253,15,FALSE) -> 36% | Q21: =VLOOKUP($C21,'RECAP SECT'!$G$6:$EV$253,16,FALSE) -> 5 | R21: =VLOOKUP($C21,'RECAP SECT'!$G$6:$EV$253,17,FALSE) -> 51% | S21: =VLOOKUP($C21,'RECAP SECT'!$G$6:$EV$253,18,FALSE) -> 36% | T21: =VLOOKUP($C21,'RECAP SECT'!$G$6:$EV$253,19,FALSE) -> 6
A22: 110 | B22: MEURTHE ET MOSELLE MEUSE | C22: 31 | D22: VERDUN | E22: =VLOOKUP($C22,'RECAP SECT'!$G$6:$EV$253,3,FALSE) -> 62.6 | F22: =VLOOKUP($C22,'RECAP SECT'!$G$6:$EV$253,5,FALSE) -> 0.29 | G22: =VLOOKUP($C22,'RECAP SECT'!$G$6:$EV$253,6,FALSE) -> 70% | H22: =VLOOKUP($C22,'RECAP SECT'!$G$6:$EV$253,7,FALSE) -> 7 | I22: =VLOOKUP($C22,'RECAP SECT'!$G$6:$EV$253,8,FALSE) -> 2.36 | J22: =VLOOKUP($C22,'RECAP SECT'!$G$6:$EV$253,9,FALSE) -> 25% | K22: =VLOOKUP($C22,'RECAP SECT'!$G$6:$EV$253,10,FALSE) -> 12 | L22: =VLOOKUP($C22,'RECAP SECT'!$G$6:$EV$253,11,FALSE) -> 1.79 | M22: =VLOOKUP($C22,'RECAP SECT'!$G$6:$EV$253,12,FALSE) -> 76% | N22: =VLOOKUP($C22,'RECAP SECT'!$G$6:$EV$253,13,FALSE) -> 12 | O22: =VLOOKUP($C22,'RECAP SECT'!$G$6:$EV$253,14,FALSE) -> 53% | P22: =VLOOKUP($C22,'RECAP SECT'!$G$6:$EV$253,15,FALSE) -> 57% | Q22: =VLOOKUP($C22,'RECAP SECT'!$G$6:$EV$253,16,FALSE) -> 9 | R22: =VLOOKUP($C22,'RECAP SECT'!$G$6:$EV$253,17,FALSE) -> 56% | S22: =VLOOKUP($C22,'RECAP SECT'!$G$6:$EV$253,18,FALSE) -> 40% | T22: =VLOOKUP($C22,'RECAP SECT'!$G$6:$EV$253,19,FALSE) -> 10
A23: 160 | B23: MOSELLE | C23: 45 | D23: METZ | E23: =VLOOKUP($C23,'RECAP SECT'!$G$6:$EV$253,3,FALSE) -> 99.7 | F23: =VLOOKUP($C23,'RECAP SECT'!$G$6:$EV$253,5,FALSE) -> -1.84 | G23: =VLOOKUP($C23,'RECAP SECT'!$G$6:$EV$253,6,FALSE) -> 104% | H23: =VLOOKUP($C23,'RECAP SECT'!$G$6:$EV$253,7,FALSE) -> 11 | I23: =VLOOKUP($C23,'RECAP SECT'!$G$6:$EV$253,8,FALSE) -> 2.75 | J23: =VLOOKUP($C23,'RECAP SECT'!$G$6:$EV$253,9,FALSE) -> 12% | K23: =VLOOKUP($C23,'RECAP SECT'!$G$6:$EV$253,10,FALSE) -> 4 | L23: =VLOOKUP($C23,'RECAP SECT'!$G$6:$EV$253,11,FALSE) -> 4.47 | M23: =VLOOKUP($C23,'RECAP SECT'!$G$6:$EV$253,12,FALSE) -> 40% | N23: =VLOOKUP($C23,'RECAP SECT'!$G$6:$EV$253,13,FALSE) -> 4 | O23: =VLOOKUP($C23,'RECAP SECT'!$G$6:$EV$253,14,FALSE) -> 90% | P23: =VLOOKUP($C23,'RECAP SECT'!$G$6:$EV$253,15,FALSE) -> 27% | Q23: =VLOOKUP($C23,'RECAP SECT'!$G$6:$EV$253,16,FALSE) -> 4 | R23: =VLOOKUP($C23,'RECAP SECT'!$G$6:$EV$253,17,FALSE) -> 46% | S23: =VLOOKUP($C23,'RECAP SECT'!$G$6:$EV$253,18,FALSE) -> 31% | T23: =VLOOKUP($C23,'RECAP SECT'!$G$6:$EV$253,19,FALSE) -> 4
A24: 160 | B24: MOSELLE | C24: 42 | D24: MOSELLE EST | E24: =VLOOKUP($C24,'RECAP SECT'!$G$6:$EV$253,3,FALSE) -> 83.0 | F24: =VLOOKUP($C24,'RECAP SECT'!$G$6:$EV$253,5,FALSE) -> 0.46 | G24: =VLOOKUP($C24,'RECAP SECT'!$G$6:$EV$253,6,FALSE) -> 67% | H24: =VLOOKUP($C24,'RECAP SECT'!$G$6:$EV$253,7,FALSE) -> 5 | I24: =VLOOKUP($C24,'RECAP SECT'!$G$6:$EV$253,8,FALSE) -> 1.98 | J24: =VLOOKUP($C24,'RECAP SECT'!$G$6:$EV$253,9,FALSE) -> 37% | K24: =VLOOKUP($C24,'RECAP SECT'!$G$6:$EV$253,10,FALSE) -> 16 | L24: =VLOOKUP($C24,'RECAP SECT'!$G$6:$EV$253,11,FALSE) -> 5.99 | M24: =VLOOKUP($C24,'RECAP SECT'!$G$6:$EV$253,12,FALSE) -> 20% | N24: =VLOOKUP($C24,'RECAP SECT'!$G$6:$EV$253,13,FALSE) -> 2 | O24: =VLOOKUP($C24,'RECAP SECT'!$G$6:$EV$253,14,FALSE) -> 29% | P24: =VLOOKUP($C24,'RECAP SECT'!$G$6:$EV$253,15,FALSE) -> 76% | Q24: =VLOOKUP($C24,'RECAP SECT'!$G$6:$EV$253,16,FALSE) -> 11 | R24: =VLOOKUP($C24,'RECAP SECT'!$G$6:$EV$253,17,FALSE) -> 52% | S24: =VLOOKUP($C24,'RECAP SECT'!$G$6:$EV$253,18,FALSE) -> 37% | T24: =VLOOKUP($C24,'RECAP SECT'!$G$6:$EV$253,19,FALSE) -> 7
A25: 160 | B25: MOSELLE | C25: 44 | D25: MOSELLE NORD | E25: =VLOOKUP($C25,'RECAP SECT'!$G$6:$EV$253,3,FALSE) -> 77.6 | F25: =VLOOKUP($C25,'RECAP SECT'!$G$6:$EV$253,5,FALSE) -> -3.22 | G25: =VLOOKUP($C25,'RECAP SECT'!$G$6:$EV$253,6,FALSE) -> 126% | H25: =VLOOKUP($C25,'RECAP SECT'!$G$6:$EV$253,7,FALSE) -> 14 | I25: =VLOOKUP($C25,'RECAP SECT'!$G$6:$EV$253,8,FALSE) -> 2.42 | J25: =VLOOKUP($C25,'RECAP SECT'!$G$6:$EV$253,9,FALSE) -> 23% | K25: =VLOOKUP($C25,'RECAP SECT'!$G$6:$EV$253,10,FALSE) -> 11 | L25: =VLOOKUP($C25,'RECAP SECT'!$G$6:$EV$253,11,FALSE) -> 3.91 | M25: =VLOOKUP($C25,'RECAP SECT'!$G$6:$EV$253,12,FALSE) -> 48% | N25: =VLOOKUP($C25,'RECAP SECT'!$G$6:$EV$253,13,FALSE) -> 7 | O25: =VLOOKUP($C25,'RECAP SECT'!$G$6:$EV$253,14,FALSE) -> 76% | P25: =VLOOKUP($C25,'RECAP SECT'!$G$6:$EV$253,15,FALSE) -> 38% | Q25: =VLOOKUP($C25,'RECAP SECT'!$G$6:$EV$253,16,FALSE) -> 6 | R25: =VLOOKUP($C25,'RECAP SECT'!$G$6:$EV$253,17,FALSE) -> 60% | S25: =VLOOKUP($C25,'RECAP SECT'!$G$6:$EV$253,18,FALSE) -> 44% | T25: =VLOOKUP($C25,'RECAP SECT'!$G$6:$EV$253,19,FALSE) -> 11
A26: 80 | B26: VOSGES | C26: 57 | D26: EPINAL | E26: =VLOOKUP($C26,'RECAP SECT'!$G$6:$EV$253,3,FALSE) -> 66.5 | F26: =VLOOKUP($C26,'RECAP SECT'!$G$6:$EV$253,5,FALSE) -> -3.23 | G26: =VLOOKUP($C26,'RECAP SECT'!$G$6:$EV$253,6,FALSE) -> 127% | H26: =VLOOKUP($C26,'RECAP SECT'!$G$6:$EV$253,7,FALSE) -> 15 | I26: =VLOOKUP($C26,'RECAP SECT'!$G$6:$EV$253,8,FALSE) -> 1.92 | J26: =VLOOKUP($C26,'RECAP SECT'!$G$6:$EV$253,9,FALSE) -> 39% | K26: =VLOOKUP($C26,'RECAP SECT'!$G$6:$EV$253,10,FALSE) -> 17 | L26: =VLOOKUP($C26,'RECAP SECT'!$G$6:$EV$253,11,FALSE) -> 1.89 | M26: =VLOOKUP($C26,'RECAP SECT'!$G$6:$EV$253,12,FALSE) -> 75% | N26: =VLOOKUP($C26,'RECAP SECT'!$G$6:$EV$253,13,FALSE) -> 11 | O26: =VLOOKUP($C26,'RECAP SECT'!$G$6:$EV$253,14,FALSE) -> 50% | P26: =VLOOKUP($C26,'RECAP SECT'!$G$6:$EV$253,15,FALSE) -> 59% | Q26: =VLOOKUP($C26,'RECAP SECT'!$G$6:$EV$253,16,FALSE) -> 10 | R26: =VLOOKUP($C26,'RECAP SECT'!$G$6:$EV$253,17,FALSE) -> 75% | S26: =VLOOKUP($C26,'RECAP SECT'!$G$6:$EV$253,18,FALSE) -> 60% | T26: =VLOOKUP($C26,'RECAP SECT'!$G$6:$EV$253,19,FALSE) -> 15
A27: 80 | B27: VOSGES | C27: 55 | D27: SAINT DIE | E27: =VLOOKUP($C27,'RECAP SECT'!$G$6:$EV$253,3,FALSE) -> 55.8 | F27: =VLOOKUP($C27,'RECAP SECT'!$G$6:$EV$253,5,FALSE) -> -0.86 | G27: =VLOOKUP($C27,'RECAP SECT'!$G$6:$EV$253,6,FALSE) -> 88% | H27: =VLOOKUP($C27,'RECAP SECT'!$G$6:$EV$253,7,FALSE) -> 10 | I27: =VLOOKUP($C27,'RECAP SECT'!$G$6:$EV$253,8,FALSE) -> 1.88 | J27: =VLOOKUP($C27,'RECAP SECT'!$G$6:$EV$253,9,FALSE) -> 40% | K27: =VLOOKUP($C27,'RECAP SECT'!$G$6:$EV$253,10,FALSE) -> 18 | L27: =VLOOKUP($C27,'RECAP SECT'!$G$6:$EV$253,11,FALSE) -> 1.49 | M27: =VLOOKUP($C27,'RECAP SECT'!$G$6:$EV$253,12,FALSE) -> 80% | N27: =VLOOKUP($C27,'RECAP SECT'!$G$6:$EV$253,13,FALSE) -> 13 | O27: =VLOOKUP($C27,'RECAP SECT'!$G$6:$EV$253,14,FALSE) -> 106% | P27: =VLOOKUP($C27,'RECAP SECT'!$G$6:$EV$253,15,FALSE) -> 14% | Q27: =VLOOKUP($C27,'RECAP SECT'!$G$6:$EV$253,16,FALSE) -> 2 | R27: =VLOOKUP($C27,'RECAP SECT'!$G$6:$EV$253,17,FALSE) -> 54% | S27: =VLOOKUP($C27,'RECAP SECT'!$G$6:$EV$253,18,FALSE) -> 39% | T27: =VLOOKUP($C27,'RECAP SECT'!$G$6:$EV$253,19,FALSE) -> 8
A28: Total CEGEE Directions Régionales | E28: =SUM(E10:E27) -> 1332

Sheet SE_RISQUES
A1: Accueil | F1: BAROMETRE BDD - TERRITOIRES
F2: RISQUES
F3: =ACCUEIL!H7 -> 2019-11-30
F6: Complétude conformité et fiabilisation | L6: Traitement et qualité du traitement des alertes Vigiclient | O6: Total Risques
F7: Nouvelles EER sur flux BDD | I7: EER sur flux cumulés et stock
G8: coef | H8: ='RECAP DIRCOM'!DW4 -> 3% | J8: coef | K8: ='RECAP DIRCOM'!DZ4 -> 3% | M8: coef | N8: ='RECAP DIRCOM'!EC4 -> 4% | P8: coef | Q8: ='RECAP DIRCOM'!EF4 -> 10%
A9: eds | B9: Direction | C9: eds | D9: Territoire | E9: ETP perf | G9: % Ecart au 1er | H9: Rang | J9: % Ecart au 1er | K9: Rang | M9: % Ecart au 1er | N9: Rang | O9: Moyenne ecart au 1er | P9: % Ecart au 1er | Q9: Rang CEGEE
A10: 50 | B10: AUBE HAUTE MARNE | C10: 21 | D10: CHAUMONT | E10: =VLOOKUP($C10,'RECAP SECT'!$G$6:$EV$253,3,FALSE) -> 45.0 | F10: =VLOOKUP($C10,'RECAP SECT'!$G$6:$EV$253,119,FALSE) -> 98% | G10: =VLOOKUP($C10,'RECAP SECT'!$G$6:$EV$253,120,FALSE) -> 1% | H10: =VLOOKUP($C10,'RECAP SECT'!$G$6:$EV$253,121,FALSE) -> 3 | I10: =VLOOKUP($C10,'RECAP SECT'!$G$6:$EV$253,122,FALSE) -> 78% | J10: =VLOOKUP($C10,'RECAP SECT'!$G$6:$EV$253,123,FALSE) -> 1% | K10: =VLOOKUP($C10,'RECAP SECT'!$G$6:$EV$253,124,FALSE) -> 4 | L10: =VLOOKUP($C10,'RECAP SECT'!$G$6:$EV$253,125,FALSE) -> 100% | M10: =VLOOKUP($C10,'RECAP SECT'!$G$6:$EV$253,126,FALSE) -> 0% | N10: =VLOOKUP($C10,'RECAP SECT'!$G$6:$EV$253,127,FALSE) -> 1 | O10: =VLOOKUP($C10,'RECAP SECT'!$G$6:$EV$253,128,FALSE) -> 1% | P10: =VLOOKUP($C10,'RECAP SECT'!$G$6:$EV$253,129,FALSE) -> 0% | Q10: =VLOOKUP($C10,'RECAP SECT'!$G$6:$EV$253,130,FALSE) -> 1
A11: 50 | B11: AUBE HAUTE MARNE | C11: 14 | D11: TROYES | E11: =VLOOKUP($C11,'RECAP SECT'!$G$6:$EV$253,3,FALSE) -> 76.8 | F11: =VLOOKUP($C11,'RECAP SECT'!$G$6:$EV$253,119,FALSE) -> 98% | G11: =VLOOKUP($C11,'RECAP SECT'!$G$6:$EV$253,120,FALSE) -> 1% | H11: =VLOOKUP($C11,'RECAP SECT'!$G$6:$EV$253,121,FALSE) -> 11 | I11: =VLOOKUP($C11,'RECAP SECT'!$G$6:$EV$253,122,FALSE) -> 75% | J11: =VLOOKUP($C11,'RECAP SECT'!$G$6:$EV$253,123,FALSE) -> 5% | K11: =VLOOKUP($C11,'RECAP SECT'!$G$6:$EV$253,124,FALSE) -> 10 | L11: =VLOOKUP($C11,'RECAP SECT'!$G$6:$EV$253,125,FALSE) -> 100% | M11: =VLOOKUP($C11,'RECAP SECT'!$G$6:$EV$253,126,FALSE) -> 0% | N11: =VLOOKUP($C11,'RECAP SECT'!$G$6:$EV$253,127,FALSE) -> 1 | O11: =VLOOKUP($C11,'RECAP SECT'!$G$6:$EV$253,128,FALSE) -> 2% | P11: =VLOOKUP($C11,'RECAP SECT'!$G$6:$EV$253,129,FALSE) -> 1% | Q11: =VLOOKUP($C11,'RECAP SECT'!$G$6:$EV$253,130,FALSE) -> 6
A12: 262 | B12: BAS-RHIN | C12: 5060 | D12: HAGUENAU | E12: =VLOOKUP($C12,'RECAP SECT'!$G$6:$EV$253,3,FALSE) -> 87.2 | F12: =VLOOKUP($C12,'RECAP SECT'!$G$6:$EV$253,119,FALSE) -> 97% | G12: =VLOOKUP($C12,'RECAP SECT'!$G$6:$EV$253,120,FALSE) -> 2% | H12: =VLOOKUP($C12,'RECAP SECT'!$G$6:$EV$253,121,FALSE) -> 15 | I12: =VLOOKUP($C12,'RECAP SECT'!$G$6:$EV$253,122,FALSE) -> 72% | J12: =VLOOKUP($C12,'RECAP SECT'!$G$6:$EV$253,123,FALSE) -> 9% | K12: =VLOOKUP($C12,'RECAP SECT'!$G$6:$EV$253,124,FALSE) -> 15 | L12: =VLOOKUP($C12,'RECAP SECT'!$G$6:$EV$253,125,FALSE) -> 93% | M12: =VLOOKUP($C12,'RECAP SECT'!$G$6:$EV$253,126,FALSE) -> 7% | N12: =VLOOKUP($C12,'RECAP SECT'!$G$6:$EV$253,127,FALSE) -> 15 | O12: =VLOOKUP($C12,'RECAP SECT'!$G$6:$EV$253,128,FALSE) -> 6% | P12: =VLOOKUP($C12,'RECAP SECT'!$G$6:$EV$253,129,FALSE) -> 6% | Q12: =VLOOKUP($C12,'RECAP SECT'!$G$6:$EV$253,130,FALSE) -> 16
A13: 262 | B13: BAS-RHIN | C13: 5101 | D13: SELESTAT | E13: =VLOOKUP($C13,'RECAP SECT'!$G$6:$EV$253,3,FALSE) -> 74.4 | F13: =VLOOKUP($C13,'RECAP SECT'!$G$6:$EV$253,119,FALSE) -> 98% | G13: =VLOOKUP($C13,'RECAP SECT'!$G$6:$EV$253,120,FALSE) -> 1% | H13: =VLOOKUP($C13,'RECAP SECT'!$G$6:$EV$253,121,FALSE) -> 7 | I13: =VLOOKUP($C13,'RECAP SECT'!$G$6:$EV$253,122,FALSE) -> 72% | J13: =VLOOKUP($C13,'RECAP SECT'!$G$6:$EV$253,123,FALSE) -> 10% | K13: =VLOOKUP($C13,'RECAP SECT'!$G$6:$EV$253,124,FALSE) -> 16 | L13: =VLOOKUP($C13,'RECAP SECT'!$G$6:$EV$253,125,FALSE) -> 94% | M13: =VLOOKUP($C13,'RECAP SECT'!$G$6:$EV$253,126,FALSE) -> 6% | N13: =VLOOKUP($C13,'RECAP SECT'!$G$6:$EV$253,127,FALSE) -> 13 | O13: =VLOOKUP($C13,'RECAP SECT'!$G$6:$EV$253,128,FALSE) -> 6% | P13: =VLOOKUP($C13,'RECAP SECT'!$G$6:$EV$253,129,FALSE) -> 5% | Q13: =VLOOKUP($C13,'RECAP SECT'!$G$6:$EV$253,130,FALSE) -> 15
A14: 262 | B14: BAS-RHIN | C14: 5006 | D14: STRASBOURG | E14: =VLOOKUP($C14,'RECAP SECT'!$G$6:$EV$253,3,FALSE) -> 91.1 | F14: =VLOOKUP($C14,'RECAP SECT'!$G$6:$EV$253,119,FALSE) -> 95% | G14: =VLOOKUP($C14,'RECAP SECT'!$G$6:$EV$253,120,FALSE) -> 4% | H14: =VLOOKUP($C14,'RECAP SECT'!$G$6:$EV$253,121,FALSE) -> 18 | I14: =VLOOKUP($C14,'RECAP SECT'!$G$6:$EV$253,122,FALSE) -> 71% | J14: =VLOOKUP($C14,'RECAP SECT'!$G$6:$EV$253,123,FALSE) -> 11% | K14: =VLOOKUP($C14,'RECAP SECT'!$G$6:$EV$253,124,FALSE) -> 18 | L14: =VLOOKUP($C14,'RECAP SECT'!$G$6:$EV$253,125,FALSE) -> 92% | M14: =VLOOKUP($C14,'RECAP SECT'!$G$6:$EV$253,126,FALSE) -> 8% | N14: =VLOOKUP($C14,'RECAP SECT'!$G$6:$EV$253,127,FALSE) -> 16 | O14: =VLOOKUP($C14,'RECAP SECT'!$G$6:$EV$253,128,FALSE) -> 7% | P14: =VLOOKUP($C14,'RECAP SECT'!$G$6:$EV$253,129,FALSE) -> 7% | Q14: =VLOOKUP($C14,'RECAP SECT'!$G$6:$EV$253,130,FALSE) -> 18
A15: 264 | B15: HAUT-RHIN | C15: 5130 | D15: COLMAR | E15: =VLOOKUP($C15,'RECAP SECT'!$G$6:$EV$253,3,FALSE) -> 74.7 | F15: =VLOOKUP($C15,'RECAP SECT'!$G$6:$EV$253,119,FALSE) -> 97% | G15: =VLOOKUP($C15,'RECAP SECT'!$G$6:$EV$253,120,FALSE) -> 1% | H15: =VLOOKUP($C15,'RECAP SECT'!$G$6:$EV$253,121,FALSE) -> 12 | I15: =VLOOKUP($C15,'RECAP SECT'!$G$6:$EV$253,122,FALSE) -> 73% | J15: =VLOOKUP($C15,'RECAP SECT'!$G$6:$EV$253,123,FALSE) -> 8% | K15: =VLOOKUP($C15,'RECAP SECT'!$G$6:$EV$253,124,FALSE) -> 14 | L15: =VLOOKUP($C15,'RECAP SECT'!$G$6:$EV$253,125,FALSE) -> 100% | M15: =VLOOKUP($C15,'RECAP SECT'!$G$6:$EV$253,126,FALSE) -> 0% | N15: =VLOOKUP($C15,'RECAP SECT'!$G$6:$EV$253,127,FALSE) -> 5 | O15: =VLOOKUP($C15,'RECAP SECT'!$G$6:$EV$253,128,FALSE) -> 3% | P15: =VLOOKUP($C15,'RECAP SECT'!$G$6:$EV$253,129,FALSE) -> 3% | Q15: =VLOOKUP($C15,'RECAP SECT'!$G$6:$EV$253,130,FALSE) -> 9
A16: 264 | B16: HAUT-RHIN | C16: 5169 | D16: MULHOUSE | E16: =VLOOKUP($C16,'RECAP SECT'!$G$6:$EV$253,3,FALSE) -> 73.6 | F16: =VLOOKUP($C16,'RECAP SECT'!$G$6:$EV$253,119,FALSE) -> 97% | G16: =VLOOKUP($C16,'RECAP SECT'!$G$6:$EV$253,120,FALSE) -> 2% | H16: =VLOOKUP($C16,'RECAP SECT'!$G$6:$EV$253,121,FALSE) -> 14 | I16: =VLOOKUP($C16,'RECAP SECT'!$G$6:$EV$253,122,FALSE) -> 73% | J16: =VLOOKUP($C16,'RECAP SECT'!$G$6:$EV$253,123,FALSE) -> 7% | K16: =VLOOKUP($C16,'RECAP SECT'!$G$6:$EV$253,124,FALSE) -> 13 | L16: =VLOOKUP($C16,'RECAP SECT'!$G$6:$EV$253,125,FALSE) -> 98% | M16: =VLOOKUP($C16,'RECAP SECT'!$G$6:$EV$253,126,FALSE) -> 2% | N16: =VLOOKUP($C16,'RECAP SECT'!$G$6:$EV$253,127,FALSE) -> 10 | O16: =VLOOKUP($C16,'RECAP SECT'!$G$6:$EV$253,128,FALSE) -> 3% | P16: =VLOOKUP($C16,'RECAP SECT'!$G$6:$EV$253,129,FALSE) -> 3% | Q16: =VLOOKUP($C16,'RECAP SECT'!$G$6:$EV$253,130,FALSE) -> 11
A17: 30 | B17: MARNE-ARDENNES | C17: 6 | D17: CHALONS EN CHAMPAGNE | E17: =VLOOKUP($C17,'RECAP SECT'!$G$6:$EV$253,3,FALSE) -> 48.5 | F17: =VLOOKUP($C17,'RECAP SECT'!$G$6:$EV$253,119,FALSE) -> 99% | G17: =VLOOKUP($C17,'RECAP SECT'!$G$6:$EV$253,120,FALSE) -> 0% | H17: =VLOOKUP($C17,'RECAP SECT'!$G$6:$EV$253,121,FALSE) -> 2 | I17: =VLOOKUP($C17,'RECAP SECT'!$G$6:$EV$253,122,FALSE) -> 74% | J17: =VLOOKUP($C17,'RECAP SECT'!$G$6:$EV$253,123,FALSE) -> 7% | K17: =VLOOKUP($C17,'RECAP SECT'!$G$6:$EV$253,124,FALSE) -> 12 | L17: =VLOOKUP($C17,'RECAP SECT'!$G$6:$EV$253,125,FALSE) -> 99% | M17: =VLOOKUP($C17,'RECAP SECT'!$G$6:$EV$253,126,FALSE) -> 1% | N17: =VLOOKUP($C17,'RECAP SECT'!$G$6:$EV$253,127,FALSE) -> 6 | O17: =VLOOKUP($C17,'RECAP SECT'!$G$6:$EV$253,128,FALSE) -> 3% | P17: =VLOOKUP($C17,'RECAP SECT'!$G$6:$EV$253,129,FALSE) -> 2% | Q17: =VLOOKUP($C17,'RECAP SECT'!$G$6:$EV$253,130,FALSE) -> 8
A18: 30 | B18: MARNE-ARDENNES | C18: 2 | D18: CHARLEVILLE MEZIERES | E18: =VLOOKUP($C18,'RECAP SECT'!$G$6:$EV$253,3,FALSE) -> 61.7 | F18: =VLOOKUP($C18,'RECAP SECT'!$G$6:$EV$253,119,FALSE) -> 98% | G18: =VLOOKUP($C18,'RECAP SECT'!$G$6:$EV$253,120,FALSE) -> 1% | H18: =VLOOKUP($C18,'RECAP SECT'!$G$6:$EV$253,121,FALSE) -> 8 | I18: =VLOOKUP($C18,'RECAP SECT'!$G$6:$EV$253,122,FALSE) -> 76% | J18: =VLOOKUP($C18,'RECAP SECT'!$G$6:$EV$253,123,FALSE) -> 4% | K18: =VLOOKUP($C18,'RECAP SECT'!$G$6:$EV$253,124,FALSE) -> 8 | L18: =VLOOKUP($C18,'RECAP SECT'!$G$6:$EV$253,125,FALSE) -> 100% | M18: =VLOOKUP($C18,'RECAP SECT'!$G$6:$EV$253,126,FALSE) -> 0% | N18: =VLOOKUP($C18,'RECAP SECT'!$G$6:$EV$253,127,FALSE) -> 4 | O18: =VLOOKUP($C18,'RECAP SECT'!$G$6:$EV$253,128,FALSE) -> 2% | P18: =VLOOKUP($C18,'RECAP SECT'!$G$6:$EV$253,129,FALSE) -> 1% | Q18: =VLOOKUP($C18,'RECAP SECT'!$G$6:$EV$253,130,FALSE) -> 5
A19: 30 | B19: MARNE-ARDENNES | C19: 11 | D19: REIMS | E19: =VLOOKUP($C19,'RECAP SECT'!$G$6:$EV$253,3,FALSE) -> 89.2 | F19: =VLOOKUP($C19,'RECAP SECT'!$G$6:$EV$253,119,FALSE) -> 98% | G19: =VLOOKUP($C19,'RECAP SECT'!$G$6:$EV$253,120,FALSE) -> 1% | H19: =VLOOKUP($C19,'RECAP SECT'!$G$6:$EV$253,121,FALSE) -> 9 | I19: =VLOOKUP($C19,'RECAP SECT'!$G$6:$EV$253,122,FALSE) -> 72% | J19: =VLOOKUP($C19,'RECAP SECT'!$G$6:$EV$253,123,FALSE) -> 10% | K19: =VLOOKUP($C19,'RECAP SECT'!$G$6:$EV$253,124,FALSE) -> 17 | L19: =VLOOKUP($C19,'RECAP SECT'!$G$6:$EV$253,125,FALSE) -> 99% | M19: =VLOOKUP($C19,'RECAP SECT'!$G$6:$EV$253,126,FALSE) -> 1% | N19: =VLOOKUP($C19,'RECAP SECT'!$G$6:$EV$253,127,FALSE) -> 8 | O19: =VLOOKUP($C19,'RECAP SECT'!$G$6:$EV$253,128,FALSE) -> 4% | P19: =VLOOKUP($C19,'RECAP SECT'!$G$6:$EV$253,129,FALSE) -> 3% | Q19: =VLOOKUP($C19,'RECAP SECT'!$G$6:$EV$253,130,FALSE) -> 12
A20: 110 | B20: MEURTHE ET MOSELLE MEUSE | C20: 26 | D20: NANCY | E20: =VLOOKUP($C20,'RECAP SECT'!$G$6:$EV$253,3,FALSE) -> 77.3 | F20: =VLOOKUP($C20,'RECAP SECT'!$G$6:$EV$253,119,FALSE) -> 98% | G20: =VLOOKUP($C20,'RECAP SECT'!$G$6:$EV$253,120,FALSE) -> 1% | H20: =VLOOKUP($C20,'RECAP SECT'!$G$6:$EV$253,121,FALSE) -> 4 | I20: =VLOOKUP($C20,'RECAP SECT'!$G$6:$EV$253,122,FALSE) -> 75% | J20: =VLOOKUP($C20,'RECAP SECT'!$G$6:$EV$253,123,FALSE) -> 5% | K20: =VLOOKUP($C20,'RECAP SECT'!$G$6:$EV$253,124,FALSE) -> 11 | L20: =VLOOKUP($C20,'RECAP SECT'!$G$6:$EV$253,125,FALSE) -> 88% | M20: =VLOOKUP($C20,'RECAP SECT'!$G$6:$EV$253,126,FALSE) -> 12% | N20: =VLOOKUP($C20,'RECAP SECT'!$G$6:$EV$253,127,FALSE) -> 18 | O20: =VLOOKUP($C20,'RECAP SECT'!$G$6:$EV$253,128,FALSE) -> 6% | P20: =VLOOKUP($C20,'RECAP SECT'!$G$6:$EV$253,129,FALSE) -> 6% | Q20: =VLOOKUP($C20,'RECAP SECT'!$G$6:$EV$253,130,FALSE) -> 17
A21: 110 | B21: MEURTHE ET MOSELLE MEUSE | C21: 27 | D21: PONT A MOUSSON | E21: =VLOOKUP($C21,'RECAP SECT'!$G$6:$EV$253,3,FALSE) -> 86.9 | F21: =VLOOKUP($C21,'RECAP SECT'!$G$6:$EV$253,119,FALSE) -> 97% | G21: =VLOOKUP($C21,'RECAP SECT'!$G$6:$EV$253,120,FALSE) -> 2% | H21: =VLOOKUP($C21,'RECAP SECT'!$G$6:$EV$253,121,FALSE) -> 13 | I21: =VLOOKUP($C21,'RECAP SECT'!$G$6:$EV$253,122,FALSE) -> 76% | J21: =VLOOKUP($C21,'RECAP SECT'!$G$6:$EV$253,123,FALSE) -> 4% | K21: =VLOOKUP($C21,'RECAP SECT'!$G$6:$EV$253,124,FALSE) -> 9 | L21: =VLOOKUP($C21,'RECAP SECT'!$G$6:$EV$253,125,FALSE) -> 91% | M21: =VLOOKUP($C21,'RECAP SECT'!$G$6:$EV$253,126,FALSE) -> 9% | N21: =VLOOKUP($C21,'RECAP SECT'!$G$6:$EV$253,127,FALSE) -> 17 | O21: =VLOOKUP($C21,'RECAP SECT'!$G$6:$EV$253,128,FALSE) -> 5% | P21: =VLOOKUP($C21,'RECAP SECT'!$G$6:$EV$253,129,FALSE) -> 5% | Q21: =VLOOKUP($C21,'RECAP SECT'!$G$6:$EV$253,130,FALSE) -> 14
A22: 110 | B22: MEURTHE ET MOSELLE MEUSE | C22: 31 | D22: VERDUN | E22: =VLOOKUP($C22,'RECAP SECT'!$G$6:$EV$253,3,FALSE) -> 62.6 | F22: =VLOOKUP($C22,'RECAP SECT'!$G$6:$EV$253,119,FALSE) -> 97% | G22: =VLOOKUP($C22,'RECAP SECT'!$G$6:$EV$253,120,FALSE) -> 2% | H22: =VLOOKUP($C22,'RECAP SECT'!$G$6:$EV$253,121,FALSE) -> 17 | I22: =VLOOKUP($C22,'RECAP SECT'!$G$6:$EV$253,122,FALSE) -> 77% | J22: =VLOOKUP($C22,'RECAP SECT'!$G$6:$EV$253,123,FALSE) -> 3% | K22: =VLOOKUP($C22,'RECAP SECT'!$G$6:$EV$253,124,FALSE) -> 7 | L22: =VLOOKUP($C22,'RECAP SECT'!$G$6:$EV$253,125,FALSE) -> 94% | M22: =VLOOKUP($C22,'RECAP SECT'!$G$6:$EV$253,126,FALSE) -> 6% | N22: =VLOOKUP($C22,'RECAP SECT'!$G$6:$EV$253,127,FALSE) -> 12 | O22: =VLOOKUP($C22,'RECAP SECT'!$G$6:$EV$253,128,FALSE) -> 4% | P22: =VLOOKUP($C22,'RECAP SECT'!$G$6:$EV$253,129,FALSE) -> 3% | Q22: =VLOOKUP($C22,'RECAP SECT'!$G$6:$EV$253,130,FALSE) -> 13
A23: 160 | B23: MOSELLE | C23: 45 | D23: METZ | E23: =VLOOKUP($C23,'RECAP SECT'!$G$6:$EV$253,3,FALSE) -> 99.7 | F23: =VLOOKUP($C23,'RECAP SECT'!$G$6:$EV$253,119,FALSE) -> 97% | G23: =VLOOKUP($C23,'RECAP SECT'!$G$6:$EV$253,120,FALSE) -> 2% | H23: =VLOOKUP($C23,'RECAP SECT'!$G$6:$EV$253,121,FALSE) -> 16 | I23: =VLOOKUP($C23,'RECAP SECT'!$G$6:$EV$253,122,FALSE) -> 77% | J23: =VLOOKUP($C23,'RECAP SECT'!$G$6:$EV$253,123,FALSE) -> 3% | K23: =VLOOKUP($C23,'RECAP SECT'!$G$6:$EV$253,124,FALSE) -> 6 | L23: =VLOOKUP($C23,'RECAP SECT'!$G$6:$EV$253,125,FALSE) -> 98% | M23: =VLOOKUP($C23,'RECAP SECT'!$G$6:$EV$253,126,FALSE) -> 2% | N23: =VLOOKUP($C23,'RECAP SECT'!$G$6:$EV$253,127,FALSE) -> 11 | O23: =VLOOKUP($C23,'RECAP SECT'!$G$6:$EV$253,128,FALSE) -> 2% | P23: =VLOOKUP($C23,'RECAP SECT'!$G$6:$EV$253,129,FALSE) -> 2% | Q23: =VLOOKUP($C23,'RECAP SECT'!$G$6:$EV$253,130,FALSE) -> 7
A24: 160 | B24: MOSELLE | C24: 42 | D24: MOSELLE EST | E24: =VLOOKUP($C24,'RECAP SECT'!$G$6:$EV$253,3,FALSE) -> 83.0 | F24: =VLOOKUP($C24,'RECAP SECT'!$G$6:$EV$253,119,FALSE) -> 98% | G24: =VLOOKUP($C24,'RECAP SECT'!$G$6:$EV$253,120,FALSE) -> 1% | H24: =VLOOKUP($C24,'RECAP SECT'!$G$6:$EV$253,121,FALSE) -> 10 | I24: =VLOOKUP($C24,'RECAP SECT'!$G$6:$EV$253,122,FALSE) -> 78% | J24: =VLOOKUP($C24,'RECAP SECT'!$G$6:$EV$253,123,FALSE) -> 1% | K24: =VLOOKUP($C24,'RECAP SECT'!$G$6:$EV$253,124,FALSE) -> 3 | L24: =VLOOKUP($C24,'RECAP SECT'!$G$6:$EV$253,125,FALSE) -> 100% | M24: =VLOOKUP($C24,'RECAP SECT'!$G$6:$EV$253,126,FALSE) -> 0% | N24: =VLOOKUP($C24,'RECAP SECT'!$G$6:$EV$253,127,FALSE) -> 1 | O24: =VLOOKUP($C24,'RECAP SECT'!$G$6:$EV$253,128,FALSE) -> 1% | P24: =VLOOKUP($C24,'RECAP SECT'!$G$6:$EV$253,129,FALSE) -> 0% | Q24: =VLOOKUP($C24,'RECAP SECT'!$G$6:$EV$253,130,FALSE) -> 2
A25: 160 | B25: MOSELLE | C25: 44 | D25: MOSELLE NORD | E25: =VLOOKUP($C25,'RECAP SECT'!$G$6:$EV$253,3,FALSE) -> 77.6 | F25: =VLOOKUP($C25,'RECAP SECT'!$G$6:$EV$253,119,FALSE) -> 98% | G25: =VLOOKUP($C25,'RECAP SECT'!$G$6:$EV$253,120,FALSE) -> 1% | H25: =VLOOKUP($C25,'RECAP SECT'!$G$6:$EV$253,121,FALSE) -> 5 | I25: =VLOOKUP($C25,'RECAP SECT'!$G$6:$EV$253,122,FALSE) -> 79% | J25: =VLOOKUP($C25,'RECAP SECT'!$G$6:$EV$253,123,FALSE) -> 0% | K25: =VLOOKUP($C25,'RECAP SECT'!$G$6:$EV$253,124,FALSE) -> 2 | L25: =VLOOKUP($C25,'RECAP SECT'!$G$6:$EV$253,125,FALSE) -> 99% | M25: =VLOOKUP($C25,'RECAP SECT'!$G$6:$EV$253,126,FALSE) -> 1% | N25: =VLOOKUP($C25,'RECAP SECT'!$G$6:$EV$253,127,FALSE) -> 7 | O25: =VLOOKUP($C25,'RECAP SECT'!$G$6:$EV$253,128,FALSE) -> 1% | P25: =VLOOKUP($C25,'RECAP SECT'!$G$6:$EV$253,129,FALSE) -> 0% | Q25: =VLOOKUP($C25,'RECAP SECT'!$G$6:$EV$253,130,FALSE) -> 3
A26: 80 | B26: VOSGES | C26: 57 | D26: EPINAL | E26: =VLOOKUP($C26,'RECAP SECT'!$G$6:$EV$253,3,FALSE) -> 66.5 | F26: =VLOOKUP($C26,'RECAP SECT'!$G$6:$EV$253,119,FALSE) -> 99% | G26: =VLOOKUP($C26,'RECAP SECT'!$G$6:$EV$253,120,FALSE) -> 0% | H26: =VLOOKUP($C26,'RECAP SECT'!$G$6:$EV$253,121,FALSE) -> 1 | I26: =VLOOKUP($C26,'RECAP SECT'!$G$6:$EV$253,122,FALSE) -> 78% | J26: =VLOOKUP($C26,'RECAP SECT'!$G$6:$EV$253,123,FALSE) -> 2% | K26: =VLOOKUP($C26,'RECAP SECT'!$G$6:$EV$253,124,FALSE) -> 5 | L26: =VLOOKUP($C26,'RECAP SECT'!$G$6:$EV$253,125,FALSE) -> 94% | M26: =VLOOKUP($C26,'RECAP SECT'!$G$6:$EV$253,126,FALSE) -> 6% | N26: =VLOOKUP($C26,'RECAP SECT'!$G$6:$EV$253,127,FALSE) -> 14 | O26: =VLOOKUP($C26,'RECAP SECT'!$G$6:$EV$253,128,FALSE) -> 3% | P26: =VLOOKUP($C26,'RECAP SECT'!$G$6:$EV$253,129,FALSE) -> 3% | Q26: =VLOOKUP($C26,'RECAP SECT'!$G$6:$EV$253,130,FALSE) -> 10
A27: 80 | B27: VOSGES | C27: 55 | D27: SAINT DIE | E27: =VLOOKUP($C27,'RECAP SECT'!$G$6:$EV$253,3,FALSE) -> 55.8 | F27: =VLOOKUP($C27,'RECAP SECT'!$G$6:$EV$253,119,FALSE) -> 98% | G27: =VLOOKUP($C27,'RECAP SECT'!$G$6:$EV$253,120,FALSE) -> 1% | H27: =VLOOKUP($C27,'RECAP SECT'!$G$6:$EV$253,121,FALSE) -> 6 | I27: =VLOOKUP($C27,'RECAP SECT'!$G$6:$EV$253,122,FALSE) -> 79% | J27: =VLOOKUP($C27,'RECAP SECT'!$G$6:$EV$253,123,FALSE) -> 0% | K27: =VLOOKUP($C27,'RECAP SECT'!$G$6:$EV$253,124,FALSE) -> 1 | L27: =VLOOKUP($C27,'RECAP SECT'!$G$6:$EV$253,125,FALSE) -> 99% | M27: =VLOOKUP($C27,'RECAP SECT'!$G$6:$EV$253,126,FALSE) -> 1% | N27: =VLOOKUP($C27,'RECAP SECT'!$G$6:$EV$253,127,FALSE) -> 9 | O27: =VLOOKUP($C27,'RECAP SECT'!$G$6:$EV$253,128,FALSE) -> 1% | P27: =VLOOKUP($C27,'RECAP SECT'!$G$6:$EV$253,129,FALSE) -> 0% | Q27: =VLOOKUP($C27,'RECAP SECT'!$G$6:$EV$253,130,FALSE) -> 4
A28: Total CEGEE Directions Régionales | E28: =SUM(E10:E27) -> 1332

Sheet SE_SATISFACTION
A1: Accueil | F1: BAROMETRE BDD - TERRITOIRES
F2: SATISFACTION CLIENTS
F3: =ACCUEIL!H7 -> 2019-11-30
F7: N P S | I7: Enquête Qualité Haute Définition | L7: Total Satisfaction Clients
G8: coef | H8: ='RECAP DIRCOM'!EO4 -> 5% | J8: coef | K8: ='RECAP DIRCOM'!ER4 -> 5% | M8: coef | N8: ='RECAP DIRCOM'!EU4 -> 10%
A9: eds | B9: Direction | C9: eds | D9: Territoire | E9: ETP perf | G9: % Ecart au 1er | H9: Rang | J9: % Ecart au 1er | K9: Rang | L9: Moyenne ecart au 1er | M9: % Ecart au 1er | N9: Rang CEGEE
A10: 50 | B10: AUBE HAUTE MARNE | C10: 21 | D10: CHAUMONT | E10: =VLOOKUP($C10,'RECAP SECT'!$G$6:$EV$253,3,FALSE) -> 45.0 | F10: =VLOOKUP($C10,'RECAP SECT'!$G$6:$EV$253,137,FALSE) -> -2 | G10: =VLOOKUP($C10,'RECAP SECT'!$G$6:$EV$253,138,FALSE) -> 0% | H10: =VLOOKUP($C10,'RECAP SECT'!$G$6:$EV$253,139,FALSE) -> 1 | I10: =VLOOKUP($C10,'RECAP SECT'!$G$6:$EV$253,140,FALSE) -> 77% | J10: =VLOOKUP($C10,'RECAP SECT'!$G$6:$EV$253,141,FALSE) -> 3% | K10: =VLOOKUP($C10,'RECAP SECT'!$G$6:$EV$253,142,FALSE) -> 4 | L10: =VLOOKUP($C10,'RECAP SECT'!$G$6:$EV$253,143,FALSE) -> 2% | M10: =VLOOKUP($C10,'RECAP SECT'!$G$6:$EV$253,144,FALSE) -> 0% | N10: =VLOOKUP($C10,'RECAP SECT'!$G$6:$EV$253,145,FALSE) -> 1
A11: 50 | B11: AUBE HAUTE MARNE | C11: 14 | D11: TROYES | E11: =VLOOKUP($C11,'RECAP SECT'!$G$6:$EV$253,3,FALSE) -> 76.8 | F11: =VLOOKUP($C11,'RECAP SECT'!$G$6:$EV$253,137,FALSE) -> -10 | G11: =VLOOKUP($C11,'RECAP SECT'!$G$6:$EV$253,138,FALSE) -> 46% | H11: =VLOOKUP($C11,'RECAP SECT'!$G$6:$EV$253,139,FALSE) -> 6 | I11: =VLOOKUP($C11,'RECAP SECT'!$G$6:$EV$253,140,FALSE) -> 74% | J11: =VLOOKUP($C11,'RECAP SECT'!$G$6:$EV$253,141,FALSE) -> 6% | K11: =VLOOKUP($C11,'RECAP SECT'!$G$6:$EV$253,142,FALSE) -> 12 | L11: =VLOOKUP($C11,'RECAP SECT'!$G$6:$EV$253,143,FALSE) -> 26% | M11: =VLOOKUP($C11,'RECAP SECT'!$G$6:$EV$253,144,FALSE) -> 25% | N11: =VLOOKUP($C11,'RECAP SECT'!$G$6:$EV$253,145,FALSE) -> 8
A12: 262 | B12: BAS-RHIN | C12: 5060 | D12: HAGUENAU | E12: =VLOOKUP($C12,'RECAP SECT'!$G$6:$EV$253,3,FALSE) -> 87.2 | F12: =VLOOKUP($C12,'RECAP SECT'!$G$6:$EV$253,137,FALSE) -> -14 | G12: =VLOOKUP($C12,'RECAP SECT'!$G$6:$EV$253,138,FALSE) -> 69% | H12: =VLOOKUP($C12,'RECAP SECT'!$G$6:$EV$253,139,FALSE) -> 11 | I12: =VLOOKUP($C12,'RECAP SECT'!$G$6:$EV$253,140,FALSE) -> 75% | J12: =VLOOKUP($C12,'RECAP SECT'!$G$6:$EV$253,141,FALSE) -> 5% | K12: =VLOOKUP($C12,'RECAP SECT'!$G$6:$EV$253,142,FALSE) -> 9 | L12: =VLOOKUP($C12,'RECAP SECT'!$G$6:$EV$253,143,FALSE) -> 37% | M12: =VLOOKUP($C12,'RECAP SECT'!$G$6:$EV$253,144,FALSE) -> 35% | N12: =VLOOKUP($C12,'RECAP SECT'!$G$6:$EV$253,145,FALSE) -> 11
A13: 262 | B13: BAS-RHIN | C13: 5101 | D13: SELESTAT | E13: =VLOOKUP($C13,'RECAP SECT'!$G$6:$EV$253,3,FALSE) -> 74.4 | F13: =VLOOKUP($C13,'RECAP SECT'!$G$6:$EV$253,137,FALSE) -> -28 | G13: =VLOOKUP($C13,'RECAP SECT'!$G$6:$EV$253,138,FALSE) -> 150% | H13: =VLOOKUP($C13,'RECAP SECT'!$G$6:$EV$253,139,FALSE) -> 17 | I13: =VLOOKUP($C13,'RECAP SECT'!$G$6:$EV$253,140,FALSE) -> 73% | J13: =VLOOKUP($C13,'RECAP SECT'!$G$6:$EV$253,141,FALSE) -> 7% | K13: =VLOOKUP($C13,'RECAP SECT'!$G$6:$EV$253,142,FALSE) -> 15 | L13: =VLOOKUP($C13,'RECAP SECT'!$G$6:$EV$253,143,FALSE) -> 79% | M13: =VLOOKUP($C13,'RECAP SECT'!$G$6:$EV$253,144,FALSE) -> 77% | N13: =VLOOKUP($C13,'RECAP SECT'!$G$6:$EV$253,145,FALSE) -> 17
A14: 262 | B14: BAS-RHIN | C14: 5006 | D14: STRASBOURG | E14: =VLOOKUP($C14,'RECAP SECT'!$G$6:$EV$253,3,FALSE) -> 91.1 | F14: =VLOOKUP($C14,'RECAP SECT'!$G$6:$EV$253,137,FALSE) -> -28 | G14: =VLOOKUP($C14,'RECAP SECT'!$G$6:$EV$253,138,FALSE) -> 150% | H14: =VLOOKUP($C14,'RECAP SECT'!$G$6:$EV$253,139,FALSE) -> 17 | I14: =VLOOKUP($C14,'RECAP SECT'!$G$6:$EV$253,140,FALSE) -> 68% | J14: =VLOOKUP($C14,'RECAP SECT'!$G$6:$EV$253,141,FALSE) -> 14% | K14: =VLOOKUP($C14,'RECAP SECT'!$G$6:$EV$253,142,FALSE) -> 18 | L14: =VLOOKUP($C14,'RECAP SECT'!$G$6:$EV$253,143,FALSE) -> 82% | M14: =VLOOKUP($C14,'RECAP SECT'!$G$6:$EV$253,144,FALSE) -> 81% | N14: =VLOOKUP($C14,'RECAP SECT'!$G$6:$EV$253,145,FALSE) -> 18
A15: 264 | B15: HAUT-RHIN | C15: 5130 | D15: COLMAR | E15: =VLOOKUP($C15,'RECAP SECT'!$G$6:$EV$253,3,FALSE) -> 74.7 | F15: =VLOOKUP($C15,'RECAP SECT'!$G$6:$EV$253,137,FALSE) -> -21 | G15: =VLOOKUP($C15,'RECAP SECT'!$G$6:$EV$253,138,FALSE) -> 110% | H15: =VLOOKUP($C15,'RECAP SECT'!$G$6:$EV$253,139,FALSE) -> 15 | I15: =VLOOKUP($C15,'RECAP SECT'!$G$6:$EV$253,140,FALSE) -> 74% | J15: =VLOOKUP($C15,'RECAP SECT'!$G$6:$EV$253,141,FALSE) -> 7% | K15: =VLOOKUP($C15,'RECAP SECT'!$G$6:$EV$253,142,FALSE) -> 14 | L15: =VLOOKUP($C15,'RECAP SECT'!$G$6:$EV$253,143,FALSE) -> 58% | M15: =VLOOKUP($C15,'RECAP SECT'!$G$6:$EV$253,144,FALSE) -> 57% | N15: =VLOOKUP($C15,'RECAP SECT'!$G$6:$EV$253,145,FALSE) -> 15
A16: 264 | B16: HAUT-RHIN | C16: 5169 | D16: MULHOUSE | E16: =VLOOKUP($C16,'RECAP SECT'!$G$6:$EV$253,3,FALSE) -> 73.6 | F16: =VLOOKUP($C16,'RECAP SECT'!$G$6:$EV$253,137,FALSE) -> -23 | G16: =VLOOKUP($C16,'RECAP SECT'!$G$6:$EV$253,138,FALSE) -> 121% | H16: =VLOOKUP($C16,'RECAP SECT'!$G$6:$EV$253,139,FALSE) -> 16 | I16: =VLOOKUP($C16,'RECAP SECT'!$G$6:$EV$253,140,FALSE) -> 73% | J16: =VLOOKUP($C16,'RECAP SECT'!$G$6:$EV$253,141,FALSE) -> 8% | K16: =VLOOKUP($C16,'RECAP SECT'!$G$6:$EV$253,142,FALSE) -> 16 | L16: =VLOOKUP($C16,'RECAP SECT'!$G$6:$EV$253,143,FALSE) -> 65% | M16: =VLOOKUP($C16,'RECAP SECT'!$G$6:$EV$253,144,FALSE) -> 63% | N16: =VLOOKUP($C16,'RECAP SECT'!$G$6:$EV$253,145,FALSE) -> 16
A17: 30 | B17: MARNE-ARDENNES | C17: 6 | D17: CHALONS EN CHAMPAGNE | E17: =VLOOKUP($C17,'RECAP SECT'!$G$6:$EV$253,3,FALSE) -> 48.5 | F17: =VLOOKUP($C17,'RECAP SECT'!$G$6:$EV$253,137,FALSE) -> -8 | G17: =VLOOKUP($C17,'RECAP SECT'!$G$6:$EV$253,138,FALSE) -> 35% | H17: =VLOOKUP($C17,'RECAP SECT'!$G$6:$EV$253,139,FALSE) -> 3 | I17: =VLOOKUP($C17,'RECAP SECT'!$G$6:$EV$253,140,FALSE) -> 75% | J17: =VLOOKUP($C17,'RECAP SECT'!$G$6:$EV$253,141,FALSE) -> 5% | K17: =VLOOKUP($C17,'RECAP SECT'!$G$6:$EV$253,142,FALSE) -> 10 | L17: =VLOOKUP($C17,'RECAP SECT'!$G$6:$EV$253,143,FALSE) -> 20% | M17: =VLOOKUP($C17,'RECAP SECT'!$G$6:$EV$253,144,FALSE) -> 18% | N17: =VLOOKUP($C17,'RECAP SECT'!$G$6:$EV$253,145,FALSE) -> 5
A18: 30 | B18: MARNE-ARDENNES | C18: 2 | D18: CHARLEVILLE MEZIERES | E18: =VLOOKUP($C18,'RECAP SECT'!$G$6:$EV$253,3,FALSE) -> 61.7 | F18: =VLOOKUP($C18,'RECAP SECT'!$G$6:$EV$253,137,FALSE) -> -10 | G18: =VLOOKUP($C18,'RECAP SECT'!$G$6:$EV$253,138,FALSE) -> 46% | H18: =VLOOKUP($C18,'RECAP SECT'!$G$6:$EV$253,139,FALSE) -> 6 | I18: =VLOOKUP($C18,'RECAP SECT'!$G$6:$EV$253,140,FALSE) -> 76% | J18: =VLOOKUP($C18,'RECAP SECT'!$G$6:$EV$253,141,FALSE) -> 4% | K18: =VLOOKUP($C18,'RECAP SECT'!$G$6:$EV$253,142,FALSE) -> 7 | L18: =VLOOKUP($C18,'RECAP SECT'!$G$6:$EV$253,143,FALSE) -> 25% | M18: =VLOOKUP($C18,'RECAP SECT'!$G$6:$EV$253,144,FALSE) -> 24% | N18: =VLOOKUP($C18,'RECAP SECT'!$G$6:$EV$253,145,FALSE) -> 7
A19: 30 | B19: MARNE-ARDENNES | C19: 11 | D19: REIMS | E19: =VLOOKUP($C19,'RECAP SECT'!$G$6:$EV$253,3,FALSE) -> 89.2 | F19: =VLOOKUP($C19,'RECAP SECT'!$G$6:$EV$253,137,FALSE) -> -4 | G19: =VLOOKUP($C19,'RECAP SECT'!$G$6:$EV$253,138,FALSE) -> 12% | H19: =VLOOKUP($C19,'RECAP SECT'!$G$6:$EV$253,139,FALSE) -> 2 | I19: =VLOOKUP($C19,'RECAP SECT'!$G$6:$EV$253,140,FALSE) -> 79% | J19: =VLOOKUP($C19,'RECAP SECT'!$G$6:$EV$253,141,FALSE) -> 0% | K19: =VLOOKUP($C19,'RECAP SECT'!$G$6:$EV$253,142,FALSE) -> 1 | L19: =VLOOKUP($C19,'RECAP SECT'!$G$6:$EV$253,143,FALSE) -> 6% | M19: =VLOOKUP($C19,'RECAP SECT'!$G$6:$EV$253,144,FALSE) -> 4% | N19: =VLOOKUP($C19,'RECAP SECT'!$G$6:$EV$253,145,FALSE) -> 2
A20: 110 | B20: MEURTHE ET MOSELLE MEUSE | C20: 26 | D20: NANCY | E20: =VLOOKUP($C20,'RECAP SECT'!$G$6:$EV$253,3,FALSE) -> 77.3 | F20: =VLOOKUP($C20,'RECAP SECT'!$G$6:$EV$253,137,FALSE) -> -16 | G20: =VLOOKUP($C20,'RECAP SECT'!$G$6:$EV$253,138,FALSE) -> 81% | H20: =VLOOKUP($C20,'RECAP SECT'!$G$6:$EV$253,139,FALSE) -> 12 | I20: =VLOOKUP($C20,'RECAP SECT'!$G$6:$EV$253,140,FALSE) -> 77% | J20: =VLOOKUP($C20,'RECAP SECT'!$G$6:$EV$253,141,FALSE) -> 3% | K20: =VLOOKUP($C20,'RECAP SECT'!$G$6:$EV$253,142,FALSE) -> 3 | L20: =VLOOKUP($C20,'RECAP SECT'!$G$6:$EV$253,143,FALSE) -> 42% | M20: =VLOOKUP($C20,'RECAP SECT'!$G$6:$EV$253,144,FALSE) -> 40% | N20: =VLOOKUP($C20,'RECAP SECT'!$G$6:$EV$253,145,FALSE) -> 12
A21: 110 | B21: MEURTHE ET MOSELLE MEUSE | C21: 27 | D21: PONT A MOUSSON | E21: =VLOOKUP($C21,'RECAP SECT'!$G$6:$EV$253,3,FALSE) -> 86.9 | F21: =VLOOKUP($C21,'RECAP SECT'!$G$6:$EV$253,137,FALSE) -> -12 | G21: =VLOOKUP($C21,'RECAP SECT'!$G$6:$EV$253,138,FALSE) -> 58% | H21: =VLOOKUP($C21,'RECAP SECT'!$G$6:$EV$253,139,FALSE) -> 10 | I21: =VLOOKUP($C21,'RECAP SECT'!$G$6:$EV$253,140,FALSE) -> 74% | J21: =VLOOKUP($C21,'RECAP SECT'!$G$6:$EV$253,141,FALSE) -> 7% | K21: =VLOOKUP($C21,'RECAP SECT'!$G$6:$EV$253,142,FALSE) -> 13 | L21: =VLOOKUP($C21,'RECAP SECT'!$G$6:$EV$253,143,FALSE) -> 32% | M21: =VLOOKUP($C21,'RECAP SECT'!$G$6:$EV$253,144,FALSE) -> 31% | N21: =VLOOKUP($C21,'RECAP SECT'!$G$6:$EV$253,145,FALSE) -> 10
A22: 110 | B22: MEURTHE ET MOSELLE MEUSE | C22: 31 | D22: VERDUN | E22: =VLOOKUP($C22,'RECAP SECT'!$G$6:$EV$253,3,FALSE) -> 62.6 | F22: =VLOOKUP($C22,'RECAP SECT'!$G$6:$EV$253,137,FALSE) -> -8 | G22: =VLOOKUP($C22,'RECAP SECT'!$G$6:$EV$253,138,FALSE) -> 35% | H22: =VLOOKUP($C22,'RECAP SECT'!$G$6:$EV$253,139,FALSE) -> 3 | I22: =VLOOKUP($C22,'RECAP SECT'!$G$6:$EV$253,140,FALSE) -> 76% | J22: =VLOOKUP($C22,'RECAP SECT'!$G$6:$EV$253,141,FALSE) -> 4% | K22: =VLOOKUP($C22,'RECAP SECT'!$G$6:$EV$253,142,FALSE) -> 8 | L22: =VLOOKUP($C22,'RECAP SECT'!$G$6:$EV$253,143,FALSE) -> 20% | M22: =VLOOKUP($C22,'RECAP SECT'!$G$6:$EV$253,144,FALSE) -> 18% | N22: =VLOOKUP($C22,'RECAP SECT'!$G$6:$EV$253,145,FALSE) -> 4
A23: 160 | B23: MOSELLE | C23: 45 | D23: METZ | E23: =VLOOKUP($C23,'RECAP SECT'!$G$6:$EV$253,3,FALSE) -> 99.7 | F23: =VLOOKUP($C23,'RECAP SECT'!$G$6:$EV$253,137,FALSE) -> -11 | G23: =VLOOKUP($C23,'RECAP SECT'!$G$6:$EV$253,138,FALSE) -> 52% | H23: =VLOOKUP($C23,'RECAP SECT'!$G$6:$EV$253,139,FALSE) -> 9 | I23: =VLOOKUP($C23,'RECAP SECT'!$G$6:$EV$253,140,FALSE) -> 78% | J23: =VLOOKUP($C23,'RECAP SECT'!$G$6:$EV$253,141,FALSE) -> 2% | K23: =VLOOKUP($C23,'RECAP SECT'!$G$6:$EV$253,142,FALSE) -> 2 | L23: =VLOOKUP($C23,'RECAP SECT'!$G$6:$EV$253,143,FALSE) -> 27% | M23: =VLOOKUP($C23,'RECAP SECT'!$G$6:$EV$253,144,FALSE) -> 25% | N23: =VLOOKUP($C23,'RECAP SECT'!$G$6:$EV$253,145,FALSE) -> 9
A24: 160 | B24: MOSELLE | C24: 42 | D24: MOSELLE EST | E24: =VLOOKUP($C24,'RECAP SECT'!$G$6:$EV$253,3,FALSE) -> 83.0 | F24: =VLOOKUP($C24,'RECAP SECT'!$G$6:$EV$253,137,FALSE) -> -8 | G24: =VLOOKUP($C24,'RECAP SECT'!$G$6:$EV$253,138,FALSE) -> 35% | H24: =VLOOKUP($C24,'RECAP SECT'!$G$6:$EV$253,139,FALSE) -> 3 | I24: =VLOOKUP($C24,'RECAP SECT'!$G$6:$EV$253,140,FALSE) -> 76% | J24: =VLOOKUP($C24,'RECAP SECT'!$G$6:$EV$253,141,FALSE) -> 3% | K24: =VLOOKUP($C24,'RECAP SECT'!$G$6:$EV$253,142,FALSE) -> 5 | L24: =VLOOKUP($C24,'RECAP SECT'!$G$6:$EV$253,143,FALSE) -> 19% | M24: =VLOOKUP($C24,'RECAP SECT'!$G$6:$EV$253,144,FALSE) -> 17% | N24: =VLOOKUP($C24,'RECAP SECT'!$G$6:$EV$253,145,FALSE) -> 3
A25: 160 | B25: MOSELLE | C25: 44 | D25: MOSELLE NORD | E25: =VLOOKUP($C25,'RECAP SECT'!$G$6:$EV$253,3,FALSE) -> 77.6 | F25: =VLOOKUP($C25,'RECAP SECT'!$G$6:$EV$253,137,FALSE) -> -19 | G25: =VLOOKUP($C25,'RECAP SECT'!$G$6:$EV$253,138,FALSE) -> 98% | H25: =VLOOKUP($C25,'RECAP SECT'!$G$6:$EV$253,139,FALSE) -> 14 | I25: =VLOOKUP($C25,'RECAP SECT'!$G$6:$EV$253,140,FALSE) -> 72% | J25: =VLOOKUP($C25,'RECAP SECT'!$G$6:$EV$253,141,FALSE) -> 9% | K25: =VLOOKUP($C25,'RECAP SECT'!$G$6:$EV$253,142,FALSE) -> 17 | L25: =VLOOKUP($C25,'RECAP SECT'!$G$6:$EV$253,143,FALSE) -> 53% | M25: =VLOOKUP($C25,'RECAP SECT'!$G$6:$EV$253,144,FALSE) -> 52% | N25: =VLOOKUP($C25,'RECAP SECT'!$G$6:$EV$253,145,FALSE) -> 14
A26: 80 | B26: VOSGES | C26: 57 | D26: EPINAL | E26: =VLOOKUP($C26,'RECAP SECT'!$G$6:$EV$253,3,FALSE) -> 66.5 | F26: =VLOOKUP($C26,'RECAP SECT'!$G$6:$EV$253,137,FALSE) -> -16 | G26: =VLOOKUP($C26,'RECAP SECT'!$G$6:$EV$253,138,FALSE) -> 81% | H26: =VLOOKUP($C26,'RECAP SECT'!$G$6:$EV$253,139,FALSE) -> 12 | I26: =VLOOKUP($C26,'RECAP SECT'!$G$6:$EV$253,140,FALSE) -> 75% | J26: =VLOOKUP($C26,'RECAP SECT'!$G$6:$EV$253,141,FALSE) -> 6% | K26: =VLOOKUP($C26,'RECAP SECT'!$G$6:$EV$253,142,FALSE) -> 11 | L26: =VLOOKUP($C26,'RECAP SECT'!$G$6:$EV$253,143,FALSE) -> 43% | M26: =VLOOKUP($C26,'RECAP SECT'!$G$6:$EV$253,144,FALSE) -> 42% | N26: =VLOOKUP($C26,'RECAP SECT'!$G$6:$EV$253,145,FALSE) -> 13
A27: 80 | B27: VOSGES | C27: 55 | D27: SAINT DIE | E27: =VLOOKUP($C27,'RECAP SECT'!$G$6:$EV$253,3,FALSE) -> 55.8 | F27: =VLOOKUP($C27,'RECAP SECT'!$G$6:$EV$253,137,FALSE) -> -10 | G27: =VLOOKUP($C27,'RECAP SECT'!$G$6:$EV$253,138,FALSE) -> 46% | H27: =VLOOKUP($C27,'RECAP SECT'!$G$6:$EV$253,139,FALSE) -> 6 | I27: =VLOOKUP($C27,'RECAP SECT'!$G$6:$EV$253,140,FALSE) -> 76% | J27: =VLOOKUP($C27,'RECAP SECT'!$G$6:$EV$253,141,FALSE) -> 4% | K27: =VLOOKUP($C27,'RECAP SECT'!$G$6:$EV$253,142,FALSE) -> 6 | L27: =VLOOKUP($C27,'RECAP SECT'!$G$6:$EV$253,143,FALSE) -> 25% | M27: =VLOOKUP($C27,'RECAP SECT'!$G$6:$EV$253,144,FALSE) -> 24% | N27: =VLOOKUP($C27,'RECAP SECT'!$G$6:$EV$253,145,FALSE) -> 6
A28: Total CEGEE Directions Régionales | E28: =SUM(E10:E27) -> 1332

Sheet AG_CLASS
A1: Accueil | H1: BAROMETRE BDD - AGENCES
H2: CLASSEMENTS
H3: =ACCUEIL!H7 -> 2019-11-30
H8: CLASSEMENT GENERAL | I8: CRITERE CONQUETE | J8: Evolution nette Clients Bancarisés Principaux (BP +JBP) par ETP | K8: Evolution nette relations Premium par ETP | L8: Evolution nette Clients Bancarisés Principaux équipés par ETP | M8: Evolution nette Clients Pro actif équipés par rapport à l’objectif fixé | N8: CRITERE EQUIPEMENT BANCARISATION | O8: Ventes nettes forfaits (+ 2 options) par ETP | P8: Ventes nettes IZICARTES par ETP | Q8: Ventes nettes cartes HDG par ETP | R8: Vente nette CB débit différé par ETP | S8: Ventes nettes banca Pro Forfaits Pro, Carte pro par rapport à l’objectif | T8: CRITERE EPARGNE | U8: Excédents de collecte (y.c DAV) par ETP | V8: CA assurance vie par ETP | W8: Activité UC (CA+arbitrage) par ETP | X8: Excédents Assurance-vie par ETP | Y8: Excédents Epargne Bilan (Hors Emprunts CTO) par ETP | Z8: CRITERE CREDITS | AA8: Engagement Conso par ETP (hors clients 9) | AB8: % CNP sur Conso en valeur absolue | AC8: Engagements Immo par rapport à l’objectif | AD8: % CNP sur crédits immo en valeur absolue | AE8: Taux de couverture SACCEF | AF8: Engagements CMLT + CB par rapport à l’objectif | AG8: CRITERE IARD PREVOYANCE | AH8: Ventes nettes IARD (Auto+MRH+ Pro) par ETP | AI8: Ventes nettes Prévoyance (GAV, secur.f,prevoy loc,santé,assist.vie, obséques, Pro) par ETP | AJ8: Chiffre d’affaires IARD (Yc Pro) par ETP | AK8: CRITERE RISQUES | AL8: Complétude, conformité et fiabilisation des nouvelles EER sur flux BDD | AM8: Complétude, conformité et fiabilisation des EER sur flux cumulé et stock | AN8: Traitement et qualité du traitement des alertes Vigiclient | AO8: CRITERE Satisfaction Clients | AP8: Objectifs NPS* | AQ8: Enquête Qualité Haute Définition
A9: eds | B9: Direction | C9: eds | D9: Territoire | E9: eds | F9: Agence | G9: ETP perf | H9: Rang | I9: Rang | J9: Rang | K9: Rang | L9: Rang | M9: Rang | N9: Rang | O9: Rang | P9: Rang | Q9: Rang | R9: Rang | S9: Rang | T9: Rang | U9: Rang | V9: Rang | W9: Rang | X9: Rang | Y9: Rang | Z9: Rang | AA9: Rang | AB9: Rang | AC9: Rang | AD9: Rang | AE9: Rang | AF9: Rang | AG9: Rang | AH9: Rang | AI9: Rang | AJ9: Rang | AK9: Rang | AL9: Rang | AM9: Rang | AN9: Rang | AO9: Rang | AP9: Rang | AQ9: Rang
A10: 110 | B10: MEURTHE ET MOSELLE MEUSE | C10: 27 | D10: PONT A MOUSSON | E10: 454696 | F10: VILLERS GENERAL LECLERC | G10: 5.9 | H10: 1 | I10: 1 | J10: 26 | K10: 31 | L10: 2 | M10: 4 | N10: 1 | O10: 136 | P10: 1 | Q10: 1 | R10: 1 | S10: 59 | T10: 51 | U10: 17 | V10: 4 | W10: 6 | X10: 10 | Y10: 233 | Z10: 1 | AA10: 5 | AB10: 235 | AC10: 1 | AD10: 212 | AE10: 183 | AF10: 17 | AG10: 1 | AH10: 1 | AI10: 1 | AJ10: 76 | AK10: 188 | AL10: 172 | AM10: 242 | AN10: 1 | AO10: 138 | AP10: 142 | AQ10: 117
A11: 30 | B11: MARNE-ARDENNES | C11: 2 | D11: CHARLEVILLE MEZIERES | E11: 508819 | F11: MOUZON | G11: 2.0 | H11: 2 | I11: 2 | J11: 1 | K11: 215 | L11: 1 | M11: 16 | N11: 83 | O11: 55 | P11: 257 | Q11: 174 | R11: 265 | S11: 12 | T11: 148 | U11: 169 | V11: 128 | W11: 182 | X11: 128 | Y11: 140 | Z11: 6 | AA11: 2 | AB11: 148 | AC11: 95 | AD11: 42 | AE11: 174 | AF11: 80 | AG11: 7 | AH11: 10 | AI11: 75 | AJ11: 1 | AK11: 14 | AL11: 133 | AM11: 16 | AN11: 1 | AO11: 17 | AP11: 19 | AQ11: 26
A12: 30 | B12: MARNE-ARDENNES | C12: 2 | D12: CHARLEVILLE MEZIERES | E12: 508833 | F12: VILLERS SEMEUSE CORA | G12: 2.9 | H12: 3 | I12: 3 | J12: 13 | K12: 9 | L12: 4 | M12: 16 | N12: 4 | O12: 192 | P12: 3 | Q12: 5 | R12: 13 | S12: 53 | T12: 181 | U12: 97 | V12: 257 | W12: 208 | X12: 168 | Y12: 167 | Z12: 56 | AA12: 154 | AB12: 142 | AC12: 44 | AD12: 86 | AE12: 114 | AF12: 147 | AG12: 2 | AH12: 3 | AI12: 3 | AJ12: 9 | AK12: 146 | AL12: 1 | AM12: 231 | AN12: 1 | AO12: 129 | AP12: 89 | AQ12: 249
A13: 50 | B13: AUBE HAUTE MARNE | C13: 21 | D13: CHAUMONT | E13: 410539 | F13: CHATEAUVILLAIN | G13: 2.0 | H13: 4 | I13: 78 | J13: 52 | K13: 116 | L13: 60 | M13: 158 | N13: 41 | O13: 31 | P13: 171 | Q13: 78 | R13: 36 | S13: 101 | T13: 42 | U13: 52 | V13: 146 | W13: 125 | X13: 156 | Y13: 46 | Z13: 107 | AA13: 65 | AB13: 170 | AC13: 244 | AD13: 122 | AE13: 36 | AF13: 161 | AG13: 10 | AH13: 14 | AI13: 26 | AJ13: 10 | AK13: 2 | AL13: 1 | AM13: 4 | AN13: 1 | AO13: 31 | AP13: 56 | AQ13: 1
A14: 160 | B14: MOSELLE | C14: 45 | D14: METZ | E14: 557444 | F14: METZ SAINT JULIEN | G14: 5.5 | H14: 5 | I14: 5 | J14: 46 | K14: 206 | L14: 27 | M14: 1 | N14: 135 | O14: 277 | P14: 39 | Q14: 37 | R14: 134 | S14: 180 | T14: 3 | U14: 13 | V14: 20 | W14: 7 | X14: 8 | Y14: 14 | Z14: 131 | AA14: 84 | AB14: 195 | AC14: 102 | AD14: 250 | AE14: 84 | AF14: 135 | AG14: 78 | AH14: 67 | AI14: 64 | AJ14: 186 | AK14: 90 | AL14: 149 | AM14: 114 | AN14: 1 | AO14: 56 | AP14: 64 | AQ14: 47
A15: 80 | B15: VOSGES | C15: 57 | D15: EPINAL | E15: 488288 | F15: EPINAL LEOPOLD BOURG | G15: 2.4 | H15: 6 | I15: 30 | J15: 8 | K15: 35 | L15: 61 | M15: 233 | N15: 12 | O15: 61 | P15: 29 | Q15: 135 | R15: 31 | S15: 14 | T15: 35 | U15: 75 | V15: 206 | W15: 154 | X15: 82 | Y15: 26 | Z15: 12 | AA15: 17 | AB15: 82 | AC15: 62 | AD15: 177 | AE15: 184 | AF15: 16 | AG15: 144 | AH15: 201 | AI15: 161 | AJ15: 52 | AK15: 61 | AL15: 1 | AM15: 2 | AN15: 246 | AO15: 2 | AP15: 3 | AQ15: 5
A16: 30 | B16: MARNE-ARDENNES | C16: 11 | D16: REIMS | E16: 451336 | F16: TINQUEUX | G16: 5.9 | H16: 7 | I16: 8 | J16: 51 | K16: 11 | L16: 153 | M16: 6 | N16: 66 | O16: 176 | P16: 6 | Q16: 182 | R16: 111 | S16: 70 | T16: 4 | U16: 7 | V16: 50 | W16: 137 | X16: 23 | Y16: 6 | Z16: 49 | AA16: 112 | AB16: 267 | AC16: 39 | AD16: 166 | AE16: 124 | AF16: 52 | AG16: 159 | AH16: 177 | AI16: 171 | AJ16: 109 | AK16: 143 | AL16: 202 | AM16: 170 | AN16: 1 | AO16: 54 | AP16: 56 | AQ16: 50
A17: 110 | B17: MEURTHE ET MOSELLE MEUSE | C17: 26 | D17: NANCY | E17: 554601 | F17: SAINT MAX | G17: 3.2 | H17: 8 | I17: 180 | J17: 281 | K17: 193 | L17: 137 | M17: 38 | N17: 35 | O17: 288 | P17: 67 | Q17: 50 | R17: 72 | S17: 7 | T17: 66 | U17: 47 | V17: 13 | W17: 26 | X17: 43 | Y17: 177 | Z17: 13 | AA17: 27 | AB17: 251 | AC17: 4 | AD17: 199 | AE17: 73 | AF17: 104 | AG17: 6 | AH17: 5 | AI17: 42 | AJ17: 7 | AK17: 173 | AL17: 239 | AM17: 201 | AN17: 1 | AO17: 120 | AP17: 150 | AQ17: 33
A18: 80 | B18: VOSGES | C18: 55 | D18: SAINT DIE | E18: 488326 | F18: GERARDMER | G18: 6.0 | H18: 9 | I18: 20 | J18: 142 | K18: 57 | L18: 96 | M18: 16 | N18: 52 | O18: 79 | P18: 106 | Q18: 105 | R18: 38 | S18: 126 | T18: 2 | U18: 3 | V18: 9 | W18: 17 | X18: 37 | Y18: 10 | Z18: 59 | AA18: 95 | AB18: 143 | AC18: 117 | AD18: 165 | AE18: 259 | AF18: 13 | AG18: 117 | AH18: 127 | AI18: 119 | AJ18: 131 | AK18: 46 | AL18: 97 | AM18: 58 | AN18: 1 | AO18: 65 | AP18: 64 | AQ18: 101
A19: 160 | B19: MOSELLE | C19: 45 | D19: METZ | E19: 557434 | F19: MARLY | G19: 4.6 | H19: 10 | I19: 25 | J19: 228 | K19: 15 | L19: 141 | M19: 38 | N19: 87 | O19: 155 | P19: 75 | Q19: 138 | R19: 143 | S19: 41 | T19: 12 | U19: 6 | V19: 40 | W19: 89 | X19: 14 | Y19: 21 | Z19: 114 | AA19: 99 | AB19: 90 | AC19: 27 | AD19: 287 | AE19: 46 | AF19: 242 | AG19: 16 | AH19: 12 | AI19: 199 | AJ19: 28 | AK19: 66 | AL19: 166 | AM19: 69 | AN19: 1 | AO19: 126 | AP19: 162 | AQ19: 30
A20: 30 | B20: MARNE-ARDENNES | C20: 6 | D20: CHALONS EN CHAMPAGNE | E20: 551103 | F20: FAGNIERES LECLERC | G20: 2.8 | H20: 11 | I20: 90 | J20: 61 | K20: 18 | L20: 142 | M20: 276 | N20: 20 | O20: 102 | P20: 5 | Q20: 21 | R20: 61 | S20: 146 | T20: 196 | U20: 89 | V20: 233 | W20: 237 | X20: 186 | Y20: 186 | Z20: 19 | AA20: 34 | AB20: 97 | AC20: 59 | AD20: 38 | AE20: 54 | AF20: 266 | AG20: 9 | AH20: 16 | AI20: 9 | AJ20: 15 | AK20: 17 | AL20: 90 | AM20: 24 | AN20: 1 | AO20: 47 | AP20: 41 | AQ20: 119
A21: 30 | B21: MARNE-ARDENNES | C21: 6 | D21: CHALONS EN CHAMPAGNE | E21: 551354 | F21: VERTUS | G21: 2.9 | H21: 12 | I21: 127 | J21: 71 | K21: 54 | L21: 162 | M21: 266 | N21: 108 | O21: 19 | P21: 164 | Q21: 103 | R21: 214 | S21: 204 | T21: 6 | U21: 207 | V21: 115 | W21: 81 | X21: 52 | Y21: 3 | Z21: 70 | AA21: 41 | AB21: 98 | AC21: 211 | AD21: 30 | AE21: 269 | AF21: 98 | AG21: 60 | AH21: 109 | AI21: 19 | AJ21: 86 | AK21: 84 | AL21: 1 | AM21: 154 | AN21: 1 | AO21: 9 | AP21: 13 | AQ21: 8
